Workbook

Sheet Overview
A1: Bridge Investment Program Benefit-Cost Analysis Tool (BIP BCA Tool v1.0.1 October 2023)
A2: ---------------------------------------------------------------------------------------------------------------------------------------------------------------------------------------------------------------
A3: What is the Bridge Investment Program BCA Tool?
A4: The Bridge Investment Program (BIP) is a discretionary grant program administered by the Federal Highway Administration (FHWA) and provides grants on a competitive basis to improve bridge condition and the safety, efficiency, and reliability of the movement of people and freight over bridges. Section 11118 of the Bipartisan Infrastructure Law (Pub. L. No. 117-58, Nov. 15, 2021), established the BIP, codified at 23 U.S.C. 124. BIP provides funding for replacement, rehabilitation, preservation, and protection of bridges to reduce the overall number of bridges in poor condition, or in fair condition at risk of falling into poor condition. For Bridge Projects under 23 U.S.C. 124, the USDOT FHWA is statutorily required to evaluate specific benefits including whether the benefits of a project outweigh the total project costs. There is a statutory requirement under 23 U.S.C. 124 that the USDOT FHWA evaluate whether a Large Bridge project is cost effective. The USDOT FHWA is also required under 23 U.S.C. 124(f)(1)(B) to develop a template for applicants to use to summarize these project needs and benefits and to enable BIP Bridge grant applicants to use data from the National Bridge Inventory under 23 U.S.C. 114(b) to populate the template. This Bridge Investment Program Benefit-Cost Analysis Tool (BIP BCA Tool) will allow applicants for either BIP Bridge or Large Bridge grants to summarize project costs and benefits, and obtain data from the NBI in preparation of the economic analysis required for both Bridge and Large Bridge applications. The applicants are encouraged but not required to use the Tool. The Tool is also used by USDOT reviewers to help validate applicant submissions. If an applicant’s benefit cost analysis deviates substantially from the bridge closure date, NBI Average Annual Daily Traffic (AADT), or other findings of the Tool then the applicant should address the cause of the deviation in their BCA technical submission. The default values in the Tool come from the USDOT Benefit Cost Analysis Guidance 2023 Update. If an applicant changes the default values, then the applicant BCA memo needs to discuss the rational for the change. In addition to the NBI data, the Tool uses National Bridge Investment Analysis System (NBIAS) forecasts of bridge condition ratings, and emissions estimates from the EPA’s MOtor Vehicle Emission Simulator (MOVES)."
A5: =HYPERLINK("https://www.fhwa.dot.gov/bridge/nbi.cfm", "See NBI website for more details on the NBI data.") -> See NBI website for more details on the NBI data.
A6: =HYPERLINK("https://www.fhwa.dot.gov/policy/23cpr/appendixb.cfm", "See USDOT Conditions and Performance report for more details on NBIAS data.") -> See USDOT Conditions and Performance report for more details on NBIAS data.
A7: =HYPERLINK("https://fhwa.dot.gov/bridge/bip/bca/", "See BIP BCA tool Uer Manual Appendix B for more details on the NBIAS forecasts.") -> See BIP BCA tool Uer Manual Appendix B for more details on the NBIAS forecasts.
A8: -------------------------------------------------------------------------------------------------------------------------------------------------------------------------------------------------------------
A9: What You Need
A10: • Understanding of the project type and the general impacts of the bridge(s) in your project
A11: • Information to identify each bridge in the NBI, including State, County, and Structure Number.
A12: • Updates of NBI values for each bridge (such as AADT, detour length), if you don’t want to use the NBI data in this tool
A13: • The costs of the project, both capital and maintenance
A14: • Information specific to the benefits you’re claiming; some benefits may need information like annual average crashes, the annual probability of weather/seismic events, pedestrian and cyclists AADT.
A15: =HYPERLINK("https://www.transportation.gov/mission/office-secretary/office-policy/transportation-policy/benefit-cost-analysis-guidance", "See US DOT BCA Guidance for full details.") -> See US DOT BCA Guidance for full details.
A16: =HYPERLINK("https://fhwa.dot.gov/bridge/bip/bca/", "See BIP BCA tool page for more details.") -> See BIP BCA tool page for more details.
A17: ---------------------------------------------------------------------------------------------------------------------------------------------------------------------------------------------------------------
A18: State NBI Data Selection
A19: • Select the states that will be included in the analysis using the drop downs.
A20: • Use the "Select State NBI Data" button to keep only the state NBI data that will be used for the analysis. Note this may take up to 3 minutes to complete.
A21: ---------------------------------------------------------------------------------------------------------------------------------------------------------------------------------------------------------------
A22: Enter Benefits and Cost of Each Bridge
A23: • On the Example Bridge tab, click the Add New Bridge button at the top. This will create a new Bridge tab for input on a single bridge and ask you to give a name for the bridge.
A24: • Fill out the new Bridge tab for the bridge.
A25: • If a project concerns multiple bridges, click Add New Bridge for each bridge to include. Up to 250 bridges can be included in this tool.
A26: ---------------------------------------------------------------------------------------------------------------------------------------------------------------------------------------------------------------
A27: Conduct Sensitivity Analysis (if desired)
A28: Click the Add Sensitivity Analysis at the top of the tab for the bridge you want to conduct sensitivity analysis on (row 4 on any new bridge tab created). This will copy the bridge tab and all your inputs, adding "_sns" to the tab name. You can then change some inputs and compare their impact on the Results tab. On the Results tab, you can choose which tab of inputs to include in the completed benefit-cost analysis.
A29: ---------------------------------------------------------------------------------------------------------------------------------------------------------------------------------------------------------------
A30: Report Results
A31: • The Results tab to see the completed benefit-cost analysis of all bridges combined.
A32: • Provide descriptions of qualitative benefits from your project (if any) on the Results tab.
A33: • Report the BCR and NPV numbers on your application for the Bridge Investment Program.
A34: ---------------------------------------------------------------------------------------------------------------------------------------------------------------------------------------------------------------
A35: Hints
A36: • Required and unallowed Input.
A37: o Green, bold, and underlined cells represent mandatory user input cells. These cells require numeric input and cannot be left blank, or have “-“ or “N/A.” The most important cells have 'Required' in the input field for user awareness.
A38: o Blue, italic, and underlined cells represent optional user input cells.
A39: o Gray cells, plain text cells represent a cell that does not require user input, and should not be edited.
A40: • Deleting a Tab. If you mistakenly add a bridge tab, you can delete it with a button at the top of the bridge tab to be deleted.
A41: • Example Bridge. Review the Example Bridge tab to see the sort of inputs you need to make; it is not included in the Results by default.
A42: • Other Tabs. The Default tab and NBI tab may be viewed, but require no input from users.
A43: • User Guide. See user guide for more information including the calculation methodologies.
A44: ---------------------------------------------------------------------------------------------------------------------------------------------------------------------------------------------------------------
A45: =HYPERLINK('Select State NBI Data'!A1, "Go to 'State NBI Selection' tab") -> Go to 'State NBI Selection' tab
A46: ---------------------------------------------------------------------------------------------------------------------------------------------------------------------------------------------------------------
A47: About
A48: About BIP BCA Tool Version 1.0 Tool developed by: Jonathan Badgley (project lead), Joseph Reed, Kendall Mahavier, Sean Peirce and Don Pickrell U.S.DOT Volpe Center: 55 Broadway Street Cambridge, MA 02142 Project Sponsors: Mona Asudegi FHWA Office of Office of Transportation Policy Studies Office of the Assistant Secretary for Research and Technology, U.S. DOT 1200 New Jersey Avenue, SE Washington, DC 20590

Sheet Select State NBI Data (hidden)
A1: Select State NBI Data
A2: -
A3: Table 1. State NBI Data Selection
A4: State Number | B4: State | C4: NBI State ID
A5: State 1 | B5: Oklahoma | C5: =_xlfn.IFNA(VLOOKUP('Select State NBI Data'!B5,NBI_Dropdown!$B$1:$D$54,3,FALSE), 0) -> 406
A6: State 2 | B6: - | C6: =_xlfn.IFNA(VLOOKUP('Select State NBI Data'!B6,NBI_Dropdown!$B$1:$D$54,3,FALSE), 0) -> 0
A7: State 3 | B7: - | C7: =_xlfn.IFNA(VLOOKUP('Select State NBI Data'!B7,NBI_Dropdown!$B$1:$D$54,3,FALSE), 0) -> 0
A8: Select State NBI Data (press Ctrl + Shift + I)
A9: Note: The command may take a few minutes to filter and process the data. Do not enter commands or close Excel before the command has finished.
A10: Note: Considering saving using "Save As" before selecting the state NBI data so that your original download file is not overwritten, as the Select State NBI Data command cannot be undone.

Sheet Example Bridge
A1: Bridge and Project Overview
A2: ID of bridge, description of improvement, project timeline, traffic volume
A3: Add New Bridge (press Ctrl + Shift + B)
A4: -
A5: -
A6: -
A7: -
A8: -
A9: Table 1. Bridge Variables
A10: Bridge Variables | B10: Bridge Values
A11: State | B11: mystate
A12: County | B12: mycounty
A13: Structure Number | B13: 001
A14: Inventory Route | B14: =VLOOKUP($C$80,'NBI Data'!$A$2:$AA$22875,COLUMN('NBI Data'!$D$2:$D$22875),FALSE) -> 00000
A15: Feature Intersected | B15: =VLOOKUP($C$80,'NBI Data'!$A$2:$AA$22875,COLUMN('NBI Data'!$E$2:$E$22875),FALSE) -> Example Roadway'
A16: Facility Carried | B16: =VLOOKUP($C$80,'NBI Data'!$A$2:$AA$22875,COLUMN('NBI Data'!$F$2:$F$22875),FALSE) -> Example Route'
A17: Latitude | B17: =LEFT(VLOOKUP($C$80,'NBI Data'!$A$2:$AA$22875,COLUMN('NBI Data'!$G$2:$G$22875),FALSE), 2) & CHAR(176) & " " & MID(VLOOKUP($C$80,'NBI Data'!$A$2:$AA$22875,COLUMN('NBI Data'!$G$2:$G$22875),FALSE), 3, 2) &"'" & " " & MID(VLOOKUP($C$80,'NBI Data'!$A$2:$AA$22875,COLUMN('NBI Data'!$G$2:$G$22875),FALSE), 5, 2) &"."& MID(VLOOKUP($C$80,'NBI Data'!$A$2:$AA$22875,COLUMN('NBI Data'!$G$2:$G$22875),FALSE), 7, 2) & CHAR(34) -> 00° 00' 00.00"
A18: Longitude | B18: ="-" & MID(VLOOKUP($C$80,'NBI Data'!$A$2:$AA$22875,COLUMN('NBI Data'!$H$2:$H$22875),FALSE), 2, 2) & CHAR(176) & " " & MID(VLOOKUP($C$80,'NBI Data'!$A$2:$AA$22875,COLUMN('NBI Data'!$H$2:$H$22875),FALSE), 4, 2) &"'" & " " & MID(VLOOKUP($C$80,'NBI Data'!$A$2:$AA$22875,COLUMN('NBI Data'!$H$2:$H$22875),FALSE), 6, 2) &"."& MID(VLOOKUP($C$80,'NBI Data'!$A$2:$AA$22875,COLUMN('NBI Data'!$H$2:$H$22875),FALSE), 8, 2) & CHAR(34) -> -00° 00' 00.0"
A19: Bridge Length (mi) | B19: =VLOOKUP($C$80,'NBI Data'!$A$2:$AA$22875,COLUMN('NBI Data'!$AA$2:$AA$22875),FALSE)/1609 -> 0.1553760099
A20: Bypass, Detour Length (mi) | B20: =VLOOKUP($C$80,'NBI Data'!$A$2:$AA$22875,COLUMN('NBI Data'!$I$2:$I$22875),FALSE)*0.621371 -> 2.499993013
A21: Owner | B21: =VLOOKUP($C$80,'NBI Data'!$A$2:$AA$22875,COLUMN('NBI Data'!$J$2:$J$22875),FALSE) -> mystate
A22: Functional Class, Rural/Urban | B22: =VLOOKUP($C$80,'NBI Data'!$A$2:$AA$22875,COLUMN('NBI Data'!$K$2:$K$22875),FALSE) -> 11
A23: Bridge Road Type | B23: =VLOOKUP(B22,Defaults!A354:$D$366, 2, FALSE) -> Urban - Principal Arterial - Interstate
A24: Year Built | B24: =VLOOKUP($C$80,'NBI Data'!$A$2:$AA$22875,COLUMN('NBI Data'!$L$2:$L$22875),FALSE) -> 1970
A25: Year Reconstructed | B25: =VLOOKUP($C$80,'NBI Data'!$A$2:$AA$22875,COLUMN('NBI Data'!$Q$2:$Q$22875),FALSE) -> 1985
A26: Lanes on the Structure | B26: =VLOOKUP($C$80,'NBI Data'!$A$2:$AA$22875,COLUMN('NBI Data'!$M$2:$M$22875),FALSE) -> 2
A27: Note: Some bridges have the same structure number. Use the state and county drop downs to identify your bridge.
A28: -
A29: Project Description:
A30: Table 2. Project Timeline
A31: Timeline Variables | B31: Timeline Values
A32: Current Year | B32: 2023
A33: First Year of Construction Costs | B33: 2024
A34: Last Year of Construction Costs | B34: 2027
A35: Project Opens (Start of Benefits) | B35: 2028
A36: Years of Benefits for Analysis | B36: 30
A37: First Year of Period of Analysis | B37: =IF(B35="Required","-", B35) -> 2028
A38: Last Year of Period of Analysis | B38: =IFERROR(B35+B36-1, "-") -> 2057
A39: Discount Year | B39: =Defaults!A285 -> 2021
A40: Base Year of NBI | B40: 2023
A41: Note: The tool cannot handle partial years, or pro-rata benefits or costs. Round up or down to the nearest year for construction start, construction end, and the start of benefits.
A42: Note: Enter a value between 20 to 30 for the Years of Benefits for Analysis, appropriate to the project as defined by US DOT BCA Guidance.
A43: -
A44: Table 3. Average Annual Daily Traffic (AADT)
A45: Scenario and Mode | B45: NBI Year of AADT | C45: NBI Year of Future AADT | D45: Forecast using NBI Growth Rate | E45: Forecast using NBI Growth Rate2 | F45: Project Opens | G45: Last Year | H45: Explanation and Source
A46: Year | B46: =VLOOKUP($C$80,'NBI Data'!$A$2:$AA$22875,COLUMN('NBI Data'!$O$2:$O$22875),FALSE) -> 2019 | C46: =VLOOKUP($C$80,'NBI Data'!$A$2:$AA$22875,COLUMN('NBI Data'!$T$2:$T$22875),FALSE) -> 2029 | D46: =IF(B35="Required","-",B35) -> 2028 | E46: =B38 -> 2057 | F46: =IF(B35="Required", "-",B35) -> 2028 | G46: =B38 -> 2057 | H46: N/A
A47: No Build - Passenger AADT | B47: =VLOOKUP($C$80,'NBI Data'!$A$2:$AA$22875,COLUMN('NBI Data'!$N$2:$N$22875),FALSE)*(1-VLOOKUP($C$80,'NBI Data'!$A$2:$AA$22875,COLUMN('NBI Data'!$R$2:$R$22875),FALSE)/100) -> 5400 | C47: =VLOOKUP($C$80,'NBI Data'!$A$2:$AA$22875,COLUMN('NBI Data'!$S$2:$S$22875),FALSE)*(1-VLOOKUP($C$80,'NBI Data'!$A$2:$AA$22875,COLUMN('NBI Data'!$R$2:$R$22875),FALSE)/100) -> 7020 | D47: =ROUND(B47*((1+B59)^(D$46-$B$46)),0) -> 6838 | E47: =ROUND(C47*((1+B59)^(E$46-$C$46)),0) -> 14635 | F47: =D47 -> 6838 | G47: =E47-G49 -> 14245 | H47: Use growth rate of comparing 2020 and 2010 decennial census growth rate
A48: No Build - Truck AADT | B48: =VLOOKUP($C$80,'NBI Data'!$A$2:$AA$22875,COLUMN('NBI Data'!$R$2:$R$22875),FALSE)/100*VLOOKUP($C$80,'NBI Data'!$A$2:$AA$22875,COLUMN('NBI Data'!$N$2:$N$22875),FALSE) -> 600 | C48: =VLOOKUP($C$80,'NBI Data'!$A$2:$AA$22875,COLUMN('NBI Data'!$R$2:$R$22875),FALSE)/100*VLOOKUP($C$80,'NBI Data'!$A$2:$AA$22875,COLUMN('NBI Data'!$S$2:$S$22875),FALSE) -> 780 | D48: =ROUND(B48*((1+B59)^(D$46-$B$46)),0) -> 760 | E48: =ROUND(C48*((1+B59)^(E$46-$C$46)),0) -> 1626 | F48: =D48 -> 760 | G48: =E48 -> 1626 | H48: -
A49: No Build - Bus AADT | B49: N/A | C49: N/A | D49: N/A | E49: N/A | F49: =SUM(B47:B48)*0.05 -> 300 | G49: =SUM(C47:C48)*0.05 -> 390 | H49: Transit service from MPO study (provided as BCA appendix)
A50: Build - Passenger AADT | B50: =B47 -> 5400 | C50: =C47 -> 7020 | D50: =ROUND(B50*((1+B59)^(D$46-$B$46)),0) -> 6838 | E50: =ROUND(C50*((1+B59)^(E$46-$C$46)),0) -> 14635 | F50: =D50 -> 6838 | G50: =E50-G52 -> 14245 | H50: Use growth rate of comparing 2020 and 2010 decennial census growth rate
A51: Build - Truck AADT | B51: =B48 -> 600 | C51: =C48 -> 780 | D51: =ROUND(B51*((1+B59)^(D$46-$B$46)),0) -> 760 | E51: =ROUND(C51*((1+B59)^(E$46-$C$46)),0) -> 1626 | F51: =D51 -> 760 | G51: =E51 -> 1626 | H51: -
A52: Build - Bus AADT | B52: N/A | C52: N/A | D52: N/A | E52: N/A | F52: =SUM(B50:B51)*0.05 -> 300 | G52: =SUM(C50:C51)*0.05 -> 390 | H52: Transit service from MPO study (provided as BCA appendix)
A53: =HYPERLINK("#A542","Note: AADT can be entered manually in Table 52 and Table 53 below.") -> Note: AADT can be entered manually in Table 52 and Table 53 below.
A54: Note: Here and elsewhere in the tool it is critical that you enter at least some value in the required cells, e.g., 0, rather than "-", "N/A" or leaving it blank.
A55: Note: NBI AADT values are added for reference in Table 3. Users must enter AADT values in Columns G, H and I in Table 3.
A56: -
A57: Note: Table 4 is not a user input. Do not adjust Table 4.
A58: Table 4. NBI's Calculated Average Annual Daily Traffic (AADT) Growth Rate
A59: =CONCATENATE("The NBI Calculated Annual Growth Rate", " ", B46, "-",C46, " (NBI)") -> The NBI Calculated Annual Growth Rate 2019-2029 (NBI) | B59: =(C47/B47)^(1/(C$46-B$46))-1 -> 0.0265836313
A60: -
A61: Table 5. Detour Road Type
A62: Detour Road Type | B62: Rural - Principal Arterial - Interstate
A63: Detour Road Type - Simple | B63: =IF(B62="Required", "-",IF(ISNUMBER(SEARCH("Urban",B62)), "Urban", "Rural")) -> Rural
A64: -
A65: Note: Detour length should represent the Net detour: Detour length minus the original route length.
A66: Table 6. Detour and Bridge Length Information
A67: Detour Details | B67: Reference | C67: User Value | D67: Explanation and Source
A68: Net Detour Length, For Vehicles (mi) (NBI) | B68: =ROUND(VLOOKUP($C$80,'NBI Data'!$A$2:$AA$22875,COLUMN('NBI Data'!$I$2:$I$22875),FALSE)*0.621371,1) -> 2.5 | C68: 2.5 | D68: -
A69: Detour Average Speed, for Vehicles (mph) (FHWA VHT) | B69: =ROUND(VLOOKUP(B62,Defaults!B354:F366,2, FALSE),1) -> 66 | C69: 60 | D69: Average speeds lower than FHWA proposed average for bridge road type.
A70: Net Detour Length, For Cycling/ Pedestrian (mi) (NBI) | B70: =ROUND(VLOOKUP($C$80,'NBI Data'!$A$2:$AA$22875,COLUMN('NBI Data'!$I$2:$I$22875),FALSE)*0.621371, 1) -> 2.5 | C70: 0.5 | D70: Pedestrian and bicycle accessible crossing near bridge.
A71: Detour Average Travel Time (min) | B71: =B68/B69*60 -> 2.272727273 | C71: =C68/C69*60 -> 2.5 | D71: N/A
A72: Bridge Length (mi) | B72: =ROUND(B19,2) -> 0.16 | C72: 0.16 | D72: -
A73: Note: Google or HPMS data are preferred for identifying average speed on the detour route. You can also use the HERS/VHT speed values using the Detour Road Type dropdown below.
A74: Note: Bridge length in the NBI does not include the approach length. Include approach length if relevant for your project.
A75: =HYPERLINK("https://www.google.com/maps", "Use Google Maps to calculate detour route length and average speed, as appropriate.") -> Use Google Maps to calculate detour route length and average speed, as appropriate.
A76: =HYPERLINK("https://www.fhwa.dot.gov/policyinformation/hpms.cfm", "Use the Highway Performance Monitoring System (HPMS) data to calculate detour route length and average speed, as appropriate.") -> Use the Highway Performance Monitoring System (HPMS) data to calculate detour route length and average speed, as appropriate.
A77: -
A78: Note: These reference cells are marked to avoid accidental deletion.
A79: Table 7. Reference Table
A80: Reference Cells | B80: =CONCATENATE(B11,B12) -> mystatemycounty | C80: =CONCATENATE(VLOOKUP($B$11,NBI_Dropdown!$B$1:$D$56,3,FALSE),$B$13) -> mystate001
A81: -
A82: Table 8. Travel Assumptions
A83: Parameters | B83: Reference | C83: User Value | D83: Explanation and Source
A84: Bridge Average Speed (FHWA) | B84: =_xlfn.IFNA(VLOOKUP(B23,Defaults!B354:C366,2, FALSE), "N/A") -> 60 | C84: 60 | D84: -
A85: Average Car Occupancy | B85: =Defaults!B49 -> 1.67 | C85: 1.67 | D85: -
A86: Share of Long-Distance Personal Travel | B86: 0 | C86: 0 | D86: -
A87: Value of Time - Long-Distance Personal Travel | B87: =Defaults!B32 -> 23.8 | C87: 23.8 | D87: -
A88: Share of Business Travel | B88: 0.118 | C88: 0.118 | D88: -
A89: Value of Travel Time - Business | B89: =Defaults!B30 -> 31.9 | C89: 31.9 | D89: -
A90: Value of Travel Time - Personal | B90: =Defaults!B29 -> 17 | C90: 17 | D90: -
A91: Value of Travel Time - All Purposes | B91: =ROUND(B86*B87+B88*B89+(1-B86-B88)*B90,1) -> 18.8 | C91: =IFERROR(ROUND(C86*C87+C88*C89+(1-C86-C88)*C90,1),"-") -> 18.8 | D91: -
A92: Walking, Cycling, Waiting, Standing, and Transfer Time | B92: =Defaults!B33 -> 34 | C92: 34 | D92: -
A93: Truck Driver | B93: =Defaults!B36 -> 32.4 | C93: 32.4 | D93: -
A94: Bus Driver | B94: =Defaults!B37 -> 35 | C94: 35 | D94: -
A95: Average Bus Occupancy | B95: 0 | C95: 10 | D95: Data from MyCounty Transportation Authority
A96: -
A97: Capital Cost and Residual Value
A98: Table 9. Expenditure Dollars Option
A99: Are costs entered in year of expenditure dollars (not adjusted for inflation)? | B99: NO
A100: Enter future inflation rate for capital costs. | B100: 0
A101: Note: Capital costs can be entered in year of expenditure dollars or in real dollars. The tool applies inflation and discounting factors automatically if entered as year of expenditure dollars.
A102: -
A103: Table 10. Already Incurred Costs
A104: Year | B104: Costs | C104: Real Costs | D104: Discounted Costs
A105: 2022 | B105: 100000 | C105: =IF($B$99="NO",B105,IFERROR(B105*(IF(A105>$B$39, 1/((1+$B$100)^(A105-$B$39)),VLOOKUP(A105,Defaults!$A$130:$B$188, 2,FALSE))),"-")) -> 100000 | D105: =IFERROR(IF(A105="","",IF(A105<=2020, C105, C105*VLOOKUP(A105,Defaults!$A$285:$B$335, 2,FALSE))),"-") -> 93457.94393
A106: 2023 | B106: 100000 | C106: =IF($B$99="NO",B106,IFERROR(B106*(IF(A106>$B$39, 1/((1+$B$100)^(A106-$B$39)),VLOOKUP(A106,Defaults!$A$130:$B$188, 2,FALSE))),"-")) -> 100000 | D106: =IFERROR(IF(A106="","",IF(A106<=2020, C106, C106*VLOOKUP(A106,Defaults!$A$285:$B$335, 2,FALSE))),"-") -> 87343.87283
A107: - | B107: - | C107: =IF($B$99="NO",B107,IFERROR(B107*(IF(A107>$B$39, 1/((1+$B$100)^(A107-$B$39)),VLOOKUP(A107,Defaults!$A$130:$B$188, 2,FALSE))),"-")) -> - | D107: =IFERROR(IF(A107="","",IF(A107<=2020, C107, C107*VLOOKUP(A107,Defaults!$A$285:$B$335, 2,FALSE))),"-") -> -
A108: - | B108: - | C108: =IF($B$99="NO",B108,IFERROR(B108*(IF(A108>$B$39, 1/((1+$B$100)^(A108-$B$39)),VLOOKUP(A108,Defaults!$A$130:$B$188, 2,FALSE))),"-")) -> - | D108: =IFERROR(IF(A108="","",IF(A108<=2020, C108, C108*VLOOKUP(A108,Defaults!$A$285:$B$335, 2,FALSE))),"-") -> -
A109: - | B109: - | C109: =IF($B$99="NO",B109,IFERROR(B109*(IF(A109>$B$39, 1/((1+$B$100)^(A109-$B$39)),VLOOKUP(A109,Defaults!$A$130:$B$188, 2,FALSE))),"-")) -> - | D109: =IFERROR(IF(A109="","",IF(A109<=2020, C109, C109*VLOOKUP(A109,Defaults!$A$285:$B$335, 2,FALSE))),"-") -> -
A110: - | B110: - | C110: =IF($B$99="NO",B110,IFERROR(B110*(IF(A110>$B$39, 1/((1+$B$100)^(A110-$B$39)),VLOOKUP(A110,Defaults!$A$130:$B$188, 2,FALSE))),"-")) -> - | D110: =IFERROR(IF(A110="","",IF(A110<=2020, C110, C110*VLOOKUP(A110,Defaults!$A$285:$B$335, 2,FALSE))),"-") -> -
A111: - | B111: - | C111: =IF($B$99="NO",B111,IFERROR(B111*(IF(A111>$B$39, 1/((1+$B$100)^(A111-$B$39)),VLOOKUP(A111,Defaults!$A$130:$B$188, 2,FALSE))),"-")) -> - | D111: =IFERROR(IF(A111="","",IF(A111<=2020, C111, C111*VLOOKUP(A111,Defaults!$A$285:$B$335, 2,FALSE))),"-") -> -
A112: - | B112: - | C112: =IF($B$99="NO",B112,IFERROR(B112*(IF(A112>$B$39, 1/((1+$B$100)^(A112-$B$39)),VLOOKUP(A112,Defaults!$A$130:$B$188, 2,FALSE))),"-")) -> - | D112: =IFERROR(IF(A112="","",IF(A112<=2020, C112, C112*VLOOKUP(A112,Defaults!$A$285:$B$335, 2,FALSE))),"-") -> -
A113: - | B113: - | C113: =IF($B$99="NO",B113,IFERROR(B113*(IF(A113>$B$39, 1/((1+$B$100)^(A113-$B$39)),VLOOKUP(A113,Defaults!$A$130:$B$188, 2,FALSE))),"-")) -> - | D113: =IFERROR(IF(A113="","",IF(A113<=2020, C113, C113*VLOOKUP(A113,Defaults!$A$285:$B$335, 2,FALSE))),"-") -> -
A114: - | B114: - | C114: =IF($B$99="NO",B114,IFERROR(B114*(IF(A114>$B$39, 1/((1+$B$100)^(A114-$B$39)),VLOOKUP(A114,Defaults!$A$130:$B$188, 2,FALSE))),"-")) -> - | D114: =IFERROR(IF(A114="","",IF(A114<=2020, C114, C114*VLOOKUP(A114,Defaults!$A$285:$B$335, 2,FALSE))),"-") -> -
A115: - | B115: - | C115: =IF($B$99="NO",B115,IFERROR(B115*(IF(A115>$B$39, 1/((1+$B$100)^(A115-$B$39)),VLOOKUP(A115,Defaults!$A$130:$B$188, 2,FALSE))),"-")) -> - | D115: =IFERROR(IF(A115="","",IF(A115<=2020, C115, C115*VLOOKUP(A115,Defaults!$A$285:$B$335, 2,FALSE))),"-") -> -
A116: -
A117: Table 11. Capital Costs
A118: Year | B118: Costs | C118: Real Costs | D118: Discounted Costs
A119: =IFERROR(IF($B$33="-", "N/A", $B$33),"N/A") -> 2024 | B119: 5000000 | C119: =IF($B$99="NO",B119,IFERROR(B119*(IF(A119>$B$39, 1/(1+$B$100)^(A119-$B$39),VLOOKUP(A119,Defaults!$A$130:$B$188, 2,FALSE))),"-")) -> 5000000 | D119: =IFERROR(IF(A119="N/A","-",C119*VLOOKUP(A119,Defaults!$A$285:$B$335, 2,FALSE)),"-") -> 4081489.384
A120: =IFERROR(IF(A119="N/A","N/A",IF(A119>=$B$34,"N/A",A119+1)),"") -> 2025 | B120: 5000000 | C120: =IF($B$99="NO",B120,IFERROR(B120*(IF(A120>$B$39, 1/(1+$B$100)^(A120-$B$39),VLOOKUP(A120,Defaults!$A$130:$B$188, 2,FALSE))),"-")) -> 5000000 | D120: =IFERROR(IF(A120="N/A","-",C120*VLOOKUP(A120,Defaults!$A$285:$B$335, 2,FALSE)),"-") -> 3814476.06
A121: =IF(A120="N/A","N/A",IF(A120>=$B$34,"N/A",A120+1)) -> 2026 | B121: 10000000 | C121: =IF($B$99="NO",B121,IFERROR(B121*(IF(A121>$B$39, 1/(1+$B$100)^(A121-$B$39),VLOOKUP(A121,Defaults!$A$130:$B$188, 2,FALSE))),"-")) -> 10000000 | D121: =IFERROR(IF(A121="N/A","-",C121*VLOOKUP(A121,Defaults!$A$285:$B$335, 2,FALSE)),"-") -> 7129861.795
A122: 2027 | B122: 10000000 | C122: =IF($B$99="NO",B122,IFERROR(B122*(IF(A122>$B$39, 1/(1+$B$100)^(A122-$B$39),VLOOKUP(A122,Defaults!$A$130:$B$188, 2,FALSE))),"-")) -> 10000000 | D122: =IFERROR(IF(A122="N/A","-",C122*VLOOKUP(A122,Defaults!$A$285:$B$335, 2,FALSE)),"-") -> 6663422.238
A123: N/A | B123: - | C123: =IF($B$99="NO",B123,IFERROR(B123*(IF(A123>$B$39, 1/(1+$B$100)^(A123-$B$39),VLOOKUP(A123,Defaults!$A$130:$B$188, 2,FALSE))),"-")) -> - | D123: =IFERROR(IF(A123="N/A","-",C123*VLOOKUP(A123,Defaults!$A$285:$B$335, 2,FALSE)),"-") -> -
A124: N/A | B124: - | C124: =IF($B$99="NO",B124,IFERROR(B124*(IF(A124>$B$39, 1/(1+$B$100)^(A124-$B$39),VLOOKUP(A124,Defaults!$A$130:$B$188, 2,FALSE))),"-")) -> - | D124: =IFERROR(IF(A124="N/A","-",C124*VLOOKUP(A124,Defaults!$A$285:$B$335, 2,FALSE)),"-") -> -
A125: N/A | B125: - | C125: =IF($B$99="NO",B125,IFERROR(B125*(IF(A125>$B$39, 1/(1+$B$100)^(A125-$B$39),VLOOKUP(A125,Defaults!$A$130:$B$188, 2,FALSE))),"-")) -> - | D125: =IFERROR(IF(A125="N/A","-",C125*VLOOKUP(A125,Defaults!$A$285:$B$335, 2,FALSE)),"-") -> -
A126: N/A | B126: - | C126: =IF($B$99="NO",B126,IFERROR(B126*(IF(A126>$B$39, 1/(1+$B$100)^(A126-$B$39),VLOOKUP(A126,Defaults!$A$130:$B$188, 2,FALSE))),"-")) -> - | D126: =IFERROR(IF(A126="N/A","-",C126*VLOOKUP(A126,Defaults!$A$285:$B$335, 2,FALSE)),"-") -> -
A127: N/A | B127: - | C127: =IF($B$99="NO",B127,IFERROR(B127*(IF(A127>$B$39, 1/(1+$B$100)^(A127-$B$39),VLOOKUP(A127,Defaults!$A$130:$B$188, 2,FALSE))),"-")) -> - | D127: =IFERROR(IF(A127="N/A","-",C127*VLOOKUP(A127,Defaults!$A$285:$B$335, 2,FALSE)),"-") -> -
A128: N/A | B128: - | C128: =IF($B$99="NO",B128,IFERROR(B128*(IF(A128>$B$39, 1/(1+$B$100)^(A128-$B$39),VLOOKUP(A128,Defaults!$A$130:$B$188, 2,FALSE))),"-")) -> - | D128: =IFERROR(IF(A128="N/A","-",C128*VLOOKUP(A128,Defaults!$A$285:$B$335, 2,FALSE)),"-") -> -
A129: N/A | B129: - | C129: =IF($B$99="NO",B129,IFERROR(B129*(IF(A129>$B$39, 1/(1+$B$100)^(A129-$B$39),VLOOKUP(A129,Defaults!$A$130:$B$188, 2,FALSE))),"-")) -> - | D129: =IFERROR(IF(A129="N/A","-",C129*VLOOKUP(A129,Defaults!$A$285:$B$335, 2,FALSE)),"-") -> -
A130: -
A131: Table 12. Capital Cost Summary
A132: Total Capital Costs: | B132: =SUM(B105:B115)+SUM(B119:B129) -> 30200000
A133: Total Real Capital Costs: | B133: =SUM(C105:C115)+SUM(C119:C123) -> 30200000
A134: Total Discounted Capital Costs: | B134: =SUM(D105:D115)+SUM(D119:D129) -> 21870051.29
A135: -
A136: Table 13. Residual Value
A137: Share of Capital Costs | B137: Asset Life (Years) | C137: Explanation and Source
A138: 1 | B138: 40 | C138: The improvement has an expected life of 40 years at which point it would need to be redeployed, or a new bridge constructed
A139: 0 | B139: 0 | C139: -
A140: 0 | B140: 0 | C140: -
A141: 0 | B141: 0 | C141: -
A142: =SUM(A138:A141) -> 1 | B142: Summation | C142: N/A
A143: Note: If there are multiple components of the project for this specific bridge that different asset lives, enter the share of the project costs associated with the different project components and their asset life.
A144: Note: The Summation cell should be 100%.
A145: -
A146: Operating and Maintenance Costs (O&M)
A147: Table 14. Operating and Maintenance Costs Assumptions
A148: Which method would you like to use to enter O&M costs? | B148: Manual Entry
A149: Year of O&M costs Dollars | B149: 2021
A150: Note: If you have O&M costs in the construction period you will need to use the manual entry option to enter the O&M costs in the construction period.
A151: Note: The maintenance costs in the baseline should be entered to be consistent with your estimate of closure. If the bridge is closed in a future year (Table 25), there should not be maintenance costs for that year and thereafter.
A152: Note: For frequency calculation option, all costs should be entered as year of expenditure. The tool applies inflation and discounting factors automatically.
A153: -
A154: Table 15. Annual O&M Calculation Input
A155: Category | B155: Value
A156: Annual O&M Costs in the No Build Scenario | B156: -
A157: Annual O&M Costs Real Growth Rate in the No Build Scenario | B157: 0
A158: Annual O&M Costs in the Build Scenario | B158: -
A159: Annual O&M Costs Real Growth Rate in the Build Scenario | B159: 0
A160: Note: The maintenance real growth rate represents the real cost increases year over year (e.g., from increased deterioration of the asset). It should not include inflation adjustments.
A161: -
A162: Table 16a. Intermittent O&M Calculation Input
A163: Category | B163: Value
A164: Initial year | B164: -
A165: Last Year | B165: -
A166: Occurs every _____ Years; set to 30 if occurs only once | B166: 1
A167: Annual O&M Costs in the No Build Scenario | B167: -
A168: Annual O&M Costs Real Growth Rate in the Build Scenario | B168: -
A169: -
A170: Table 16b. Intermittent O&M Calculation Input
A171: Category | B171: Value
A172: Initial year | B172: -
A173: Last Year | B173: -
A174: Occurs every _____ Years; set to 30 if occurs only once | B174: 1
A175: Annual O&M Costs in the No Build Scenario | B175: -
A176: Annual O&M Costs Real Growth Rate in the Build Scenario | B176: -
A177: -
A178: Table 16c. Intermittent O&M Calculation Input
A179: Category | B179: Value
A180: Initial year | B180: -
A181: Last Year | B181: -
A182: Occurs every _____ Years; set to 30 if occurs only once | B182: 1
A183: Annual O&M Costs in the No Build Scenario | B183: -
A184: Annual O&M Costs Real Growth Rate in the Build Scenario | B184: -
A185: -
A186: Table 16d. Intermittent O&M Calculation Input
A187: Category | B187: Value
A188: Initial year | B188: -
A189: Last Year | B189: -
A190: Occurs every _____ Years; set to 30 if occurs only once | B190: 1
A191: Annual O&M Costs in the No Build Scenario | B191: -
A192: Annual O&M Costs Real Growth Rate in the Build Scenario | B192: -
A193: Note: The "Occurs every _____ " field in Tables 16a through 16d must be greater than or equal to 1, even if you are not adding an additional recurring maintenance cost.
A194: -
A195: Note: Manual O&M cost values should be entered in the year of dollar entered in Table 14.
A196: Table 17. Manual O&M Cost Entry
A197: Calendar Year | B197: Analysis Year | C197: No Build Annual Cost | D197: Build Annual Cost | E197: Discounted O&M Costs
A198: =IFERROR(IF(B32="Required","N/A",B32),"N/A") -> 2023 | B198: =IFERROR(IF(A198=$B$35,1,IF(A198>$B$35,A198-$B$35+1,IF(A198<$B$35,A198-$B$35+1,"N/A"))),"N/A") -> -4 | C198: 10000 | D198: 1000 | E198: =IFERROR((C198-D198)*VLOOKUP($B$149,Defaults!$A$285:$B$335, 2,FALSE)*VLOOKUP(A198,Defaults!$A$285:$B$335,2,FALSE),0) -> 7860.948554
A199: =IF(A198="N/A","N/A",IF(A198>=$B$35+$B$36-1,"N/A",A198+1)) -> 2024 | B199: -3 | C199: 0 | D199: 0 | E199: =IFERROR((C199-D199)*VLOOKUP($B$149,Defaults!$A$285:$B$335, 2,FALSE)*VLOOKUP(A199,Defaults!$A$285:$B$335,2,FALSE),0) -> 0
A200: =IF(A199="N/A","N/A",IF(A199>=$B$35+$B$36-1,"N/A",A199+1)) -> 2025 | B200: -2 | C200: 0 | D200: 0 | E200: =IFERROR((C200-D200)*VLOOKUP($B$149,Defaults!$A$285:$B$335, 2,FALSE)*VLOOKUP(A200,Defaults!$A$285:$B$335,2,FALSE),0) -> 0
... 495 more rows

Sheet Blank Bridge (hidden)
A1: Bridge and Project Overview
A2: ID of bridge, description of improvement, project timeline, traffic volume
A3: Add New Bridge (press Ctrl + Shift + B)
A4: Add Sensitivity Analysis for Current Bridge (press Ctrl + Shift + S)
A5: Delete this Bridge (press Ctrl + Shift + D)
A6: Note: Only delete bridges using this command/button. Deleting bridge tabs through right click will result in (fixable) errors on the Results tab.
A7: Change Bridge Name (press Ctrl + Shift + N)
A8: -
A9: Table 1. Bridge Variables
A10: Bridge Variables | B10: Bridge Values
A11: State | B11: Required
A12: County | B12: Required
A13: Structure Number | B13: Required
A14: Inventory Route | B14: =VLOOKUP($C$80,'NBI Data'!$A$2:$AA$22875,COLUMN('NBI Data'!$D$2:$D$22875),FALSE) -> 
A15: Feature Intersected | B15: =VLOOKUP($C$80,'NBI Data'!$A$2:$AA$22875,COLUMN('NBI Data'!$E$2:$E$22875),FALSE) -> 
A16: Facility Carried | B16: =VLOOKUP($C$80,'NBI Data'!$A$2:$AA$22875,COLUMN('NBI Data'!$F$2:$F$22875),FALSE) -> 
A17: Latitude | B17: =LEFT(VLOOKUP($C$80,'NBI Data'!$A$2:$AA$22875,COLUMN('NBI Data'!$G$2:$G$22875),FALSE), 2) & CHAR(176) & " " & MID(VLOOKUP($C$80,'NBI Data'!$A$2:$AA$22875,COLUMN('NBI Data'!$G$2:$G$22875),FALSE), 3, 2) &"'" & " " & MID(VLOOKUP($C$80,'NBI Data'!$A$2:$AA$22875,COLUMN('NBI Data'!$G$2:$G$22875),FALSE), 5, 2) &"."& MID(VLOOKUP($C$80,'NBI Data'!$A$2:$AA$22875,COLUMN('NBI Data'!$G$2:$G$22875),FALSE), 7, 2) & CHAR(34) -> 
A18: Longitude | B18: ="-" & MID(VLOOKUP($C$80,'NBI Data'!$A$2:$AA$22875,COLUMN('NBI Data'!$H$2:$H$22875),FALSE), 2, 2) & CHAR(176) & " " & MID(VLOOKUP($C$80,'NBI Data'!$A$2:$AA$22875,COLUMN('NBI Data'!$H$2:$H$22875),FALSE), 4, 2) &"'" & " " & MID(VLOOKUP($C$80,'NBI Data'!$A$2:$AA$22875,COLUMN('NBI Data'!$H$2:$H$22875),FALSE), 6, 2) &"."& MID(VLOOKUP($C$80,'NBI Data'!$A$2:$AA$22875,COLUMN('NBI Data'!$H$2:$H$22875),FALSE), 8, 2) & CHAR(34) -> 
A19: Bridge Length (mi) | B19: =VLOOKUP($C$80,'NBI Data'!$A$2:$AA$22875,COLUMN('NBI Data'!$AA$2:$AA$22875),FALSE)/1609 -> 
A20: Bypass, Detour Length (mi) | B20: =VLOOKUP($C$80,'NBI Data'!$A$2:$AA$22875,COLUMN('NBI Data'!$I$2:$I$22875),FALSE)*0.621371 -> 
A21: Owner | B21: =VLOOKUP($C$80,'NBI Data'!$A$2:$AA$22875,COLUMN('NBI Data'!$J$2:$J$22875),FALSE) -> 
A22: Functional Class, Rural/Urban | B22: =VLOOKUP($C$80,'NBI Data'!$A$2:$AA$22875,COLUMN('NBI Data'!$K$2:$K$22875),FALSE) -> 
A23: Bridge Road Type | B23: =VLOOKUP(B22,Defaults!A354:$D$366, 2, FALSE) -> 
A24: Year Built | B24: =VLOOKUP($C$80,'NBI Data'!$A$2:$AA$22875,COLUMN('NBI Data'!$L$2:$L$22875),FALSE) -> 
A25: Year Reconstructed | B25: =VLOOKUP($C$80,'NBI Data'!$A$2:$AA$22875,COLUMN('NBI Data'!$Q$2:$Q$22875),FALSE) -> 
A26: Lanes on the Structure | B26: =VLOOKUP($C$80,'NBI Data'!$A$2:$AA$22875,COLUMN('NBI Data'!$M$2:$M$22875),FALSE) -> 
A27: Note: Some bridges have the same structure number. Use the state and county drop downs to identify your bridge.
A28: -
A29: Project Description:
A30: Table 2. Project Timeline
A31: Timeline Variables | B31: Timeline Values
A32: Current Year | B32: Required
A33: First Year of Construction Costs | B33: Required
A34: Last Year of Construction Costs | B34: Required
A35: Project Opens (Start of Benefits) | B35: Required
A36: Years of Benefits for Analysis | B36: Required
A37: First Year of Period of Analysis | B37: =IF(B35="Required","-", B35) -> -
A38: Last Year of Period of Analysis | B38: =IFERROR(B35+B36-1, "-") -> -
A39: Discount Year | B39: =Defaults!A285 -> 2021
A40: Base Year of NBI | B40: 2023
A41: Note: The tool cannot handle partial years, or pro-rata benefits or costs. Round up or down to the nearest year for construction start, construction end, and the start of benefits.
A42: Note: Enter a value between 20 to 30 for the Years of Benefits for Analysis, appropriate to the project as defined by US DOT BCA Guidance.
A43: -
A44: Table 3. Average Annual Daily Traffic (AADT)
A45: Scenario and Vehicle Type | B45: NBI Year of AADT | C45: NBI Year of Future AADT | D45: Forecast using NBI Growth Rate | E45: Forecast using NBI Growth Rate2 | F45: Project Opens | G45: Last Year | H45: Explanation and Source
A46: Year | B46: =VLOOKUP($C$80,'NBI Data'!$A$2:$AA$22875,COLUMN('NBI Data'!$O$2:$O$22875),FALSE) ->  | C46: =VLOOKUP($C$80,'NBI Data'!$A$2:$AA$22875,COLUMN('NBI Data'!$T$2:$T$22875),FALSE) ->  | D46: =IF(B35="Required","-",B35) -> - | E46: =B38 -> - | F46: =IF(B35="Required", "-",B35) -> - | G46: =B38 -> - | H46: N/A
A47: No Build - Passenger AADT | B47: =VLOOKUP($C$80,'NBI Data'!$A$2:$AA$22875,COLUMN('NBI Data'!$N$2:$N$22875),FALSE)*(1-VLOOKUP($C$80,'NBI Data'!$A$2:$AA$22875,COLUMN('NBI Data'!$R$2:$R$22875),FALSE)/100) ->  | C47: =VLOOKUP($C$80,'NBI Data'!$A$2:$AA$22875,COLUMN('NBI Data'!$S$2:$S$22875),FALSE)*(1-VLOOKUP($C$80,'NBI Data'!$A$2:$AA$22875,COLUMN('NBI Data'!$R$2:$R$22875),FALSE)/100) ->  | D47: =ROUND(B47*((1+B59)^(D$46-$B$46)),0) ->  | E47: =ROUND(C47*((1+B59)^(E$46-$C$46)),0) ->  | F47: Required | G47: Required | H47: -
A48: No Build - Truck AADT | B48: =VLOOKUP($C$80,'NBI Data'!$A$2:$AA$22875,COLUMN('NBI Data'!$R$2:$R$22875),FALSE)/100*VLOOKUP($C$80,'NBI Data'!$A$2:$AA$22875,COLUMN('NBI Data'!$N$2:$N$22875),FALSE) ->  | C48: =VLOOKUP($C$80,'NBI Data'!$A$2:$AA$22875,COLUMN('NBI Data'!$R$2:$R$22875),FALSE)/100*VLOOKUP($C$80,'NBI Data'!$A$2:$AA$22875,COLUMN('NBI Data'!$S$2:$S$22875),FALSE) ->  | D48: =ROUND(B48*((1+B59)^(D$46-$B$46)),0) ->  | E48: =ROUND(C48*((1+B59)^(E$46-$C$46)),0) ->  | F48: Required | G48: Required | H48: -
A49: No Build - Bus AADT | B49: N/A | C49: N/A | D49: N/A | E49: N/A | F49: Required | G49: Required | H49: -
A50: Build - Passenger AADT | B50: =B47 ->  | C50: =C47 ->  | D50: =ROUND(B50*((1+B59)^(D$46-$B$46)),0) ->  | E50: =ROUND(C50*((1+B59)^(E$46-$C$46)),0) ->  | F50: Required | G50: Required | H50: -
A51: Build - Truck AADT | B51: =B48 ->  | C51: =C48 ->  | D51: =ROUND(B51*((1+B59)^(D$46-$B$46)),0) ->  | E51: =ROUND(C51*((1+B59)^(E$46-$C$46)),0) ->  | F51: Required | G51: Required | H51: -
A52: Build - Bus AADT | B52: N/A | C52: N/A | D52: N/A | E52: N/A | F52: Required | G52: Required | H52: -
A53: =HYPERLINK("#A542","Note: AADT can be entered manually in Table 52 and Table 53 below.") -> Note: AADT can be entered manually in Table 52 and Table 53 below.
A54: Note: Here and elsewhere in the tool it is critical that you enter at least some value in the required cells, e.g., 0, rather than "-", "N/A" or leaving it blank.
A55: Note: NBI AADT values are added for reference in Table 3. Users must enter AADT values in Columns G, H and I in Table 3.
A56: -
A57: Note: Table 4 is not a user input. Do not adjust Table 4.
A58: Table 4. NBI's Calculated Average Annual Daily Traffic (AADT) Growth Rate
A59: =CONCATENATE("The NBI Calculated Annual Growth Rate", " ", B46, "-",C46, " (NBI)") ->  | B59: =(C47/B47)^(1/(C$46-B$46))-1 -> 
A60: -
A61: Table 5. Detour Road Type
A62: Detour Road Type | B62: Required
A63: Detour Road Type - Simple | B63: =IF(B62="Required", "-",IF(ISNUMBER(SEARCH("Urban",B62)), "Urban", "Rural")) -> -
A64: -
A65: Note: Detour length should represent the Net detour: Detour length minus the original route length.
A66: Table 6. Detour and Bridge Length Information
A67: Detour Details | B67: Reference | C67: User Value | D67: Explanation and Source
A68: Net Detour Length, For Vehicles (mi) (NBI) | B68: =ROUND(VLOOKUP($C$80,'NBI Data'!$A$2:$AA$22875,COLUMN('NBI Data'!$I$2:$I$22875),FALSE)*0.621371,1) ->  | C68: Required | D68: -
A69: Detour Average Speed, for Vehicles (mph) (FHWA VHT) | B69: =ROUND(VLOOKUP(B62,Defaults!B354:F366,2, FALSE),1) ->  | C69: Required | D69: -
A70: Net Detour Length, For Cycling/ Pedestrian (mi) (NBI) | B70: =ROUND(VLOOKUP($C$80,'NBI Data'!$A$2:$AA$22875,COLUMN('NBI Data'!$I$2:$I$22875),FALSE)*0.621371, 1) ->  | C70: Required | D70: -
A71: Detour Average Travel Time (min) | B71: =B68/B69*60 ->  | C71: =C68/C69*60 ->  | D71: N/A
A72: Bridge Length (mi) | B72: =ROUND(B19,2) ->  | C72: Required | D72: -
A73: Note: Google or HPMS data are preferred for identifying average speed on the detour route. You can also use the HERS/VHT speed values using the Detour Road Type dropdown below.
A74: Note: Bridge length in the NBI does not include the approach length. Include approach length if relevant for your project.
A75: =HYPERLINK("https://www.google.com/maps", "Use Google Maps to calculate detour route length and average speed, as appropriate.") -> Use Google Maps to calculate detour route length and average speed, as appropriate.
A76: =HYPERLINK("https://www.fhwa.dot.gov/policyinformation/hpms.cfm", "Use the Highway Performance Monitoring System (HPMS) data to calculate detour route length and average speed, as appropriate.") -> Use the Highway Performance Monitoring System (HPMS) data to calculate detour route length and average speed, as appropriate.
A77: -
A78: Note: These reference cells are marked to avoid accidental deletion.
A79: Table 7. Reference Table
A80: Reference Cells | B80: =CONCATENATE(B11,B12) -> RequiredRequired | C80: =CONCATENATE(VLOOKUP($B$11,NBI_Dropdown!$B$1:$D$56,3,FALSE),$B$13) -> 
A81: -
A82: Table 8. Travel Assumptions
A83: Parameters | B83: Reference | C83: User Value | D83: Explanation and Source
A84: Bridge Average Speed (FHWA) | B84: =_xlfn.IFNA(VLOOKUP(B23,Defaults!B354:C366,2, FALSE), "N/A") -> N/A | C84: Required | D84: -
A85: Average Car Occupancy | B85: =Defaults!B49 -> 1.67 | C85: Required | D85: -
A86: Share of Long-Distance Personal Travel | B86: 0 | C86: Required | D86: -
A87: Value of Time - Long-Distance Personal Travel | B87: =Defaults!B32 -> 23.8 | C87: Required | D87: -
A88: Share of Business Travel | B88: 0.118 | C88: Required | D88: -
A89: Value of Travel Time - Business | B89: =Defaults!B30 -> 31.9 | C89: Required | D89: -
A90: Value of Travel Time - Personal | B90: =Defaults!B29 -> 17 | C90: Required | D90: -
A91: Value of Travel Time - All Purposes | B91: =ROUND(B86*B87+B88*B89+(1-B86-B88)*B90,1) -> 18.8 | C91: =IFERROR(ROUND(C86*C87+C88*C89+(1-C86-C88)*C90,1),"-") -> - | D91: -
A92: Walking, Cycling, Waiting, Standing, and Transfer Time | B92: =Defaults!B33 -> 34 | C92: Required | D92: -
A93: Truck Driver | B93: =Defaults!B36 -> 32.4 | C93: Required | D93: -
A94: Bus Driver | B94: =Defaults!B37 -> 35 | C94: Required | D94: -
A95: Average Bus Occupancy | B95: 0 | C95: Required | D95: -
A96: -
A97: Capital Cost and Residual Value
A98: Table 9. Expenditure Dollars Option
A99: Are costs entered in year of expenditure dollars (not adjusted for inflation)? | B99: NO
A100: Enter future inflation rate for capital costs. | B100: 0
A101: Note: Capital costs can be entered in year of expenditure dollars or in real dollars. The tool applies inflation and discounting factors automatically if entered as year of expenditure dollars.
A102: -
A103: Table 10. Already Incurred Costs
A104: Year | B104: Costs | C104: Real Costs | D104: Discounted Costs
A105: - | B105: - | C105: =IF($B$99="NO",B105,IFERROR(B105*(IF(A105>$B$39, 1/((1+$B$100)^(A105-$B$39)),VLOOKUP(A105,Defaults!$A$130:$B$188, 2,FALSE))),"-")) -> - | D105: =IFERROR(IF(A105="","",IF(A105<=2020, C105, C105*VLOOKUP(A105,Defaults!$A$285:$B$335, 2,FALSE))),"-") -> -
A106: - | B106: - | C106: =IF($B$99="NO",B106,IFERROR(B106*(IF(A106>$B$39, 1/((1+$B$100)^(A106-$B$39)),VLOOKUP(A106,Defaults!$A$130:$B$188, 2,FALSE))),"-")) -> - | D106: =IFERROR(IF(A106="","",IF(A106<=2020, C106, C106*VLOOKUP(A106,Defaults!$A$285:$B$335, 2,FALSE))),"-") -> -
A107: - | B107: - | C107: =IF($B$99="NO",B107,IFERROR(B107*(IF(A107>$B$39, 1/((1+$B$100)^(A107-$B$39)),VLOOKUP(A107,Defaults!$A$130:$B$188, 2,FALSE))),"-")) -> - | D107: =IFERROR(IF(A107="","",IF(A107<=2020, C107, C107*VLOOKUP(A107,Defaults!$A$285:$B$335, 2,FALSE))),"-") -> -
A108: - | B108: - | C108: =IF($B$99="NO",B108,IFERROR(B108*(IF(A108>$B$39, 1/((1+$B$100)^(A108-$B$39)),VLOOKUP(A108,Defaults!$A$130:$B$188, 2,FALSE))),"-")) -> - | D108: =IFERROR(IF(A108="","",IF(A108<=2020, C108, C108*VLOOKUP(A108,Defaults!$A$285:$B$335, 2,FALSE))),"-") -> -
A109: - | B109: - | C109: =IF($B$99="NO",B109,IFERROR(B109*(IF(A109>$B$39, 1/((1+$B$100)^(A109-$B$39)),VLOOKUP(A109,Defaults!$A$130:$B$188, 2,FALSE))),"-")) -> - | D109: =IFERROR(IF(A109="","",IF(A109<=2020, C109, C109*VLOOKUP(A109,Defaults!$A$285:$B$335, 2,FALSE))),"-") -> -
A110: - | B110: - | C110: =IF($B$99="NO",B110,IFERROR(B110*(IF(A110>$B$39, 1/((1+$B$100)^(A110-$B$39)),VLOOKUP(A110,Defaults!$A$130:$B$188, 2,FALSE))),"-")) -> - | D110: =IFERROR(IF(A110="","",IF(A110<=2020, C110, C110*VLOOKUP(A110,Defaults!$A$285:$B$335, 2,FALSE))),"-") -> -
A111: - | B111: - | C111: =IF($B$99="NO",B111,IFERROR(B111*(IF(A111>$B$39, 1/((1+$B$100)^(A111-$B$39)),VLOOKUP(A111,Defaults!$A$130:$B$188, 2,FALSE))),"-")) -> - | D111: =IFERROR(IF(A111="","",IF(A111<=2020, C111, C111*VLOOKUP(A111,Defaults!$A$285:$B$335, 2,FALSE))),"-") -> -
A112: - | B112: - | C112: =IF($B$99="NO",B112,IFERROR(B112*(IF(A112>$B$39, 1/((1+$B$100)^(A112-$B$39)),VLOOKUP(A112,Defaults!$A$130:$B$188, 2,FALSE))),"-")) -> - | D112: =IFERROR(IF(A112="","",IF(A112<=2020, C112, C112*VLOOKUP(A112,Defaults!$A$285:$B$335, 2,FALSE))),"-") -> -
A113: - | B113: - | C113: =IF($B$99="NO",B113,IFERROR(B113*(IF(A113>$B$39, 1/((1+$B$100)^(A113-$B$39)),VLOOKUP(A113,Defaults!$A$130:$B$188, 2,FALSE))),"-")) -> - | D113: =IFERROR(IF(A113="","",IF(A113<=2020, C113, C113*VLOOKUP(A113,Defaults!$A$285:$B$335, 2,FALSE))),"-") -> -
A114: - | B114: - | C114: =IF($B$99="NO",B114,IFERROR(B114*(IF(A114>$B$39, 1/((1+$B$100)^(A114-$B$39)),VLOOKUP(A114,Defaults!$A$130:$B$188, 2,FALSE))),"-")) -> - | D114: =IFERROR(IF(A114="","",IF(A114<=2020, C114, C114*VLOOKUP(A114,Defaults!$A$285:$B$335, 2,FALSE))),"-") -> -
A115: - | B115: - | C115: =IF($B$99="NO",B115,IFERROR(B115*(IF(A115>$B$39, 1/((1+$B$100)^(A115-$B$39)),VLOOKUP(A115,Defaults!$A$130:$B$188, 2,FALSE))),"-")) -> - | D115: =IFERROR(IF(A115="","",IF(A115<=2020, C115, C115*VLOOKUP(A115,Defaults!$A$285:$B$335, 2,FALSE))),"-") -> -
A116: -
A117: Table 11. Capital Costs
A118: Year | B118: Costs | C118: Real Costs | D118: Discounted Costs
A119: =IFERROR(IF($B$33="-", "N/A", $B$33),"N/A") -> Required | B119: - | C119: =IF($B$99="NO",B119,IFERROR(B119*(IF(A119>$B$39, 1/(1+$B$100)^(A119-$B$39),VLOOKUP(A119,Defaults!$A$130:$B$188, 2,FALSE))),"-")) -> - | D119: =IFERROR(IF(A119="N/A","-",C119*VLOOKUP(A119,Defaults!$A$285:$B$335, 2,FALSE)),"-") -> -
A120: =IFERROR(IF(A119="N/A","N/A",IF(A119>=$B$34,"N/A",A119+1)),"") -> N/A | B120: - | C120: =IF($B$99="NO",B120,IFERROR(B120*(IF(A120>$B$39, 1/(1+$B$100)^(A120-$B$39),VLOOKUP(A120,Defaults!$A$130:$B$188, 2,FALSE))),"-")) -> - | D120: =IFERROR(IF(A120="N/A","-",C120*VLOOKUP(A120,Defaults!$A$285:$B$335, 2,FALSE)),"-") -> -
A121: =IF(A120="N/A","N/A",IF(A120>=$B$34,"N/A",A120+1)) -> N/A | B121: - | C121: =IF($B$99="NO",B121,IFERROR(B121*(IF(A121>$B$39, 1/(1+$B$100)^(A121-$B$39),VLOOKUP(A121,Defaults!$A$130:$B$188, 2,FALSE))),"-")) -> - | D121: =IFERROR(IF(A121="N/A","-",C121*VLOOKUP(A121,Defaults!$A$285:$B$335, 2,FALSE)),"-") -> -
A122: N/A | B122: - | C122: =IF($B$99="NO",B122,IFERROR(B122*(IF(A122>$B$39, 1/(1+$B$100)^(A122-$B$39),VLOOKUP(A122,Defaults!$A$130:$B$188, 2,FALSE))),"-")) -> - | D122: =IFERROR(IF(A122="N/A","-",C122*VLOOKUP(A122,Defaults!$A$285:$B$335, 2,FALSE)),"-") -> -
A123: N/A | B123: - | C123: =IF($B$99="NO",B123,IFERROR(B123*(IF(A123>$B$39, 1/(1+$B$100)^(A123-$B$39),VLOOKUP(A123,Defaults!$A$130:$B$188, 2,FALSE))),"-")) -> - | D123: =IFERROR(IF(A123="N/A","-",C123*VLOOKUP(A123,Defaults!$A$285:$B$335, 2,FALSE)),"-") -> -
A124: N/A | B124: - | C124: =IF($B$99="NO",B124,IFERROR(B124*(IF(A124>$B$39, 1/(1+$B$100)^(A124-$B$39),VLOOKUP(A124,Defaults!$A$130:$B$188, 2,FALSE))),"-")) -> - | D124: =IFERROR(IF(A124="N/A","-",C124*VLOOKUP(A124,Defaults!$A$285:$B$335, 2,FALSE)),"-") -> -
A125: N/A | B125: - | C125: =IF($B$99="NO",B125,IFERROR(B125*(IF(A125>$B$39, 1/(1+$B$100)^(A125-$B$39),VLOOKUP(A125,Defaults!$A$130:$B$188, 2,FALSE))),"-")) -> - | D125: =IFERROR(IF(A125="N/A","-",C125*VLOOKUP(A125,Defaults!$A$285:$B$335, 2,FALSE)),"-") -> -
A126: N/A | B126: - | C126: =IF($B$99="NO",B126,IFERROR(B126*(IF(A126>$B$39, 1/(1+$B$100)^(A126-$B$39),VLOOKUP(A126,Defaults!$A$130:$B$188, 2,FALSE))),"-")) -> - | D126: =IFERROR(IF(A126="N/A","-",C126*VLOOKUP(A126,Defaults!$A$285:$B$335, 2,FALSE)),"-") -> -
A127: N/A | B127: - | C127: =IF($B$99="NO",B127,IFERROR(B127*(IF(A127>$B$39, 1/(1+$B$100)^(A127-$B$39),VLOOKUP(A127,Defaults!$A$130:$B$188, 2,FALSE))),"-")) -> - | D127: =IFERROR(IF(A127="N/A","-",C127*VLOOKUP(A127,Defaults!$A$285:$B$335, 2,FALSE)),"-") -> -
A128: N/A | B128: - | C128: =IF($B$99="NO",B128,IFERROR(B128*(IF(A128>$B$39, 1/(1+$B$100)^(A128-$B$39),VLOOKUP(A128,Defaults!$A$130:$B$188, 2,FALSE))),"-")) -> - | D128: =IFERROR(IF(A128="N/A","-",C128*VLOOKUP(A128,Defaults!$A$285:$B$335, 2,FALSE)),"-") -> -
A129: N/A | B129: - | C129: =IF($B$99="NO",B129,IFERROR(B129*(IF(A129>$B$39, 1/(1+$B$100)^(A129-$B$39),VLOOKUP(A129,Defaults!$A$130:$B$188, 2,FALSE))),"-")) -> - | D129: =IFERROR(IF(A129="N/A","-",C129*VLOOKUP(A129,Defaults!$A$285:$B$335, 2,FALSE)),"-") -> -
A130: -
A131: Table 12. Capital Cost Summary
A132: Total Capital Costs: | B132: =SUM(B105:B115)+SUM(B119:B129) -> 0
A133: Total Real Capital Costs: | B133: =SUM(C105:C115)+SUM(C119:C123) -> 0
A134: Total Discounted Capital Costs: | B134: =SUM(D105:D115)+SUM(D119:D129) -> 0
A135: -
A136: Table 13. Residual Value
A137: Share of Capital Costs | B137: Asset Life (Years) | C137: Explanation and Source
A138: 0 | B138: 0 | C138: -
A139: 0 | B139: 0 | C139: -
A140: 0 | B140: 0 | C140: -
A141: 0 | B141: 0 | C141: -
A142: =SUM(A138:A141) -> 0 | B142: Summation | C142: N/A
A143: Note: If there are multiple components of the project for this specific bridge that different asset lives, enter the share of the project costs associated with the different project components and their asset life.
A144: Note: The Summation cell should be 100%.
A145: -
A146: Operating and Maintenance Costs (O&M)
A147: Table 14. Operating and Maintenance Costs Assumptions
A148: Which method would you like to use to enter O&M costs? | B148: Manual Entry
A149: Year of O&M costs Dollars | B149: Required
A150: Note: If you have O&M costs in the construction period you will need to use the manual entry option to enter the O&M costs in the construction period.
A151: Note: The operating and maintenance costs in the baseline should be entered to be consistent with your estimate of closure. If the bridge is closed in a future year (Table 25), there should not be maintenance costs for that year and thereafter.
A152: Note: For frequency calculation option, all costs should be entered as year of expenditure. The tool applies inflation and discounting factors automatically.
A153: -
A154: Table 15. Annual O&M Calculation Input
A155: Category | B155: Value
A156: Annual O&M Costs in the No Build Scenario | B156: -
A157: Annual O&M Costs Real Growth Rate in the No Build Scenario | B157: 0
A158: Annual O&M Costs in the Build Scenario | B158: -
A159: Annual O&M Costs Real Growth Rate in the Build Scenario | B159: 0
A160: Note: The maintenance real growth rate represents the real cost increases year over year (e.g., from increased deterioration of the asset). It should not include inflation adjustments.
A161: -
A162: Table 16a. Intermittent O&M Calculation Input
A163: Category | B163: Value
A164: Initial year | B164: -
A165: Last Year | B165: -
A166: Occurs every _____ Years; set to 30 if occurs only once | B166: 1
A167: Annual O&M Costs in the No Build Scenario | B167: -
A168: Annual O&M Costs Real Growth Rate in the Build Scenario | B168: -
A169: -
A170: Table 16b. Intermittent O&M Calculation Input
A171: Category | B171: Value
A172: Initial year | B172: -
A173: Last Year | B173: -
A174: Occurs every _____ Years; set to 30 if occurs only once | B174: 1
A175: Annual O&M Costs in the No Build Scenario | B175: -
A176: Annual O&M Costs Real Growth Rate in the Build Scenario | B176: -
A177: -
A178: Table 16c. Intermittent O&M Calculation Input
A179: Category | B179: Value
A180: Initial year | B180: -
A181: Last Year | B181: -
A182: Occurs every _____ Years; set to 30 if occurs only once | B182: 1
A183: Annual O&M Costs in the No Build Scenario | B183: -
A184: Annual O&M Costs Real Growth Rate in the Build Scenario | B184: -
A185: -
A186: Table 16d. Intermittent O&M Calculation Input
A187: Category | B187: Value
A188: Initial year | B188: -
A189: Last Year | B189: -
A190: Occurs every _____ Years; set to 30 if occurs only once | B190: 1
A191: Annual O&M Costs in the No Build Scenario | B191: -
A192: Annual O&M Costs Real Growth Rate in the Build Scenario | B192: -
A193: Note: The "Occurs every _____ " field in Tables 16a through 16d must be greater than or equal to 1, even if you are not adding an additional recurring maintenance cost.
A194: -
A195: Note: Manual O&M cost values should be entered in the year of dollar entered in Table 14.
A196: Table 17. Manual O&M Cost Entry
A197: Calendar Year | B197: Analysis Year | C197: No Build Annual Cost | D197: Build Annual Cost | E197: O&M Cost Difference Discounted
A198: =IFERROR(IF(B32="Required","N/A",B32),"N/A") -> N/A | B198: =IFERROR(IF(A198=$B$35,1,IF(A198>$B$35,A198-$B$35+1,IF(A198<$B$35,A198-$B$35+1,"N/A"))),"N/A") -> N/A | C198: - | D198: - | E198: =IFERROR((C198-D198)*VLOOKUP($B$149,Defaults!$A$285:$B$335, 2,FALSE)*VLOOKUP(A198,Defaults!$A$285:$B$335,2,FALSE),0) -> 0
A199: =IF(A198="N/A","N/A",IF(A198>=$B$35+$B$36-1,"N/A",A198+1)) -> N/A | B199: N/A | C199: - | D199: - | E199: =IFERROR((C199-D199)*VLOOKUP($B$149,Defaults!$A$285:$B$335, 2,FALSE)*VLOOKUP(A199,Defaults!$A$285:$B$335,2,FALSE),0) -> 0
A200: N/A | B200: N/A | C200: - | D200: - | E200: =IFERROR((C200-D200)*VLOOKUP($B$149,Defaults!$A$285:$B$335, 2,FALSE)*VLOOKUP(A200,Defaults!$A$285:$B$335,2,FALSE),0) -> 0
... 495 more rows

Sheet I35 SB
A1: Bridge and Project Overview
A2: ID of bridge, description of improvement, project timeline, traffic volume
A3: Add New Bridge (press Ctrl + Shift + B)
A4: Add Sensitivity Analysis for Current Bridge (press Ctrl + Shift + S)
A5: Delete this Bridge (press Ctrl + Shift + D)
A6: Note: Only delete bridges using this command/button. Deleting bridge tabs through right click will result in (fixable) errors on the Results tab.
A7: Change Bridge Name (press Ctrl + Shift + N)
A8: -
A9: Table 1. Bridge Variables
A10: Bridge Variables | B10: Bridge Values
A11: State | B11: Oklahoma
A12: County | B12: Oklahoma
A13: Structure Number | B13: 217230000000000
A14: Inventory Route | B14: =VLOOKUP($C$80,'NBI Data'!$A$2:$AA$22875,COLUMN('NBI Data'!$D$2:$D$22875),FALSE) -> 00035
A15: Feature Intersected | B15: =VLOOKUP($C$80,'NBI Data'!$A$2:$AA$22875,COLUMN('NBI Data'!$E$2:$E$22875),FALSE) -> 'OKLAHOMA RIVER'
A16: Facility Carried | B16: =VLOOKUP($C$80,'NBI Data'!$A$2:$AA$22875,COLUMN('NBI Data'!$F$2:$F$22875),FALSE) -> 'I-35 S.B.'
A17: Latitude | B17: =LEFT(VLOOKUP($C$80,'NBI Data'!$A$2:$AA$22875,COLUMN('NBI Data'!$G$2:$G$22875),FALSE), 2) & CHAR(176) & " " & MID(VLOOKUP($C$80,'NBI Data'!$A$2:$AA$22875,COLUMN('NBI Data'!$G$2:$G$22875),FALSE), 3, 2) &"'" & " " & MID(VLOOKUP($C$80,'NBI Data'!$A$2:$AA$22875,COLUMN('NBI Data'!$G$2:$G$22875),FALSE), 5, 2) &"."& MID(VLOOKUP($C$80,'NBI Data'!$A$2:$AA$22875,COLUMN('NBI Data'!$G$2:$G$22875),FALSE), 7, 2) & CHAR(34) -> 35° 27' 27.89"
A18: Longitude | B18: ="-" & MID(VLOOKUP($C$80,'NBI Data'!$A$2:$AA$22875,COLUMN('NBI Data'!$H$2:$H$22875),FALSE), 2, 2) & CHAR(176) & " " & MID(VLOOKUP($C$80,'NBI Data'!$A$2:$AA$22875,COLUMN('NBI Data'!$H$2:$H$22875),FALSE), 4, 2) &"'" & " " & MID(VLOOKUP($C$80,'NBI Data'!$A$2:$AA$22875,COLUMN('NBI Data'!$H$2:$H$22875),FALSE), 6, 2) &"."& MID(VLOOKUP($C$80,'NBI Data'!$A$2:$AA$22875,COLUMN('NBI Data'!$H$2:$H$22875),FALSE), 8, 2) & CHAR(34) -> -97° 29' 30.55"
A19: Bridge Length (mi) | B19: =VLOOKUP($C$80,'NBI Data'!$A$2:$AA$22875,COLUMN('NBI Data'!$AA$2:$AA$22875),FALSE)/1609 -> 0.1518955873
A20: Bypass, Detour Length (mi) | B20: =VLOOKUP($C$80,'NBI Data'!$A$2:$AA$22875,COLUMN('NBI Data'!$I$2:$I$22875),FALSE)*0.621371 -> 0
A21: Owner | B21: =VLOOKUP($C$80,'NBI Data'!$A$2:$AA$22875,COLUMN('NBI Data'!$J$2:$J$22875),FALSE) -> 01
A22: Functional Class, Rural/Urban | B22: =VLOOKUP($C$80,'NBI Data'!$A$2:$AA$22875,COLUMN('NBI Data'!$K$2:$K$22875),FALSE) -> 11
A23: Bridge Road Type | B23: =VLOOKUP(B22,Defaults!A354:$D$366, 2, FALSE) -> Urban - Principal Arterial - Interstate
A24: Year Built | B24: =VLOOKUP($C$80,'NBI Data'!$A$2:$AA$22875,COLUMN('NBI Data'!$L$2:$L$22875),FALSE) -> 1987
A25: Year Reconstructed | B25: =VLOOKUP($C$80,'NBI Data'!$A$2:$AA$22875,COLUMN('NBI Data'!$Q$2:$Q$22875),FALSE) -> 0
A26: Lanes on the Structure | B26: =VLOOKUP($C$80,'NBI Data'!$A$2:$AA$22875,COLUMN('NBI Data'!$M$2:$M$22875),FALSE) -> 4
A27: Note: Some bridges have the same structure number. Use the state and county drop downs to identify your bridge.
A28: -
A29: Project Description:
A30: Table 2. Project Timeline
A31: Timeline Variables | B31: Timeline Values
A32: Current Year | B32: 2023
A33: First Year of Construction Costs | B33: 2026
A34: Last Year of Construction Costs | B34: 2029
A35: Project Opens (Start of Benefits) | B35: 2030
A36: Years of Benefits for Analysis | B36: 30
A37: First Year of Period of Analysis | B37: =IF(B35="Required","-", B35) -> 2030
A38: Last Year of Period of Analysis | B38: =IFERROR(B35+B36-1, "-") -> 2059
A39: Discount Year | B39: =Defaults!A285 -> 2021
A40: Base Year of NBI | B40: 2023
A41: Note: The tool cannot handle partial years, or pro-rata benefits or costs. Round up or down to the nearest year for construction start, construction end, and the start of benefits.
A42: Note: Enter a value between 20 to 30 for the Years of Benefits for Analysis, appropriate to the project as defined by US DOT BCA Guidance.
A43: -
A44: Table 3. Average Annual Daily Traffic (AADT)
A45: Scenario and Vehicle Type | B45: NBI Year of AADT | C45: NBI Year of Future AADT | D45: Forecast using NBI Growth Rate | E45: Forecast using NBI Growth Rate2 | F45: Project Opens | G45: Last Year | H45: Explanation and Source
A46: Year | B46: =VLOOKUP($C$80,'NBI Data'!$A$2:$AA$22875,COLUMN('NBI Data'!$O$2:$O$22875),FALSE) -> 2020 | C46: =VLOOKUP($C$80,'NBI Data'!$A$2:$AA$22875,COLUMN('NBI Data'!$T$2:$T$22875),FALSE) -> 2040 | D46: =IF(B35="Required","-",B35) -> 2030 | E46: =B38 -> 2059 | F46: =IF(B35="Required", "-",B35) -> 2030 | G46: =B38 -> 2059 | H46: N/A
A47: No Build - Passenger AADT | B47: =VLOOKUP($C$80,'NBI Data'!$A$2:$AA$22875,COLUMN('NBI Data'!$N$2:$N$22875),FALSE)*(1-VLOOKUP($C$80,'NBI Data'!$A$2:$AA$22875,COLUMN('NBI Data'!$R$2:$R$22875),FALSE)/100) -> 60192 | C47: =VLOOKUP($C$80,'NBI Data'!$A$2:$AA$22875,COLUMN('NBI Data'!$S$2:$S$22875),FALSE)*(1-VLOOKUP($C$80,'NBI Data'!$A$2:$AA$22875,COLUMN('NBI Data'!$R$2:$R$22875),FALSE)/100) -> 96307.2 | D47: =ROUND(B47*((1+B59)^(D$46-$B$46)),0) -> 76138 | E47: =ROUND(C47*((1+B59)^(E$46-$C$46)),0) -> 150513 | F47: 76129 | G47: 150504 | H47: Adjusted for EMBARK route 24 (9 peak trips per day)
A48: No Build - Truck AADT | B48: =VLOOKUP($C$80,'NBI Data'!$A$2:$AA$22875,COLUMN('NBI Data'!$R$2:$R$22875),FALSE)/100*VLOOKUP($C$80,'NBI Data'!$A$2:$AA$22875,COLUMN('NBI Data'!$N$2:$N$22875),FALSE) -> 8208 | C48: =VLOOKUP($C$80,'NBI Data'!$A$2:$AA$22875,COLUMN('NBI Data'!$R$2:$R$22875),FALSE)/100*VLOOKUP($C$80,'NBI Data'!$A$2:$AA$22875,COLUMN('NBI Data'!$S$2:$S$22875),FALSE) -> 13132.8 | D48: =ROUND(B48*((1+B59)^(D$46-$B$46)),0) -> 10382 | E48: =ROUND(C48*((1+B59)^(E$46-$C$46)),0) -> 20524 | F48: 10382 | G48: 20524 | H48: -
A49: No Build - Bus AADT | B49: N/A | C49: N/A | D49: N/A | E49: N/A | F49: 9 | G49: 9 | H49: Adjusted for EMBARK route 24 (9 peak trips per day)
A50: Build - Passenger AADT | B50: =B47 -> 60192 | C50: =C47 -> 96307.2 | D50: =ROUND(B50*((1+B59)^(D$46-$B$46)),0) -> 76138 | E50: =ROUND(C50*((1+B59)^(E$46-$C$46)),0) -> 150513 | F50: 76129 | G50: 150504 | H50: Adjusted for EMBARK route 24 (9 peak trips per day)
A51: Build - Truck AADT | B51: =B48 -> 8208 | C51: =C48 -> 13132.8 | D51: =ROUND(B51*((1+B59)^(D$46-$B$46)),0) -> 10382 | E51: =ROUND(C51*((1+B59)^(E$46-$C$46)),0) -> 20524 | F51: 10382 | G51: 20524 | H51: -
A52: Build - Bus AADT | B52: N/A | C52: N/A | D52: N/A | E52: N/A | F52: 9 | G52: 9 | H52: Adjusted for EMBARK route 24 (9 peak trips per day)
A53: =HYPERLINK("#A542","Note: AADT can be entered manually in Table 52 and Table 53 below.") -> Note: AADT can be entered manually in Table 52 and Table 53 below.
A54: Note: Here and elsewhere in the tool it is critical that you enter at least some value in the required cells, e.g., 0, rather than "-", "N/A" or leaving it blank.
A55: Note: NBI AADT values are added for reference in Table 3. Users must enter AADT values in Columns G, H and I in Table 3.
A56: -
A57: Note: Table 4 is not a user input. Do not adjust Table 4.
A58: Table 4. NBI's Calculated Average Annual Daily Traffic (AADT) Growth Rate
A59: =CONCATENATE("The NBI Calculated Annual Growth Rate", " ", B46, "-",C46, " (NBI)") -> The NBI Calculated Annual Growth Rate 2020-2040 (NBI) | B59: =(C47/B47)^(1/(C$46-B$46))-1 -> 0.02377848652
A60: -
A61: Table 5. Detour Road Type
A62: Detour Road Type | B62: Urban - Principal Arterial - Interstate
A63: Detour Road Type - Simple | B63: =IF(B62="Required", "-",IF(ISNUMBER(SEARCH("Urban",B62)), "Urban", "Rural")) -> Urban
A64: -
A65: Note: Detour length should represent the Net detour: Detour length minus the original route length.
A66: Table 6. Detour and Bridge Length Information
A67: Detour Details | B67: Reference | C67: User Value | D67: Explanation and Source
A68: Net Detour Length, For Vehicles (mi) (NBI) | B68: =ROUND(VLOOKUP($C$80,'NBI Data'!$A$2:$AA$22875,COLUMN('NBI Data'!$I$2:$I$22875),FALSE)*0.621371,1) -> 0 | C68: =18-10.3 -> 7.7 | D68: Measured the distance of a N/S through trip having to use I-240 and I-44 (an all interstate alternate route)
A69: Detour Average Speed, for Vehicles (mph) (FHWA VHT) | B69: =ROUND(VLOOKUP(B62,Defaults!B354:F366,2, FALSE),1) -> 60 | C69: 63.5 | D69: Google maps states the 18 mile detour would take 17 minutes without traffic.
A70: Net Detour Length, For Cycling/ Pedestrian (mi) (NBI) | B70: =ROUND(VLOOKUP($C$80,'NBI Data'!$A$2:$AA$22875,COLUMN('NBI Data'!$I$2:$I$22875),FALSE)*0.621371, 1) -> 0 | C70: 0 | D70: -
A71: Detour Average Travel Time (min) | B71: =B68/B69*60 -> 0 | C71: =C68/C69*60 -> 7.275590551 | D71: N/A
A72: Bridge Length (mi) | B72: =ROUND(B19,2) -> 0.15 | C72: 0.15 | D72: -
A73: Note: Google or HPMS data are preferred for identifying average speed on the detour route. You can also use the HERS/VHT speed values using the Detour Road Type dropdown below.
A74: Note: Bridge length in the NBI does not include the approach length. Include approach length if relevant for your project.
A75: =HYPERLINK("https://www.google.com/maps", "Use Google Maps to calculate detour route length and average speed, as appropriate.") -> Use Google Maps to calculate detour route length and average speed, as appropriate.
A76: =HYPERLINK("https://www.fhwa.dot.gov/policyinformation/hpms.cfm", "Use the Highway Performance Monitoring System (HPMS) data to calculate detour route length and average speed, as appropriate.") -> Use the Highway Performance Monitoring System (HPMS) data to calculate detour route length and average speed, as appropriate.
A77: -
A78: Note: These reference cells are marked to avoid accidental deletion.
A79: Table 7. Reference Table
A80: Reference Cells | B80: =CONCATENATE(B11,B12) -> OklahomaOklahoma | C80: =CONCATENATE(VLOOKUP($B$11,NBI_Dropdown!$B$1:$D$56,3,FALSE),$B$13) -> 406217230000000000
A81: -
A82: Table 8. Travel Assumptions
A83: Parameters | B83: Reference | C83: User Value | D83: Explanation and Source
A84: Bridge Average Speed (FHWA) | B84: =_xlfn.IFNA(VLOOKUP(B23,Defaults!B354:C366,2, FALSE), "N/A") -> 60 | C84: 60 | D84: -
A85: Average Car Occupancy | B85: =Defaults!B49 -> 1.67 | C85: 1.67 | D85: -
A86: Share of Long-Distance Personal Travel | B86: 0 | C86: 0 | D86: -
A87: Value of Time - Long-Distance Personal Travel | B87: =Defaults!B32 -> 23.8 | C87: 23.8 | D87: -
A88: Share of Business Travel | B88: 0.118 | C88: 0.118 | D88: -
A89: Value of Travel Time - Business | B89: =Defaults!B30 -> 31.9 | C89: 31.9 | D89: -
A90: Value of Travel Time - Personal | B90: =Defaults!B29 -> 17 | C90: 17 | D90: -
A91: Value of Travel Time - All Purposes | B91: =ROUND(B86*B87+B88*B89+(1-B86-B88)*B90,1) -> 18.8 | C91: =IFERROR(ROUND(C86*C87+C88*C89+(1-C86-C88)*C90,1),"-") -> 18.8 | D91: -
A92: Walking, Cycling, Waiting, Standing, and Transfer Time | B92: =Defaults!B33 -> 34 | C92: 34 | D92: -
A93: Truck Driver | B93: =Defaults!B36 -> 32.4 | C93: 32.4 | D93: -
A94: Bus Driver | B94: =Defaults!B37 -> 35 | C94: 35 | D94: -
A95: Average Bus Occupancy | B95: 0 | C95: 5 | D95: EMBARK Ridership report route 24 (2023 to date)
A96: -
A97: Capital Cost and Residual Value
A98: Table 9. Expenditure Dollars Option
A99: Are costs entered in year of expenditure dollars (not adjusted for inflation)? | B99: NO
A100: Enter future inflation rate for capital costs. | B100: 0
A101: Note: Capital costs can be entered in year of expenditure dollars or in real dollars. The tool applies inflation and discounting factors automatically if entered as year of expenditure dollars.
A102: -
A103: Table 10. Already Incurred Costs
A104: Year | B104: Costs | C104: Real Costs | D104: Discounted Costs
A105: 2023 | B105: 1326461.334 | C105: =IF($B$99="NO",B105,IFERROR(B105*(IF(A105>$B$39, 1/((1+$B$100)^(A105-$B$39)),VLOOKUP(A105,Defaults!$A$130:$B$188, 2,FALSE))),"-")) -> 1326461.334 | D105: =IFERROR(IF(A105="","",IF(A105<=2020, C105, C105*VLOOKUP(A105,Defaults!$A$285:$B$335, 2,FALSE))),"-") -> 1158582.701
A106: 2024 | B106: 2652922.668 | C106: =IF($B$99="NO",B106,IFERROR(B106*(IF(A106>$B$39, 1/((1+$B$100)^(A106-$B$39)),VLOOKUP(A106,Defaults!$A$130:$B$188, 2,FALSE))),"-")) -> 2652922.668 | D106: =IFERROR(IF(A106="","",IF(A106<=2020, C106, C106*VLOOKUP(A106,Defaults!$A$285:$B$335, 2,FALSE))),"-") -> 2165575.141
A107: 2025 | B107: 3979384.001 | C107: =IF($B$99="NO",B107,IFERROR(B107*(IF(A107>$B$39, 1/((1+$B$100)^(A107-$B$39)),VLOOKUP(A107,Defaults!$A$130:$B$188, 2,FALSE))),"-")) -> 3979384.001 | D107: =IFERROR(IF(A107="","",IF(A107<=2020, C107, C107*VLOOKUP(A107,Defaults!$A$285:$B$335, 2,FALSE))),"-") -> 3035853.002
A108: - | B108: - | C108: =IF($B$99="NO",B108,IFERROR(B108*(IF(A108>$B$39, 1/((1+$B$100)^(A108-$B$39)),VLOOKUP(A108,Defaults!$A$130:$B$188, 2,FALSE))),"-")) -> - | D108: =IFERROR(IF(A108="","",IF(A108<=2020, C108, C108*VLOOKUP(A108,Defaults!$A$285:$B$335, 2,FALSE))),"-") -> -
A109: - | B109: - | C109: =IF($B$99="NO",B109,IFERROR(B109*(IF(A109>$B$39, 1/((1+$B$100)^(A109-$B$39)),VLOOKUP(A109,Defaults!$A$130:$B$188, 2,FALSE))),"-")) -> - | D109: =IFERROR(IF(A109="","",IF(A109<=2020, C109, C109*VLOOKUP(A109,Defaults!$A$285:$B$335, 2,FALSE))),"-") -> -
A110: - | B110: - | C110: =IF($B$99="NO",B110,IFERROR(B110*(IF(A110>$B$39, 1/((1+$B$100)^(A110-$B$39)),VLOOKUP(A110,Defaults!$A$130:$B$188, 2,FALSE))),"-")) -> - | D110: =IFERROR(IF(A110="","",IF(A110<=2020, C110, C110*VLOOKUP(A110,Defaults!$A$285:$B$335, 2,FALSE))),"-") -> -
A111: - | B111: - | C111: =IF($B$99="NO",B111,IFERROR(B111*(IF(A111>$B$39, 1/((1+$B$100)^(A111-$B$39)),VLOOKUP(A111,Defaults!$A$130:$B$188, 2,FALSE))),"-")) -> - | D111: =IFERROR(IF(A111="","",IF(A111<=2020, C111, C111*VLOOKUP(A111,Defaults!$A$285:$B$335, 2,FALSE))),"-") -> -
A112: - | B112: - | C112: =IF($B$99="NO",B112,IFERROR(B112*(IF(A112>$B$39, 1/((1+$B$100)^(A112-$B$39)),VLOOKUP(A112,Defaults!$A$130:$B$188, 2,FALSE))),"-")) -> - | D112: =IFERROR(IF(A112="","",IF(A112<=2020, C112, C112*VLOOKUP(A112,Defaults!$A$285:$B$335, 2,FALSE))),"-") -> -
A113: - | B113: - | C113: =IF($B$99="NO",B113,IFERROR(B113*(IF(A113>$B$39, 1/((1+$B$100)^(A113-$B$39)),VLOOKUP(A113,Defaults!$A$130:$B$188, 2,FALSE))),"-")) -> - | D113: =IFERROR(IF(A113="","",IF(A113<=2020, C113, C113*VLOOKUP(A113,Defaults!$A$285:$B$335, 2,FALSE))),"-") -> -
A114: - | B114: - | C114: =IF($B$99="NO",B114,IFERROR(B114*(IF(A114>$B$39, 1/((1+$B$100)^(A114-$B$39)),VLOOKUP(A114,Defaults!$A$130:$B$188, 2,FALSE))),"-")) -> - | D114: =IFERROR(IF(A114="","",IF(A114<=2020, C114, C114*VLOOKUP(A114,Defaults!$A$285:$B$335, 2,FALSE))),"-") -> -
A115: - | B115: - | C115: =IF($B$99="NO",B115,IFERROR(B115*(IF(A115>$B$39, 1/((1+$B$100)^(A115-$B$39)),VLOOKUP(A115,Defaults!$A$130:$B$188, 2,FALSE))),"-")) -> - | D115: =IFERROR(IF(A115="","",IF(A115<=2020, C115, C115*VLOOKUP(A115,Defaults!$A$285:$B$335, 2,FALSE))),"-") -> -
A116: -
A117: Table 11. Capital Costs
A118: Year | B118: Costs | C118: Real Costs | D118: Discounted Costs
A119: =IFERROR(IF($B$33="-", "N/A", $B$33),"N/A") -> 2026 | B119: 9948460.004 | C119: =IF($B$99="NO",B119,IFERROR(B119*(IF(A119>$B$39, 1/(1+$B$100)^(A119-$B$39),VLOOKUP(A119,Defaults!$A$130:$B$188, 2,FALSE))),"-")) -> 9948460.004 | D119: =IFERROR(IF(A119="N/A","-",C119*VLOOKUP(A119,Defaults!$A$285:$B$335, 2,FALSE)),"-") -> 7093114.49
A120: =IFERROR(IF(A119="N/A","N/A",IF(A119>=$B$34,"N/A",A119+1)),"") -> 2027 | B120: 19896920.01 | C120: =IF($B$99="NO",B120,IFERROR(B120*(IF(A120>$B$39, 1/(1+$B$100)^(A120-$B$39),VLOOKUP(A120,Defaults!$A$130:$B$188, 2,FALSE))),"-")) -> 19896920.01 | D120: =IFERROR(IF(A120="N/A","-",C120*VLOOKUP(A120,Defaults!$A$285:$B$335, 2,FALSE)),"-") -> 13258157.92
A121: =IF(A120="N/A","N/A",IF(A120>=$B$34,"N/A",A120+1)) -> 2028 | B121: 19896920.01 | C121: =IF($B$99="NO",B121,IFERROR(B121*(IF(A121>$B$39, 1/(1+$B$100)^(A121-$B$39),VLOOKUP(A121,Defaults!$A$130:$B$188, 2,FALSE))),"-")) -> 19896920.01 | D121: =IFERROR(IF(A121="N/A","-",C121*VLOOKUP(A121,Defaults!$A$285:$B$335, 2,FALSE)),"-") -> 12390801.8
A122: 2029 | B122: 8621998.67 | C122: =IF($B$99="NO",B122,IFERROR(B122*(IF(A122>$B$39, 1/(1+$B$100)^(A122-$B$39),VLOOKUP(A122,Defaults!$A$130:$B$188, 2,FALSE))),"-")) -> 8621998.67 | D122: =IFERROR(IF(A122="N/A","-",C122*VLOOKUP(A122,Defaults!$A$285:$B$335, 2,FALSE)),"-") -> 5018081.725
A123: N/A | B123: - | C123: =IF($B$99="NO",B123,IFERROR(B123*(IF(A123>$B$39, 1/(1+$B$100)^(A123-$B$39),VLOOKUP(A123,Defaults!$A$130:$B$188, 2,FALSE))),"-")) -> - | D123: =IFERROR(IF(A123="N/A","-",C123*VLOOKUP(A123,Defaults!$A$285:$B$335, 2,FALSE)),"-") -> -
A124: N/A | B124: - | C124: =IF($B$99="NO",B124,IFERROR(B124*(IF(A124>$B$39, 1/(1+$B$100)^(A124-$B$39),VLOOKUP(A124,Defaults!$A$130:$B$188, 2,FALSE))),"-")) -> - | D124: =IFERROR(IF(A124="N/A","-",C124*VLOOKUP(A124,Defaults!$A$285:$B$335, 2,FALSE)),"-") -> -
A125: N/A | B125: - | C125: =IF($B$99="NO",B125,IFERROR(B125*(IF(A125>$B$39, 1/(1+$B$100)^(A125-$B$39),VLOOKUP(A125,Defaults!$A$130:$B$188, 2,FALSE))),"-")) -> - | D125: =IFERROR(IF(A125="N/A","-",C125*VLOOKUP(A125,Defaults!$A$285:$B$335, 2,FALSE)),"-") -> -
A126: N/A | B126: - | C126: =IF($B$99="NO",B126,IFERROR(B126*(IF(A126>$B$39, 1/(1+$B$100)^(A126-$B$39),VLOOKUP(A126,Defaults!$A$130:$B$188, 2,FALSE))),"-")) -> - | D126: =IFERROR(IF(A126="N/A","-",C126*VLOOKUP(A126,Defaults!$A$285:$B$335, 2,FALSE)),"-") -> -
A127: N/A | B127: - | C127: =IF($B$99="NO",B127,IFERROR(B127*(IF(A127>$B$39, 1/(1+$B$100)^(A127-$B$39),VLOOKUP(A127,Defaults!$A$130:$B$188, 2,FALSE))),"-")) -> - | D127: =IFERROR(IF(A127="N/A","-",C127*VLOOKUP(A127,Defaults!$A$285:$B$335, 2,FALSE)),"-") -> -
A128: N/A | B128: - | C128: =IF($B$99="NO",B128,IFERROR(B128*(IF(A128>$B$39, 1/(1+$B$100)^(A128-$B$39),VLOOKUP(A128,Defaults!$A$130:$B$188, 2,FALSE))),"-")) -> - | D128: =IFERROR(IF(A128="N/A","-",C128*VLOOKUP(A128,Defaults!$A$285:$B$335, 2,FALSE)),"-") -> -
A129: N/A | B129: - | C129: =IF($B$99="NO",B129,IFERROR(B129*(IF(A129>$B$39, 1/(1+$B$100)^(A129-$B$39),VLOOKUP(A129,Defaults!$A$130:$B$188, 2,FALSE))),"-")) -> - | D129: =IFERROR(IF(A129="N/A","-",C129*VLOOKUP(A129,Defaults!$A$285:$B$335, 2,FALSE)),"-") -> -
A130: -
A131: Table 12. Capital Cost Summary
A132: Total Capital Costs: | B132: =SUM(B105:B115)+SUM(B119:B129) -> 66323066.69
A133: Total Real Capital Costs: | B133: =SUM(C105:C115)+SUM(C119:C123) -> 66323066.69
A134: Total Discounted Capital Costs: | B134: =SUM(D105:D115)+SUM(D119:D129) -> 44120166.78
A135: -
A136: Table 13. Residual Value
A137: Share of Capital Costs | B137: Asset Life (Years) | C137: Explanation and Source
A138: 0 | B138: 100 | C138: Percentage of Costs associated with Right-of-way. Assumed life based on MnDOT BCA Guidance
A139: 0.75 | B139: 60 | C139: Percentage of Costs associated with Bridge Construction. Assumed life based on MnDOT BCA Guidance
A140: 0.25 | B140: 40 | C140: Percentage of Costs associated with Roadway Construction. Assumed life based on MnDOT BCA Guidance (Grading Drainage/Sub-base and Base/Roadway) based on midpoint of cost breakdown.
A141: 0 | B141: 0 | C141: -
A142: =SUM(A138:A141) -> 1 | B142: Summation | C142: N/A
A143: Note: If there are multiple components of the project for this specific bridge that different asset lives, enter the share of the project costs associated with the different project components and their asset life.
A144: Note: The Summation cell should be 100%.
A145: -
A146: Operating and Maintenance Costs (O&M)
A147: Table 14. Operating and Maintenance Costs Assumptions
A148: Which method would you like to use to enter O&M costs? | B148: Manual Entry
A149: Year of O&M costs Dollars | B149: 2021
A150: Note: If you have O&M costs in the construction period you will need to use the manual entry option to enter the O&M costs in the construction period.
A151: Note: The operating and maintenance costs in the baseline should be entered to be consistent with your estimate of closure. If the bridge is closed in a future year (Table 25), there should not be maintenance costs for that year and thereafter.
A152: Note: For frequency calculation option, all costs should be entered as year of expenditure. The tool applies inflation and discounting factors automatically.
A153: -
A154: Table 15. Annual O&M Calculation Input
A155: Category | B155: Value
A156: Annual O&M Costs in the No Build Scenario | B156: -
A157: Annual O&M Costs Real Growth Rate in the No Build Scenario | B157: 0
A158: Annual O&M Costs in the Build Scenario | B158: -
A159: Annual O&M Costs Real Growth Rate in the Build Scenario | B159: 0
A160: Note: The maintenance real growth rate represents the real cost increases year over year (e.g., from increased deterioration of the asset). It should not include inflation adjustments.
A161: -
A162: Table 16a. Intermittent O&M Calculation Input
A163: Category | B163: Value
A164: Initial year | B164: -
A165: Last Year | B165: -
A166: Occurs every _____ Years; set to 30 if occurs only once | B166: 1
A167: Annual O&M Costs in the No Build Scenario | B167: -
A168: Annual O&M Costs Real Growth Rate in the Build Scenario | B168: -
A169: -
A170: Table 16b. Intermittent O&M Calculation Input
A171: Category | B171: Value
A172: Initial year | B172: -
A173: Last Year | B173: -
A174: Occurs every _____ Years; set to 30 if occurs only once | B174: 1
A175: Annual O&M Costs in the No Build Scenario | B175: -
A176: Annual O&M Costs Real Growth Rate in the Build Scenario | B176: -
A177: -
A178: Table 16c. Intermittent O&M Calculation Input
A179: Category | B179: Value
A180: Initial year | B180: -
A181: Last Year | B181: -
A182: Occurs every _____ Years; set to 30 if occurs only once | B182: 1
A183: Annual O&M Costs in the No Build Scenario | B183: -
A184: Annual O&M Costs Real Growth Rate in the Build Scenario | B184: -
A185: -
A186: Table 16d. Intermittent O&M Calculation Input
A187: Category | B187: Value
A188: Initial year | B188: -
A189: Last Year | B189: -
A190: Occurs every _____ Years; set to 30 if occurs only once | B190: 1
A191: Annual O&M Costs in the No Build Scenario | B191: -
A192: Annual O&M Costs Real Growth Rate in the Build Scenario | B192: -
A193: Note: The "Occurs every _____ " field in Tables 16a through 16d must be greater than or equal to 1, even if you are not adding an additional recurring maintenance cost.
A194: -
A195: Note: Manual O&M cost values should be entered in the year of dollar entered in Table 14.
A196: Table 17. Manual O&M Cost Entry
A197: Calendar Year | B197: Analysis Year | C197: No Build Annual Cost | D197: Build Annual Cost | E197: O&M Cost Difference Discounted
A198: =IFERROR(IF(B32="Required","N/A",B32),"N/A") -> 2023 | B198: =IFERROR(IF(A198=$B$35,1,IF(A198>$B$35,A198-$B$35+1,IF(A198<$B$35,A198-$B$35+1,"N/A"))),"N/A") -> -6 | C198: =1000 -> 1000 | D198: - | E198: =IFERROR((C198-D198)*VLOOKUP($B$149,Defaults!$A$285:$B$335, 2,FALSE)*VLOOKUP(A198,Defaults!$A$285:$B$335,2,FALSE),0) -> 0
A199: =IF(A198="N/A","N/A",IF(A198>=$B$35+$B$36-1,"N/A",A198+1)) -> 2024 | B199: -5 | C199: =1000 -> 1000 | D199: - | E199: =IFERROR((C199-D199)*VLOOKUP($B$149,Defaults!$A$285:$B$335, 2,FALSE)*VLOOKUP(A199,Defaults!$A$285:$B$335,2,FALSE),0) -> 0
A200: 2025 | B200: -4 | C200: =1000 -> 1000 | D200: - | E200: =IFERROR((C200-D200)*VLOOKUP($B$149,Defaults!$A$285:$B$335, 2,FALSE)*VLOOKUP(A200,Defaults!$A$285:$B$335,2,FALSE),0) -> 0
... 495 more rows

Sheet I35 NB
A1: Bridge and Project Overview
A2: ID of bridge, description of improvement, project timeline, traffic volume
A3: Add New Bridge (press Ctrl + Shift + B)
A4: Add Sensitivity Analysis for Current Bridge (press Ctrl + Shift + S)
A5: Delete this Bridge (press Ctrl + Shift + D)
A6: Note: Only delete bridges using this command/button. Deleting bridge tabs through right click will result in (fixable) errors on the Results tab.
A7: Change Bridge Name (press Ctrl + Shift + N)
A8: -
A9: Table 1. Bridge Variables
A10: Bridge Variables | B10: Bridge Values
A11: State | B11: Oklahoma
A12: County | B12: Oklahoma
A13: Structure Number | B13: 213560000000000
A14: Inventory Route | B14: =VLOOKUP($C$80,'NBI Data'!$A$2:$AA$22875,COLUMN('NBI Data'!$D$2:$D$22875),FALSE) -> 00035
A15: Feature Intersected | B15: =VLOOKUP($C$80,'NBI Data'!$A$2:$AA$22875,COLUMN('NBI Data'!$E$2:$E$22875),FALSE) -> 'OKLAHOMA RIVER'
A16: Facility Carried | B16: =VLOOKUP($C$80,'NBI Data'!$A$2:$AA$22875,COLUMN('NBI Data'!$F$2:$F$22875),FALSE) -> 'I-35 N.B.'
A17: Latitude | B17: =LEFT(VLOOKUP($C$80,'NBI Data'!$A$2:$AA$22875,COLUMN('NBI Data'!$G$2:$G$22875),FALSE), 2) & CHAR(176) & " " & MID(VLOOKUP($C$80,'NBI Data'!$A$2:$AA$22875,COLUMN('NBI Data'!$G$2:$G$22875),FALSE), 3, 2) &"'" & " " & MID(VLOOKUP($C$80,'NBI Data'!$A$2:$AA$22875,COLUMN('NBI Data'!$G$2:$G$22875),FALSE), 5, 2) &"."& MID(VLOOKUP($C$80,'NBI Data'!$A$2:$AA$22875,COLUMN('NBI Data'!$G$2:$G$22875),FALSE), 7, 2) & CHAR(34) -> 35° 27' 36.09"
A18: Longitude | B18: ="-" & MID(VLOOKUP($C$80,'NBI Data'!$A$2:$AA$22875,COLUMN('NBI Data'!$H$2:$H$22875),FALSE), 2, 2) & CHAR(176) & " " & MID(VLOOKUP($C$80,'NBI Data'!$A$2:$AA$22875,COLUMN('NBI Data'!$H$2:$H$22875),FALSE), 4, 2) &"'" & " " & MID(VLOOKUP($C$80,'NBI Data'!$A$2:$AA$22875,COLUMN('NBI Data'!$H$2:$H$22875),FALSE), 6, 2) &"."& MID(VLOOKUP($C$80,'NBI Data'!$A$2:$AA$22875,COLUMN('NBI Data'!$H$2:$H$22875),FALSE), 8, 2) & CHAR(34) -> -97° 29' 29.41"
A19: Bridge Length (mi) | B19: =VLOOKUP($C$80,'NBI Data'!$A$2:$AA$22875,COLUMN('NBI Data'!$AA$2:$AA$22875),FALSE)/1609 -> 0.1518955873
A20: Bypass, Detour Length (mi) | B20: =VLOOKUP($C$80,'NBI Data'!$A$2:$AA$22875,COLUMN('NBI Data'!$I$2:$I$22875),FALSE)*0.621371 -> 0
A21: Owner | B21: =VLOOKUP($C$80,'NBI Data'!$A$2:$AA$22875,COLUMN('NBI Data'!$J$2:$J$22875),FALSE) -> 01
A22: Functional Class, Rural/Urban | B22: =VLOOKUP($C$80,'NBI Data'!$A$2:$AA$22875,COLUMN('NBI Data'!$K$2:$K$22875),FALSE) -> 11
A23: Bridge Road Type | B23: =VLOOKUP(B22,Defaults!A354:$D$366, 2, FALSE) -> Urban - Principal Arterial - Interstate
A24: Year Built | B24: =VLOOKUP($C$80,'NBI Data'!$A$2:$AA$22875,COLUMN('NBI Data'!$L$2:$L$22875),FALSE) -> 1986
A25: Year Reconstructed | B25: =VLOOKUP($C$80,'NBI Data'!$A$2:$AA$22875,COLUMN('NBI Data'!$Q$2:$Q$22875),FALSE) -> 0
A26: Lanes on the Structure | B26: =VLOOKUP($C$80,'NBI Data'!$A$2:$AA$22875,COLUMN('NBI Data'!$M$2:$M$22875),FALSE) -> 4
A27: Note: Some bridges have the same structure number. Use the state and county drop downs to identify your bridge.
A28: -
A29: Project Description:
A30: Table 2. Project Timeline
A31: Timeline Variables | B31: Timeline Values
A32: Current Year | B32: 2023
A33: First Year of Construction Costs | B33: 2026
A34: Last Year of Construction Costs | B34: 2029
A35: Project Opens (Start of Benefits) | B35: 2030
A36: Years of Benefits for Analysis | B36: 30
A37: First Year of Period of Analysis | B37: =IF(B35="Required","-", B35) -> 2030
A38: Last Year of Period of Analysis | B38: =IFERROR(B35+B36-1, "-") -> 2059
A39: Discount Year | B39: =Defaults!A285 -> 2021
A40: Base Year of NBI | B40: 2023
A41: Note: The tool cannot handle partial years, or pro-rata benefits or costs. Round up or down to the nearest year for construction start, construction end, and the start of benefits.
A42: Note: Enter a value between 20 to 30 for the Years of Benefits for Analysis, appropriate to the project as defined by US DOT BCA Guidance.
A43: -
A44: Table 3. Average Annual Daily Traffic (AADT)
A45: Scenario and Vehicle Type | B45: NBI Year of AADT | C45: NBI Year of Future AADT | D45: Forecast using NBI Growth Rate | E45: Forecast using NBI Growth Rate2 | F45: Project Opens | G45: Last Year | H45: Explanation and Source
A46: Year | B46: =VLOOKUP($C$80,'NBI Data'!$A$2:$AA$22875,COLUMN('NBI Data'!$O$2:$O$22875),FALSE) -> 2020 | C46: =VLOOKUP($C$80,'NBI Data'!$A$2:$AA$22875,COLUMN('NBI Data'!$T$2:$T$22875),FALSE) -> 2040 | D46: =IF(B35="Required","-",B35) -> 2030 | E46: =B38 -> 2059 | F46: =IF(B35="Required", "-",B35) -> 2030 | G46: =B38 -> 2059 | H46: N/A
A47: No Build - Passenger AADT | B47: =VLOOKUP($C$80,'NBI Data'!$A$2:$AA$22875,COLUMN('NBI Data'!$N$2:$N$22875),FALSE)*(1-VLOOKUP($C$80,'NBI Data'!$A$2:$AA$22875,COLUMN('NBI Data'!$R$2:$R$22875),FALSE)/100) -> 59796 | C47: =VLOOKUP($C$80,'NBI Data'!$A$2:$AA$22875,COLUMN('NBI Data'!$S$2:$S$22875),FALSE)*(1-VLOOKUP($C$80,'NBI Data'!$A$2:$AA$22875,COLUMN('NBI Data'!$R$2:$R$22875),FALSE)/100) -> 95673.6 | D47: =ROUND(B47*((1+B59)^(D$46-$B$46)),0) -> 75637 | E47: =ROUND(C47*((1+B59)^(E$46-$C$46)),0) -> 149522 | F47: 45373.2 | G47: 89704.2 | H47: Adjusted for EMBARK route 24 (9 peak trips per day)
A48: No Build - Truck AADT | B48: =VLOOKUP($C$80,'NBI Data'!$A$2:$AA$22875,COLUMN('NBI Data'!$R$2:$R$22875),FALSE)/100*VLOOKUP($C$80,'NBI Data'!$A$2:$AA$22875,COLUMN('NBI Data'!$N$2:$N$22875),FALSE) -> 8154 | C48: =VLOOKUP($C$80,'NBI Data'!$A$2:$AA$22875,COLUMN('NBI Data'!$R$2:$R$22875),FALSE)/100*VLOOKUP($C$80,'NBI Data'!$A$2:$AA$22875,COLUMN('NBI Data'!$S$2:$S$22875),FALSE) -> 13046.4 | D48: =ROUND(B48*((1+B59)^(D$46-$B$46)),0) -> 10314 | E48: =ROUND(C48*((1+B59)^(E$46-$C$46)),0) -> 20389 | F48: 6188.4 | G48: 12233.4 | H48: -
A49: No Build - Bus AADT | B49: N/A | C49: N/A | D49: N/A | E49: N/A | F49: 9 | G49: 9 | H49: Adjusted for EMBARK route 24 (9 peak trips per day)
A50: Build - Passenger AADT | B50: =B47 -> 59796 | C50: =C47 -> 95673.6 | D50: =ROUND(B50*((1+B59)^(D$46-$B$46)),0) -> 75637 | E50: =ROUND(C50*((1+B59)^(E$46-$C$46)),0) -> 149522 | F50: 45373.2 | G50: 89704.2 | H50: Adjusted for EMBARK route 24 (9 peak trips per day)
A51: Build - Truck AADT | B51: =B48 -> 8154 | C51: =C48 -> 13046.4 | D51: =ROUND(B51*((1+B59)^(D$46-$B$46)),0) -> 10314 | E51: =ROUND(C51*((1+B59)^(E$46-$C$46)),0) -> 20389 | F51: 6188.4 | G51: 12233.4 | H51: -
A52: Build - Bus AADT | B52: N/A | C52: N/A | D52: N/A | E52: N/A | F52: 9 | G52: 9 | H52: Adjusted for EMBARK route 24 (9 peak trips per day)
A53: =HYPERLINK("#A542","Note: AADT can be entered manually in Table 52 and Table 53 below.") -> Note: AADT can be entered manually in Table 52 and Table 53 below.
A54: Note: Here and elsewhere in the tool it is critical that you enter at least some value in the required cells, e.g., 0, rather than "-", "N/A" or leaving it blank.
A55: Note: NBI AADT values are added for reference in Table 3. Users must enter AADT values in Columns G, H and I in Table 3.
A56: -
A57: Note: Table 4 is not a user input. Do not adjust Table 4.
A58: Table 4. NBI's Calculated Average Annual Daily Traffic (AADT) Growth Rate
A59: =CONCATENATE("The NBI Calculated Annual Growth Rate", " ", B46, "-",C46, " (NBI)") -> The NBI Calculated Annual Growth Rate 2020-2040 (NBI) | B59: =(C47/B47)^(1/(C$46-B$46))-1 -> 0.02377848652
A60: -
A61: Table 5. Detour Road Type
A62: Detour Road Type | B62: Urban - Principal Arterial - Interstate
A63: Detour Road Type - Simple | B63: =IF(B62="Required", "-",IF(ISNUMBER(SEARCH("Urban",B62)), "Urban", "Rural")) -> Urban
A64: -
A65: Note: Detour length should represent the Net detour: Detour length minus the original route length.
A66: Table 6. Detour and Bridge Length Information
A67: Detour Details | B67: Reference | C67: User Value | D67: Explanation and Source
A68: Net Detour Length, For Vehicles (mi) (NBI) | B68: =ROUND(VLOOKUP($C$80,'NBI Data'!$A$2:$AA$22875,COLUMN('NBI Data'!$I$2:$I$22875),FALSE)*0.621371,1) -> 0 | C68: =18-10.3 -> 7.7 | D68: Measured the distance of a N/S through trip having to use I-240 and I-44 (an all interstate alternate route)
A69: Detour Average Speed, for Vehicles (mph) (FHWA VHT) | B69: =ROUND(VLOOKUP(B62,Defaults!B354:F366,2, FALSE),1) -> 60 | C69: 63.5 | D69: Google maps states the 18 mile detour would take 17 minutes without traffic.
A70: Net Detour Length, For Cycling/ Pedestrian (mi) (NBI) | B70: =ROUND(VLOOKUP($C$80,'NBI Data'!$A$2:$AA$22875,COLUMN('NBI Data'!$I$2:$I$22875),FALSE)*0.621371, 1) -> 0 | C70: 0 | D70: -
A71: Detour Average Travel Time (min) | B71: =B68/B69*60 -> 0 | C71: =C68/C69*60 -> 7.275590551 | D71: N/A
A72: Bridge Length (mi) | B72: =ROUND(B19,2) -> 0.15 | C72: 0.15 | D72: -
A73: Note: Google or HPMS data are preferred for identifying average speed on the detour route. You can also use the HERS/VHT speed values using the Detour Road Type dropdown below.
A74: Note: Bridge length in the NBI does not include the approach length. Include approach length if relevant for your project.
A75: =HYPERLINK("https://www.google.com/maps", "Use Google Maps to calculate detour route length and average speed, as appropriate.") -> Use Google Maps to calculate detour route length and average speed, as appropriate.
A76: =HYPERLINK("https://www.fhwa.dot.gov/policyinformation/hpms.cfm", "Use the Highway Performance Monitoring System (HPMS) data to calculate detour route length and average speed, as appropriate.") -> Use the Highway Performance Monitoring System (HPMS) data to calculate detour route length and average speed, as appropriate.
A77: -
A78: Note: These reference cells are marked to avoid accidental deletion.
A79: Table 7. Reference Table
A80: Reference Cells | B80: =CONCATENATE(B11,B12) -> OklahomaOklahoma | C80: =CONCATENATE(VLOOKUP($B$11,NBI_Dropdown!$B$1:$D$56,3,FALSE),$B$13) -> 406213560000000000
A81: -
A82: Table 8. Travel Assumptions
A83: Parameters | B83: Reference | C83: User Value | D83: Explanation and Source
A84: Bridge Average Speed (FHWA) | B84: =_xlfn.IFNA(VLOOKUP(B23,Defaults!B354:C366,2, FALSE), "N/A") -> 60 | C84: 60 | D84: -
A85: Average Car Occupancy | B85: =Defaults!B49 -> 1.67 | C85: 1.67 | D85: -
A86: Share of Long-Distance Personal Travel | B86: 0 | C86: 0 | D86: -
A87: Value of Time - Long-Distance Personal Travel | B87: =Defaults!B32 -> 23.8 | C87: 23.8 | D87: -
A88: Share of Business Travel | B88: 0.118 | C88: 0.118 | D88: -
A89: Value of Travel Time - Business | B89: =Defaults!B30 -> 31.9 | C89: 31.9 | D89: -
A90: Value of Travel Time - Personal | B90: =Defaults!B29 -> 17 | C90: 17 | D90: -
A91: Value of Travel Time - All Purposes | B91: =ROUND(B86*B87+B88*B89+(1-B86-B88)*B90,1) -> 18.8 | C91: =IFERROR(ROUND(C86*C87+C88*C89+(1-C86-C88)*C90,1),"-") -> 18.8 | D91: -
A92: Walking, Cycling, Waiting, Standing, and Transfer Time | B92: =Defaults!B33 -> 34 | C92: 34 | D92: -
A93: Truck Driver | B93: =Defaults!B36 -> 32.4 | C93: 32.4 | D93: -
A94: Bus Driver | B94: =Defaults!B37 -> 35 | C94: 35 | D94: -
A95: Average Bus Occupancy | B95: 0 | C95: 5 | D95: EMBARK Ridership report route 24 (2023 to date)
A96: -
A97: Capital Cost and Residual Value
A98: Table 9. Expenditure Dollars Option
A99: Are costs entered in year of expenditure dollars (not adjusted for inflation)? | B99: NO
A100: Enter future inflation rate for capital costs. | B100: 0
A101: Note: Capital costs can be entered in year of expenditure dollars or in real dollars. The tool applies inflation and discounting factors automatically if entered as year of expenditure dollars.
A102: -
A103: Table 10. Already Incurred Costs
A104: Year | B104: Costs | C104: Real Costs | D104: Discounted Costs
A105: 2023 | B105: 948671.7134 | C105: =IF($B$99="NO",B105,IFERROR(B105*(IF(A105>$B$39, 1/((1+$B$100)^(A105-$B$39)),VLOOKUP(A105,Defaults!$A$130:$B$188, 2,FALSE))),"-")) -> 948671.7134 | D105: =IFERROR(IF(A105="","",IF(A105<=2020, C105, C105*VLOOKUP(A105,Defaults!$A$285:$B$335, 2,FALSE))),"-") -> 828606.6149
A106: 2024 | B106: 1897343.427 | C106: =IF($B$99="NO",B106,IFERROR(B106*(IF(A106>$B$39, 1/((1+$B$100)^(A106-$B$39)),VLOOKUP(A106,Defaults!$A$130:$B$188, 2,FALSE))),"-")) -> 1897343.427 | D106: =IFERROR(IF(A106="","",IF(A106<=2020, C106, C106*VLOOKUP(A106,Defaults!$A$285:$B$335, 2,FALSE))),"-") -> 1548797.411
A107: 2025 | B107: 2846015.14 | C107: =IF($B$99="NO",B107,IFERROR(B107*(IF(A107>$B$39, 1/((1+$B$100)^(A107-$B$39)),VLOOKUP(A107,Defaults!$A$130:$B$188, 2,FALSE))),"-")) -> 2846015.14 | D107: =IFERROR(IF(A107="","",IF(A107<=2020, C107, C107*VLOOKUP(A107,Defaults!$A$285:$B$335, 2,FALSE))),"-") -> 2171211.324
A108: - | B108: - | C108: =IF($B$99="NO",B108,IFERROR(B108*(IF(A108>$B$39, 1/((1+$B$100)^(A108-$B$39)),VLOOKUP(A108,Defaults!$A$130:$B$188, 2,FALSE))),"-")) -> - | D108: =IFERROR(IF(A108="","",IF(A108<=2020, C108, C108*VLOOKUP(A108,Defaults!$A$285:$B$335, 2,FALSE))),"-") -> -
A109: - | B109: - | C109: =IF($B$99="NO",B109,IFERROR(B109*(IF(A109>$B$39, 1/((1+$B$100)^(A109-$B$39)),VLOOKUP(A109,Defaults!$A$130:$B$188, 2,FALSE))),"-")) -> - | D109: =IFERROR(IF(A109="","",IF(A109<=2020, C109, C109*VLOOKUP(A109,Defaults!$A$285:$B$335, 2,FALSE))),"-") -> -
A110: - | B110: - | C110: =IF($B$99="NO",B110,IFERROR(B110*(IF(A110>$B$39, 1/((1+$B$100)^(A110-$B$39)),VLOOKUP(A110,Defaults!$A$130:$B$188, 2,FALSE))),"-")) -> - | D110: =IFERROR(IF(A110="","",IF(A110<=2020, C110, C110*VLOOKUP(A110,Defaults!$A$285:$B$335, 2,FALSE))),"-") -> -
A111: - | B111: - | C111: =IF($B$99="NO",B111,IFERROR(B111*(IF(A111>$B$39, 1/((1+$B$100)^(A111-$B$39)),VLOOKUP(A111,Defaults!$A$130:$B$188, 2,FALSE))),"-")) -> - | D111: =IFERROR(IF(A111="","",IF(A111<=2020, C111, C111*VLOOKUP(A111,Defaults!$A$285:$B$335, 2,FALSE))),"-") -> -
A112: - | B112: - | C112: =IF($B$99="NO",B112,IFERROR(B112*(IF(A112>$B$39, 1/((1+$B$100)^(A112-$B$39)),VLOOKUP(A112,Defaults!$A$130:$B$188, 2,FALSE))),"-")) -> - | D112: =IFERROR(IF(A112="","",IF(A112<=2020, C112, C112*VLOOKUP(A112,Defaults!$A$285:$B$335, 2,FALSE))),"-") -> -
A113: - | B113: - | C113: =IF($B$99="NO",B113,IFERROR(B113*(IF(A113>$B$39, 1/((1+$B$100)^(A113-$B$39)),VLOOKUP(A113,Defaults!$A$130:$B$188, 2,FALSE))),"-")) -> - | D113: =IFERROR(IF(A113="","",IF(A113<=2020, C113, C113*VLOOKUP(A113,Defaults!$A$285:$B$335, 2,FALSE))),"-") -> -
A114: - | B114: - | C114: =IF($B$99="NO",B114,IFERROR(B114*(IF(A114>$B$39, 1/((1+$B$100)^(A114-$B$39)),VLOOKUP(A114,Defaults!$A$130:$B$188, 2,FALSE))),"-")) -> - | D114: =IFERROR(IF(A114="","",IF(A114<=2020, C114, C114*VLOOKUP(A114,Defaults!$A$285:$B$335, 2,FALSE))),"-") -> -
A115: - | B115: - | C115: =IF($B$99="NO",B115,IFERROR(B115*(IF(A115>$B$39, 1/((1+$B$100)^(A115-$B$39)),VLOOKUP(A115,Defaults!$A$130:$B$188, 2,FALSE))),"-")) -> - | D115: =IFERROR(IF(A115="","",IF(A115<=2020, C115, C115*VLOOKUP(A115,Defaults!$A$285:$B$335, 2,FALSE))),"-") -> -
A116: -
A117: Table 11. Capital Costs
A118: Year | B118: Costs | C118: Real Costs | D118: Discounted Costs
A119: =IFERROR(IF($B$33="-", "N/A", $B$33),"N/A") -> 2026 | B119: 7115037.851 | C119: =IF($B$99="NO",B119,IFERROR(B119*(IF(A119>$B$39, 1/(1+$B$100)^(A119-$B$39),VLOOKUP(A119,Defaults!$A$130:$B$188, 2,FALSE))),"-")) -> 7115037.851 | D119: =IFERROR(IF(A119="N/A","-",C119*VLOOKUP(A119,Defaults!$A$285:$B$335, 2,FALSE)),"-") -> 5072923.654
A120: =IFERROR(IF(A119="N/A","N/A",IF(A119>=$B$34,"N/A",A119+1)),"") -> 2027 | B120: 14230075.7 | C120: =IF($B$99="NO",B120,IFERROR(B120*(IF(A120>$B$39, 1/(1+$B$100)^(A120-$B$39),VLOOKUP(A120,Defaults!$A$130:$B$188, 2,FALSE))),"-")) -> 14230075.7 | D120: =IFERROR(IF(A120="N/A","-",C120*VLOOKUP(A120,Defaults!$A$285:$B$335, 2,FALSE)),"-") -> 9482100.288
A121: =IF(A120="N/A","N/A",IF(A120>=$B$34,"N/A",A120+1)) -> 2028 | B121: 14230075.7 | C121: =IF($B$99="NO",B121,IFERROR(B121*(IF(A121>$B$39, 1/(1+$B$100)^(A121-$B$39),VLOOKUP(A121,Defaults!$A$130:$B$188, 2,FALSE))),"-")) -> 14230075.7 | D121: =IFERROR(IF(A121="N/A","-",C121*VLOOKUP(A121,Defaults!$A$285:$B$335, 2,FALSE)),"-") -> 8861775.97
A122: 2029 | B122: 6166366.137 | C122: =IF($B$99="NO",B122,IFERROR(B122*(IF(A122>$B$39, 1/(1+$B$100)^(A122-$B$39),VLOOKUP(A122,Defaults!$A$130:$B$188, 2,FALSE))),"-")) -> 6166366.137 | D122: =IFERROR(IF(A122="N/A","-",C122*VLOOKUP(A122,Defaults!$A$285:$B$335, 2,FALSE)),"-") -> 3588881.234
A123: N/A | B123: - | C123: =IF($B$99="NO",B123,IFERROR(B123*(IF(A123>$B$39, 1/(1+$B$100)^(A123-$B$39),VLOOKUP(A123,Defaults!$A$130:$B$188, 2,FALSE))),"-")) -> - | D123: =IFERROR(IF(A123="N/A","-",C123*VLOOKUP(A123,Defaults!$A$285:$B$335, 2,FALSE)),"-") -> -
A124: N/A | B124: - | C124: =IF($B$99="NO",B124,IFERROR(B124*(IF(A124>$B$39, 1/(1+$B$100)^(A124-$B$39),VLOOKUP(A124,Defaults!$A$130:$B$188, 2,FALSE))),"-")) -> - | D124: =IFERROR(IF(A124="N/A","-",C124*VLOOKUP(A124,Defaults!$A$285:$B$335, 2,FALSE)),"-") -> -
A125: N/A | B125: - | C125: =IF($B$99="NO",B125,IFERROR(B125*(IF(A125>$B$39, 1/(1+$B$100)^(A125-$B$39),VLOOKUP(A125,Defaults!$A$130:$B$188, 2,FALSE))),"-")) -> - | D125: =IFERROR(IF(A125="N/A","-",C125*VLOOKUP(A125,Defaults!$A$285:$B$335, 2,FALSE)),"-") -> -
A126: N/A | B126: - | C126: =IF($B$99="NO",B126,IFERROR(B126*(IF(A126>$B$39, 1/(1+$B$100)^(A126-$B$39),VLOOKUP(A126,Defaults!$A$130:$B$188, 2,FALSE))),"-")) -> - | D126: =IFERROR(IF(A126="N/A","-",C126*VLOOKUP(A126,Defaults!$A$285:$B$335, 2,FALSE)),"-") -> -
A127: N/A | B127: - | C127: =IF($B$99="NO",B127,IFERROR(B127*(IF(A127>$B$39, 1/(1+$B$100)^(A127-$B$39),VLOOKUP(A127,Defaults!$A$130:$B$188, 2,FALSE))),"-")) -> - | D127: =IFERROR(IF(A127="N/A","-",C127*VLOOKUP(A127,Defaults!$A$285:$B$335, 2,FALSE)),"-") -> -
A128: N/A | B128: - | C128: =IF($B$99="NO",B128,IFERROR(B128*(IF(A128>$B$39, 1/(1+$B$100)^(A128-$B$39),VLOOKUP(A128,Defaults!$A$130:$B$188, 2,FALSE))),"-")) -> - | D128: =IFERROR(IF(A128="N/A","-",C128*VLOOKUP(A128,Defaults!$A$285:$B$335, 2,FALSE)),"-") -> -
A129: N/A | B129: - | C129: =IF($B$99="NO",B129,IFERROR(B129*(IF(A129>$B$39, 1/(1+$B$100)^(A129-$B$39),VLOOKUP(A129,Defaults!$A$130:$B$188, 2,FALSE))),"-")) -> - | D129: =IFERROR(IF(A129="N/A","-",C129*VLOOKUP(A129,Defaults!$A$285:$B$335, 2,FALSE)),"-") -> -
A130: -
A131: Table 12. Capital Cost Summary
A132: Total Capital Costs: | B132: =SUM(B105:B115)+SUM(B119:B129) -> 47433585.67
A133: Total Real Capital Costs: | B133: =SUM(C105:C115)+SUM(C119:C123) -> 47433585.67
A134: Total Discounted Capital Costs: | B134: =SUM(D105:D115)+SUM(D119:D129) -> 31554296.5
A135: -
A136: Table 13. Residual Value
A137: Share of Capital Costs | B137: Asset Life (Years) | C137: Explanation and Source
A138: 0 | B138: 100 | C138: Percentage of Costs associated with Right-of-way. Assumed life based on MnDOT BCA Guidance
A139: 0.75 | B139: 60 | C139: Percentage of Costs associated with Bridge Construction. Assumed life based on MnDOT BCA Guidance
A140: 0.25 | B140: 40 | C140: Percentage of Costs associated with Roadway Construction. Assumed life based on MnDOT BCA Guidance (Grading Drainage/Sub-base and Base/Roadway) based on midpoint of cost breakdown.
A141: 0 | B141: 0 | C141: -
A142: =SUM(A138:A141) -> 1 | B142: Summation | C142: N/A
A143: Note: If there are multiple components of the project for this specific bridge that different asset lives, enter the share of the project costs associated with the different project components and their asset life.
A144: Note: The Summation cell should be 100%.
A145: -
A146: Operating and Maintenance Costs (O&M)
A147: Table 14. Operating and Maintenance Costs Assumptions
A148: Which method would you like to use to enter O&M costs? | B148: Manual Entry
A149: Year of O&M costs Dollars | B149: 2021
A150: Note: If you have O&M costs in the construction period you will need to use the manual entry option to enter the O&M costs in the construction period.
A151: Note: The operating and maintenance costs in the baseline should be entered to be consistent with your estimate of closure. If the bridge is closed in a future year (Table 25), there should not be maintenance costs for that year and thereafter.
A152: Note: For frequency calculation option, all costs should be entered as year of expenditure. The tool applies inflation and discounting factors automatically.
A153: -
A154: Table 15. Annual O&M Calculation Input
A155: Category | B155: Value
A156: Annual O&M Costs in the No Build Scenario | B156: -
A157: Annual O&M Costs Real Growth Rate in the No Build Scenario | B157: 0
A158: Annual O&M Costs in the Build Scenario | B158: -
A159: Annual O&M Costs Real Growth Rate in the Build Scenario | B159: 0
A160: Note: The maintenance real growth rate represents the real cost increases year over year (e.g., from increased deterioration of the asset). It should not include inflation adjustments.
A161: -
A162: Table 16a. Intermittent O&M Calculation Input
A163: Category | B163: Value
A164: Initial year | B164: -
A165: Last Year | B165: -
A166: Occurs every _____ Years; set to 30 if occurs only once | B166: 1
A167: Annual O&M Costs in the No Build Scenario | B167: -
A168: Annual O&M Costs Real Growth Rate in the Build Scenario | B168: -
A169: -
A170: Table 16b. Intermittent O&M Calculation Input
A171: Category | B171: Value
A172: Initial year | B172: -
A173: Last Year | B173: -
A174: Occurs every _____ Years; set to 30 if occurs only once | B174: 1
A175: Annual O&M Costs in the No Build Scenario | B175: -
A176: Annual O&M Costs Real Growth Rate in the Build Scenario | B176: -
A177: -
A178: Table 16c. Intermittent O&M Calculation Input
A179: Category | B179: Value
A180: Initial year | B180: -
A181: Last Year | B181: -
A182: Occurs every _____ Years; set to 30 if occurs only once | B182: 1
A183: Annual O&M Costs in the No Build Scenario | B183: -
A184: Annual O&M Costs Real Growth Rate in the Build Scenario | B184: -
A185: -
A186: Table 16d. Intermittent O&M Calculation Input
A187: Category | B187: Value
A188: Initial year | B188: -
A189: Last Year | B189: -
A190: Occurs every _____ Years; set to 30 if occurs only once | B190: 1
A191: Annual O&M Costs in the No Build Scenario | B191: -
A192: Annual O&M Costs Real Growth Rate in the Build Scenario | B192: -
A193: Note: The "Occurs every _____ " field in Tables 16a through 16d must be greater than or equal to 1, even if you are not adding an additional recurring maintenance cost.
A194: -
A195: Note: Manual O&M cost values should be entered in the year of dollar entered in Table 14.
A196: Table 17. Manual O&M Cost Entry
A197: Calendar Year | B197: Analysis Year | C197: No Build Annual Cost | D197: Build Annual Cost | E197: O&M Cost Difference Discounted
A198: =IFERROR(IF(B32="Required","N/A",B32),"N/A") -> 2023 | B198: =IFERROR(IF(A198=$B$35,1,IF(A198>$B$35,A198-$B$35+1,IF(A198<$B$35,A198-$B$35+1,"N/A"))),"N/A") -> -6 | C198: 1000 | D198: - | E198: =IFERROR((C198-D198)*VLOOKUP($B$149,Defaults!$A$285:$B$335, 2,FALSE)*VLOOKUP(A198,Defaults!$A$285:$B$335,2,FALSE),0) -> 0
A199: =IF(A198="N/A","N/A",IF(A198>=$B$35+$B$36-1,"N/A",A198+1)) -> 2024 | B199: -5 | C199: 1000 | D199: - | E199: =IFERROR((C199-D199)*VLOOKUP($B$149,Defaults!$A$285:$B$335, 2,FALSE)*VLOOKUP(A199,Defaults!$A$285:$B$335,2,FALSE),0) -> 0
A200: 2025 | B200: -4 | C200: 1000 | D200: - | E200: =IFERROR((C200-D200)*VLOOKUP($B$149,Defaults!$A$285:$B$335, 2,FALSE)*VLOOKUP(A200,Defaults!$A$285:$B$335,2,FALSE),0) -> 0
... 495 more rows

Sheet I35 SB RR
A1: Bridge and Project Overview
A2: ID of bridge, description of improvement, project timeline, traffic volume
A3: Add New Bridge (press Ctrl + Shift + B)
A4: Add Sensitivity Analysis for Current Bridge (press Ctrl + Shift + S)
A5: Delete this Bridge (press Ctrl + Shift + D)
A6: Note: Only delete bridges using this command/button. Deleting bridge tabs through right click will result in (fixable) errors on the Results tab.
A7: Change Bridge Name (press Ctrl + Shift + N)
A8: -
A9: Table 1. Bridge Variables
A10: Bridge Variables | B10: Bridge Values
A11: State | B11: Oklahoma
A12: County | B12: Oklahoma
A13: Structure Number | B13: 217080000000000
A14: Inventory Route | B14: =VLOOKUP($C$80,'NBI Data'!$A$2:$AA$22875,COLUMN('NBI Data'!$D$2:$D$22875),FALSE) -> 00035
A15: Feature Intersected | B15: =VLOOKUP($C$80,'NBI Data'!$A$2:$AA$22875,COLUMN('NBI Data'!$E$2:$E$22875),FALSE) -> 'BNSF R.R. UNDER'
A16: Facility Carried | B16: =VLOOKUP($C$80,'NBI Data'!$A$2:$AA$22875,COLUMN('NBI Data'!$F$2:$F$22875),FALSE) -> 'I-35 SB'
A17: Latitude | B17: =LEFT(VLOOKUP($C$80,'NBI Data'!$A$2:$AA$22875,COLUMN('NBI Data'!$G$2:$G$22875),FALSE), 2) & CHAR(176) & " " & MID(VLOOKUP($C$80,'NBI Data'!$A$2:$AA$22875,COLUMN('NBI Data'!$G$2:$G$22875),FALSE), 3, 2) &"'" & " " & MID(VLOOKUP($C$80,'NBI Data'!$A$2:$AA$22875,COLUMN('NBI Data'!$G$2:$G$22875),FALSE), 5, 2) &"."& MID(VLOOKUP($C$80,'NBI Data'!$A$2:$AA$22875,COLUMN('NBI Data'!$G$2:$G$22875),FALSE), 7, 2) & CHAR(34) -> 35° 27' 15.05"
A18: Longitude | B18: ="-" & MID(VLOOKUP($C$80,'NBI Data'!$A$2:$AA$22875,COLUMN('NBI Data'!$H$2:$H$22875),FALSE), 2, 2) & CHAR(176) & " " & MID(VLOOKUP($C$80,'NBI Data'!$A$2:$AA$22875,COLUMN('NBI Data'!$H$2:$H$22875),FALSE), 4, 2) &"'" & " " & MID(VLOOKUP($C$80,'NBI Data'!$A$2:$AA$22875,COLUMN('NBI Data'!$H$2:$H$22875),FALSE), 6, 2) &"."& MID(VLOOKUP($C$80,'NBI Data'!$A$2:$AA$22875,COLUMN('NBI Data'!$H$2:$H$22875),FALSE), 8, 2) & CHAR(34) -> -97° 29' 23.33"
A19: Bridge Length (mi) | B19: =VLOOKUP($C$80,'NBI Data'!$A$2:$AA$22875,COLUMN('NBI Data'!$AA$2:$AA$22875),FALSE)/1609 -> 0.04735860783
A20: Bypass, Detour Length (mi) | B20: =VLOOKUP($C$80,'NBI Data'!$A$2:$AA$22875,COLUMN('NBI Data'!$I$2:$I$22875),FALSE)*0.621371 -> 0
A21: Owner | B21: =VLOOKUP($C$80,'NBI Data'!$A$2:$AA$22875,COLUMN('NBI Data'!$J$2:$J$22875),FALSE) -> 01
A22: Functional Class, Rural/Urban | B22: =VLOOKUP($C$80,'NBI Data'!$A$2:$AA$22875,COLUMN('NBI Data'!$K$2:$K$22875),FALSE) -> 11
A23: Bridge Road Type | B23: =VLOOKUP(B22,Defaults!A354:$D$366, 2, FALSE) -> Urban - Principal Arterial - Interstate
A24: Year Built | B24: =VLOOKUP($C$80,'NBI Data'!$A$2:$AA$22875,COLUMN('NBI Data'!$L$2:$L$22875),FALSE) -> 1987
A25: Year Reconstructed | B25: =VLOOKUP($C$80,'NBI Data'!$A$2:$AA$22875,COLUMN('NBI Data'!$Q$2:$Q$22875),FALSE) -> 0
A26: Lanes on the Structure | B26: =VLOOKUP($C$80,'NBI Data'!$A$2:$AA$22875,COLUMN('NBI Data'!$M$2:$M$22875),FALSE) -> 4
A27: Note: Some bridges have the same structure number. Use the state and county drop downs to identify your bridge.
A28: -
A29: Project Description:
A30: Table 2. Project Timeline
A31: Timeline Variables | B31: Timeline Values
A32: Current Year | B32: 2023
A33: First Year of Construction Costs | B33: 2026
A34: Last Year of Construction Costs | B34: 2029
A35: Project Opens (Start of Benefits) | B35: 2030
A36: Years of Benefits for Analysis | B36: 20
A37: First Year of Period of Analysis | B37: =IF(B35="Required","-", B35) -> 2030
A38: Last Year of Period of Analysis | B38: =IFERROR(B35+B36-1, "-") -> 2049
A39: Discount Year | B39: =Defaults!A285 -> 2021
A40: Base Year of NBI | B40: 2023
A41: Note: The tool cannot handle partial years, or pro-rata benefits or costs. Round up or down to the nearest year for construction start, construction end, and the start of benefits.
A42: Note: Enter a value between 20 to 30 for the Years of Benefits for Analysis, appropriate to the project as defined by US DOT BCA Guidance.
A43: -
A44: Table 3. Average Annual Daily Traffic (AADT)
A45: Scenario and Vehicle Type | B45: NBI Year of AADT | C45: NBI Year of Future AADT | D45: Forecast using NBI Growth Rate | E45: Forecast using NBI Growth Rate2 | F45: Project Opens | G45: Last Year | H45: Explanation and Source
A46: Year | B46: =VLOOKUP($C$80,'NBI Data'!$A$2:$AA$22875,COLUMN('NBI Data'!$O$2:$O$22875),FALSE) -> 2020 | C46: =VLOOKUP($C$80,'NBI Data'!$A$2:$AA$22875,COLUMN('NBI Data'!$T$2:$T$22875),FALSE) -> 2040 | D46: =IF(B35="Required","-",B35) -> 2030 | E46: =B38 -> 2049 | F46: =IF(B35="Required", "-",B35) -> 2030 | G46: =B38 -> 2049 | H46: N/A
A47: No Build - Passenger AADT | B47: =VLOOKUP($C$80,'NBI Data'!$A$2:$AA$22875,COLUMN('NBI Data'!$N$2:$N$22875),FALSE)*(1-VLOOKUP($C$80,'NBI Data'!$A$2:$AA$22875,COLUMN('NBI Data'!$R$2:$R$22875),FALSE)/100) -> 60192 | C47: =VLOOKUP($C$80,'NBI Data'!$A$2:$AA$22875,COLUMN('NBI Data'!$S$2:$S$22875),FALSE)*(1-VLOOKUP($C$80,'NBI Data'!$A$2:$AA$22875,COLUMN('NBI Data'!$R$2:$R$22875),FALSE)/100) -> 96307.2 | D47: =ROUND(B47*((1+B59)^(D$46-$B$46)),0) -> 76138 | E47: =ROUND(C47*((1+B59)^(E$46-$C$46)),0) -> 118991 | F47: 76129 | G47: 118982 | H47: Adjusted for EMBARK route 24 (9 peak trips per day)
A48: No Build - Truck AADT | B48: =VLOOKUP($C$80,'NBI Data'!$A$2:$AA$22875,COLUMN('NBI Data'!$R$2:$R$22875),FALSE)/100*VLOOKUP($C$80,'NBI Data'!$A$2:$AA$22875,COLUMN('NBI Data'!$N$2:$N$22875),FALSE) -> 8208 | C48: =VLOOKUP($C$80,'NBI Data'!$A$2:$AA$22875,COLUMN('NBI Data'!$R$2:$R$22875),FALSE)/100*VLOOKUP($C$80,'NBI Data'!$A$2:$AA$22875,COLUMN('NBI Data'!$S$2:$S$22875),FALSE) -> 13132.8 | D48: =ROUND(B48*((1+B59)^(D$46-$B$46)),0) -> 10382 | E48: =ROUND(C48*((1+B59)^(E$46-$C$46)),0) -> 16226 | F48: 10382 | G48: 16226 | H48: -
A49: No Build - Bus AADT | B49: N/A | C49: N/A | D49: N/A | E49: N/A | F49: 9 | G49: 9 | H49: Adjusted for EMBARK route 24 (9 peak trips per day)
A50: Build - Passenger AADT | B50: =B47 -> 60192 | C50: =C47 -> 96307.2 | D50: =ROUND(B50*((1+B59)^(D$46-$B$46)),0) -> 76138 | E50: =ROUND(C50*((1+B59)^(E$46-$C$46)),0) -> 118991 | F50: 76129 | G50: 118982 | H50: Adjusted for EMBARK route 24 (9 peak trips per day)
A51: Build - Truck AADT | B51: =B48 -> 8208 | C51: =C48 -> 13132.8 | D51: =ROUND(B51*((1+B59)^(D$46-$B$46)),0) -> 10382 | E51: =ROUND(C51*((1+B59)^(E$46-$C$46)),0) -> 16226 | F51: 10382 | G51: 16226 | H51: -
A52: Build - Bus AADT | B52: N/A | C52: N/A | D52: N/A | E52: N/A | F52: 9 | G52: 9 | H52: Adjusted for EMBARK route 24 (9 peak trips per day)
A53: =HYPERLINK("#A542","Note: AADT can be entered manually in Table 52 and Table 53 below.") -> Note: AADT can be entered manually in Table 52 and Table 53 below.
A54: Note: Here and elsewhere in the tool it is critical that you enter at least some value in the required cells, e.g., 0, rather than "-", "N/A" or leaving it blank.
A55: Note: NBI AADT values are added for reference in Table 3. Users must enter AADT values in Columns G, H and I in Table 3.
A56: -
A57: Note: Table 4 is not a user input. Do not adjust Table 4.
A58: Table 4. NBI's Calculated Average Annual Daily Traffic (AADT) Growth Rate
A59: =CONCATENATE("The NBI Calculated Annual Growth Rate", " ", B46, "-",C46, " (NBI)") -> The NBI Calculated Annual Growth Rate 2020-2040 (NBI) | B59: =(C47/B47)^(1/(C$46-B$46))-1 -> 0.02377848652
A60: -
A61: Table 5. Detour Road Type
A62: Detour Road Type | B62: Urban - Principal Arterial - Interstate
A63: Detour Road Type - Simple | B63: =IF(B62="Required", "-",IF(ISNUMBER(SEARCH("Urban",B62)), "Urban", "Rural")) -> Urban
A64: -
A65: Note: Detour length should represent the Net detour: Detour length minus the original route length.
A66: Table 6. Detour and Bridge Length Information
A67: Detour Details | B67: Reference | C67: User Value | D67: Explanation and Source
A68: Net Detour Length, For Vehicles (mi) (NBI) | B68: =ROUND(VLOOKUP($C$80,'NBI Data'!$A$2:$AA$22875,COLUMN('NBI Data'!$I$2:$I$22875),FALSE)*0.621371,1) -> 0 | C68: =18-10.3 -> 7.7 | D68: Measured the distance of a N/S through trip having to use I-240 and I-44 (an all interstate alternate route)
A69: Detour Average Speed, for Vehicles (mph) (FHWA VHT) | B69: =ROUND(VLOOKUP(B62,Defaults!B354:F366,2, FALSE),1) -> 60 | C69: 63.5 | D69: Google maps states the 18 mile detour would take 17 minutes without traffic.
A70: Net Detour Length, For Cycling/ Pedestrian (mi) (NBI) | B70: =ROUND(VLOOKUP($C$80,'NBI Data'!$A$2:$AA$22875,COLUMN('NBI Data'!$I$2:$I$22875),FALSE)*0.621371, 1) -> 0 | C70: 0 | D70: -
A71: Detour Average Travel Time (min) | B71: =B68/B69*60 -> 0 | C71: =C68/C69*60 -> 7.275590551 | D71: N/A
A72: Bridge Length (mi) | B72: =ROUND(B19,2) -> 0.05 | C72: 0.05 | D72: -
A73: Note: Google or HPMS data are preferred for identifying average speed on the detour route. You can also use the HERS/VHT speed values using the Detour Road Type dropdown below.
A74: Note: Bridge length in the NBI does not include the approach length. Include approach length if relevant for your project.
A75: =HYPERLINK("https://www.google.com/maps", "Use Google Maps to calculate detour route length and average speed, as appropriate.") -> Use Google Maps to calculate detour route length and average speed, as appropriate.
A76: =HYPERLINK("https://www.fhwa.dot.gov/policyinformation/hpms.cfm", "Use the Highway Performance Monitoring System (HPMS) data to calculate detour route length and average speed, as appropriate.") -> Use the Highway Performance Monitoring System (HPMS) data to calculate detour route length and average speed, as appropriate.
A77: -
A78: Note: These reference cells are marked to avoid accidental deletion.
A79: Table 7. Reference Table
A80: Reference Cells | B80: =CONCATENATE(B11,B12) -> OklahomaOklahoma | C80: =CONCATENATE(VLOOKUP($B$11,NBI_Dropdown!$B$1:$D$56,3,FALSE),$B$13) -> 406217080000000000
A81: -
A82: Table 8. Travel Assumptions
A83: Parameters | B83: Reference | C83: User Value | D83: Explanation and Source
A84: Bridge Average Speed (FHWA) | B84: =_xlfn.IFNA(VLOOKUP(B23,Defaults!B354:C366,2, FALSE), "N/A") -> 60 | C84: 60 | D84: -
A85: Average Car Occupancy | B85: =Defaults!B49 -> 1.67 | C85: 1.67 | D85: -
A86: Share of Long-Distance Personal Travel | B86: 0 | C86: 0 | D86: -
A87: Value of Time - Long-Distance Personal Travel | B87: =Defaults!B32 -> 23.8 | C87: 23.8 | D87: -
A88: Share of Business Travel | B88: 0.118 | C88: 0.118 | D88: -
A89: Value of Travel Time - Business | B89: =Defaults!B30 -> 31.9 | C89: 31.9 | D89: -
A90: Value of Travel Time - Personal | B90: =Defaults!B29 -> 17 | C90: 17 | D90: -
A91: Value of Travel Time - All Purposes | B91: =ROUND(B86*B87+B88*B89+(1-B86-B88)*B90,1) -> 18.8 | C91: =IFERROR(ROUND(C86*C87+C88*C89+(1-C86-C88)*C90,1),"-") -> 18.8 | D91: -
A92: Walking, Cycling, Waiting, Standing, and Transfer Time | B92: =Defaults!B33 -> 34 | C92: 34 | D92: -
A93: Truck Driver | B93: =Defaults!B36 -> 32.4 | C93: 32.4 | D93: -
A94: Bus Driver | B94: =Defaults!B37 -> 35 | C94: 35 | D94: -
A95: Average Bus Occupancy | B95: 0 | C95: 5 | D95: EMBARK Ridership report route 24 (2023 to date)
A96: -
A97: Capital Cost and Residual Value
A98: Table 9. Expenditure Dollars Option
A99: Are costs entered in year of expenditure dollars (not adjusted for inflation)? | B99: NO
A100: Enter future inflation rate for capital costs. | B100: 0
A101: Note: Capital costs can be entered in year of expenditure dollars or in real dollars. The tool applies inflation and discounting factors automatically if entered as year of expenditure dollars.
A102: -
A103: Table 10. Already Incurred Costs
A104: Year | B104: Costs | C104: Real Costs | D104: Discounted Costs
A105: 2023 | B105: 39178.18286 | C105: =IF($B$99="NO",B105,IFERROR(B105*(IF(A105>$B$39, 1/((1+$B$100)^(A105-$B$39)),VLOOKUP(A105,Defaults!$A$130:$B$188, 2,FALSE))),"-")) -> 39178.18286 | D105: =IFERROR(IF(A105="","",IF(A105<=2020, C105, C105*VLOOKUP(A105,Defaults!$A$285:$B$335, 2,FALSE))),"-") -> 34219.74221
A106: 2024 | B106: 78356.36571 | C106: =IF($B$99="NO",B106,IFERROR(B106*(IF(A106>$B$39, 1/((1+$B$100)^(A106-$B$39)),VLOOKUP(A106,Defaults!$A$130:$B$188, 2,FALSE))),"-")) -> 78356.36571 | D106: =IFERROR(IF(A106="","",IF(A106<=2020, C106, C106*VLOOKUP(A106,Defaults!$A$285:$B$335, 2,FALSE))),"-") -> 63962.13497
A107: 2025 | B107: 117534.5486 | C107: =IF($B$99="NO",B107,IFERROR(B107*(IF(A107>$B$39, 1/((1+$B$100)^(A107-$B$39)),VLOOKUP(A107,Defaults!$A$130:$B$188, 2,FALSE))),"-")) -> 117534.5486 | D107: =IFERROR(IF(A107="","",IF(A107<=2020, C107, C107*VLOOKUP(A107,Defaults!$A$285:$B$335, 2,FALSE))),"-") -> 89666.54435
A108: - | B108: - | C108: =IF($B$99="NO",B108,IFERROR(B108*(IF(A108>$B$39, 1/((1+$B$100)^(A108-$B$39)),VLOOKUP(A108,Defaults!$A$130:$B$188, 2,FALSE))),"-")) -> - | D108: =IFERROR(IF(A108="","",IF(A108<=2020, C108, C108*VLOOKUP(A108,Defaults!$A$285:$B$335, 2,FALSE))),"-") -> -
A109: - | B109: - | C109: =IF($B$99="NO",B109,IFERROR(B109*(IF(A109>$B$39, 1/((1+$B$100)^(A109-$B$39)),VLOOKUP(A109,Defaults!$A$130:$B$188, 2,FALSE))),"-")) -> - | D109: =IFERROR(IF(A109="","",IF(A109<=2020, C109, C109*VLOOKUP(A109,Defaults!$A$285:$B$335, 2,FALSE))),"-") -> -
A110: - | B110: - | C110: =IF($B$99="NO",B110,IFERROR(B110*(IF(A110>$B$39, 1/((1+$B$100)^(A110-$B$39)),VLOOKUP(A110,Defaults!$A$130:$B$188, 2,FALSE))),"-")) -> - | D110: =IFERROR(IF(A110="","",IF(A110<=2020, C110, C110*VLOOKUP(A110,Defaults!$A$285:$B$335, 2,FALSE))),"-") -> -
A111: - | B111: - | C111: =IF($B$99="NO",B111,IFERROR(B111*(IF(A111>$B$39, 1/((1+$B$100)^(A111-$B$39)),VLOOKUP(A111,Defaults!$A$130:$B$188, 2,FALSE))),"-")) -> - | D111: =IFERROR(IF(A111="","",IF(A111<=2020, C111, C111*VLOOKUP(A111,Defaults!$A$285:$B$335, 2,FALSE))),"-") -> -
A112: - | B112: - | C112: =IF($B$99="NO",B112,IFERROR(B112*(IF(A112>$B$39, 1/((1+$B$100)^(A112-$B$39)),VLOOKUP(A112,Defaults!$A$130:$B$188, 2,FALSE))),"-")) -> - | D112: =IFERROR(IF(A112="","",IF(A112<=2020, C112, C112*VLOOKUP(A112,Defaults!$A$285:$B$335, 2,FALSE))),"-") -> -
A113: - | B113: - | C113: =IF($B$99="NO",B113,IFERROR(B113*(IF(A113>$B$39, 1/((1+$B$100)^(A113-$B$39)),VLOOKUP(A113,Defaults!$A$130:$B$188, 2,FALSE))),"-")) -> - | D113: =IFERROR(IF(A113="","",IF(A113<=2020, C113, C113*VLOOKUP(A113,Defaults!$A$285:$B$335, 2,FALSE))),"-") -> -
A114: - | B114: - | C114: =IF($B$99="NO",B114,IFERROR(B114*(IF(A114>$B$39, 1/((1+$B$100)^(A114-$B$39)),VLOOKUP(A114,Defaults!$A$130:$B$188, 2,FALSE))),"-")) -> - | D114: =IFERROR(IF(A114="","",IF(A114<=2020, C114, C114*VLOOKUP(A114,Defaults!$A$285:$B$335, 2,FALSE))),"-") -> -
A115: - | B115: - | C115: =IF($B$99="NO",B115,IFERROR(B115*(IF(A115>$B$39, 1/((1+$B$100)^(A115-$B$39)),VLOOKUP(A115,Defaults!$A$130:$B$188, 2,FALSE))),"-")) -> - | D115: =IFERROR(IF(A115="","",IF(A115<=2020, C115, C115*VLOOKUP(A115,Defaults!$A$285:$B$335, 2,FALSE))),"-") -> -
A116: -
A117: Table 11. Capital Costs
A118: Year | B118: Costs | C118: Real Costs | D118: Discounted Costs
A119: =IFERROR(IF($B$33="-", "N/A", $B$33),"N/A") -> 2026 | B119: 293836.3714 | C119: =IF($B$99="NO",B119,IFERROR(B119*(IF(A119>$B$39, 1/(1+$B$100)^(A119-$B$39),VLOOKUP(A119,Defaults!$A$130:$B$188, 2,FALSE))),"-")) -> 293836.3714 | D119: =IFERROR(IF(A119="N/A","-",C119*VLOOKUP(A119,Defaults!$A$285:$B$335, 2,FALSE)),"-") -> 209501.2718
A120: =IFERROR(IF(A119="N/A","N/A",IF(A119>=$B$34,"N/A",A119+1)),"") -> 2027 | B120: 587672.7428 | C120: =IF($B$99="NO",B120,IFERROR(B120*(IF(A120>$B$39, 1/(1+$B$100)^(A120-$B$39),VLOOKUP(A120,Defaults!$A$130:$B$188, 2,FALSE))),"-")) -> 587672.7428 | D120: =IFERROR(IF(A120="N/A","-",C120*VLOOKUP(A120,Defaults!$A$285:$B$335, 2,FALSE)),"-") -> 391591.1623
A121: =IF(A120="N/A","N/A",IF(A120>=$B$34,"N/A",A120+1)) -> 2028 | B121: 587672.7428 | C121: =IF($B$99="NO",B121,IFERROR(B121*(IF(A121>$B$39, 1/(1+$B$100)^(A121-$B$39),VLOOKUP(A121,Defaults!$A$130:$B$188, 2,FALSE))),"-")) -> 587672.7428 | D121: =IFERROR(IF(A121="N/A","-",C121*VLOOKUP(A121,Defaults!$A$285:$B$335, 2,FALSE)),"-") -> 365973.0489
A122: 2029 | B122: 254658.1886 | C122: =IF($B$99="NO",B122,IFERROR(B122*(IF(A122>$B$39, 1/(1+$B$100)^(A122-$B$39),VLOOKUP(A122,Defaults!$A$130:$B$188, 2,FALSE))),"-")) -> 254658.1886 | D122: =IFERROR(IF(A122="N/A","-",C122*VLOOKUP(A122,Defaults!$A$285:$B$335, 2,FALSE)),"-") -> 148213.3843
A123: N/A | B123: - | C123: =IF($B$99="NO",B123,IFERROR(B123*(IF(A123>$B$39, 1/(1+$B$100)^(A123-$B$39),VLOOKUP(A123,Defaults!$A$130:$B$188, 2,FALSE))),"-")) -> - | D123: =IFERROR(IF(A123="N/A","-",C123*VLOOKUP(A123,Defaults!$A$285:$B$335, 2,FALSE)),"-") -> -
A124: N/A | B124: - | C124: =IF($B$99="NO",B124,IFERROR(B124*(IF(A124>$B$39, 1/(1+$B$100)^(A124-$B$39),VLOOKUP(A124,Defaults!$A$130:$B$188, 2,FALSE))),"-")) -> - | D124: =IFERROR(IF(A124="N/A","-",C124*VLOOKUP(A124,Defaults!$A$285:$B$335, 2,FALSE)),"-") -> -
A125: N/A | B125: - | C125: =IF($B$99="NO",B125,IFERROR(B125*(IF(A125>$B$39, 1/(1+$B$100)^(A125-$B$39),VLOOKUP(A125,Defaults!$A$130:$B$188, 2,FALSE))),"-")) -> - | D125: =IFERROR(IF(A125="N/A","-",C125*VLOOKUP(A125,Defaults!$A$285:$B$335, 2,FALSE)),"-") -> -
A126: N/A | B126: - | C126: =IF($B$99="NO",B126,IFERROR(B126*(IF(A126>$B$39, 1/(1+$B$100)^(A126-$B$39),VLOOKUP(A126,Defaults!$A$130:$B$188, 2,FALSE))),"-")) -> - | D126: =IFERROR(IF(A126="N/A","-",C126*VLOOKUP(A126,Defaults!$A$285:$B$335, 2,FALSE)),"-") -> -
A127: N/A | B127: - | C127: =IF($B$99="NO",B127,IFERROR(B127*(IF(A127>$B$39, 1/(1+$B$100)^(A127-$B$39),VLOOKUP(A127,Defaults!$A$130:$B$188, 2,FALSE))),"-")) -> - | D127: =IFERROR(IF(A127="N/A","-",C127*VLOOKUP(A127,Defaults!$A$285:$B$335, 2,FALSE)),"-") -> -
A128: N/A | B128: - | C128: =IF($B$99="NO",B128,IFERROR(B128*(IF(A128>$B$39, 1/(1+$B$100)^(A128-$B$39),VLOOKUP(A128,Defaults!$A$130:$B$188, 2,FALSE))),"-")) -> - | D128: =IFERROR(IF(A128="N/A","-",C128*VLOOKUP(A128,Defaults!$A$285:$B$335, 2,FALSE)),"-") -> -
A129: N/A | B129: - | C129: =IF($B$99="NO",B129,IFERROR(B129*(IF(A129>$B$39, 1/(1+$B$100)^(A129-$B$39),VLOOKUP(A129,Defaults!$A$130:$B$188, 2,FALSE))),"-")) -> - | D129: =IFERROR(IF(A129="N/A","-",C129*VLOOKUP(A129,Defaults!$A$285:$B$335, 2,FALSE)),"-") -> -
A130: -
A131: Table 12. Capital Cost Summary
A132: Total Capital Costs: | B132: =SUM(B105:B115)+SUM(B119:B129) -> 1958909.143
A133: Total Real Capital Costs: | B133: =SUM(C105:C115)+SUM(C119:C123) -> 1958909.143
A134: Total Discounted Capital Costs: | B134: =SUM(D105:D115)+SUM(D119:D129) -> 1303127.289
A135: -
A136: Table 13. Residual Value
A137: Share of Capital Costs | B137: Asset Life (Years) | C137: Explanation and Source
A138: 0 | B138: 100 | C138: Percentage of Costs associated with Right-of-way. Assumed life based on MnDOT BCA Guidance
A139: 0.75 | B139: 60 | C139: Percentage of Costs associated with Bridge Construction. Assumed life based on MnDOT BCA Guidance
A140: 0.25 | B140: 40 | C140: Percentage of Costs associated with Roadway Construction. Assumed life based on MnDOT BCA Guidance (Grading Drainage/Sub-base and Base/Roadway) based on midpoint of cost breakdown.
A141: 0 | B141: 0 | C141: -
A142: =SUM(A138:A141) -> 1 | B142: Summation | C142: N/A
A143: Note: If there are multiple components of the project for this specific bridge that different asset lives, enter the share of the project costs associated with the different project components and their asset life.
A144: Note: The Summation cell should be 100%.
A145: -
A146: Operating and Maintenance Costs (O&M)
A147: Table 14. Operating and Maintenance Costs Assumptions
A148: Which method would you like to use to enter O&M costs? | B148: Manual Entry
A149: Year of O&M costs Dollars | B149: 2021
A150: Note: If you have O&M costs in the construction period you will need to use the manual entry option to enter the O&M costs in the construction period.
A151: Note: The operating and maintenance costs in the baseline should be entered to be consistent with your estimate of closure. If the bridge is closed in a future year (Table 25), there should not be maintenance costs for that year and thereafter.
A152: Note: For frequency calculation option, all costs should be entered as year of expenditure. The tool applies inflation and discounting factors automatically.
A153: -
A154: Table 15. Annual O&M Calculation Input
A155: Category | B155: Value
A156: Annual O&M Costs in the No Build Scenario | B156: -
A157: Annual O&M Costs Real Growth Rate in the No Build Scenario | B157: 0
A158: Annual O&M Costs in the Build Scenario | B158: -
A159: Annual O&M Costs Real Growth Rate in the Build Scenario | B159: 0
A160: Note: The maintenance real growth rate represents the real cost increases year over year (e.g., from increased deterioration of the asset). It should not include inflation adjustments.
A161: -
A162: Table 16a. Intermittent O&M Calculation Input
A163: Category | B163: Value
A164: Initial year | B164: -
A165: Last Year | B165: -
A166: Occurs every _____ Years; set to 30 if occurs only once | B166: 1
A167: Annual O&M Costs in the No Build Scenario | B167: -
A168: Annual O&M Costs Real Growth Rate in the Build Scenario | B168: -
A169: -
A170: Table 16b. Intermittent O&M Calculation Input
A171: Category | B171: Value
A172: Initial year | B172: -
A173: Last Year | B173: -
A174: Occurs every _____ Years; set to 30 if occurs only once | B174: 1
A175: Annual O&M Costs in the No Build Scenario | B175: -
A176: Annual O&M Costs Real Growth Rate in the Build Scenario | B176: -
A177: -
A178: Table 16c. Intermittent O&M Calculation Input
A179: Category | B179: Value
A180: Initial year | B180: -
A181: Last Year | B181: -
A182: Occurs every _____ Years; set to 30 if occurs only once | B182: 1
A183: Annual O&M Costs in the No Build Scenario | B183: -
A184: Annual O&M Costs Real Growth Rate in the Build Scenario | B184: -
A185: -
A186: Table 16d. Intermittent O&M Calculation Input
A187: Category | B187: Value
A188: Initial year | B188: -
A189: Last Year | B189: -
A190: Occurs every _____ Years; set to 30 if occurs only once | B190: 1
A191: Annual O&M Costs in the No Build Scenario | B191: -
A192: Annual O&M Costs Real Growth Rate in the Build Scenario | B192: -
A193: Note: The "Occurs every _____ " field in Tables 16a through 16d must be greater than or equal to 1, even if you are not adding an additional recurring maintenance cost.
A194: -
A195: Note: Manual O&M cost values should be entered in the year of dollar entered in Table 14.
A196: Table 17. Manual O&M Cost Entry
A197: Calendar Year | B197: Analysis Year | C197: No Build Annual Cost | D197: Build Annual Cost | E197: O&M Cost Difference Discounted
A198: =IFERROR(IF(B32="Required","N/A",B32),"N/A") -> 2023 | B198: =IFERROR(IF(A198=$B$35,1,IF(A198>$B$35,A198-$B$35+1,IF(A198<$B$35,A198-$B$35+1,"N/A"))),"N/A") -> -6 | D198: - | E198: =IFERROR((C198-D198)*VLOOKUP($B$149,Defaults!$A$285:$B$335, 2,FALSE)*VLOOKUP(A198,Defaults!$A$285:$B$335,2,FALSE),0) -> 0
A199: =IF(A198="N/A","N/A",IF(A198>=$B$35+$B$36-1,"N/A",A198+1)) -> 2024 | B199: -5 | C199: =1000 -> 1000 | D199: - | E199: =IFERROR((C199-D199)*VLOOKUP($B$149,Defaults!$A$285:$B$335, 2,FALSE)*VLOOKUP(A199,Defaults!$A$285:$B$335,2,FALSE),0) -> 0
A200: 2025 | B200: -4 | D200: - | E200: =IFERROR((C200-D200)*VLOOKUP($B$149,Defaults!$A$285:$B$335, 2,FALSE)*VLOOKUP(A200,Defaults!$A$285:$B$335,2,FALSE),0) -> 0
... 495 more rows

Sheet I35 NB RR
A1: Bridge and Project Overview
A2: ID of bridge, description of improvement, project timeline, traffic volume
A3: Add New Bridge (press Ctrl + Shift + B)
A4: Add Sensitivity Analysis for Current Bridge (press Ctrl + Shift + S)
A5: Delete this Bridge (press Ctrl + Shift + D)
A6: Note: Only delete bridges using this command/button. Deleting bridge tabs through right click will result in (fixable) errors on the Results tab.
A7: Change Bridge Name (press Ctrl + Shift + N)
A8: -
A9: Table 1. Bridge Variables
A10: Bridge Variables | B10: Bridge Values
A11: State | B11: Oklahoma
A12: County | B12: Oklahoma
A13: Structure Number | B13: 213350000000000
A14: Inventory Route | B14: =VLOOKUP($C$80,'NBI Data'!$A$2:$AA$22875,COLUMN('NBI Data'!$D$2:$D$22875),FALSE) -> 00035
A15: Feature Intersected | B15: =VLOOKUP($C$80,'NBI Data'!$A$2:$AA$22875,COLUMN('NBI Data'!$E$2:$E$22875),FALSE) -> 'SLWC R.R. UNDER'
A16: Facility Carried | B16: =VLOOKUP($C$80,'NBI Data'!$A$2:$AA$22875,COLUMN('NBI Data'!$F$2:$F$22875),FALSE) -> 'I-35 NB'
A17: Latitude | B17: =LEFT(VLOOKUP($C$80,'NBI Data'!$A$2:$AA$22875,COLUMN('NBI Data'!$G$2:$G$22875),FALSE), 2) & CHAR(176) & " " & MID(VLOOKUP($C$80,'NBI Data'!$A$2:$AA$22875,COLUMN('NBI Data'!$G$2:$G$22875),FALSE), 3, 2) &"'" & " " & MID(VLOOKUP($C$80,'NBI Data'!$A$2:$AA$22875,COLUMN('NBI Data'!$G$2:$G$22875),FALSE), 5, 2) &"."& MID(VLOOKUP($C$80,'NBI Data'!$A$2:$AA$22875,COLUMN('NBI Data'!$G$2:$G$22875),FALSE), 7, 2) & CHAR(34) -> 35° 27' 14.78"
A18: Longitude | B18: ="-" & MID(VLOOKUP($C$80,'NBI Data'!$A$2:$AA$22875,COLUMN('NBI Data'!$H$2:$H$22875),FALSE), 2, 2) & CHAR(176) & " " & MID(VLOOKUP($C$80,'NBI Data'!$A$2:$AA$22875,COLUMN('NBI Data'!$H$2:$H$22875),FALSE), 4, 2) &"'" & " " & MID(VLOOKUP($C$80,'NBI Data'!$A$2:$AA$22875,COLUMN('NBI Data'!$H$2:$H$22875),FALSE), 6, 2) &"."& MID(VLOOKUP($C$80,'NBI Data'!$A$2:$AA$22875,COLUMN('NBI Data'!$H$2:$H$22875),FALSE), 8, 2) & CHAR(34) -> -97° 29' 20.99"
A19: Bridge Length (mi) | B19: =VLOOKUP($C$80,'NBI Data'!$A$2:$AA$22875,COLUMN('NBI Data'!$AA$2:$AA$22875),FALSE)/1609 -> 0.04735860783
A20: Bypass, Detour Length (mi) | B20: =VLOOKUP($C$80,'NBI Data'!$A$2:$AA$22875,COLUMN('NBI Data'!$I$2:$I$22875),FALSE)*0.621371 -> 0
A21: Owner | B21: =VLOOKUP($C$80,'NBI Data'!$A$2:$AA$22875,COLUMN('NBI Data'!$J$2:$J$22875),FALSE) -> 01
A22: Functional Class, Rural/Urban | B22: =VLOOKUP($C$80,'NBI Data'!$A$2:$AA$22875,COLUMN('NBI Data'!$K$2:$K$22875),FALSE) -> 11
A23: Bridge Road Type | B23: =VLOOKUP(B22,Defaults!A354:$D$366, 2, FALSE) -> Urban - Principal Arterial - Interstate
A24: Year Built | B24: =VLOOKUP($C$80,'NBI Data'!$A$2:$AA$22875,COLUMN('NBI Data'!$L$2:$L$22875),FALSE) -> 1986
A25: Year Reconstructed | B25: =VLOOKUP($C$80,'NBI Data'!$A$2:$AA$22875,COLUMN('NBI Data'!$Q$2:$Q$22875),FALSE) -> 0
A26: Lanes on the Structure | B26: =VLOOKUP($C$80,'NBI Data'!$A$2:$AA$22875,COLUMN('NBI Data'!$M$2:$M$22875),FALSE) -> 4
A27: Note: Some bridges have the same structure number. Use the state and county drop downs to identify your bridge.
A28: -
A29: Project Description:
A30: Table 2. Project Timeline
A31: Timeline Variables | B31: Timeline Values
A32: Current Year | B32: 2023
A33: First Year of Construction Costs | B33: 2026
A34: Last Year of Construction Costs | B34: 2029
A35: Project Opens (Start of Benefits) | B35: 2030
A36: Years of Benefits for Analysis | B36: 20
A37: First Year of Period of Analysis | B37: =IF(B35="Required","-", B35) -> 2030
A38: Last Year of Period of Analysis | B38: =IFERROR(B35+B36-1, "-") -> 2049
A39: Discount Year | B39: =Defaults!A285 -> 2021
A40: Base Year of NBI | B40: 2023
A41: Note: The tool cannot handle partial years, or pro-rata benefits or costs. Round up or down to the nearest year for construction start, construction end, and the start of benefits.
A42: Note: Enter a value between 20 to 30 for the Years of Benefits for Analysis, appropriate to the project as defined by US DOT BCA Guidance.
A43: -
A44: Table 3. Average Annual Daily Traffic (AADT)
A45: Scenario and Vehicle Type | B45: NBI Year of AADT | C45: NBI Year of Future AADT | D45: Forecast using NBI Growth Rate | E45: Forecast using NBI Growth Rate2 | F45: Project Opens | G45: Last Year | H45: Explanation and Source
A46: Year | B46: =VLOOKUP($C$80,'NBI Data'!$A$2:$AA$22875,COLUMN('NBI Data'!$O$2:$O$22875),FALSE) -> 2020 | C46: =VLOOKUP($C$80,'NBI Data'!$A$2:$AA$22875,COLUMN('NBI Data'!$T$2:$T$22875),FALSE) -> 2040 | D46: =IF(B35="Required","-",B35) -> 2030 | E46: =B38 -> 2049 | F46: =IF(B35="Required", "-",B35) -> 2030 | G46: =B38 -> 2049 | H46: N/A
A47: No Build - Passenger AADT | B47: =VLOOKUP($C$80,'NBI Data'!$A$2:$AA$22875,COLUMN('NBI Data'!$N$2:$N$22875),FALSE)*(1-VLOOKUP($C$80,'NBI Data'!$A$2:$AA$22875,COLUMN('NBI Data'!$R$2:$R$22875),FALSE)/100) -> 59796 | C47: =VLOOKUP($C$80,'NBI Data'!$A$2:$AA$22875,COLUMN('NBI Data'!$S$2:$S$22875),FALSE)*(1-VLOOKUP($C$80,'NBI Data'!$A$2:$AA$22875,COLUMN('NBI Data'!$R$2:$R$22875),FALSE)/100) -> 95673.6 | D47: =ROUND(B47*((1+B59)^(D$46-$B$46)),0) -> 75637 | E47: =ROUND(C47*((1+B59)^(E$46-$C$46)),0) -> 118208 | F47: 75628 | G47: 118199 | H47: Adjusted for EMBARK route 24 (9 peak trips per day)
A48: No Build - Truck AADT | B48: =VLOOKUP($C$80,'NBI Data'!$A$2:$AA$22875,COLUMN('NBI Data'!$R$2:$R$22875),FALSE)/100*VLOOKUP($C$80,'NBI Data'!$A$2:$AA$22875,COLUMN('NBI Data'!$N$2:$N$22875),FALSE) -> 8154 | C48: =VLOOKUP($C$80,'NBI Data'!$A$2:$AA$22875,COLUMN('NBI Data'!$R$2:$R$22875),FALSE)/100*VLOOKUP($C$80,'NBI Data'!$A$2:$AA$22875,COLUMN('NBI Data'!$S$2:$S$22875),FALSE) -> 13046.4 | D48: =ROUND(B48*((1+B59)^(D$46-$B$46)),0) -> 10314 | E48: =ROUND(C48*((1+B59)^(E$46-$C$46)),0) -> 16119 | F48: 10314 | G48: 16119 | H48: -
A49: No Build - Bus AADT | B49: N/A | C49: N/A | D49: N/A | E49: N/A | F49: 9 | G49: 9 | H49: Adjusted for EMBARK route 24 (9 peak trips per day)
A50: Build - Passenger AADT | B50: =B47 -> 59796 | C50: =C47 -> 95673.6 | D50: =ROUND(B50*((1+B59)^(D$46-$B$46)),0) -> 75637 | E50: =ROUND(C50*((1+B59)^(E$46-$C$46)),0) -> 118208 | F50: 75628 | G50: 118199 | H50: Adjusted for EMBARK route 24 (9 peak trips per day)
A51: Build - Truck AADT | B51: =B48 -> 8154 | C51: =C48 -> 13046.4 | D51: =ROUND(B51*((1+B59)^(D$46-$B$46)),0) -> 10314 | E51: =ROUND(C51*((1+B59)^(E$46-$C$46)),0) -> 16119 | F51: 10314 | G51: 16119 | H51: -
A52: Build - Bus AADT | B52: N/A | C52: N/A | D52: N/A | E52: N/A | F52: 9 | G52: 9 | H52: Adjusted for EMBARK route 24 (9 peak trips per day)
A53: =HYPERLINK("#A542","Note: AADT can be entered manually in Table 52 and Table 53 below.") -> Note: AADT can be entered manually in Table 52 and Table 53 below.
A54: Note: Here and elsewhere in the tool it is critical that you enter at least some value in the required cells, e.g., 0, rather than "-", "N/A" or leaving it blank.
A55: Note: NBI AADT values are added for reference in Table 3. Users must enter AADT values in Columns G, H and I in Table 3.
A56: -
A57: Note: Table 4 is not a user input. Do not adjust Table 4.
A58: Table 4. NBI's Calculated Average Annual Daily Traffic (AADT) Growth Rate
A59: =CONCATENATE("The NBI Calculated Annual Growth Rate", " ", B46, "-",C46, " (NBI)") -> The NBI Calculated Annual Growth Rate 2020-2040 (NBI) | B59: =(C47/B47)^(1/(C$46-B$46))-1 -> 0.02377848652
A60: -
A61: Table 5. Detour Road Type
A62: Detour Road Type | B62: Urban - Principal Arterial - Interstate
A63: Detour Road Type - Simple | B63: =IF(B62="Required", "-",IF(ISNUMBER(SEARCH("Urban",B62)), "Urban", "Rural")) -> Urban
A64: -
A65: Note: Detour length should represent the Net detour: Detour length minus the original route length.
A66: Table 6. Detour and Bridge Length Information
A67: Detour Details | B67: Reference | C67: User Value | D67: Explanation and Source
A68: Net Detour Length, For Vehicles (mi) (NBI) | B68: =ROUND(VLOOKUP($C$80,'NBI Data'!$A$2:$AA$22875,COLUMN('NBI Data'!$I$2:$I$22875),FALSE)*0.621371,1) -> 0 | C68: =18-10.3 -> 7.7 | D68: Measured the distance of a N/S through trip having to use I-240 and I-44 (an all interstate alternate route)
A69: Detour Average Speed, for Vehicles (mph) (FHWA VHT) | B69: =ROUND(VLOOKUP(B62,Defaults!B354:F366,2, FALSE),1) -> 60 | C69: 63.5 | D69: Google maps states the 18 mile detour would take 17 minutes without traffic.
A70: Net Detour Length, For Cycling/ Pedestrian (mi) (NBI) | B70: =ROUND(VLOOKUP($C$80,'NBI Data'!$A$2:$AA$22875,COLUMN('NBI Data'!$I$2:$I$22875),FALSE)*0.621371, 1) -> 0 | C70: 0 | D70: -
A71: Detour Average Travel Time (min) | B71: =B68/B69*60 -> 0 | C71: =C68/C69*60 -> 7.275590551 | D71: N/A
A72: Bridge Length (mi) | B72: =ROUND(B19,2) -> 0.05 | C72: 0.05 | D72: -
A73: Note: Google or HPMS data are preferred for identifying average speed on the detour route. You can also use the HERS/VHT speed values using the Detour Road Type dropdown below.
A74: Note: Bridge length in the NBI does not include the approach length. Include approach length if relevant for your project.
A75: =HYPERLINK("https://www.google.com/maps", "Use Google Maps to calculate detour route length and average speed, as appropriate.") -> Use Google Maps to calculate detour route length and average speed, as appropriate.
A76: =HYPERLINK("https://www.fhwa.dot.gov/policyinformation/hpms.cfm", "Use the Highway Performance Monitoring System (HPMS) data to calculate detour route length and average speed, as appropriate.") -> Use the Highway Performance Monitoring System (HPMS) data to calculate detour route length and average speed, as appropriate.
A77: -
A78: Note: These reference cells are marked to avoid accidental deletion.
A79: Table 7. Reference Table
A80: Reference Cells | B80: =CONCATENATE(B11,B12) -> OklahomaOklahoma | C80: =CONCATENATE(VLOOKUP($B$11,NBI_Dropdown!$B$1:$D$56,3,FALSE),$B$13) -> 406213350000000000
A81: -
A82: Table 8. Travel Assumptions
A83: Parameters | B83: Reference | C83: User Value | D83: Explanation and Source
A84: Bridge Average Speed (FHWA) | B84: =_xlfn.IFNA(VLOOKUP(B23,Defaults!B354:C366,2, FALSE), "N/A") -> 60 | C84: 60 | D84: -
A85: Average Car Occupancy | B85: =Defaults!B49 -> 1.67 | C85: 1.67 | D85: -
A86: Share of Long-Distance Personal Travel | B86: 0 | C86: 0 | D86: -
A87: Value of Time - Long-Distance Personal Travel | B87: =Defaults!B32 -> 23.8 | C87: 23.8 | D87: -
A88: Share of Business Travel | B88: 0.118 | C88: 0.118 | D88: -
A89: Value of Travel Time - Business | B89: =Defaults!B30 -> 31.9 | C89: 31.9 | D89: -
A90: Value of Travel Time - Personal | B90: =Defaults!B29 -> 17 | C90: 17 | D90: -
A91: Value of Travel Time - All Purposes | B91: =ROUND(B86*B87+B88*B89+(1-B86-B88)*B90,1) -> 18.8 | C91: =IFERROR(ROUND(C86*C87+C88*C89+(1-C86-C88)*C90,1),"-") -> 18.8 | D91: -
A92: Walking, Cycling, Waiting, Standing, and Transfer Time | B92: =Defaults!B33 -> 34 | C92: 34 | D92: -
A93: Truck Driver | B93: =Defaults!B36 -> 32.4 | C93: 32.4 | D93: -
A94: Bus Driver | B94: =Defaults!B37 -> 35 | C94: 35 | D94: -
A95: Average Bus Occupancy | B95: 0 | C95: 5 | D95: EMBARK Ridership report route 24 (2023 to date)
A96: -
A97: Capital Cost and Residual Value
A98: Table 9. Expenditure Dollars Option
A99: Are costs entered in year of expenditure dollars (not adjusted for inflation)? | B99: NO
A100: Enter future inflation rate for capital costs. | B100: 0
A101: Note: Capital costs can be entered in year of expenditure dollars or in real dollars. The tool applies inflation and discounting factors automatically if entered as year of expenditure dollars.
A102: -
A103: Table 10. Already Incurred Costs
A104: Year | B104: Costs | C104: Real Costs | D104: Discounted Costs
A105: 2023 | B105: 39178.18286 | C105: =IF($B$99="NO",B105,IFERROR(B105*(IF(A105>$B$39, 1/((1+$B$100)^(A105-$B$39)),VLOOKUP(A105,Defaults!$A$130:$B$188, 2,FALSE))),"-")) -> 39178.18286 | D105: =IFERROR(IF(A105="","",IF(A105<=2020, C105, C105*VLOOKUP(A105,Defaults!$A$285:$B$335, 2,FALSE))),"-") -> 34219.74221
A106: 2024 | B106: 78356.36571 | C106: =IF($B$99="NO",B106,IFERROR(B106*(IF(A106>$B$39, 1/((1+$B$100)^(A106-$B$39)),VLOOKUP(A106,Defaults!$A$130:$B$188, 2,FALSE))),"-")) -> 78356.36571 | D106: =IFERROR(IF(A106="","",IF(A106<=2020, C106, C106*VLOOKUP(A106,Defaults!$A$285:$B$335, 2,FALSE))),"-") -> 63962.13497
A107: 2025 | B107: 117534.5486 | C107: =IF($B$99="NO",B107,IFERROR(B107*(IF(A107>$B$39, 1/((1+$B$100)^(A107-$B$39)),VLOOKUP(A107,Defaults!$A$130:$B$188, 2,FALSE))),"-")) -> 117534.5486 | D107: =IFERROR(IF(A107="","",IF(A107<=2020, C107, C107*VLOOKUP(A107,Defaults!$A$285:$B$335, 2,FALSE))),"-") -> 89666.54435
A108: - | B108: - | C108: =IF($B$99="NO",B108,IFERROR(B108*(IF(A108>$B$39, 1/((1+$B$100)^(A108-$B$39)),VLOOKUP(A108,Defaults!$A$130:$B$188, 2,FALSE))),"-")) -> - | D108: =IFERROR(IF(A108="","",IF(A108<=2020, C108, C108*VLOOKUP(A108,Defaults!$A$285:$B$335, 2,FALSE))),"-") -> -
A109: - | B109: - | C109: =IF($B$99="NO",B109,IFERROR(B109*(IF(A109>$B$39, 1/((1+$B$100)^(A109-$B$39)),VLOOKUP(A109,Defaults!$A$130:$B$188, 2,FALSE))),"-")) -> - | D109: =IFERROR(IF(A109="","",IF(A109<=2020, C109, C109*VLOOKUP(A109,Defaults!$A$285:$B$335, 2,FALSE))),"-") -> -
A110: - | B110: - | C110: =IF($B$99="NO",B110,IFERROR(B110*(IF(A110>$B$39, 1/((1+$B$100)^(A110-$B$39)),VLOOKUP(A110,Defaults!$A$130:$B$188, 2,FALSE))),"-")) -> - | D110: =IFERROR(IF(A110="","",IF(A110<=2020, C110, C110*VLOOKUP(A110,Defaults!$A$285:$B$335, 2,FALSE))),"-") -> -
A111: - | B111: - | C111: =IF($B$99="NO",B111,IFERROR(B111*(IF(A111>$B$39, 1/((1+$B$100)^(A111-$B$39)),VLOOKUP(A111,Defaults!$A$130:$B$188, 2,FALSE))),"-")) -> - | D111: =IFERROR(IF(A111="","",IF(A111<=2020, C111, C111*VLOOKUP(A111,Defaults!$A$285:$B$335, 2,FALSE))),"-") -> -
A112: - | B112: - | C112: =IF($B$99="NO",B112,IFERROR(B112*(IF(A112>$B$39, 1/((1+$B$100)^(A112-$B$39)),VLOOKUP(A112,Defaults!$A$130:$B$188, 2,FALSE))),"-")) -> - | D112: =IFERROR(IF(A112="","",IF(A112<=2020, C112, C112*VLOOKUP(A112,Defaults!$A$285:$B$335, 2,FALSE))),"-") -> -
A113: - | B113: - | C113: =IF($B$99="NO",B113,IFERROR(B113*(IF(A113>$B$39, 1/((1+$B$100)^(A113-$B$39)),VLOOKUP(A113,Defaults!$A$130:$B$188, 2,FALSE))),"-")) -> - | D113: =IFERROR(IF(A113="","",IF(A113<=2020, C113, C113*VLOOKUP(A113,Defaults!$A$285:$B$335, 2,FALSE))),"-") -> -
A114: - | B114: - | C114: =IF($B$99="NO",B114,IFERROR(B114*(IF(A114>$B$39, 1/((1+$B$100)^(A114-$B$39)),VLOOKUP(A114,Defaults!$A$130:$B$188, 2,FALSE))),"-")) -> - | D114: =IFERROR(IF(A114="","",IF(A114<=2020, C114, C114*VLOOKUP(A114,Defaults!$A$285:$B$335, 2,FALSE))),"-") -> -
A115: - | B115: - | C115: =IF($B$99="NO",B115,IFERROR(B115*(IF(A115>$B$39, 1/((1+$B$100)^(A115-$B$39)),VLOOKUP(A115,Defaults!$A$130:$B$188, 2,FALSE))),"-")) -> - | D115: =IFERROR(IF(A115="","",IF(A115<=2020, C115, C115*VLOOKUP(A115,Defaults!$A$285:$B$335, 2,FALSE))),"-") -> -
A116: -
A117: Table 11. Capital Costs
A118: Year | B118: Costs | C118: Real Costs | D118: Discounted Costs
A119: =IFERROR(IF($B$33="-", "N/A", $B$33),"N/A") -> 2026 | B119: 293836.3714 | C119: =IF($B$99="NO",B119,IFERROR(B119*(IF(A119>$B$39, 1/(1+$B$100)^(A119-$B$39),VLOOKUP(A119,Defaults!$A$130:$B$188, 2,FALSE))),"-")) -> 293836.3714 | D119: =IFERROR(IF(A119="N/A","-",C119*VLOOKUP(A119,Defaults!$A$285:$B$335, 2,FALSE)),"-") -> 209501.2718
A120: =IFERROR(IF(A119="N/A","N/A",IF(A119>=$B$34,"N/A",A119+1)),"") -> 2027 | B120: 587672.7428 | C120: =IF($B$99="NO",B120,IFERROR(B120*(IF(A120>$B$39, 1/(1+$B$100)^(A120-$B$39),VLOOKUP(A120,Defaults!$A$130:$B$188, 2,FALSE))),"-")) -> 587672.7428 | D120: =IFERROR(IF(A120="N/A","-",C120*VLOOKUP(A120,Defaults!$A$285:$B$335, 2,FALSE)),"-") -> 391591.1623
A121: =IF(A120="N/A","N/A",IF(A120>=$B$34,"N/A",A120+1)) -> 2028 | B121: 587672.7428 | C121: =IF($B$99="NO",B121,IFERROR(B121*(IF(A121>$B$39, 1/(1+$B$100)^(A121-$B$39),VLOOKUP(A121,Defaults!$A$130:$B$188, 2,FALSE))),"-")) -> 587672.7428 | D121: =IFERROR(IF(A121="N/A","-",C121*VLOOKUP(A121,Defaults!$A$285:$B$335, 2,FALSE)),"-") -> 365973.0489
A122: 2029 | B122: 254658.1886 | C122: =IF($B$99="NO",B122,IFERROR(B122*(IF(A122>$B$39, 1/(1+$B$100)^(A122-$B$39),VLOOKUP(A122,Defaults!$A$130:$B$188, 2,FALSE))),"-")) -> 254658.1886 | D122: =IFERROR(IF(A122="N/A","-",C122*VLOOKUP(A122,Defaults!$A$285:$B$335, 2,FALSE)),"-") -> 148213.3843
A123: N/A | B123: - | C123: =IF($B$99="NO",B123,IFERROR(B123*(IF(A123>$B$39, 1/(1+$B$100)^(A123-$B$39),VLOOKUP(A123,Defaults!$A$130:$B$188, 2,FALSE))),"-")) -> - | D123: =IFERROR(IF(A123="N/A","-",C123*VLOOKUP(A123,Defaults!$A$285:$B$335, 2,FALSE)),"-") -> -
A124: N/A | B124: - | C124: =IF($B$99="NO",B124,IFERROR(B124*(IF(A124>$B$39, 1/(1+$B$100)^(A124-$B$39),VLOOKUP(A124,Defaults!$A$130:$B$188, 2,FALSE))),"-")) -> - | D124: =IFERROR(IF(A124="N/A","-",C124*VLOOKUP(A124,Defaults!$A$285:$B$335, 2,FALSE)),"-") -> -
A125: N/A | B125: - | C125: =IF($B$99="NO",B125,IFERROR(B125*(IF(A125>$B$39, 1/(1+$B$100)^(A125-$B$39),VLOOKUP(A125,Defaults!$A$130:$B$188, 2,FALSE))),"-")) -> - | D125: =IFERROR(IF(A125="N/A","-",C125*VLOOKUP(A125,Defaults!$A$285:$B$335, 2,FALSE)),"-") -> -
A126: N/A | B126: - | C126: =IF($B$99="NO",B126,IFERROR(B126*(IF(A126>$B$39, 1/(1+$B$100)^(A126-$B$39),VLOOKUP(A126,Defaults!$A$130:$B$188, 2,FALSE))),"-")) -> - | D126: =IFERROR(IF(A126="N/A","-",C126*VLOOKUP(A126,Defaults!$A$285:$B$335, 2,FALSE)),"-") -> -
A127: N/A | B127: - | C127: =IF($B$99="NO",B127,IFERROR(B127*(IF(A127>$B$39, 1/(1+$B$100)^(A127-$B$39),VLOOKUP(A127,Defaults!$A$130:$B$188, 2,FALSE))),"-")) -> - | D127: =IFERROR(IF(A127="N/A","-",C127*VLOOKUP(A127,Defaults!$A$285:$B$335, 2,FALSE)),"-") -> -
A128: N/A | B128: - | C128: =IF($B$99="NO",B128,IFERROR(B128*(IF(A128>$B$39, 1/(1+$B$100)^(A128-$B$39),VLOOKUP(A128,Defaults!$A$130:$B$188, 2,FALSE))),"-")) -> - | D128: =IFERROR(IF(A128="N/A","-",C128*VLOOKUP(A128,Defaults!$A$285:$B$335, 2,FALSE)),"-") -> -
A129: N/A | B129: - | C129: =IF($B$99="NO",B129,IFERROR(B129*(IF(A129>$B$39, 1/(1+$B$100)^(A129-$B$39),VLOOKUP(A129,Defaults!$A$130:$B$188, 2,FALSE))),"-")) -> - | D129: =IFERROR(IF(A129="N/A","-",C129*VLOOKUP(A129,Defaults!$A$285:$B$335, 2,FALSE)),"-") -> -
A130: -
A131: Table 12. Capital Cost Summary
A132: Total Capital Costs: | B132: =SUM(B105:B115)+SUM(B119:B129) -> 1958909.143
A133: Total Real Capital Costs: | B133: =SUM(C105:C115)+SUM(C119:C123) -> 1958909.143
A134: Total Discounted Capital Costs: | B134: =SUM(D105:D115)+SUM(D119:D129) -> 1303127.289
A135: -
A136: Table 13. Residual Value
A137: Share of Capital Costs | B137: Asset Life (Years) | C137: Explanation and Source
A138: 0 | B138: 100 | C138: Percentage of Costs associated with Right-of-way. Assumed life based on MnDOT BCA Guidance
A139: 0.75 | B139: 60 | C139: Percentage of Costs associated with Bridge Construction. Assumed life based on MnDOT BCA Guidance
A140: 0.25 | B140: 40 | C140: Percentage of Costs associated with Roadway Construction. Assumed life based on MnDOT BCA Guidance (Grading Drainage/Sub-base and Base/Roadway) based on midpoint of cost breakdown.
A141: 0 | B141: 0 | C141: -
A142: =SUM(A138:A141) -> 1 | B142: Summation | C142: N/A
A143: Note: If there are multiple components of the project for this specific bridge that different asset lives, enter the share of the project costs associated with the different project components and their asset life.
A144: Note: The Summation cell should be 100%.
A145: -
A146: Operating and Maintenance Costs (O&M)
A147: Table 14. Operating and Maintenance Costs Assumptions
A148: Which method would you like to use to enter O&M costs? | B148: Manual Entry
A149: Year of O&M costs Dollars | B149: 2021
A150: Note: If you have O&M costs in the construction period you will need to use the manual entry option to enter the O&M costs in the construction period.
A151: Note: The operating and maintenance costs in the baseline should be entered to be consistent with your estimate of closure. If the bridge is closed in a future year (Table 25), there should not be maintenance costs for that year and thereafter.
A152: Note: For frequency calculation option, all costs should be entered as year of expenditure. The tool applies inflation and discounting factors automatically.
A153: -
A154: Table 15. Annual O&M Calculation Input
A155: Category | B155: Value
A156: Annual O&M Costs in the No Build Scenario | B156: -
A157: Annual O&M Costs Real Growth Rate in the No Build Scenario | B157: 0
A158: Annual O&M Costs in the Build Scenario | B158: -
A159: Annual O&M Costs Real Growth Rate in the Build Scenario | B159: 0
A160: Note: The maintenance real growth rate represents the real cost increases year over year (e.g., from increased deterioration of the asset). It should not include inflation adjustments.
A161: -
A162: Table 16a. Intermittent O&M Calculation Input
A163: Category | B163: Value
A164: Initial year | B164: -
A165: Last Year | B165: -
A166: Occurs every _____ Years; set to 30 if occurs only once | B166: 1
A167: Annual O&M Costs in the No Build Scenario | B167: -
A168: Annual O&M Costs Real Growth Rate in the Build Scenario | B168: -
A169: -
A170: Table 16b. Intermittent O&M Calculation Input
A171: Category | B171: Value
A172: Initial year | B172: -
A173: Last Year | B173: -
A174: Occurs every _____ Years; set to 30 if occurs only once | B174: 1
A175: Annual O&M Costs in the No Build Scenario | B175: -
A176: Annual O&M Costs Real Growth Rate in the Build Scenario | B176: -
A177: -
A178: Table 16c. Intermittent O&M Calculation Input
A179: Category | B179: Value
A180: Initial year | B180: -
A181: Last Year | B181: -
A182: Occurs every _____ Years; set to 30 if occurs only once | B182: 1
A183: Annual O&M Costs in the No Build Scenario | B183: -
A184: Annual O&M Costs Real Growth Rate in the Build Scenario | B184: -
A185: -
A186: Table 16d. Intermittent O&M Calculation Input
A187: Category | B187: Value
A188: Initial year | B188: -
A189: Last Year | B189: -
A190: Occurs every _____ Years; set to 30 if occurs only once | B190: 1
A191: Annual O&M Costs in the No Build Scenario | B191: -
A192: Annual O&M Costs Real Growth Rate in the Build Scenario | B192: -
A193: Note: The "Occurs every _____ " field in Tables 16a through 16d must be greater than or equal to 1, even if you are not adding an additional recurring maintenance cost.
A194: -
A195: Note: Manual O&M cost values should be entered in the year of dollar entered in Table 14.
A196: Table 17. Manual O&M Cost Entry
A197: Calendar Year | B197: Analysis Year | C197: No Build Annual Cost | D197: Build Annual Cost | E197: O&M Cost Difference Discounted
A198: =IFERROR(IF(B32="Required","N/A",B32),"N/A") -> 2023 | B198: =IFERROR(IF(A198=$B$35,1,IF(A198>$B$35,A198-$B$35+1,IF(A198<$B$35,A198-$B$35+1,"N/A"))),"N/A") -> -6 | D198: - | E198: =IFERROR((C198-D198)*VLOOKUP($B$149,Defaults!$A$285:$B$335, 2,FALSE)*VLOOKUP(A198,Defaults!$A$285:$B$335,2,FALSE),0) -> 0
A199: =IF(A198="N/A","N/A",IF(A198>=$B$35+$B$36-1,"N/A",A198+1)) -> 2024 | B199: -5 | C199: 1000 | D199: - | E199: =IFERROR((C199-D199)*VLOOKUP($B$149,Defaults!$A$285:$B$335, 2,FALSE)*VLOOKUP(A199,Defaults!$A$285:$B$335,2,FALSE),0) -> 0
A200: 2025 | B200: -4 | D200: - | E200: =IFERROR((C200-D200)*VLOOKUP($B$149,Defaults!$A$285:$B$335, 2,FALSE)*VLOOKUP(A200,Defaults!$A$285:$B$335,2,FALSE),0) -> 0
... 495 more rows

Sheet I35 Box Culvert
A1: Bridge and Project Overview
A2: ID of bridge, description of improvement, project timeline, traffic volume
A3: Add New Bridge (press Ctrl + Shift + B)
A4: Add Sensitivity Analysis for Current Bridge (press Ctrl + Shift + S)
A5: Delete this Bridge (press Ctrl + Shift + D)
A6: Note: Only delete bridges using this command/button. Deleting bridge tabs through right click will result in (fixable) errors on the Results tab.
A7: Change Bridge Name (press Ctrl + Shift + N)
A8: -
A9: Table 1. Bridge Variables
A10: Bridge Variables | B10: Bridge Values
A11: State | B11: Oklahoma
A12: County | B12: Oklahoma
A13: Structure Number | B13: 142390000000000
A14: Inventory Route | B14: =VLOOKUP($C$80,'NBI Data'!$A$2:$AA$22875,COLUMN('NBI Data'!$D$2:$D$22875),FALSE) -> 00035
A15: Feature Intersected | B15: =VLOOKUP($C$80,'NBI Data'!$A$2:$AA$22875,COLUMN('NBI Data'!$E$2:$E$22875),FALSE) -> 'CREEK'
A16: Facility Carried | B16: =VLOOKUP($C$80,'NBI Data'!$A$2:$AA$22875,COLUMN('NBI Data'!$F$2:$F$22875),FALSE) -> 'I-35'
A17: Latitude | B17: =LEFT(VLOOKUP($C$80,'NBI Data'!$A$2:$AA$22875,COLUMN('NBI Data'!$G$2:$G$22875),FALSE), 2) & CHAR(176) & " " & MID(VLOOKUP($C$80,'NBI Data'!$A$2:$AA$22875,COLUMN('NBI Data'!$G$2:$G$22875),FALSE), 3, 2) &"'" & " " & MID(VLOOKUP($C$80,'NBI Data'!$A$2:$AA$22875,COLUMN('NBI Data'!$G$2:$G$22875),FALSE), 5, 2) &"."& MID(VLOOKUP($C$80,'NBI Data'!$A$2:$AA$22875,COLUMN('NBI Data'!$G$2:$G$22875),FALSE), 7, 2) & CHAR(34) -> 35° 27' 09.04"
A18: Longitude | B18: ="-" & MID(VLOOKUP($C$80,'NBI Data'!$A$2:$AA$22875,COLUMN('NBI Data'!$H$2:$H$22875),FALSE), 2, 2) & CHAR(176) & " " & MID(VLOOKUP($C$80,'NBI Data'!$A$2:$AA$22875,COLUMN('NBI Data'!$H$2:$H$22875),FALSE), 4, 2) &"'" & " " & MID(VLOOKUP($C$80,'NBI Data'!$A$2:$AA$22875,COLUMN('NBI Data'!$H$2:$H$22875),FALSE), 6, 2) &"."& MID(VLOOKUP($C$80,'NBI Data'!$A$2:$AA$22875,COLUMN('NBI Data'!$H$2:$H$22875),FALSE), 8, 2) & CHAR(34) -> -97° 29' 22.15"
A19: Bridge Length (mi) | B19: =VLOOKUP($C$80,'NBI Data'!$A$2:$AA$22875,COLUMN('NBI Data'!$AA$2:$AA$22875),FALSE)/1609 -> 0.004288377874
A20: Bypass, Detour Length (mi) | B20: =VLOOKUP($C$80,'NBI Data'!$A$2:$AA$22875,COLUMN('NBI Data'!$I$2:$I$22875),FALSE)*0.621371 -> 0
A21: Owner | B21: =VLOOKUP($C$80,'NBI Data'!$A$2:$AA$22875,COLUMN('NBI Data'!$J$2:$J$22875),FALSE) -> 01
A22: Functional Class, Rural/Urban | B22: =VLOOKUP($C$80,'NBI Data'!$A$2:$AA$22875,COLUMN('NBI Data'!$K$2:$K$22875),FALSE) -> 11
A23: Bridge Road Type | B23: =VLOOKUP(B22,Defaults!A354:$D$366, 2, FALSE) -> Urban - Principal Arterial - Interstate
A24: Year Built | B24: =VLOOKUP($C$80,'NBI Data'!$A$2:$AA$22875,COLUMN('NBI Data'!$L$2:$L$22875),FALSE) -> 1959
A25: Year Reconstructed | B25: =VLOOKUP($C$80,'NBI Data'!$A$2:$AA$22875,COLUMN('NBI Data'!$Q$2:$Q$22875),FALSE) -> 0
A26: Lanes on the Structure | B26: =VLOOKUP($C$80,'NBI Data'!$A$2:$AA$22875,COLUMN('NBI Data'!$M$2:$M$22875),FALSE) -> 8
A27: Note: Some bridges have the same structure number. Use the state and county drop downs to identify your bridge.
A28: -
A29: Project Description:
A30: Table 2. Project Timeline
A31: Timeline Variables | B31: Timeline Values
A32: Current Year | B32: 2023
A33: First Year of Construction Costs | B33: 2026
A34: Last Year of Construction Costs | B34: 2029
A35: Project Opens (Start of Benefits) | B35: 2030
A36: Years of Benefits for Analysis | B36: 20
A37: First Year of Period of Analysis | B37: =IF(B35="Required","-", B35) -> 2030
A38: Last Year of Period of Analysis | B38: =IFERROR(B35+B36-1, "-") -> 2049
A39: Discount Year | B39: =Defaults!A285 -> 2021
A40: Base Year of NBI | B40: 2023
A41: Note: The tool cannot handle partial years, or pro-rata benefits or costs. Round up or down to the nearest year for construction start, construction end, and the start of benefits.
A42: Note: Enter a value between 20 to 30 for the Years of Benefits for Analysis, appropriate to the project as defined by US DOT BCA Guidance.
A43: -
A44: Table 3. Average Annual Daily Traffic (AADT)
A45: Scenario and Vehicle Type | B45: NBI Year of AADT | C45: NBI Year of Future AADT | D45: Forecast using NBI Growth Rate | E45: Forecast using NBI Growth Rate2 | F45: Project Opens | G45: Last Year | H45: Explanation and Source
A46: Year | B46: =VLOOKUP($C$80,'NBI Data'!$A$2:$AA$22875,COLUMN('NBI Data'!$O$2:$O$22875),FALSE) -> 2020 | C46: =VLOOKUP($C$80,'NBI Data'!$A$2:$AA$22875,COLUMN('NBI Data'!$T$2:$T$22875),FALSE) -> 2040 | D46: =IF(B35="Required","-",B35) -> 2030 | E46: =B38 -> 2049 | F46: =IF(B35="Required", "-",B35) -> 2030 | G46: =B38 -> 2049 | H46: N/A
A47: No Build - Passenger AADT | B47: =VLOOKUP($C$80,'NBI Data'!$A$2:$AA$22875,COLUMN('NBI Data'!$N$2:$N$22875),FALSE)*(1-VLOOKUP($C$80,'NBI Data'!$A$2:$AA$22875,COLUMN('NBI Data'!$R$2:$R$22875),FALSE)/100) -> 120384 | C47: =VLOOKUP($C$80,'NBI Data'!$A$2:$AA$22875,COLUMN('NBI Data'!$S$2:$S$22875),FALSE)*(1-VLOOKUP($C$80,'NBI Data'!$A$2:$AA$22875,COLUMN('NBI Data'!$R$2:$R$22875),FALSE)/100) -> 192614.4 | D47: =ROUND(B47*((1+B59)^(D$46-$B$46)),0) -> 152275 | E47: =ROUND(C47*((1+B59)^(E$46-$C$46)),0) -> 237981 | F47: 152257 | G47: 237963 | H47: Adjusted for EMBARK route 24 (18 peak trips per day)
A48: No Build - Truck AADT | B48: =VLOOKUP($C$80,'NBI Data'!$A$2:$AA$22875,COLUMN('NBI Data'!$R$2:$R$22875),FALSE)/100*VLOOKUP($C$80,'NBI Data'!$A$2:$AA$22875,COLUMN('NBI Data'!$N$2:$N$22875),FALSE) -> 16416 | C48: =VLOOKUP($C$80,'NBI Data'!$A$2:$AA$22875,COLUMN('NBI Data'!$R$2:$R$22875),FALSE)/100*VLOOKUP($C$80,'NBI Data'!$A$2:$AA$22875,COLUMN('NBI Data'!$S$2:$S$22875),FALSE) -> 26265.6 | D48: =ROUND(B48*((1+B59)^(D$46-$B$46)),0) -> 20765 | E48: =ROUND(C48*((1+B59)^(E$46-$C$46)),0) -> 32452 | F48: 20765 | G48: 32452 | H48: -
A49: No Build - Bus AADT | B49: N/A | C49: N/A | D49: N/A | E49: N/A | F49: 18 | G49: 18 | H49: Adjusted for EMBARK route 24 (18 peak trips per day)
A50: Build - Passenger AADT | B50: =B47 -> 120384 | C50: =C47 -> 192614.4 | D50: =ROUND(B50*((1+B59)^(D$46-$B$46)),0) -> 152275 | E50: =ROUND(C50*((1+B59)^(E$46-$C$46)),0) -> 237981 | F50: 152257 | G50: 237963 | H50: Adjusted for EMBARK route 24 (18 peak trips per day)
A51: Build - Truck AADT | B51: =B48 -> 16416 | C51: =C48 -> 26265.6 | D51: =ROUND(B51*((1+B59)^(D$46-$B$46)),0) -> 20765 | E51: =ROUND(C51*((1+B59)^(E$46-$C$46)),0) -> 32452 | F51: 20765 | G51: 32452 | H51: -
A52: Build - Bus AADT | B52: N/A | C52: N/A | D52: N/A | E52: N/A | F52: 18 | G52: 18 | H52: Adjusted for EMBARK route 24 (18 peak trips per day)
A53: =HYPERLINK("#A542","Note: AADT can be entered manually in Table 52 and Table 53 below.") -> Note: AADT can be entered manually in Table 52 and Table 53 below.
A54: Note: Here and elsewhere in the tool it is critical that you enter at least some value in the required cells, e.g., 0, rather than "-", "N/A" or leaving it blank.
A55: Note: NBI AADT values are added for reference in Table 3. Users must enter AADT values in Columns G, H and I in Table 3.
A56: -
A57: Note: Table 4 is not a user input. Do not adjust Table 4.
A58: Table 4. NBI's Calculated Average Annual Daily Traffic (AADT) Growth Rate
A59: =CONCATENATE("The NBI Calculated Annual Growth Rate", " ", B46, "-",C46, " (NBI)") -> The NBI Calculated Annual Growth Rate 2020-2040 (NBI) | B59: =(C47/B47)^(1/(C$46-B$46))-1 -> 0.02377848652
A60: -
A61: Table 5. Detour Road Type
A62: Detour Road Type | B62: Urban - Principal Arterial - Interstate
A63: Detour Road Type - Simple | B63: =IF(B62="Required", "-",IF(ISNUMBER(SEARCH("Urban",B62)), "Urban", "Rural")) -> Urban
A64: -
A65: Note: Detour length should represent the Net detour: Detour length minus the original route length.
A66: Table 6. Detour and Bridge Length Information
A67: Detour Details | B67: Reference | C67: User Value | D67: Explanation and Source
A68: Net Detour Length, For Vehicles (mi) (NBI) | B68: =ROUND(VLOOKUP($C$80,'NBI Data'!$A$2:$AA$22875,COLUMN('NBI Data'!$I$2:$I$22875),FALSE)*0.621371,1) -> 0 | C68: 7.7 | D68: Measured the distance of a N/S through trip having to use I-240 and I-44 (an all interstate alternate route)
A69: Detour Average Speed, for Vehicles (mph) (FHWA VHT) | B69: =ROUND(VLOOKUP(B62,Defaults!B354:F366,2, FALSE),1) -> 60 | C69: 63.5 | D69: Google maps states the 18 mile detour would take 17 minutes without traffic.
A70: Net Detour Length, For Cycling/ Pedestrian (mi) (NBI) | B70: =ROUND(VLOOKUP($C$80,'NBI Data'!$A$2:$AA$22875,COLUMN('NBI Data'!$I$2:$I$22875),FALSE)*0.621371, 1) -> 0 | C70: 0 | D70: -
A71: Detour Average Travel Time (min) | B71: =B68/B69*60 -> 0 | C71: =C68/C69*60 -> 7.275590551 | D71: N/A
A72: Bridge Length (mi) | B72: =ROUND(B19,2) -> 0 | C72: 0 | D72: -
A73: Note: Google or HPMS data are preferred for identifying average speed on the detour route. You can also use the HERS/VHT speed values using the Detour Road Type dropdown below.
A74: Note: Bridge length in the NBI does not include the approach length. Include approach length if relevant for your project.
A75: =HYPERLINK("https://www.google.com/maps", "Use Google Maps to calculate detour route length and average speed, as appropriate.") -> Use Google Maps to calculate detour route length and average speed, as appropriate.
A76: =HYPERLINK("https://www.fhwa.dot.gov/policyinformation/hpms.cfm", "Use the Highway Performance Monitoring System (HPMS) data to calculate detour route length and average speed, as appropriate.") -> Use the Highway Performance Monitoring System (HPMS) data to calculate detour route length and average speed, as appropriate.
A77: -
A78: Note: These reference cells are marked to avoid accidental deletion.
A79: Table 7. Reference Table
A80: Reference Cells | B80: =CONCATENATE(B11,B12) -> OklahomaOklahoma | C80: =CONCATENATE(VLOOKUP($B$11,NBI_Dropdown!$B$1:$D$56,3,FALSE),$B$13) -> 406142390000000000
A81: -
A82: Table 8. Travel Assumptions
A83: Parameters | B83: Reference | C83: User Value | D83: Explanation and Source
A84: Bridge Average Speed (FHWA) | B84: =_xlfn.IFNA(VLOOKUP(B23,Defaults!B354:C366,2, FALSE), "N/A") -> 60 | C84: 60 | D84: -
A85: Average Car Occupancy | B85: =Defaults!B49 -> 1.67 | C85: 1.67 | D85: -
A86: Share of Long-Distance Personal Travel | B86: 0 | C86: 0 | D86: -
A87: Value of Time - Long-Distance Personal Travel | B87: =Defaults!B32 -> 23.8 | C87: 23.8 | D87: -
A88: Share of Business Travel | B88: 0.118 | C88: 0.118 | D88: -
A89: Value of Travel Time - Business | B89: =Defaults!B30 -> 31.9 | C89: 31.9 | D89: -
A90: Value of Travel Time - Personal | B90: =Defaults!B29 -> 17 | C90: 17 | D90: -
A91: Value of Travel Time - All Purposes | B91: =ROUND(B86*B87+B88*B89+(1-B86-B88)*B90,1) -> 18.8 | C91: =IFERROR(ROUND(C86*C87+C88*C89+(1-C86-C88)*C90,1),"-") -> 18.8 | D91: -
A92: Walking, Cycling, Waiting, Standing, and Transfer Time | B92: =Defaults!B33 -> 34 | C92: 34 | D92: -
A93: Truck Driver | B93: =Defaults!B36 -> 32.4 | C93: 32.4 | D93: -
A94: Bus Driver | B94: =Defaults!B37 -> 35 | C94: 35 | D94: -
A95: Average Bus Occupancy | B95: 0 | C95: 5 | D95: EMBARK Ridership report route 24 (2023 to date)
A96: -
A97: Capital Cost and Residual Value
A98: Table 9. Expenditure Dollars Option
A99: Are costs entered in year of expenditure dollars (not adjusted for inflation)? | B99: NO
A100: Enter future inflation rate for capital costs. | B100: 0
A101: Note: Capital costs can be entered in year of expenditure dollars or in real dollars. The tool applies inflation and discounting factors automatically if entered as year of expenditure dollars.
A102: -
A103: Table 10. Already Incurred Costs
A104: Year | B104: Costs | C104: Real Costs | D104: Discounted Costs
A105: 2023 | B105: 8395.324898 | C105: =IF($B$99="NO",B105,IFERROR(B105*(IF(A105>$B$39, 1/((1+$B$100)^(A105-$B$39)),VLOOKUP(A105,Defaults!$A$130:$B$188, 2,FALSE))),"-")) -> 8395.324898 | D105: =IFERROR(IF(A105="","",IF(A105<=2020, C105, C105*VLOOKUP(A105,Defaults!$A$285:$B$335, 2,FALSE))),"-") -> 7332.801902
A106: 2024 | B106: 16790.6498 | C106: =IF($B$99="NO",B106,IFERROR(B106*(IF(A106>$B$39, 1/((1+$B$100)^(A106-$B$39)),VLOOKUP(A106,Defaults!$A$130:$B$188, 2,FALSE))),"-")) -> 16790.6498 | D106: =IFERROR(IF(A106="","",IF(A106<=2020, C106, C106*VLOOKUP(A106,Defaults!$A$285:$B$335, 2,FALSE))),"-") -> 13706.17178
A107: 2025 | B107: 25185.97469 | C107: =IF($B$99="NO",B107,IFERROR(B107*(IF(A107>$B$39, 1/((1+$B$100)^(A107-$B$39)),VLOOKUP(A107,Defaults!$A$130:$B$188, 2,FALSE))),"-")) -> 25185.97469 | D107: =IFERROR(IF(A107="","",IF(A107<=2020, C107, C107*VLOOKUP(A107,Defaults!$A$285:$B$335, 2,FALSE))),"-") -> 19214.2595
A108: - | B108: - | C108: =IF($B$99="NO",B108,IFERROR(B108*(IF(A108>$B$39, 1/((1+$B$100)^(A108-$B$39)),VLOOKUP(A108,Defaults!$A$130:$B$188, 2,FALSE))),"-")) -> - | D108: =IFERROR(IF(A108="","",IF(A108<=2020, C108, C108*VLOOKUP(A108,Defaults!$A$285:$B$335, 2,FALSE))),"-") -> -
A109: - | B109: - | C109: =IF($B$99="NO",B109,IFERROR(B109*(IF(A109>$B$39, 1/((1+$B$100)^(A109-$B$39)),VLOOKUP(A109,Defaults!$A$130:$B$188, 2,FALSE))),"-")) -> - | D109: =IFERROR(IF(A109="","",IF(A109<=2020, C109, C109*VLOOKUP(A109,Defaults!$A$285:$B$335, 2,FALSE))),"-") -> -
A110: - | B110: - | C110: =IF($B$99="NO",B110,IFERROR(B110*(IF(A110>$B$39, 1/((1+$B$100)^(A110-$B$39)),VLOOKUP(A110,Defaults!$A$130:$B$188, 2,FALSE))),"-")) -> - | D110: =IFERROR(IF(A110="","",IF(A110<=2020, C110, C110*VLOOKUP(A110,Defaults!$A$285:$B$335, 2,FALSE))),"-") -> -
A111: - | B111: - | C111: =IF($B$99="NO",B111,IFERROR(B111*(IF(A111>$B$39, 1/((1+$B$100)^(A111-$B$39)),VLOOKUP(A111,Defaults!$A$130:$B$188, 2,FALSE))),"-")) -> - | D111: =IFERROR(IF(A111="","",IF(A111<=2020, C111, C111*VLOOKUP(A111,Defaults!$A$285:$B$335, 2,FALSE))),"-") -> -
A112: - | B112: - | C112: =IF($B$99="NO",B112,IFERROR(B112*(IF(A112>$B$39, 1/((1+$B$100)^(A112-$B$39)),VLOOKUP(A112,Defaults!$A$130:$B$188, 2,FALSE))),"-")) -> - | D112: =IFERROR(IF(A112="","",IF(A112<=2020, C112, C112*VLOOKUP(A112,Defaults!$A$285:$B$335, 2,FALSE))),"-") -> -
A113: - | B113: - | C113: =IF($B$99="NO",B113,IFERROR(B113*(IF(A113>$B$39, 1/((1+$B$100)^(A113-$B$39)),VLOOKUP(A113,Defaults!$A$130:$B$188, 2,FALSE))),"-")) -> - | D113: =IFERROR(IF(A113="","",IF(A113<=2020, C113, C113*VLOOKUP(A113,Defaults!$A$285:$B$335, 2,FALSE))),"-") -> -
A114: - | B114: - | C114: =IF($B$99="NO",B114,IFERROR(B114*(IF(A114>$B$39, 1/((1+$B$100)^(A114-$B$39)),VLOOKUP(A114,Defaults!$A$130:$B$188, 2,FALSE))),"-")) -> - | D114: =IFERROR(IF(A114="","",IF(A114<=2020, C114, C114*VLOOKUP(A114,Defaults!$A$285:$B$335, 2,FALSE))),"-") -> -
A115: - | B115: - | C115: =IF($B$99="NO",B115,IFERROR(B115*(IF(A115>$B$39, 1/((1+$B$100)^(A115-$B$39)),VLOOKUP(A115,Defaults!$A$130:$B$188, 2,FALSE))),"-")) -> - | D115: =IFERROR(IF(A115="","",IF(A115<=2020, C115, C115*VLOOKUP(A115,Defaults!$A$285:$B$335, 2,FALSE))),"-") -> -
A116: -
A117: Table 11. Capital Costs
A118: Year | B118: Costs | C118: Real Costs | D118: Discounted Costs
A119: =IFERROR(IF($B$33="-", "N/A", $B$33),"N/A") -> 2026 | B119: 62964.93673 | C119: =IF($B$99="NO",B119,IFERROR(B119*(IF(A119>$B$39, 1/(1+$B$100)^(A119-$B$39),VLOOKUP(A119,Defaults!$A$130:$B$188, 2,FALSE))),"-")) -> 62964.93673 | D119: =IFERROR(IF(A119="N/A","-",C119*VLOOKUP(A119,Defaults!$A$285:$B$335, 2,FALSE)),"-") -> 44893.12968
A120: =IFERROR(IF(A119="N/A","N/A",IF(A119>=$B$34,"N/A",A119+1)),"") -> 2027 | B120: 125929.8735 | C120: =IF($B$99="NO",B120,IFERROR(B120*(IF(A120>$B$39, 1/(1+$B$100)^(A120-$B$39),VLOOKUP(A120,Defaults!$A$130:$B$188, 2,FALSE))),"-")) -> 125929.8735 | D120: =IFERROR(IF(A120="N/A","-",C120*VLOOKUP(A120,Defaults!$A$285:$B$335, 2,FALSE)),"-") -> 83912.39193
A121: =IF(A120="N/A","N/A",IF(A120>=$B$34,"N/A",A120+1)) -> 2028 | B121: 125929.8735 | C121: =IF($B$99="NO",B121,IFERROR(B121*(IF(A121>$B$39, 1/(1+$B$100)^(A121-$B$39),VLOOKUP(A121,Defaults!$A$130:$B$188, 2,FALSE))),"-")) -> 125929.8735 | D121: =IFERROR(IF(A121="N/A","-",C121*VLOOKUP(A121,Defaults!$A$285:$B$335, 2,FALSE)),"-") -> 78422.79619
A122: 2029 | B122: 54569.61183 | C122: =IF($B$99="NO",B122,IFERROR(B122*(IF(A122>$B$39, 1/(1+$B$100)^(A122-$B$39),VLOOKUP(A122,Defaults!$A$130:$B$188, 2,FALSE))),"-")) -> 54569.61183 | D122: =IFERROR(IF(A122="N/A","-",C122*VLOOKUP(A122,Defaults!$A$285:$B$335, 2,FALSE)),"-") -> 31760.01092
A123: N/A | B123: - | C123: =IF($B$99="NO",B123,IFERROR(B123*(IF(A123>$B$39, 1/(1+$B$100)^(A123-$B$39),VLOOKUP(A123,Defaults!$A$130:$B$188, 2,FALSE))),"-")) -> - | D123: =IFERROR(IF(A123="N/A","-",C123*VLOOKUP(A123,Defaults!$A$285:$B$335, 2,FALSE)),"-") -> -
A124: N/A | B124: - | C124: =IF($B$99="NO",B124,IFERROR(B124*(IF(A124>$B$39, 1/(1+$B$100)^(A124-$B$39),VLOOKUP(A124,Defaults!$A$130:$B$188, 2,FALSE))),"-")) -> - | D124: =IFERROR(IF(A124="N/A","-",C124*VLOOKUP(A124,Defaults!$A$285:$B$335, 2,FALSE)),"-") -> -
A125: N/A | B125: - | C125: =IF($B$99="NO",B125,IFERROR(B125*(IF(A125>$B$39, 1/(1+$B$100)^(A125-$B$39),VLOOKUP(A125,Defaults!$A$130:$B$188, 2,FALSE))),"-")) -> - | D125: =IFERROR(IF(A125="N/A","-",C125*VLOOKUP(A125,Defaults!$A$285:$B$335, 2,FALSE)),"-") -> -
A126: N/A | B126: - | C126: =IF($B$99="NO",B126,IFERROR(B126*(IF(A126>$B$39, 1/(1+$B$100)^(A126-$B$39),VLOOKUP(A126,Defaults!$A$130:$B$188, 2,FALSE))),"-")) -> - | D126: =IFERROR(IF(A126="N/A","-",C126*VLOOKUP(A126,Defaults!$A$285:$B$335, 2,FALSE)),"-") -> -
A127: N/A | B127: - | C127: =IF($B$99="NO",B127,IFERROR(B127*(IF(A127>$B$39, 1/(1+$B$100)^(A127-$B$39),VLOOKUP(A127,Defaults!$A$130:$B$188, 2,FALSE))),"-")) -> - | D127: =IFERROR(IF(A127="N/A","-",C127*VLOOKUP(A127,Defaults!$A$285:$B$335, 2,FALSE)),"-") -> -
A128: N/A | B128: - | C128: =IF($B$99="NO",B128,IFERROR(B128*(IF(A128>$B$39, 1/(1+$B$100)^(A128-$B$39),VLOOKUP(A128,Defaults!$A$130:$B$188, 2,FALSE))),"-")) -> - | D128: =IFERROR(IF(A128="N/A","-",C128*VLOOKUP(A128,Defaults!$A$285:$B$335, 2,FALSE)),"-") -> -
A129: N/A | B129: - | C129: =IF($B$99="NO",B129,IFERROR(B129*(IF(A129>$B$39, 1/(1+$B$100)^(A129-$B$39),VLOOKUP(A129,Defaults!$A$130:$B$188, 2,FALSE))),"-")) -> - | D129: =IFERROR(IF(A129="N/A","-",C129*VLOOKUP(A129,Defaults!$A$285:$B$335, 2,FALSE)),"-") -> -
A130: -
A131: Table 12. Capital Cost Summary
A132: Total Capital Costs: | B132: =SUM(B105:B115)+SUM(B119:B129) -> 419766.2449
A133: Total Real Capital Costs: | B133: =SUM(C105:C115)+SUM(C119:C123) -> 419766.2449
A134: Total Discounted Capital Costs: | B134: =SUM(D105:D115)+SUM(D119:D129) -> 279241.5619
A135: -
A136: Table 13. Residual Value
A137: Share of Capital Costs | B137: Asset Life (Years) | C137: Explanation and Source
A138: 0 | B138: 100 | C138: Percentage of Costs associated with Right-of-way. Assumed life based on MnDOT BCA Guidance
A139: 0.75 | B139: 60 | C139: Percentage of Costs associated with Bridge Construction. Assumed life based on MnDOT BCA Guidance
A140: 0.25 | B140: 40 | C140: Percentage of Costs associated with Roadway Construction. Assumed life based on MnDOT BCA Guidance (Grading Drainage/Sub-base and Base/Roadway) based on midpoint of cost breakdown.
A141: 0 | B141: 0 | C141: -
A142: =SUM(A138:A141) -> 1 | B142: Summation | C142: N/A
A143: Note: If there are multiple components of the project for this specific bridge that different asset lives, enter the share of the project costs associated with the different project components and their asset life.
A144: Note: The Summation cell should be 100%.
A145: -
A146: Operating and Maintenance Costs (O&M)
A147: Table 14. Operating and Maintenance Costs Assumptions
A148: Which method would you like to use to enter O&M costs? | B148: Manual Entry
A149: Year of O&M costs Dollars | B149: 2021
A150: Note: If you have O&M costs in the construction period you will need to use the manual entry option to enter the O&M costs in the construction period.
A151: Note: The operating and maintenance costs in the baseline should be entered to be consistent with your estimate of closure. If the bridge is closed in a future year (Table 25), there should not be maintenance costs for that year and thereafter.
A152: Note: For frequency calculation option, all costs should be entered as year of expenditure. The tool applies inflation and discounting factors automatically.
A153: -
A154: Table 15. Annual O&M Calculation Input
A155: Category | B155: Value
A156: Annual O&M Costs in the No Build Scenario | B156: -
A157: Annual O&M Costs Real Growth Rate in the No Build Scenario | B157: 0
A158: Annual O&M Costs in the Build Scenario | B158: -
A159: Annual O&M Costs Real Growth Rate in the Build Scenario | B159: 0
A160: Note: The maintenance real growth rate represents the real cost increases year over year (e.g., from increased deterioration of the asset). It should not include inflation adjustments.
A161: -
A162: Table 16a. Intermittent O&M Calculation Input
A163: Category | B163: Value
A164: Initial year | B164: -
A165: Last Year | B165: -
A166: Occurs every _____ Years; set to 30 if occurs only once | B166: 1
A167: Annual O&M Costs in the No Build Scenario | B167: -
A168: Annual O&M Costs Real Growth Rate in the Build Scenario | B168: -
A169: -
A170: Table 16b. Intermittent O&M Calculation Input
A171: Category | B171: Value
A172: Initial year | B172: -
A173: Last Year | B173: -
A174: Occurs every _____ Years; set to 30 if occurs only once | B174: 1
A175: Annual O&M Costs in the No Build Scenario | B175: -
A176: Annual O&M Costs Real Growth Rate in the Build Scenario | B176: -
A177: -
A178: Table 16c. Intermittent O&M Calculation Input
A179: Category | B179: Value
A180: Initial year | B180: -
A181: Last Year | B181: -
A182: Occurs every _____ Years; set to 30 if occurs only once | B182: 1
A183: Annual O&M Costs in the No Build Scenario | B183: -
A184: Annual O&M Costs Real Growth Rate in the Build Scenario | B184: -
A185: -
A186: Table 16d. Intermittent O&M Calculation Input
A187: Category | B187: Value
A188: Initial year | B188: -
A189: Last Year | B189: -
A190: Occurs every _____ Years; set to 30 if occurs only once | B190: 1
A191: Annual O&M Costs in the No Build Scenario | B191: -
A192: Annual O&M Costs Real Growth Rate in the Build Scenario | B192: -
A193: Note: The "Occurs every _____ " field in Tables 16a through 16d must be greater than or equal to 1, even if you are not adding an additional recurring maintenance cost.
A194: -
A195: Note: Manual O&M cost values should be entered in the year of dollar entered in Table 14.
A196: Table 17. Manual O&M Cost Entry
A197: Calendar Year | B197: Analysis Year | C197: No Build Annual Cost | D197: Build Annual Cost | E197: O&M Cost Difference Discounted
A198: =IFERROR(IF(B32="Required","N/A",B32),"N/A") -> 2023 | B198: =IFERROR(IF(A198=$B$35,1,IF(A198>$B$35,A198-$B$35+1,IF(A198<$B$35,A198-$B$35+1,"N/A"))),"N/A") -> -6 | D198: - | E198: =IFERROR((C198-D198)*VLOOKUP($B$149,Defaults!$A$285:$B$335, 2,FALSE)*VLOOKUP(A198,Defaults!$A$285:$B$335,2,FALSE),0) -> 0
A199: =IF(A198="N/A","N/A",IF(A198>=$B$35+$B$36-1,"N/A",A198+1)) -> 2024 | B199: -5 | C199: =1000 -> 1000 | D199: - | E199: =IFERROR((C199-D199)*VLOOKUP($B$149,Defaults!$A$285:$B$335, 2,FALSE)*VLOOKUP(A199,Defaults!$A$285:$B$335,2,FALSE),0) -> 0
A200: 2025 | B200: -4 | D200: - | E200: =IFERROR((C200-D200)*VLOOKUP($B$149,Defaults!$A$285:$B$335, 2,FALSE)*VLOOKUP(A200,Defaults!$A$285:$B$335,2,FALSE),0) -> 0
... 495 more rows

Sheet New 135 Ramp
A1: Bridge and Project Overview
A2: ID of bridge, description of improvement, project timeline, traffic volume
A3: Add New Bridge (press Ctrl + Shift + B)
A4: Add Sensitivity Analysis for Current Bridge (press Ctrl + Shift + S)
A5: Delete this Bridge (press Ctrl + Shift + D)
A6: Note: Only delete bridges using this command/button. Deleting bridge tabs through right click will result in (fixable) errors on the Results tab.
A7: Change Bridge Name (press Ctrl + Shift + N)
A8: -
A9: Table 1. Bridge Variables
A10: Bridge Variables | B10: Bridge Values
A11: State | B11: Oklahoma
A12: County | B12: Oklahoma
A13: Structure Number | B13: New Bridge
A14: Inventory Route | B14: 00035
A15: Feature Intersected | B15: 'OKLAHOMA RIVER'
A16: Facility Carried | B16: 'I-35 N.B.'
A17: Latitude | B17: 35° 27' 36.09"
A18: Longitude | B18: -97° 29' 29.41"
A19: Bridge Length (mi)
A20: Bypass, Detour Length (mi) | B20: 0
A21: Owner | B21: 01
A22: Functional Class, Rural/Urban | B22: 11
A23: Bridge Road Type | B23: Urban - Principal Arterial - Interstate
A24: Year Built
A25: Year Reconstructed
A26: Lanes on the Structure | B26: 2
A27: Note: Some bridges have the same structure number. Use the state and county drop downs to identify your bridge.
A28: -
A29: Project Description:
A30: Table 2. Project Timeline
A31: Timeline Variables | B31: Timeline Values
A32: Current Year | B32: 2023
A33: First Year of Construction Costs | B33: 2026
A34: Last Year of Construction Costs | B34: 2029
A35: Project Opens (Start of Benefits) | B35: 2030
A36: Years of Benefits for Analysis | B36: 30
A37: First Year of Period of Analysis | B37: =IF(B35="Required","-", B35) -> 2030
A38: Last Year of Period of Analysis | B38: =IFERROR(B35+B36-1, "-") -> 2059
A39: Discount Year | B39: =Defaults!A285 -> 2021
A40: Base Year of NBI | B40: 2023
A41: Note: The tool cannot handle partial years, or pro-rata benefits or costs. Round up or down to the nearest year for construction start, construction end, and the start of benefits.
A42: Note: Enter a value between 20 to 30 for the Years of Benefits for Analysis, appropriate to the project as defined by US DOT BCA Guidance.
A43: -
A44: Table 3. Average Annual Daily Traffic (AADT)
A45: Scenario and Vehicle Type | B45: NBI Year of AADT | C45: NBI Year of Future AADT | D45: Forecast using NBI Growth Rate | E45: Forecast using NBI Growth Rate2 | F45: Project Opens | G45: Last Year | H45: Explanation and Source
A46: Year | B46: 0.6233766234 | C46: 0.6233766234 | D46: =IF(B35="Required","-",B35) -> 2030 | E46: =B38 -> 2059 | F46: =IF(B35="Required", "-",B35) -> 2030 | G46: =B38 -> 2059 | H46: N/A
A47: No Build - Passenger AADT | B47: 0.6233766234 | C47: 0.6233766234 | D47: 0.6233766234 | E47: 0.6233766234 | F47: 30254.8 | G47: 59808.8 | H47: -
A48: No Build - Truck AADT | B48: 1.451948052 | C48: 1.451948052 | D48: 1.451948052 | E48: 1.451948052 | F48: 4125.6 | G48: 8155.6 | H48: -
A49: No Build - Bus AADT | B49: N/A | C49: N/A | D49: N/A | E49: N/A | F49: 0 | G49: 0 | H49: No transit
A50: Build - Passenger AADT | B50: 0.6233766234 | C50: 0.6233766234 | D50: 0.6233766234 | E50: 0.6233766234 | F50: 30254.8 | G50: 59808.8 | H50: -
A51: Build - Truck AADT | B51: 1.451948052 | C51: 1.451948052 | D51: 1.451948052 | E51: 1.451948052 | F51: 4125.6 | G51: 8155.6 | H51: -
A52: Build - Bus AADT | B52: N/A | C52: N/A | D52: N/A | E52: N/A | F52: 0 | G52: 0 | H52: No transit
A53: =HYPERLINK("#A542","Note: AADT can be entered manually in Table 52 and Table 53 below.") -> Note: AADT can be entered manually in Table 52 and Table 53 below.
A54: Note: Here and elsewhere in the tool it is critical that you enter at least some value in the required cells, e.g., 0, rather than "-", "N/A" or leaving it blank.
A55: Note: NBI AADT values are added for reference in Table 3. Users must enter AADT values in Columns G, H and I in Table 3.
A56: -
A57: Note: Table 4 is not a user input. Do not adjust Table 4.
A58: Table 4. NBI's Calculated Average Annual Daily Traffic (AADT) Growth Rate
A59: 0.6233766234 | B59: 0.6233766234
A60: 1.451948052 | B60: 1.451948052
A61: Table 5. Detour Road Type
A62: Detour Road Type | B62: Urban - Minor Arterial
A63: Detour Road Type - Simple | B63: =IF(B62="Required", "-",IF(ISNUMBER(SEARCH("Urban",B62)), "Urban", "Rural")) -> Urban
A64: -
A65: Note: Detour length should represent the Net detour: Detour length minus the original route length.
A66: Table 6. Detour and Bridge Length Information
A67: Detour Details | B67: Reference | C67: User Value | D67: Explanation and Source
A68: Net Detour Length, For Vehicles (mi) (NBI) | B68: =ROUND(VLOOKUP($C$80,'NBI Data'!$A$2:$AA$22875,COLUMN('NBI Data'!$I$2:$I$22875),FALSE)*0.621371,1) ->  | C68: 0.1 | D68: Measured route distance from using I-35 and I-40 compared to using SE 15th St and S Eastern Ave
A69: Detour Average Speed, for Vehicles (mph) (FHWA VHT) | B69: =ROUND(VLOOKUP(B62,Defaults!B354:F366,2, FALSE),1) -> 35 | C69: 36 | D69: Google maps states the 2.4 mile detour would take 4 minutes without traffic.
A70: Net Detour Length, For Cycling/ Pedestrian (mi) (NBI) | B70: =ROUND(VLOOKUP($C$80,'NBI Data'!$A$2:$AA$22875,COLUMN('NBI Data'!$I$2:$I$22875),FALSE)*0.621371, 1) ->  | C70: 0 | D70: -
A71: Detour Average Travel Time (min) | B71: =B68/B69*60 ->  | C71: =C68/C69*60 -> 0.1666666667 | D71: N/A
A72: Bridge Length (mi) | B72: =ROUND(B19,2) -> 0 | C72: 0.15 | D72: Same distance as mainline bridges.
A73: Note: Google or HPMS data are preferred for identifying average speed on the detour route. You can also use the HERS/VHT speed values using the Detour Road Type dropdown below.
A74: Note: Bridge length in the NBI does not include the approach length. Include approach length if relevant for your project.
A75: =HYPERLINK("https://www.google.com/maps", "Use Google Maps to calculate detour route length and average speed, as appropriate.") -> Use Google Maps to calculate detour route length and average speed, as appropriate.
A76: =HYPERLINK("https://www.fhwa.dot.gov/policyinformation/hpms.cfm", "Use the Highway Performance Monitoring System (HPMS) data to calculate detour route length and average speed, as appropriate.") -> Use the Highway Performance Monitoring System (HPMS) data to calculate detour route length and average speed, as appropriate.
A77: -
A78: Note: These reference cells are marked to avoid accidental deletion.
A79: Table 7. Reference Table
A80: Reference Cells | B80: =CONCATENATE(B11,B12) -> OklahomaOklahoma | C80: =CONCATENATE(VLOOKUP($B$11,NBI_Dropdown!$B$1:$D$56,3,FALSE),$B$13) -> 406New Bridge
A81: -
A82: Table 8. Travel Assumptions
A83: Parameters | B83: Reference | C83: User Value | D83: Explanation and Source
A84: Bridge Average Speed (FHWA) | B84: =_xlfn.IFNA(VLOOKUP(B23,Defaults!B354:C366,2, FALSE), "N/A") -> 60 | C84: 60 | D84: -
A85: Average Car Occupancy | B85: =Defaults!B49 -> 1.67 | C85: 1.67 | D85: -
A86: Share of Long-Distance Personal Travel | B86: 0 | C86: 0 | D86: -
A87: Value of Time - Long-Distance Personal Travel | B87: =Defaults!B32 -> 23.8 | C87: 23.8 | D87: -
A88: Share of Business Travel | B88: 0.118 | C88: 0.118 | D88: -
A89: Value of Travel Time - Business | B89: =Defaults!B30 -> 31.9 | C89: 31.9 | D89: -
A90: Value of Travel Time - Personal | B90: =Defaults!B29 -> 17 | C90: 17 | D90: -
A91: Value of Travel Time - All Purposes | B91: =ROUND(B86*B87+B88*B89+(1-B86-B88)*B90,1) -> 18.8 | C91: =IFERROR(ROUND(C86*C87+C88*C89+(1-C86-C88)*C90,1),"-") -> 18.8 | D91: -
A92: Walking, Cycling, Waiting, Standing, and Transfer Time | B92: =Defaults!B33 -> 34 | C92: 34 | D92: -
A93: Truck Driver | B93: =Defaults!B36 -> 32.4 | C93: 32.4 | D93: -
A94: Bus Driver | B94: =Defaults!B37 -> 35 | C94: 35 | D94: -
A95: Average Bus Occupancy | B95: 0 | C95: 0 | D95: -
A96: -
A97: Capital Cost and Residual Value
A98: Table 9. Expenditure Dollars Option
A99: Are costs entered in year of expenditure dollars (not adjusted for inflation)? | B99: NO
A100: Enter future inflation rate for capital costs. | B100: 0
A101: Note: Capital costs can be entered in year of expenditure dollars or in real dollars. The tool applies inflation and discounting factors automatically if entered as year of expenditure dollars.
A102: -
A103: Table 10. Already Incurred Costs
A104: Year | B104: Costs | C104: Real Costs | D104: Discounted Costs
A105: 2023 | B105: 579277.4179 | C105: =IF($B$99="NO",B105,IFERROR(B105*(IF(A105>$B$39, 1/((1+$B$100)^(A105-$B$39)),VLOOKUP(A105,Defaults!$A$130:$B$188, 2,FALSE))),"-")) -> 579277.4179 | D105: =IFERROR(IF(A105="","",IF(A105<=2020, C105, C105*VLOOKUP(A105,Defaults!$A$285:$B$335, 2,FALSE))),"-") -> 505963.3312
A106: 2024 | B106: 1158554.836 | C106: =IF($B$99="NO",B106,IFERROR(B106*(IF(A106>$B$39, 1/((1+$B$100)^(A106-$B$39)),VLOOKUP(A106,Defaults!$A$130:$B$188, 2,FALSE))),"-")) -> 1158554.836 | D106: =IFERROR(IF(A106="","",IF(A106<=2020, C106, C106*VLOOKUP(A106,Defaults!$A$285:$B$335, 2,FALSE))),"-") -> 945725.8528
A107: 2025 | B107: 1737832.254 | C107: =IF($B$99="NO",B107,IFERROR(B107*(IF(A107>$B$39, 1/((1+$B$100)^(A107-$B$39)),VLOOKUP(A107,Defaults!$A$130:$B$188, 2,FALSE))),"-")) -> 1737832.254 | D107: =IFERROR(IF(A107="","",IF(A107<=2020, C107, C107*VLOOKUP(A107,Defaults!$A$285:$B$335, 2,FALSE))),"-") -> 1325783.906
A108: - | B108: - | C108: =IF($B$99="NO",B108,IFERROR(B108*(IF(A108>$B$39, 1/((1+$B$100)^(A108-$B$39)),VLOOKUP(A108,Defaults!$A$130:$B$188, 2,FALSE))),"-")) -> - | D108: =IFERROR(IF(A108="","",IF(A108<=2020, C108, C108*VLOOKUP(A108,Defaults!$A$285:$B$335, 2,FALSE))),"-") -> -
A109: - | B109: - | C109: =IF($B$99="NO",B109,IFERROR(B109*(IF(A109>$B$39, 1/((1+$B$100)^(A109-$B$39)),VLOOKUP(A109,Defaults!$A$130:$B$188, 2,FALSE))),"-")) -> - | D109: =IFERROR(IF(A109="","",IF(A109<=2020, C109, C109*VLOOKUP(A109,Defaults!$A$285:$B$335, 2,FALSE))),"-") -> -
A110: - | B110: - | C110: =IF($B$99="NO",B110,IFERROR(B110*(IF(A110>$B$39, 1/((1+$B$100)^(A110-$B$39)),VLOOKUP(A110,Defaults!$A$130:$B$188, 2,FALSE))),"-")) -> - | D110: =IFERROR(IF(A110="","",IF(A110<=2020, C110, C110*VLOOKUP(A110,Defaults!$A$285:$B$335, 2,FALSE))),"-") -> -
A111: - | B111: - | C111: =IF($B$99="NO",B111,IFERROR(B111*(IF(A111>$B$39, 1/((1+$B$100)^(A111-$B$39)),VLOOKUP(A111,Defaults!$A$130:$B$188, 2,FALSE))),"-")) -> - | D111: =IFERROR(IF(A111="","",IF(A111<=2020, C111, C111*VLOOKUP(A111,Defaults!$A$285:$B$335, 2,FALSE))),"-") -> -
A112: - | B112: - | C112: =IF($B$99="NO",B112,IFERROR(B112*(IF(A112>$B$39, 1/((1+$B$100)^(A112-$B$39)),VLOOKUP(A112,Defaults!$A$130:$B$188, 2,FALSE))),"-")) -> - | D112: =IFERROR(IF(A112="","",IF(A112<=2020, C112, C112*VLOOKUP(A112,Defaults!$A$285:$B$335, 2,FALSE))),"-") -> -
A113: - | B113: - | C113: =IF($B$99="NO",B113,IFERROR(B113*(IF(A113>$B$39, 1/((1+$B$100)^(A113-$B$39)),VLOOKUP(A113,Defaults!$A$130:$B$188, 2,FALSE))),"-")) -> - | D113: =IFERROR(IF(A113="","",IF(A113<=2020, C113, C113*VLOOKUP(A113,Defaults!$A$285:$B$335, 2,FALSE))),"-") -> -
A114: - | B114: - | C114: =IF($B$99="NO",B114,IFERROR(B114*(IF(A114>$B$39, 1/((1+$B$100)^(A114-$B$39)),VLOOKUP(A114,Defaults!$A$130:$B$188, 2,FALSE))),"-")) -> - | D114: =IFERROR(IF(A114="","",IF(A114<=2020, C114, C114*VLOOKUP(A114,Defaults!$A$285:$B$335, 2,FALSE))),"-") -> -
A115: - | B115: - | C115: =IF($B$99="NO",B115,IFERROR(B115*(IF(A115>$B$39, 1/((1+$B$100)^(A115-$B$39)),VLOOKUP(A115,Defaults!$A$130:$B$188, 2,FALSE))),"-")) -> - | D115: =IFERROR(IF(A115="","",IF(A115<=2020, C115, C115*VLOOKUP(A115,Defaults!$A$285:$B$335, 2,FALSE))),"-") -> -
A116: -
A117: Table 11. Capital Costs
A118: Year | B118: Costs | C118: Real Costs | D118: Discounted Costs
A119: =IFERROR(IF($B$33="-", "N/A", $B$33),"N/A") -> 2026 | B119: 4344580.634 | C119: =IF($B$99="NO",B119,IFERROR(B119*(IF(A119>$B$39, 1/(1+$B$100)^(A119-$B$39),VLOOKUP(A119,Defaults!$A$130:$B$188, 2,FALSE))),"-")) -> 4344580.634 | D119: =IFERROR(IF(A119="N/A","-",C119*VLOOKUP(A119,Defaults!$A$285:$B$335, 2,FALSE)),"-") -> 3097625.948
A120: =IFERROR(IF(A119="N/A","N/A",IF(A119>=$B$34,"N/A",A119+1)),"") -> 2027 | B120: 8689161.269 | C120: =IF($B$99="NO",B120,IFERROR(B120*(IF(A120>$B$39, 1/(1+$B$100)^(A120-$B$39),VLOOKUP(A120,Defaults!$A$130:$B$188, 2,FALSE))),"-")) -> 8689161.269 | D120: =IFERROR(IF(A120="N/A","-",C120*VLOOKUP(A120,Defaults!$A$285:$B$335, 2,FALSE)),"-") -> 5789955.043
A121: =IF(A120="N/A","N/A",IF(A120>=$B$34,"N/A",A120+1)) -> 2028 | B121: 8689161.269 | C121: =IF($B$99="NO",B121,IFERROR(B121*(IF(A121>$B$39, 1/(1+$B$100)^(A121-$B$39),VLOOKUP(A121,Defaults!$A$130:$B$188, 2,FALSE))),"-")) -> 8689161.269 | D121: =IFERROR(IF(A121="N/A","-",C121*VLOOKUP(A121,Defaults!$A$285:$B$335, 2,FALSE)),"-") -> 5411172.937
A122: 2029 | B122: 3765303.217 | C122: =IF($B$99="NO",B122,IFERROR(B122*(IF(A122>$B$39, 1/(1+$B$100)^(A122-$B$39),VLOOKUP(A122,Defaults!$A$130:$B$188, 2,FALSE))),"-")) -> 3765303.217 | D122: =IFERROR(IF(A122="N/A","-",C122*VLOOKUP(A122,Defaults!$A$285:$B$335, 2,FALSE)),"-") -> 2191440.753
A123: N/A | B123: - | C123: =IF($B$99="NO",B123,IFERROR(B123*(IF(A123>$B$39, 1/(1+$B$100)^(A123-$B$39),VLOOKUP(A123,Defaults!$A$130:$B$188, 2,FALSE))),"-")) -> - | D123: =IFERROR(IF(A123="N/A","-",C123*VLOOKUP(A123,Defaults!$A$285:$B$335, 2,FALSE)),"-") -> -
A124: N/A | B124: - | C124: =IF($B$99="NO",B124,IFERROR(B124*(IF(A124>$B$39, 1/(1+$B$100)^(A124-$B$39),VLOOKUP(A124,Defaults!$A$130:$B$188, 2,FALSE))),"-")) -> - | D124: =IFERROR(IF(A124="N/A","-",C124*VLOOKUP(A124,Defaults!$A$285:$B$335, 2,FALSE)),"-") -> -
A125: N/A | B125: - | C125: =IF($B$99="NO",B125,IFERROR(B125*(IF(A125>$B$39, 1/(1+$B$100)^(A125-$B$39),VLOOKUP(A125,Defaults!$A$130:$B$188, 2,FALSE))),"-")) -> - | D125: =IFERROR(IF(A125="N/A","-",C125*VLOOKUP(A125,Defaults!$A$285:$B$335, 2,FALSE)),"-") -> -
A126: N/A | B126: - | C126: =IF($B$99="NO",B126,IFERROR(B126*(IF(A126>$B$39, 1/(1+$B$100)^(A126-$B$39),VLOOKUP(A126,Defaults!$A$130:$B$188, 2,FALSE))),"-")) -> - | D126: =IFERROR(IF(A126="N/A","-",C126*VLOOKUP(A126,Defaults!$A$285:$B$335, 2,FALSE)),"-") -> -
A127: N/A | B127: - | C127: =IF($B$99="NO",B127,IFERROR(B127*(IF(A127>$B$39, 1/(1+$B$100)^(A127-$B$39),VLOOKUP(A127,Defaults!$A$130:$B$188, 2,FALSE))),"-")) -> - | D127: =IFERROR(IF(A127="N/A","-",C127*VLOOKUP(A127,Defaults!$A$285:$B$335, 2,FALSE)),"-") -> -
A128: N/A | B128: - | C128: =IF($B$99="NO",B128,IFERROR(B128*(IF(A128>$B$39, 1/(1+$B$100)^(A128-$B$39),VLOOKUP(A128,Defaults!$A$130:$B$188, 2,FALSE))),"-")) -> - | D128: =IFERROR(IF(A128="N/A","-",C128*VLOOKUP(A128,Defaults!$A$285:$B$335, 2,FALSE)),"-") -> -
A129: N/A | B129: - | C129: =IF($B$99="NO",B129,IFERROR(B129*(IF(A129>$B$39, 1/(1+$B$100)^(A129-$B$39),VLOOKUP(A129,Defaults!$A$130:$B$188, 2,FALSE))),"-")) -> - | D129: =IFERROR(IF(A129="N/A","-",C129*VLOOKUP(A129,Defaults!$A$285:$B$335, 2,FALSE)),"-") -> -
A130: -
A131: Table 12. Capital Cost Summary
A132: Total Capital Costs: | B132: =SUM(B105:B115)+SUM(B119:B129) -> 28963870.9
A133: Total Real Capital Costs: | B133: =SUM(C105:C115)+SUM(C119:C123) -> 28963870.9
A134: Total Discounted Capital Costs: | B134: =SUM(D105:D115)+SUM(D119:D129) -> 19267667.77
A135: -
A136: Table 13. Residual Value
A137: Share of Capital Costs | B137: Asset Life (Years) | C137: Explanation and Source
A138: 0 | B138: 100 | C138: Percentage of Costs associated with Right-of-way. Assumed life based on MnDOT BCA Guidance
A139: 0.75 | B139: 60 | C139: Percentage of Costs associated with Bridge Construction. Assumed life based on MnDOT BCA Guidance
A140: 0.25 | B140: 40 | C140: Percentage of Costs associated with Roadway Construction. Assumed life based on MnDOT BCA Guidance (Grading Drainage/Sub-base and Base/Roadway) based on midpoint of cost breakdown.
A141: 0 | B141: 0 | C141: -
A142: =SUM(A138:A141) -> 1 | B142: Summation | C142: N/A
A143: Note: If there are multiple components of the project for this specific bridge that different asset lives, enter the share of the project costs associated with the different project components and their asset life.
A144: Note: The Summation cell should be 100%.
A145: -
A146: Operating and Maintenance Costs (O&M)
A147: Table 14. Operating and Maintenance Costs Assumptions
A148: Which method would you like to use to enter O&M costs? | B148: Manual Entry
A149: Year of O&M costs Dollars | B149: 2021
A150: Note: If you have O&M costs in the construction period you will need to use the manual entry option to enter the O&M costs in the construction period.
A151: Note: The operating and maintenance costs in the baseline should be entered to be consistent with your estimate of closure. If the bridge is closed in a future year (Table 25), there should not be maintenance costs for that year and thereafter.
A152: Note: For frequency calculation option, all costs should be entered as year of expenditure. The tool applies inflation and discounting factors automatically.
A153: -
A154: Table 15. Annual O&M Calculation Input
A155: Category | B155: Value
A156: Annual O&M Costs in the No Build Scenario | B156: -
A157: Annual O&M Costs Real Growth Rate in the No Build Scenario | B157: 0
A158: Annual O&M Costs in the Build Scenario | B158: -
A159: Annual O&M Costs Real Growth Rate in the Build Scenario | B159: 0
A160: Note: The maintenance real growth rate represents the real cost increases year over year (e.g., from increased deterioration of the asset). It should not include inflation adjustments.
A161: -
A162: Table 16a. Intermittent O&M Calculation Input
A163: Category | B163: Value
A164: Initial year | B164: -
A165: Last Year | B165: -
A166: Occurs every _____ Years; set to 30 if occurs only once | B166: 1
A167: Annual O&M Costs in the No Build Scenario | B167: -
A168: Annual O&M Costs Real Growth Rate in the Build Scenario | B168: -
A169: -
A170: Table 16b. Intermittent O&M Calculation Input
A171: Category | B171: Value
A172: Initial year | B172: -
A173: Last Year | B173: -
A174: Occurs every _____ Years; set to 30 if occurs only once | B174: 1
A175: Annual O&M Costs in the No Build Scenario | B175: -
A176: Annual O&M Costs Real Growth Rate in the Build Scenario | B176: -
A177: -
A178: Table 16c. Intermittent O&M Calculation Input
A179: Category | B179: Value
A180: Initial year | B180: -
A181: Last Year | B181: -
A182: Occurs every _____ Years; set to 30 if occurs only once | B182: 1
A183: Annual O&M Costs in the No Build Scenario | B183: -
A184: Annual O&M Costs Real Growth Rate in the Build Scenario | B184: -
A185: -
A186: Table 16d. Intermittent O&M Calculation Input
A187: Category | B187: Value
A188: Initial year | B188: -
A189: Last Year | B189: -
A190: Occurs every _____ Years; set to 30 if occurs only once | B190: 1
A191: Annual O&M Costs in the No Build Scenario | B191: -
A192: Annual O&M Costs Real Growth Rate in the Build Scenario | B192: -
A193: Note: The "Occurs every _____ " field in Tables 16a through 16d must be greater than or equal to 1, even if you are not adding an additional recurring maintenance cost.
A194: -
A195: Note: Manual O&M cost values should be entered in the year of dollar entered in Table 14.
A196: Table 17. Manual O&M Cost Entry
A197: Calendar Year | B197: Analysis Year | C197: No Build Annual Cost | D197: Build Annual Cost | E197: O&M Cost Difference Discounted
A198: =IFERROR(IF(B32="Required","N/A",B32),"N/A") -> 2023 | B198: =IFERROR(IF(A198=$B$35,1,IF(A198>$B$35,A198-$B$35+1,IF(A198<$B$35,A198-$B$35+1,"N/A"))),"N/A") -> -6 | C198: - | D198: - | E198: =IFERROR((C198-D198)*VLOOKUP($B$149,Defaults!$A$285:$B$335, 2,FALSE)*VLOOKUP(A198,Defaults!$A$285:$B$335,2,FALSE),0) -> 0
A199: =IF(A198="N/A","N/A",IF(A198>=$B$35+$B$36-1,"N/A",A198+1)) -> 2024 | B199: -5 | C199: - | D199: - | E199: =IFERROR((C199-D199)*VLOOKUP($B$149,Defaults!$A$285:$B$335, 2,FALSE)*VLOOKUP(A199,Defaults!$A$285:$B$335,2,FALSE),0) -> 0
A200: 2025 | B200: -4 | C200: - | D200: - | E200: =IFERROR((C200-D200)*VLOOKUP($B$149,Defaults!$A$285:$B$335, 2,FALSE)*VLOOKUP(A200,Defaults!$A$285:$B$335,2,FALSE),0) -> 0
... 495 more rows

Sheet Results
A1: Benefit Cost Analysis Results
A2: -
A3: Table 1. BCA Results
A4: Category | B4: Example Bridge | C4: New 135 Ramp | D4: I35 Box Culvert | E4: I35 NB RR | F4: I35 SB RR | G4: I35 NB | H4: I35 SB | I4: Total | J4: Percent of Total Benefits
A5: Include in Analysis? | B5: NOT INCLUDE | C5: INCLUDE | D5: INCLUDE | E5: INCLUDE | F5: INCLUDE | G5: INCLUDE | H5: INCLUDE | I5: N/A | J5: N/A
A6: Safety | B6: ='Example Bridge'!C695 -> 8763420.433 | C6: ='New 135 Ramp'!C695 -> 27584765.32 | D6: ='I35 Box Culvert'!C695 -> 312548.6972 | E6: ='I35 NB RR'!C695 -> 1456298.495 | F6: ='I35 SB RR'!C695 -> 1456302.481 | G6: ='I35 NB'!C695 -> 21220867.39 | H6: ='I35 SB'!C695 -> 29676531.83 | I6: =IF(B33="NOT INCLUDE", 0,SUMIF(OFFSET(B$5,0,0,,COLUMNS(Results!$A$5:$J$20)-1),"INCLUDE",OFFSET(B6,0,0,,COLUMNS(Results!$A$5:$J$20)-1))) -> 81707314.21 | J6: =Results!$I6/I$17 -> 
A7: Travel Time | B7: ='Example Bridge'!D695 ->  | C7: ='New 135 Ramp'!D695 ->  | D7: ='I35 Box Culvert'!D695 ->  | E7: ='I35 NB RR'!D695 ->  | F7: ='I35 SB RR'!D695 ->  | G7: ='I35 NB'!D695 ->  | H7: ='I35 SB'!D695 ->  | I7: =IF(B34="NOT INCLUDE", 0,SUMIF(OFFSET(B$5,0,0,,COLUMNS(Results!$A$5:$J$20)-1),"INCLUDE",OFFSET(B7,0,0,,COLUMNS(Results!$A$5:$J$20)-1))) ->  | J7: =Results!$I7/I$17 -> 
A8: VOC | B8: ='Example Bridge'!E695 -> 10296802.94 | C8: ='New 135 Ramp'!E695 -> 0 | D8: ='I35 Box Culvert'!E695 -> 0 | E8: ='I35 NB RR'!E695 -> 0 | F8: ='I35 SB RR'!E695 -> 0 | G8: ='I35 NB'!E695 -> 0 | H8: ='I35 SB'!E695 -> 0 | I8: =IF(B35="NOT INCLUDE", 0,SUMIF(OFFSET(B$5,0,0,,COLUMNS(Results!$A$5:$J$20)-1),"INCLUDE",OFFSET(B8,0,0,,COLUMNS(Results!$A$5:$J$20)-1))) -> 0 | J8: =Results!$I8/I$17 -> 
A9: Resilience | B9: ='Example Bridge'!F695 ->  | C9: ='New 135 Ramp'!F695 ->  | D9: ='I35 Box Culvert'!F695 ->  | E9: ='I35 NB RR'!F695 ->  | F9: ='I35 SB RR'!F695 ->  | G9: ='I35 NB'!F695 ->  | H9: ='I35 SB'!F695 ->  | I9: =IF(B36="NOT INCLUDE", 0,SUMIF(OFFSET(B$5,0,0,,COLUMNS(Results!$A$5:$J$20)-1),"INCLUDE",OFFSET(B9,0,0,,COLUMNS(Results!$A$5:$J$20)-1))) ->  | J9: =Results!$I9/I$17 -> 
A10: Health and Amenity | B10: ='Example Bridge'!G695 ->  | C10: ='New 135 Ramp'!G695 ->  | D10: ='I35 Box Culvert'!G695 ->  | E10: ='I35 NB RR'!G695 ->  | F10: ='I35 SB RR'!G695 ->  | G10: ='I35 NB'!G695 ->  | H10: ='I35 SB'!G695 ->  | I10: =IF(B37="NOT INCLUDE", 0,SUMIF(OFFSET(B$5,0,0,,COLUMNS(Results!$A$5:$J$20)-1),"INCLUDE",OFFSET(B10,0,0,,COLUMNS(Results!$A$5:$J$20)-1))) ->  | J10: =Results!$I10/I$17 -> 
A11: CO2 Emissions | B11: ='Example Bridge'!H695 -> 1829700.712 | C11: ='New 135 Ramp'!H695 -> 0 | D11: ='I35 Box Culvert'!H695 -> 0 | E11: ='I35 NB RR'!H695 -> 0 | F11: ='I35 SB RR'!H695 -> 0 | G11: ='I35 NB'!H695 -> 0 | H11: ='I35 SB'!H695 -> 0 | I11: =IF(B38="NOT INCLUDE", 0,SUMIF(OFFSET(B$5,0,0,,COLUMNS(Results!$A$5:$J$20)-1),"INCLUDE",OFFSET(B11,0,0,,COLUMNS(Results!$A$5:$J$20)-1))) -> 0 | J11: =Results!$I11/I$17 -> 
A12: Non-CO2 Emissions | B12: ='Example Bridge'!I695 -> 255474.5939 | C12: ='New 135 Ramp'!I695 -> 0 | D12: ='I35 Box Culvert'!I695 -> 0 | E12: ='I35 NB RR'!I695 -> 0 | F12: ='I35 SB RR'!I695 -> 0 | G12: ='I35 NB'!I695 -> 0 | H12: ='I35 SB'!I695 -> 0 | I12: =IF(B39="NOT INCLUDE", 0,SUMIF(OFFSET(B$5,0,0,,COLUMNS(Results!$A$5:$J$20)-1),"INCLUDE",OFFSET(B12,0,0,,COLUMNS(Results!$A$5:$J$20)-1))) -> 0 | J12: =Results!$I12/I$17 -> 
A13: Other Environmental | B13: ='Example Bridge'!J695 ->  | C13: ='New 135 Ramp'!J695 ->  | D13: ='I35 Box Culvert'!J695 ->  | E13: ='I35 NB RR'!J695 ->  | F13: ='I35 SB RR'!J695 ->  | G13: ='I35 NB'!J695 ->  | H13: ='I35 SB'!J695 ->  | I13: =IF(B40="NOT INCLUDE", 0,SUMIF(OFFSET(B$5,0,0,,COLUMNS(Results!$A$5:$J$20)-1),"INCLUDE",OFFSET(B13,0,0,,COLUMNS(Results!$A$5:$J$20)-1))) ->  | J13: =Results!$I13/I$17 -> 
A14: Maintenance | B14: ='Example Bridge'!K695 -> 27935.89408 | C14: ='New 135 Ramp'!K695 -> 0 | D14: ='I35 Box Culvert'!K695 -> 543.9337426 | E14: ='I35 NB RR'!K695 -> 138798.1002 | F14: ='I35 SB RR'!K695 -> 138798.1002 | G14: ='I35 NB'!K695 -> 505877.0738 | H14: ='I35 SB'!K695 -> 505877.0738 | I14: =IF(B41="NOT INCLUDE", 0,SUMIF(OFFSET(B$5,0,0,,COLUMNS(Results!$A$5:$J$20)-1),"INCLUDE",OFFSET(B14,0,0,,COLUMNS(Results!$A$5:$J$20)-1))) -> 1289894.282 | J14: =Results!$I14/I$17 -> 
A15: Residual Value | B15: ='Example Bridge'!L695 -> 660892.7002 | C15: ='New 135 Ramp'!L695 -> 968837.8747 | D15: ='I35 Box Culvert'!L695 -> 39458.60746 | E15: ='I35 NB RR'!L695 -> 184140.1681 | F15: ='I35 SB RR'!L695 -> 184140.1681 | G15: ='I35 NB'!L695 -> 1586647.534 | H15: ='I35 SB'!L695 -> 2218498.322 | I15: =IF(B42="NOT INCLUDE", 0,SUMIF(OFFSET(B$5,0,0,,COLUMNS(Results!$A$5:$J$20)-1),"INCLUDE",OFFSET(B15,0,0,,COLUMNS(Results!$A$5:$J$20)-1))) -> 5181722.674 | J15: =Results!$I15/I$17 -> 
A16: Other Benefits | B16: ='Example Bridge'!M695 -> 156964.7109 | C16: ='New 135 Ramp'!M695 -> 0 | D16: ='I35 Box Culvert'!M695 -> 0 | E16: ='I35 NB RR'!M695 -> 0 | F16: ='I35 SB RR'!M695 -> 0 | G16: ='I35 NB'!M695 -> 0 | H16: ='I35 SB'!M695 -> 0 | I16: =IF(B43="NOT INCLUDE", 0,SUMIF(OFFSET(B$5,0,0,,COLUMNS(Results!$A$5:$J$20)-1),"INCLUDE",OFFSET(B16,0,0,,COLUMNS(Results!$A$5:$J$20)-1))) -> 0 | J16: =Results!$I16/I$17 -> 
A17: Total Benefits | B17: ='Example Bridge'!N695 ->  | C17: ='New 135 Ramp'!N695 ->  | D17: ='I35 Box Culvert'!N695 ->  | E17: ='I35 NB RR'!N695 ->  | F17: ='I35 SB RR'!N695 ->  | G17: ='I35 NB'!N695 ->  | H17: ='I35 SB'!N695 ->  | I17: =SUM(I6:I16) ->  | J17: =Results!$I17/I$17 -> 
A18: Total Discounted Costs | B18: ='Example Bridge'!O695 -> 21870051.29 | C18: ='New 135 Ramp'!O695 -> 19267667.77 | D18: ='I35 Box Culvert'!O695 -> 279241.5619 | E18: ='I35 NB RR'!O695 -> 1303127.289 | F18: ='I35 SB RR'!O695 -> 1303127.289 | G18: ='I35 NB'!O695 -> 31554296.5 | H18: ='I35 SB'!O695 -> 44120166.78 | I18: =IF(B24="NOT INCLUDE", 0,SUMIF(OFFSET(B$5,0,0,,COLUMNS(Results!$A$5:$J$20)-1),"INCLUDE",OFFSET(B18,0,0,,COLUMNS(Results!$A$5:$J$20)-1))) -> 97827627.19 | J18: N/A
A19: BCR | B19: =B17/B18 ->  | C19: ='New 135 Ramp'!N695/'New 135 Ramp'!O695 ->  | D19: ='I35 Box Culvert'!N695/'I35 Box Culvert'!O695 ->  | E19: ='I35 NB RR'!N695/'I35 NB RR'!O695 ->  | F19: ='I35 SB RR'!N695/'I35 SB RR'!O695 ->  | G19: ='I35 NB'!N695/'I35 NB'!O695 ->  | H19: ='I35 SB'!N695/'I35 SB'!O695 ->  | I19: =I17/I18 ->  | J19: N/A
A20: Net Present Value (NPV) | B20: =B17-B18 ->  | C20: ='New 135 Ramp'!N695-'New 135 Ramp'!O695 ->  | D20: ='I35 Box Culvert'!N695-'I35 Box Culvert'!O695 ->  | E20: ='I35 NB RR'!N695-'I35 NB RR'!O695 ->  | F20: ='I35 SB RR'!N695-'I35 SB RR'!O695 ->  | G20: ='I35 NB'!N695-'I35 NB'!O695 ->  | H20: ='I35 SB'!N695-'I35 SB'!O695 ->  | I20: =I17-I18 ->  | J20: N/A
A21: Note: If you deleted a bridge tab manually (not using the command/button), that bridge will still be in Table 1. Simply delete that column from the table.
A22: Hint: Use the green and bold "include" dropdowns in the "Include in Analysis" row in Table 1 to select whether the bridge is included in the BCA results.
A23: Hint: Select NOT INCLUDE for the Example Bridge and any sensitivity analyses used before application submission.
A24: -
A25: Table 2. Unquantified Benefits
A26: Unquantified Benefits | B26: Qualitative Description of Benefits
A27: Bundling Cost Savings | B27: Costs used are bundled. If unbundled, costs expected to increase 5%.
A28: Alternative Design Cost Savings | B28: -
A29: Other Benefits | B29: -
A30: -
A31: Table 3. Benefit Categories Option
A32: Category | B32: Include in Analysis?
A33: Safety | B33: INCLUDE
A34: Travel Time | B34: INCLUDE
A35: VOC | B35: INCLUDE
A36: Resilience | B36: INCLUDE
A37: Health & Amenity | B37: INCLUDE
A38: CO2 Emissions | B38: INCLUDE
A39: Non-CO2 Emissions | B39: INCLUDE
A40: Other Environmental | B40: INCLUDE
A41: Maintenance | B41: INCLUDE
A42: Residual Value | B42: INCLUDE
A43: Other Benefits | B43: INCLUDE
A44: Note: This functionality is for BIP BCA reviewers. Use the green and bold "include" dropdowns in the "Include in Analysis" row in Table 1 to select whether the benefit category is included in the BCA results.

Sheet Defaults
A1: Default Values
A2: Tables A-1 through A-10 come from USDOT BCA Guidance (January 2023, Revised)
A3: Crash Monetization Values
A4: Table A-1a. Value of Reduced Fatalities and Injuries
A5: KABCO Level | B5: Monetized Value (2021$)
A6: O - No Injury | B6: 4000
A7: C - Possible Injury | B7: 78500
A8: B - Non-Incapacitating | B8: 153700
A9: A - Incapacitating | B9: 564300
A10: K- Killed | B10: 11800000
A11: Injury Unkonwn | B11: 162600
A12: Table A-1b. Value of Reduced Fatalities and Injuries
A13: Crash Type | B13: Monetized Value (2021$)
A14: Injury Crash (1) | B14: 307800
A15: Fatal (1) | B15: 13046800
A16: References and Notes
A17: Treatment of the Economic Value of Preventing Fatalities and Injuries in Preparing Economic Analyses (2021)
A18: https://www.transportation.gov/office-policy/transportation-policy/revised-departmental-guidance-on-valuation-of-a-statistical-life-in-economic-analysis
A19: Note: The KABCO level values shown result from multiplying the KABCO-level accident’s associated MAIS-level probabilities by the recommended unit Value of Injuries for each MAIS level, and then summing the products. Accident data may not be presented on an annual basis when it is provided to applicants (i.e. an available report requested in Fall 2011 may record total accidents from 2005-2010). For the purposes of the BCA, is important to annualize data when possible. For MAIS-based unit values, please see the VSL guidance linked above.
A20: -
A21: Table A-1c. Value of Property Damage Only Crashes
A22: Crash Type | B22: Monteized Value (2021$)
A23: PDO | B23: 4800
A24: The Economic and Societal Impact of Motor Vehicle Crashes, 2010 (revised May 2015), Page 12, Table 1-2, Summary of Unit Costs, 2000”
A25: -
A26: Travel Time Monetization Values
A27: Table A-2a. Value of Personal Travel Time Savings
A28: Category | B28: Hourly Value
A29: Personal (1) | B29: 17
A30: Business (2) | B30: 31.9
A31: All Purposes (3) | B31: 18.8
A32: Long-Distance Personal Travel | B32: 23.8
A33: Walking, Cycling, Waiting, Standing, and Transfer Time (4) | B33: 34
A34: Table A-2b. Value of Commerical Travel Time Savings
A35: Category | B35: Hourly Value
A36: Truck Drivers | B36: 32.4
A37: Bus Drivers | B37: 35
A38: References and Notes
A39: Revised Departmental Guidance on Valuation of Travel Time in Economic Analysis (2016)
A40: 1) Values for personal travel based on local travel values as described in USDOT’s Value of Travel Time guidance. Where applicants also have specific information on the mix of local versus long-distance intercity travel (i.e., trips over 50 miles in length) on a facility, then the local travel values of time may be blended with the longdistance intercity personal travel value of $23.80 per hour.
A41: 2) Weighted average based on a typical distribution of local travel by surface modes (88.2% personal, 11.8% business). Applicants should apply their own distribution of business versus personal travel where such information is available
A42: 3) Note that business travel does not include commuting travel, which should be valued at the personal travel rate. Travel on high-speed rail service that would be competitive with air travel should be valued at $45.30 per hour for personal travel and $79.30 for business travel.
A43: 4) Should be applied only when actions affect those elements of travel time.
A44: 5) Includes only the value of time for the operator, not passengers or freight.
A45: -
A46: Occupancy Rate Value
A47: Table A-3. Average Vehicle Occupancy Rates for Highway Passenger Vehicles
A48: Vehicle Type | B48: Average Occupancy
A49: Passenger Vehicles (All Travel) | B49: 1.67
A50: References and Notes
A51: 2017 National Household Travel Survey
A52: 1) Weekday peak period values calculated for trips starting between 6:00 AM-8:59 AM and 4:00 PM-6:59 PM.
A53: -
A54: Vehicle Operating Costs
A55: Table A-4. Vehicle Operating Costs
A56: Vehicle Type | B56: Recommended Value per Mile (2021$)
A57: Light Duty Vehicles (1) | B57: 0.46
A58: Commercial Trucks (2) | B58: 1.01
A59: References and Notes
A60: American Automobile Association, Your Driving Costs – 2020 Edition (2020)
A61: https://newsroom.aaa.com/wp-content/uploads/2020/12/2020-Your-Driving-Costs-Brochure-Interactive-FINAL-12-9-20.pdf
A62: American Transportation Research Institute, An Analysis of the Operational Costs of Trucking: 2020 Update
A63: https://truckingresearch.org/wp-content/uploads/2020/11/ATRI-Operational-Costs-of-Trucking-2020.pdf
A64: 1) Based on an average light duty vehicle and includes operating costs such as gasoline, maintenance, tires, and depreciation (assuming an average of 15,000 miles driven per year). The value omits other ownership costs that are mostly fixed or transfers (insurance, license, registration, taxes, and financing charges).
A65: 2) Value includes fuel costs, truck/trailer lease or purchase payments, repair and maintenance, truck insurance premiums, permits and licenses, and tires. The value omits tolls (which are transfers), and driver wages and benefits (which are already included in the value of travel time savings).
A66: -
A67: Emission Costs
A68: Table A-5. Damage Costs for Emissions per Metric Ton*
A69: Year | B69: NOX | C69: SOX | D69: PM2.5** | E69: CO2
A70: 2022 | B70: 16600 | C70: 44300 | D70: 796700 | E70: 56
A71: 2023 | B71: 16800 | C71: 45100 | D71: 810500 | E71: 57
A72: 2024 | B72: 17000 | C72: 46000 | D72: 824500 | E72: 58
A73: 2025 | B73: 17200 | C73: 46900 | D73: 838800 | E73: 59
A74: 2026 | B74: 17500 | C74: 47800 | D74: 852100 | E74: 60
A75: 2027 | B75: 17900 | C75: 48700 | D75: 865600 | E75: 61
A76: 2028 | B76: 18200 | C76: 49500 | D76: 879400 | E76: 62
A77: 2029 | B77: 18600 | C77: 50400 | D77: 893400 | E77: 63
A78: 2030 | B78: 18900 | C78: 51300 | D78: 907600 | E78: 65
A79: 2031 | B79: 18900 | C79: 51300 | D79: 907600 | E79: 66
A80: 2032 | B80: 18900 | C80: 51300 | D80: 907600 | E80: 67
A81: 2033 | B81: 18900 | C81: 51300 | D81: 907600 | E81: 68
A82: 2034 | B82: 18900 | C82: 51300 | D82: 907600 | E82: 69
A83: 2035 | B83: 18900 | C83: 51300 | D83: 907600 | E83: 70
A84: 2036 | B84: 18900 | C84: 51300 | D84: 907600 | E84: 72
A85: 2037 | B85: 18900 | C85: 51300 | D85: 907600 | E85: 73
A86: 2038 | B86: 18900 | C86: 51300 | D86: 907600 | E86: 74
A87: 2039 | B87: 18900 | C87: 51300 | D87: 907600 | E87: 75
A88: 2040 | B88: 18900 | C88: 51300 | D88: 907600 | E88: 76
A89: 2041 | B89: 18900 | C89: 51300 | D89: 907600 | E89: 78
A90: 2042 | B90: 18900 | C90: 51300 | D90: 907600 | E90: 79
A91: 2043 | B91: 18900 | C91: 51300 | D91: 907600 | E91: 80
A92: 2044 | B92: 18900 | C92: 51300 | D92: 907600 | E92: 81
A93: 2045 | B93: 18900 | C93: 51300 | D93: 907600 | E93: 82
A94: 2046 | B94: 18900 | C94: 51300 | D94: 907600 | E94: 84
A95: 2047 | B95: 18900 | C95: 51300 | D95: 907600 | E95: 85
A96: 2048 | B96: 18900 | C96: 51300 | D96: 907600 | E96: 86
A97: 2049 | B97: 18900 | C97: 51300 | D97: 907600 | E97: 87
A98: 2050 | B98: 18900 | C98: 51300 | D98: 907600 | E98: 88
A99: 2051 | B99: 18900 | C99: 51300 | D99: 907600 | E99: 88
A100: 2052 | B100: 18900 | C100: 51300 | D100: 907600 | E100: 88
A101: 2053 | B101: 18900 | C101: 51300 | D101: 907600 | E101: 88
A102: 2054 | B102: 18900 | C102: 51300 | D102: 907600 | E102: 88
A103: 2055 | B103: 18900 | C103: 51300 | D103: 907600 | E103: 88
A104: 2056 | B104: 18900 | C104: 51300 | D104: 907600 | E104: 88
A105: 2057 | B105: 18900 | C105: 51300 | D105: 907600 | E105: 88
A106: 2058 | B106: 18900 | C106: 51300 | D106: 907600 | E106: 88
A107: 2059 | B107: 18900 | C107: 51300 | D107: 907600 | E107: 88
A108: 2060 | B108: 18900 | C108: 51300 | D108: 907600 | E108: 88
A109: 2061 | B109: 18900 | C109: 51300 | D109: 907600 | E109: 88
A110: 2062 | B110: 18900 | C110: 51300 | D110: 907600 | E110: 88
A111: 2063 | B111: 18900 | C111: 51300 | D111: 907600 | E111: 88
A112: 2064 | B112: 18900 | C112: 51300 | D112: 907600 | E112: 88
A113: 2065 | B113: 18900 | C113: 51300 | D113: 907600 | E113: 88
A114: 2066 | B114: 18900 | C114: 51300 | D114: 907600 | E114: 88
A115: 2067 | B115: 18900 | C115: 51300 | D115: 907600 | E115: 88
A116: 2068 | B116: 18900 | C116: 51300 | D116: 907600 | E116: 88
A117: 2069 | B117: 18900 | C117: 51300 | D117: 907600 | E117: 88
A118: 2070 | B118: 18900 | C118: 51300 | D118: 907600 | E118: 88
A119: References and Notes
A120: Technical Support Document: Estimating the Benefit per Ton of Reducing PM2.5 Precursors from 17 Sectors (February 2018)”
A121: https://www.epa.gov/sites/default/files/2018-02/documents/sourceapportionmentbpttsd_2018.pdf
A122: Social Cost of Carbon, Methane, and Nitrous Oxide Interim Estimates under Executive Order 13990 (February 2021)
A123: https://www.whitehouse.gov/wp-content/uploads/2021/02/TechnicalSupportDocument_SocialCostofCarbonMethaneNitrousOxide.pdf
A124: Note: Fuel saved (gasoline, diesel, natural gas, etc.) can be converted into metric tons of emissions using EPA guidelines available at
A125: https://www.epa.gov/energy/greenhouse-gases-equivalencies-calculator-calculations-and-references
A126: Note: The recommended values for reducing CO2 emissions reported in Table A-6 represent the values of future economic damages that can be avoided by reducing emissions in each future year by one metric ton. After using per-ton values to estimate the total value of reducing CO2 emissions in any future year, the result must be further discounted to its present value as of the analysis year used in the BCA, also using a 3 percent discount rate.
A127: -
A128: Inflation Adjustment Values
A129: Table A-6. Inflation Adjustment Values
A130: Base Year of Nominal Dollar | B130: Multiplier to Adjust to Real 2021 $
A131: 2003 | B131: 1.44
A132: 2004 | B132: 1.4
A133: 2005 | B133: 1.36
A134: 2006 | B134: 1.32
A135: 2007 | B135: 1.28
A136: 2008 | B136: 1.26
A137: 2009 | B137: 1.25
A138: 2010 | B138: 1.24
A139: 2011 | B139: 1.21
A140: 2012 | B140: 1.19
A141: 2013 | B141: 1.17
A142: 2014 | B142: 1.15
A143: 2015 | B143: 1.14
A144: 2016 | B144: 1.12
A145: 2017 | B145: 1.1
A146: 2018 | B146: 1.08
A147: 2019 | B147: 1.06
A148: 2020 | B148: 1.04
A149: 2021 | B149: 1
A150: 2022 | B150: =B149/1.02 -> 0.9803921569
A151: 2023 | B151: 0.9611687812
A152: 2024 | B152: 0.9423223345
A153: 2025 | B153: 0.923845426
A154: 2026 | B154: 0.9057308098
A155: 2027 | B155: 0.8879713822
A156: 2028 | B156: 0.8705601786
A157: 2029 | B157: 0.8534903712
A158: 2030 | B158: 0.8367552659
A159: 2031 | B159: 0.8203482999
A160: 2032 | B160: 0.8042630391
A161: 2033 | B161: 0.7884931756
A162: 2034 | B162: 0.7730325251
A163: 2035 | B163: 0.7578750246
A164: 2036 | B164: 0.74301473
A165: 2037 | B165: 0.7284458137
A166: 2038 | B166: 0.7141625625
A167: 2039 | B167: 0.700159375
A168: 2040 | B168: 0.6864307598
A169: 2041 | B169: 0.6729713331
A170: 2042 | B170: 0.6597758168
A171: 2043 | B171: 0.6468390361
A172: 2044 | B172: 0.6341559177
A173: 2045 | B173: 0.6217214879
A174: 2046 | B174: 0.6095308705
A175: 2047 | B175: 0.5975792848
A176: 2048 | B176: 0.585862044
A177: 2049 | B177: 0.5743745529
A178: 2050 | B178: 0.5631123068
A179: 2051 | B179: 0.552070889
A180: 2052 | B180: 0.5412459696
A181: 2053 | B181: 0.5306333035
A182: 2054 | B182: 0.5202287289
A183: 2055 | B183: 0.5100281656
A184: 2056 | B184: 0.5000276134
A185: 2057 | B185: 0.4902231504
A186: 2058 | B186: 0.4806109317
A187: 2059 | B187: 0.471187188
A188: 2060 | B188: 0.4619482235
A189: 2061 | B189: 0.4528904152
A190: 2062 | B190: 0.444010211
A191: 2063 | B191: 0.4353041284
A192: 2064 | B192: 0.4267687533
A193: 2065 | B193: 0.4184007386
A194: 2066 | B194: 0.4101968025
A195: 2067 | B195: 0.402153728
A196: 2068 | B196: 0.3942683607
A197: 2069 | B197: 0.3865376086
A198: 2070 | B198: 0.3789584398
A199: References and Notes
A200: Bureau of Economic Analysis, National Income and Product Accounts, Table 1.1.9, “Implicit Price Deflators for Gross Domestic Product” (October 2021)
... 1527 more rows

Sheet NBI Data
A1: full_bridge_id | B1: STRUCTURE_NUMBER_008 | C1: STATE_CODE_001 | D1: ROUTE_NUMBER_005D | E1: FEATURES_DESC_006A | F1: FACILITY_CARRIED_007 | G1: LAT_016 | H1: LONG_017 | I1: DETOUR_KILOS_019 | J1: OWNER_022 | K1: FUNCTIONAL_CLASS_026 | L1: YEAR_BUILT_027 | M1: TRAFFIC_LANES_ON_028A | N1: ADT_029 | O1: YEAR_ADT_030 | P1: OPEN_CLOSED_POSTED_041 | Q1: YEAR_RECONSTRUCTED_106 | R1: PERCENT_ADT_TRUCK_109 | S1: FUTURE_ADT_114 | T1: YEAR_OF_FUTURE_ADT_115 | U1: min_rating_3 | V1: min_rating_2 | W1: years_to_sup_rating_3 | X1: SUPERSTRUCTURE_COND_059 | Y1: OPERATING_RATING_064 | Z1: years_to_sup_rating_4 | AA1: STRUCTURE_LEN_MT_049
A2: mystate001 | B2: 001 | C2: mystate | D2: 00000 | E2: Example Roadway' | F2: Example Route' | G2: 00000000 | H2: 00000000 | I2: =16.0934/4 -> 4.02335 | J2: mystate | K2: 11 | L2: 1970 | M2: 2 | N2: 6000 | O2: 2019 | P2: A | Q2: 1985 | R2: 10 | S2: 7800 | T2: 2029 | U2: 15 | V2: 25 | W2: 20 | X2: 5 | Y2: 40 | Z2: 15 | AA2: 250
A3: =CONCATENATE(C3, B3) -> 395CEPORHOH5055901 | B3: CEPORHOH5055901 | C3: 395 | D3: 00000 | E3: 'LAKE SPILLWAY' | F3: 'ACCESS ROAD' | G3: 39593800 | H3: 082043900 | I3: 199 | J3: 70 | K3: 09 | L3: 1959 | M3: 2 | N3: 100 | O3: 2019 | P3: A | Q3: 2007 | R3: 0 | S3: 150 | T3: 2040 | U3: 15 | V3: 30 | W3: 15 | X3: 6 | Y3: 84.2 | Z3: 10 | AA3: 93.2
A4: 406000000000009023 | B4: 000000000009023 | C4: 406 | D4: 00000 | E4: 'SQUIRREL CREEK NUMBER 2' | F4: 'UNKNOWN' | G4: 35175970 | H4: 096555292 | I4: 0 | J4: 61 | K4: 09 | L4: 2013 | M4: 2 | N4: 50 | O4: 2019 | P4: A | S4: 60 | T4: 2039 | U4: 20 | V4: 30 | W4: 20 | X4: 6 | Y4: 29.9 | Z4: 10 | AA4: 19.5
A5: 406000010000000000 | B5: 000010000000000 | C5: 406 | D5: N2860 | E5: 'CREEK' | F5: 'N2860' | G5: 35531714 | H5: 097542047 | I5: 5 | J5: 02 | K5: 07 | L5: 1932 | M5: 2 | N5: 150 | O5: 2020 | P5: P | Q5: 1975 | R5: 15 | S5: 240 | T5: 2040 | U5: 15 | V5: 25 | W5: 35 | X5: 6 | Y5: 36.3 | Z5: 20 | AA5: 9.4
A6: 406000020000000000 | B6: 000020000000000 | C6: 406 | D6: N4075 | E6: 'DRAINAGE CANAL' | F6: 'N4075 (7 ST.)' | G6: 34553051 | H6: 095454463 | I6: 2 | J6: 04 | K6: 19 | L6: 1946 | M6: 2 | N6: 300 | O6: 2020 | P6: P | Q6: 0 | R6: 5 | S6: 480 | T6: 2040 | U6: 15 | V6: 30 | W6: 20 | X6: 6 | Y6: 32.7 | Z6: 10 | AA6: 9.4
A7: 406000021640-00005 | B7: 000021640-00005 | C7: 406 | D7: 00000 | E7: 'HORTON SLOUGH' | F7: 'AUTO TOUR ROAD' | G7: 35264920 | H7: 094582400 | I7: 159 | J7: 63 | K7: 09 | L7: 1940 | M7: 2 | N7: 50 | O7: 2022 | P7: A | Q7: 0 | R7: 0 | S7: 60 | T7: 2042 | U7: 15 | V7: 20 | W7: 15 | X7: 6 | Y7: 32.7 | Z7: 10 | AA7: 11.3
A8: 406000021640-00029 | B8: 000021640-00029 | C8: 406 | D8: 00000 | E8: 'UNNAMED FIELD DRAINAGE' | F8: 'ENTRANCE ROAD' | G8: 35270420 | H8: 094582400 | I8: 159 | J8: 63 | K8: 09 | L8: 1940 | M8: 2 | N8: 50 | O8: 2022 | P8: A | Q8: 0 | R8: 0 | S8: 60 | T8: 2042 | U8: 35 | V8: 50 | W8: -1 | X8: N | Y8: 36.3 | Z8: -1 | AA8: 6.7
A9: 406000021650-00082 | B9: 000021650-00082 | C9: 406 | D9: 00000 | E9: 'SPRING CREEK' | F9: 'OLD ST. HWY. 22' | G9: 34113900 | H9: 096384740 | I9: 10 | J9: 63 | K9: 09 | L9: 1980 | M9: 2 | N9: 30 | O9: 2022 | P9: A | Q9: 0 | R9: 0 | S9: 50 | T9: 2042 | U9: 45 | V9: 99 | W9: -1 | X9: N | Y9: 36.3 | Z9: -1 | AA9: 9.8
A10: 406000021650-00083 | B10: 000021650-00083 | C10: 406 | D10: 00000 | E10: 'BIG SANDY CREEK' | F10: 'OLD ST. HWY. 22' | G10: 34113960 | H10: 096381020 | I10: 10 | J10: 63 | K10: 09 | L10: 1920 | M10: 2 | N10: 35 | O10: 2022 | P10: P | Q10: 0 | R10: 0 | S10: 50 | T10: 2042 | U10: 5 | V10: 15 | W10: 5 | X10: 4 | Y10: 32.7 | Z10: 0 | AA10: 23.8
A11: 406000021670-00001 | B11: 000021670-00001 | C11: 406 | D11: 00000 | E11: 'HEADQUARTERS CREEK' | F11: 'INDIAHOMA ROAD' | G11: 34440900 | H11: 098424680 | I11: 16 | J11: 63 | K11: 09 | L11: 1993 | M11: 2 | N11: 1250 | O11: 2022 | P11: A | Q11: 0 | R11: 1 | S11: 1250 | T11: 2042 | U11: 30 | V11: 99 | W11: -1 | X11: N | Y11: 57.2 | Z11: -1 | AA11: 13.7
A12: 406000021670-00003 | B12: 000021670-00003 | C12: 406 | D12: 00000 | E12: 'WEST CACHE CREEK' | F12: 'STATE HWY 49' | G12: 34441080 | H12: 098424260 | I12: 24 | J12: 63 | K12: 09 | L12: 1935 | M12: 2 | N12: 1250 | O12: 2022 | P12: A | Q12: 1992 | R12: 1 | S12: 1250 | T12: 2042 | U12: 20 | V12: 30 | W12: 25 | X12: 7 | Y12: 36.3 | Z12: 15 | AA12: 11.6
A13: 406000021670-00009 | B13: 000021670-00009 | C13: 406 | D13: 00049 | E13: 'TURKEY CREEK' | F13: 'STATE HWY 49' | G13: 34435220 | H13: 098412760 | I13: 24 | J13: 63 | K13: 09 | L13: 1992 | M13: 2 | N13: 1250 | O13: 2022 | P13: A | Q13: 0 | R13: 1 | S13: 1250 | T13: 2042 | U13: 5 | V13: 15 | W13: -1 | X13: N | Y13: 36.3 | Z13: -1 | AA13: 6.7
A14: 406000021670-00015 | B14: 000021670-00015 | C14: 406 | D14: 00000 | E14: 'PANTHER CREEK' | F14: 'STATE HWY 49' | G14: 34432820 | H14: 098402640 | I14: 24 | J14: 63 | K14: 09 | L14: 1992 | M14: 2 | N14: 1250 | O14: 2022 | P14: A | Q14: 0 | R14: 1 | S14: 1250 | T14: 2042 | U14: 20 | V14: 30 | W14: 25 | X14: 7 | Y14: 57.2 | Z14: 15 | AA14: 30.5
A15: 406000021670-00022 | B15: 000021670-00022 | C15: 406 | D15: 00049 | E15: 'EAST QUANAH CREEK' | F15: 'STATE HWY 49' | G15: 34431380 | H15: 098382460 | I15: 24 | J15: 63 | K15: 09 | L15: 1936 | M15: 2 | N15: 1250 | O15: 2022 | P15: A | Q15: 1992 | R15: 1 | S15: 1250 | T15: 2042 | U15: 40 | V15: 99 | W15: -1 | X15: N | Y15: 36.3 | Z15: -1 | AA15: 7.6
A16: 406000021670-00038 | B16: 000021670-00038 | C16: 406 | D16: 00000 | E16: 'ANTELOPE FLAT DRAINAGE' | F16: 'STATE HWY 49' | G16: 34443840 | H16: 098443000 | I16: 6 | J16: 63 | K16: 09 | L16: 1939 | M16: 2 | N16: 1250 | O16: 2022 | P16: A | Q16: 1945 | R16: 1 | S16: 1250 | T16: 2042 | U16: 25 | V16: 40 | W16: 25 | X16: 6 | Y16: 36.3 | Z16: 15 | AA16: 9.1
A17: 406000021670-00064 | B17: 000021670-00064 | C17: 406 | D17: 00115 | E17: 'CEDAR CREEK' | F17: 'STATE HWY 115' | G17: 34444980 | H17: 098345580 | I17: 18 | J17: 63 | K17: 09 | L17: 1935 | M17: 2 | N17: 1250 | O17: 2022 | P17: A | Q17: 1950 | R17: 1 | S17: 1250 | T17: 2042 | U17: 15 | V17: 30 | W17: 25 | X17: 6 | Y17: 32.7 | Z17: 15 | AA17: 6.7
A18: 406000021670-00127 | B18: 000021670-00127 | C18: 406 | D18: 00049 | E18: 'BLUE BEAVER CREEK' | F18: 'STATE HWY 49 & 115' | G18: 34432580 | H18: 098355820 | I18: 51 | J18: 63 | K18: 09 | L18: 1935 | M18: 2 | N18: 1250 | O18: 2022 | P18: A | Q18: 2016 | R18: 1 | S18: 1250 | T18: 2042 | U18: 15 | V18: 30 | W18: 25 | X18: 6 | Y18: 36.3 | Z18: 15 | AA18: 21.3
A19: 406000021670-00135 | B19: 000021670-00135 | C19: 406 | D19: 00115 | E19: 'FLAT CREEK' | F19: 'STATE HWY 115' | G19: 34410780 | H19: 098375280 | I19: 29 | J19: 63 | K19: 09 | L19: 1992 | M19: 2 | N19: 1250 | O19: 2022 | P19: A | Q19: 2011 | R19: 1 | S19: 1250 | T19: 2042 | U19: 35 | V19: 99 | W19: -1 | X19: N | Y19: 36.3 | Z19: -1 | AA19: 7.3
A20: 406000021670-00136 | B20: 000021670-00136 | C20: 406 | D20: 00000 | E20: 'UPPER BLUE BEAVER CREEK' | F20: 'J. JOHNSON LAKE RD' | G20: 34441320 | H20: 098354980 | I20: 159 | J20: 63 | K20: 09 | L20: 1941 | M20: 2 | N20: 200 | O20: 2022 | P20: A | Q20: 0 | R20: 1 | S20: 200 | T20: 2042 | U20: 15 | V20: 30 | W20: 20 | X20: 6 | Y20: 36.3 | Z20: 10 | AA20: 15.8
A21: 406000040000000000 | B21: 000040000000000 | C21: 406 | D21: E1160 | E21: 'ELK CREEK' | F21: 'E1160' | G21: 35200499 | H21: 099220399 | I21: 6 | J21: 02 | K21: 09 | L21: 1989 | M21: 2 | N21: 25 | O21: 2020 | P21: A | Q21: 0 | R21: 10 | S21: 40 | T21: 2040 | U21: 25 | V21: 35 | W21: 30 | X21: 7 | Y21: 74.4 | Z21: 15 | AA21: 21.9
A22: 406000060000000000 | B22: 000060000000000 | C22: 406 | D22: E2080 | E22: 'CLEAR CREEK' | F22: 'E2080' | G22: 33595004 | H22: 095085394 | I22: 3 | J22: 02 | K22: 09 | L22: 1900 | M22: 2 | N22: 100 | O22: 2020 | P22: A | Q22: 1960 | R22: 10 | S22: 160 | T22: 2040 | U22: 10 | V22: 20 | W22: 15 | X22: 5 | Y22: 54.4 | Z22: 5 | AA22: 21.9
A23: 406000080000000000 | B23: 000080000000000 | C23: 406 | D23: E1580 | E23: 'CREEK' | F23: 'E1580' | G23: 34432861 | H23: 097165804 | I23: 3 | J23: 02 | K23: 09 | L23: 1990 | M23: 2 | N23: 100 | O23: 2020 | P23: A | Q23: 0 | R23: 10 | S23: 160 | T23: 2040 | U23: 20 | V23: 30 | W23: 25 | X23: 8 | Y23: 99.9 | Z23: 15 | AA23: 28.2
A24: 4060000G04920T0001 | B24: 0000G04920T0001 | C24: 406 | D24: 00117 | E24: 'CREEK' | F24: 'POW WOW GRDS-MAIN' | G24: 36560254 | H24: 094451422 | I24: 199 | J24: 61 | K24: 09 | L24: 1999 | M24: 1 | N24: 10 | O24: 2023 | P24: B | Q24: 0 | R24: 0 | S24: 2033 | T24: 20 | U24: 10 | V24: 15 | W24: 15 | X24: 6 | Y24: 25.1 | Z24: 10 | AA24: 20.1
A25: 4060000G07908T0001 | B25: 0000G07908T0001 | C25: 406 | D25: 01481 | E25: 'OKMULGEE CREEK' | F25: 'MIAMI STREET' | G25: 35383055 | H25: 095572736 | I25: 2 | J25: 61 | K25: 19 | L25: 1999 | M25: 2 | N25: 100 | O25: 2023 | P25: A | Q25: 0 | R25: 10 | S25: 120 | T25: 2028 | U25: 20 | V25: 40 | W25: -1 | X25: N | Y25: 36.2 | Z25: -1 | AA25: 6.6
A26: 406000100000000000 | B26: 000100000000000 | C26: 406 | D26: N3150 | E26: 'RED ROCK CREEK' | F26: 'N3150' | G26: 36291410 | H26: 097232493 | I26: 3 | J26: 02 | K26: 09 | L26: 1990 | M26: 2 | N26: 24 | O26: 2020 | P26: A | Q26: 0 | R26: 10 | S26: 38 | T26: 2040 | U26: 15 | V26: 30 | W26: 20 | X26: 6 | Y26: 32.7 | Z26: 10 | AA26: 37.5
A27: 406000130000000000 | B27: 000130000000000 | C27: 406 | D27: N4080 | E27: 'LITTLE CANE CREEK' | F27: 'N4080' | G27: 35411059 | H27: 095445500 | I27: 6 | J27: 02 | K27: 09 | L27: 1989 | M27: 2 | N27: 100 | O27: 2020 | P27: A | Q27: 0 | R27: 10 | S27: 160 | T27: 2040 | U27: 15 | V27: 30 | W27: 25 | X27: 7 | Y27: 57.5 | Z27: 15 | AA27: 46.6
A28: 406000140000000000 | B28: 000140000000000 | C28: 406 | D28: N3330 | E28: 'CHEROKEE SANDY CREEK' | F28: 'N3330' | G28: 34435651 | H28: 097042230 | I28: 6 | J28: 02 | K28: 09 | L28: 1989 | M28: 2 | N28: 100 | O28: 2020 | P28: A | Q28: 0 | R28: 10 | S28: 160 | T28: 2040 | U28: 20 | V28: 30 | W28: 30 | X28: 8 | Y28: 53.8 | Z28: 20 | AA28: 60.3
A29: 406000150000000000 | B29: 000150000000000 | C29: 406 | D29: 6214C | E29: 'SANDY CREEK' | F29: '6214C' | G29: 34483907 | H29: 096422119 | I29: 10 | J29: 02 | K29: 07 | L29: 1990 | M29: 2 | N29: 100 | O29: 2020 | P29: A | Q29: 0 | R29: 15 | S29: 160 | T29: 2040 | U29: 20 | V29: 30 | W29: 40 | X29: 7 | Y29: 53.5 | Z29: 25 | AA29: 60.3
A30: =CONCATENATE(C30, B30) -> 406000280000000000 | B30: 000280000000000 | C30: 406 | D30: E1250 | E30: 'CREEK' | F30: 'E1250' | G30: 35121658 | H30: 099565009 | I30: 6 | J30: 02 | K30: 09 | L30: 1905 | M30: 2 | N30: 25 | O30: 2020 | P30: A | Q30: 0 | R30: 10 | S30: 40 | T30: 2040 | U30: 10 | V30: 20 | W30: 10 | X30: 4 | Y30: 32.7 | Z30: 0 | AA30: 6.7
A31: 406000390000000000 | B31: 000390000000000 | C31: 406 | D31: N2950 | E31: 'SKELETON CREEK' | F31: 'N2950' | G31: 36105193 | H31: 097444933 | I31: 3 | J31: 02 | K31: 09 | L31: 1905 | M31: 2 | N31: 100 | O31: 2020 | P31: P | Q31: 0 | R31: 10 | S31: 160 | T31: 2040 | U31: 15 | V31: 25 | W31: 20 | X31: 6 | Y31: 26.9 | Z31: 10 | AA31: 31.7
A32: 406000420000000000 | B32: 000420000000000 | C32: 406 | D32: 06784 | E32: 'UP R.R. UNDER' | F32: 'FAU 6784 CALLAHAN' | G32: 35445766 | H32: 095220299 | I32: 5 | J32: 04 | K32: 16 | L32: 1905 | M32: 2 | N32: 7560 | O32: 2020 | P32: P | Q32: 2005 | R32: 5 | S32: 12096 | T32: 2040 | U32: 10 | V32: 20 | W32: 10 | X32: 4 | Y32: 30.9 | Z32: 0 | AA32: 79.2
A33: 406000440000000000 | B33: 000440000000000 | C33: 406 | D33: N3651 | E33: 'CREEK' | F33: 'N3651 (0716C)' | G33: 33493808 | H33: 096310428 | I33: 10 | J33: 02 | K33: 09 | L33: 1906 | M33: 1 | N33: 100 | O33: 2020 | P33: A | Q33: 0 | R33: 10 | S33: 160 | T33: 2040 | U33: 30 | V33: 99 | W33: -1 | X33: N | Y33: 32.7 | Z33: -1 | AA33: 40.2
A34: 406000600000000000 | B34: 000600000000000 | C34: 406 | D34: E1570 | E34: 'BEAVER CREEK' | F34: 'E1570' | G34: 34442109 | H34: 098093283 | I34: 6 | J34: 02 | K34: 09 | L34: 1906 | M34: 1 | N34: 75 | O34: 2020 | P34: P | Q34: 0 | R34: 10 | S34: 120 | T34: 2040 | U34: 0 | V34: 15 | W34: 0 | X34: 3 | Y34: 13 | Z34: 0 | AA34: 21.3
A35: 406000680000000000 | B35: 000680000000000 | C35: 406 | D35: E1579 | E35: 'MEDICINE CREEK' | F35: 'E1579 (CITY ST.)' | G35: 34433550 | H35: 098300397 | I35: 2 | J35: 04 | K35: 19 | L35: 1906 | M35: 1 | N35: 200 | O35: 2020 | P35: P | Q35: 0 | R35: 5 | S35: 320 | T35: 2040 | U35: 5 | V35: 10 | W35: 15 | X35: 5 | Y35: 8.4 | Z35: 5 | AA35: 44.8
A36: 406000700000000000 | B36: 000700000000000 | C36: 406 | D36: 6374C | E36: 'S. CANADIAN RIVER' | F36: 'D3342 (6374C)' | G36: 34550615 | H36: 097030332 | I36: 19 | J36: 02 | K36: 07 | L36: 1906 | M36: 1 | N36: 250 | O36: 2020 | P36: P | Q36: 1993 | R36: 15 | S36: 400 | T36: 2040 | U36: 10 | V36: 30 | W36: 20 | X36: 5 | Y36: 20 | Z36: 5 | AA36: 242.3
A37: 406000750000000000 | B37: 000750000000000 | C37: 406 | D37: 03610 | E37: 'UP R.R. UNDER' | F37: 'FAU 3610(RODEO RD.' | G37: 33571400 | H37: 096242100 | I37: 6 | J37: 04 | K37: 09 | L37: 1907 | M37: 1 | N37: 750 | O37: 2020 | P37: P | Q37: 0 | R37: 10 | S37: 1200 | T37: 2040 | U37: 15 | V37: 30 | W37: 15 | X37: 5 | Y37: 32.7 | Z37: 5 | AA37: 15.8
A38: 406000780000000000 | B38: 000780000000000 | C38: 406 | D38: N4639 | E38: 'SMITH HOLLOW CREEK' | F38: 'N4639 (0126C)' | G38: 35494051 | H38: 094451869 | I38: 6 | J38: 02 | K38: 07 | L38: 1938 | M38: 2 | N38: 350 | O38: 2020 | P38: P | Q38: 1986 | R38: 15 | S38: 560 | T38: 2040 | U38: 5 | V38: 15 | W38: 15 | X38: 5 | Y38: 26.3 | Z38: 5 | AA38: 11
A39: 406000820000000000 | B39: 000820000000000 | C39: 406 | D39: 00075 | E39: 'COAL CREEK' | F39: 'U.S. 75 SD' | G39: 35571377 | H39: 096003952 | I39: 0 | J39: 01 | K39: 19 | L39: 1958 | M39: 2 | N39: 500 | O39: 2020 | P39: A | Q39: 0 | R39: 7 | S39: 800 | T39: 2040 | U39: 40 | V39: 99 | W39: -1 | X39: N | Y39: 44.5 | Z39: -1 | AA39: 14.3
A40: 406001030000000000 | B40: 001030000000000 | C40: 406 | D40: N2760 | E40: 'CREEK' | F40: 'N2760' | G40: 35360485 | H40: 098050027 | I40: 5 | J40: 02 | K40: 09 | L40: 1989 | M40: 2 | N40: 100 | O40: 2020 | P40: P | Q40: 0 | R40: 10 | S40: 160 | T40: 2040 | U40: 15 | V40: 30 | W40: 20 | X40: 6 | Y40: 19.1 | Z40: 10 | AA40: 11
A41: 406001080000000000 | B41: 001080000000000 | C41: 406 | D41: 00056 | E41: 'OKMULGEE CREEK' | F41: 'S.H. 56' | G41: 35372292 | H41: 095575051 | I41: 4 | J41: 01 | K41: 16 | L41: 1909 | M41: 2 | N41: 9400 | O41: 2020 | P41: A | Q41: 1991 | R41: 5 | S41: 15040 | T41: 2040 | U41: 25 | V41: 35 | W41: 25 | X41: 7 | Y41: 32.7 | Z41: 15 | AA41: 12.2
A42: 406001160000000000 | B42: 001160000000000 | C42: 406 | D42: E1980 | E42: 'CREEK' | F42: 'MCCLAIN RD.' | G42: 34083725 | H42: 097060190 | I42: 5 | J42: 04 | K42: 09 | L42: 1909 | M42: 1 | N42: 50 | O42: 2020 | P42: P | Q42: 2020 | R42: 10 | S42: 80 | T42: 2040 | U42: 15 | V42: 20 | W42: 20 | X42: 5 | Y42: 19.3 | Z42: 10 | AA42: 20.7
A43: 406001170000000000 | B43: 001170000000000 | C43: 406 | D43: N2890 | E43: 'RUSH CREEK' | F43: 'N2890' | G43: 34443417 | H43: 097503848 | I43: 6 | J43: 02 | K43: 09 | L43: 1992 | M43: 2 | N43: 75 | O43: 2020 | P43: P | Q43: 0 | R43: 10 | S43: 120 | T43: 2040 | U43: 15 | V43: 25 | W43: 20 | X43: 6 | Y43: 28.1 | Z43: 10 | AA43: 24.4
A44: 406001200000000000 | B44: 001200000000000 | C44: 406 | D44: N4260 | E44: 'PRETTY CREEK' | F44: 'N4260' | G44: 36503500 | H44: 095245000 | I44: 6 | J44: 02 | K44: 09 | L44: 1909 | M44: 1 | N44: 25 | O44: 2020 | P44: K | Q44: 0 | R44: 10 | S44: 40 | T44: 2040 | U44: 0 | V44: 0 | W44: 0 | X44: 3 | Y44: 0 | Z44: 0 | AA44: 35.4
A45: 406001220000000000 | B45: 001220000000000 | C45: 406 | D45: E0790 | E45: 'SNAKE CREEK' | F45: 'E0790 (201 S)' | G45: 35521481 | H45: 095523701 | I45: 6 | J45: 02 | K45: 09 | L45: 1909 | M45: 1 | N45: 288 | O45: 2020 | P45: K | Q45: 0 | R45: 10 | S45: 461 | T45: 2040 | U45: 0 | V45: 0 | W45: 0 | X45: 2 | Y45: 0 | Z45: 0 | AA45: 38.1
A46: 406001320000000000 | B46: 001320000000000 | C46: 406 | D46: N3120 | E46: 'CREEK' | F46: 'N3120' | G46: 36324231 | H46: 097263912 | I46: 3 | J46: 02 | K46: 07 | L46: 1993 | M46: 2 | N46: 140 | O46: 2020 | P46: A | Q46: 0 | R46: 15 | S46: 224 | T46: 2040 | U46: 15 | V46: 30 | W46: 30 | X46: 6 | Y46: 72.6 | Z46: 15 | AA46: 7.3
A47: 406001480000000000 | B47: 001480000000000 | C47: 406 | D47: 01023 | E47: 'CREEK' | F47: '1056C' | G47: 34191024 | H47: 097231402 | I47: 5 | J47: 02 | K47: 07 | L47: 1910 | M47: 2 | N47: 129 | O47: 2020 | P47: A | Q47: 2003 | R47: 15 | S47: 206 | T47: 2040 | U47: 5 | V47: 15 | W47: 25 | X47: 5 | Y47: 52.6 | Z47: 10 | AA47: 11.3
A48: 406001520000000000 | B48: 001520000000000 | C48: 406 | D48: E0590 | E48: 'CREEK' | F48: 'E0590' | G48: 36093300 | H48: 097235130 | I48: 3 | J48: 02 | K48: 09 | L48: 1954 | M48: 2 | N48: 25 | O48: 2020 | P48: P | Q48: 0 | R48: 10 | S48: 40 | T48: 2040 | U48: 5 | V48: 10 | W48: 15 | X48: 5 | Y48: 27.1 | Z48: 5 | AA48: 9.8
A49: 406001550000000000 | B49: 001550000000000 | C49: 406 | D49: E0940 | E49: 'CREEK' | F49: 'N.E. 178TH' | G49: 35390907 | H49: 097162674 | I49: 6 | J49: 04 | K49: 19 | L49: 1982 | M49: 2 | N49: 100 | O49: 2020 | P49: K | Q49: 0 | R49: 5 | S49: 160 | T49: 2040 | U49: 0 | V49: 0 | W49: 0 | X49: 0 | Y49: 0 | Z49: 0 | AA49: 11
A50: 406001670000000000 | B50: 001670000000000 | C50: 406 | D50: N3140 | E50: 'CREEK' | F50: '24TH AVE NE' | G50: 35170164 | H50: 097242182 | I50: 2 | J50: 04 | K50: 09 | L50: 1992 | M50: 2 | N50: 464 | O50: 2020 | P50: A | Q50: 0 | R50: 10 | S50: 650 | T50: 2040 | U50: 15 | V50: 25 | W50: -1 | X50: N | Y50: 44.5 | Z50: -1 | AA50: 11
A51: 406001730000000000 | B51: 001730000000000 | C51: 406 | D51: E0740 | E51: 'SOLDIER CREEK' | F51: 'E0740' | G51: 35563083 | H51: 097135101 | I51: 3 | J51: 02 | K51: 09 | L51: 1910 | M51: 1 | N51: 25 | O51: 2020 | P51: K | Q51: 0 | R51: 10 | S51: 40 | T51: 2040 | U51: 0 | V51: 10 | W51: 15 | X51: 5 | Y51: 0 | Z51: 5 | AA51: 14.3
A52: 406001830000000000 | B52: 001830000000000 | C52: 406 | D52: E1280 | E52: 'CREEK' | F52: 'E1280' | G52: 35093649 | H52: 098013031 | I52: 5 | J52: 02 | K52: 09 | L52: 1910 | M52: 1 | N52: 50 | O52: 2020 | P52: P | Q52: 1960 | R52: 10 | S52: 80 | T52: 2040 | U52: 15 | V52: 20 | W52: 20 | X52: 6 | Y52: 27.2 | Z52: 10 | AA52: 14.6
A53: 406001900000000000 | B53: 001900000000000 | C53: 406 | D53: 05108 | E53: 'BUTLER CREEK' | F53: 'FAS 5108' | G53: 35345063 | H53: 095250522 | I53: 3 | J53: 02 | K53: 07 | L53: 1910 | M53: 1 | N53: 50 | O53: 2020 | P53: P | Q53: 0 | R53: 15 | S53: 80 | T53: 2040 | U53: 5 | V53: 10 | W53: 10 | X53: 4 | Y53: 7.3 | Z53: 0 | AA53: 16.2
A54: 406001950000000000 | B54: 001950000000000 | C54: 406 | D54: E1560 | E54: 'NINE MILE BEAVER CREEK' | F54: 'E1560' | G54: 34451200 | H54: 098162700 | I54: 6 | J54: 02 | K54: 09 | L54: 1910 | M54: 1 | N54: 25 | O54: 2020 | P54: P | Q54: 0 | R54: 10 | S54: 40 | T54: 2040 | U54: 10 | V54: 20 | W54: 10 | X54: 4 | Y54: 9.9 | Z54: 0 | AA54: 18.9
A55: 406002040000000000 | B55: 002040000000000 | C55: 406 | D55: N3220 | E55: 'RED ROCK CREEK' | F55: 'N3220' | G55: 36271569 | H55: 097155372 | I55: 3 | J55: 02 | K55: 09 | L55: 1910 | M55: 1 | N55: 24 | O55: 2020 | P55: K | Q55: 0 | R55: 10 | S55: 38 | T55: 2040 | U55: 0 | V55: 0 | W55: 0 | X55: 0 | Y55: 0 | Z55: 0 | AA55: 30.5
A56: 406002050000000000 | B56: 002050000000000 | C56: 406 | D56: N2960 | E56: 'WOLF CREEK' | F56: 'N2960' | G56: 36115947 | H56: 097434757 | I56: 3 | J56: 02 | K56: 09 | L56: 1910 | M56: 1 | N56: 25 | O56: 2020 | P56: K | Q56: 0 | R56: 10 | S56: 40 | T56: 2040 | U56: 0 | V56: 0 | W56: 0 | X56: 0 | Y56: 0 | Z56: 0 | AA56: 23.2
A57: 406002080000000000 | B57: 002080000000000 | C57: 406 | D57: 0384C | E57: 'SALT CREEK' | F57: 'N3770 (PARK LN)' | G57: 34163364 | H57: 096181056 | I57: 10 | J57: 02 | K57: 07 | L57: 1991 | M57: 2 | N57: 100 | O57: 2020 | P57: A | Q57: 0 | R57: 15 | S57: 160 | T57: 2040 | U57: 20 | V57: 30 | W57: 45 | X57: 8 | Y57: 89.8 | Z57: 30 | AA57: 31.4
A58: 406002570000000000 | B58: 002570000000000 | C58: 406 | D58: 0926C | E58: 'PURCELL CREEK BR.' | F58: '0926C' | G58: 35270000 | H58: 097515247 | I58: 3 | J58: 02 | K58: 07 | L58: 1911 | M58: 1 | N58: 100 | O58: 2020 | P58: P | Q58: 0 | R58: 15 | S58: 160 | T58: 2040 | U58: 15 | V58: 30 | W58: 20 | X58: 5 | Y58: 20.9 | Z58: 5 | AA58: 9.1
A59: 406002580000000000 | B59: 002580000000000 | C59: 406 | D59: E1010 | E59: 'GENTRY CREEK' | F59: 'E1010' | G59: 35330624 | H59: 095403521 | I59: 6 | J59: 02 | K59: 09 | L59: 1911 | M59: 1 | N59: 100 | O59: 2020 | P59: P | Q59: 0 | R59: 10 | S59: 160 | T59: 2040 | U59: 15 | V59: 30 | W59: 15 | X59: 5 | Y59: 26 | Z59: 5 | AA59: 11.9
A60: 406002600000000000 | B60: 002600000000000 | C60: 406 | D60: N2740 | E60: 'WAGON CREEK' | F60: 'N2740' | G60: 36410462 | H60: 098073856 | I60: 5 | J60: 02 | K60: 09 | L60: 1911 | M60: 2 | N60: 100 | O60: 2020 | P60: P | Q60: 0 | R60: 10 | S60: 160 | T60: 2040 | U60: 10 | V60: 25 | W60: 25 | X60: 6 | Y60: 24.5 | Z60: 15 | AA60: 12.5
A61: 406002620000000000 | B61: 002620000000000 | C61: 406 | D61: N4160 | E61: 'CREEK' | F61: 'N4160' | G61: 35332242 | H61: 095362395 | I61: 6 | J61: 02 | K61: 09 | L61: 1911 | M61: 1 | N61: 50 | O61: 2020 | P61: P | Q61: 0 | R61: 10 | S61: 80 | T61: 2040 | U61: 10 | V61: 15 | W61: 10 | X61: 4 | Y61: 11.8 | Z61: 0 | AA61: 13.4
A62: 406002760000000000 | B62: 002760000000000 | C62: 406 | D62: E1570 | E62: 'ROCK CREEK' | F62: 'IRR E1570' | G62: 34441994 | H62: 095025965 | I62: 3 | J62: 02 | K62: 09 | L62: 1997 | M62: 2 | N62: 200 | O62: 2020 | P62: A | Q62: 0 | R62: 10 | S62: 320 | T62: 2040 | U62: 15 | V62: 25 | W62: 20 | X62: 8 | Y62: 64.4 | Z62: 15 | AA62: 41.1
A63: 406002800000000000 | B63: 002800000000000 | C63: 406 | D63: 5142C | E63: 'CREEK' | F63: '5142C' | G63: 35411709 | H63: 095403919 | I63: 5 | J63: 02 | K63: 07 | L63: 1911 | M63: 1 | N63: 100 | O63: 2020 | P63: P | Q63: 1958 | R63: 15 | S63: 160 | T63: 2040 | U63: 5 | V63: 10 | W63: 10 | X63: 4 | Y63: 11.5 | Z63: 0 | AA63: 36
A64: 406002870000000000 | B64: 002870000000000 | C64: 406 | D64: N3730 | E64: 'MUD CREEK' | F64: 'N3730' | G64: 36393631 | H64: 096205887 | I64: 6 | J64: 02 | K64: 09 | L64: 1912 | M64: 2 | N64: 832 | O64: 2020 | P64: A | Q64: 1960 | R64: 10 | S64: 1331 | T64: 2040 | U64: 30 | V64: 99 | W64: -1 | X64: N | Y64: 32.7 | Z64: -1 | AA64: 7
A65: 406002890000000000 | B65: 002890000000000 | C65: 406 | D65: N2690 | E65: 'CREEK' | F65: 'N2690' | G65: 35505495 | H65: 098122505 | I65: 6 | J65: 02 | K65: 09 | L65: 1912 | M65: 1 | N65: 25 | O65: 2020 | P65: P | Q65: 0 | R65: 10 | S65: 40 | T65: 2040 | U65: 10 | V65: 25 | W65: 10 | X65: 4 | Y65: 32.7 | Z65: 0 | AA65: 7.3
A66: 406002910000000000 | B66: 002910000000000 | C66: 406 | D66: E0010 | E66: 'CREEK' | F66: 'E0010' | G66: 36595673 | H66: 097071726 | I66: 3 | J66: 02 | K66: 07 | L66: 1912 | M66: 1 | N66: 45 | O66: 2020 | P66: P | Q66: 0 | R66: 15 | S66: 72 | T66: 2040 | U66: 10 | V66: 25 | W66: 25 | X66: 5 | Y66: 20.9 | Z66: 10 | AA66: 7.3
A67: 406002920000000000 | B67: 002920000000000 | C67: 406 | D67: E0010 | E67: 'CREEK' | F67: 'E0010' | G67: 36595693 | H67: 097060300 | I67: 5 | J67: 02 | K67: 07 | L67: 1912 | M67: 1 | N67: 45 | O67: 2020 | P67: A | Q67: 0 | R67: 15 | S67: 72 | T67: 2040 | U67: 10 | V67: 25 | W67: 30 | X67: 6 | Y67: 32.7 | Z67: 15 | AA67: 7.9
A68: 406002930000000000 | B68: 002930000000000 | C68: 406 | D68: E0010 | E68: 'CHILOCCO CREEK' | F68: 'E0010' | G68: 36595645 | H68: 097052148 | I68: 3 | J68: 02 | K68: 08 | L68: 1920 | M68: 2 | N68: 45 | O68: 2020 | P68: P | Q68: 0 | R68: 15 | S68: 72 | T68: 2040 | U68: 15 | V68: 25 | W68: 30 | X68: 6 | Y68: 39 | Z68: 15 | AA68: 7.9
A69: 406002940000000000 | B69: 002940000000000 | C69: 406 | D69: 0748C | E69: 'ROCK CREEK' | F69: '0748C' | G69: 33594732 | H69: 096134798 | I69: 5 | J69: 02 | K69: 07 | L69: 1912 | M69: 2 | N69: 100 | O69: 2020 | P69: P | Q69: 0 | R69: 10 | S69: 160 | T69: 2040 | U69: 15 | V69: 25 | W69: 30 | X69: 6 | Y69: 32.7 | Z69: 15 | AA69: 6.1
A70: 406002970000000000 | B70: 002970000000000 | C70: 406 | D70: N2280 | E70: 'CREEK' | F70: 'N2280' | G70: 35061100 | H70: 098551300 | I70: 6 | J70: 02 | K70: 09 | L70: 1912 | M70: 1 | N70: 100 | O70: 2020 | P70: A | Q70: 0 | R70: 10 | S70: 160 | T70: 2040 | U70: 20 | V70: 35 | W70: 20 | X70: 5 | Y70: 37.2 | Z70: 10 | AA70: 9.8
A71: 406003000000000000 | B71: 003000000000000 | C71: 406 | D71: E0990 | E71: 'DEER CREEK' | F71: 'E0990' | G71: 35344503 | H71: 096395804 | I71: 3 | J71: 02 | K71: 09 | L71: 1992 | M71: 2 | N71: 100 | O71: 2020 | P71: A | Q71: 0 | R71: 10 | S71: 160 | T71: 2040 | U71: 20 | V71: 30 | W71: 25 | X71: 7 | Y71: 51.7 | Z71: 15 | AA71: 36.9
A72: 406003090000000000 | B72: 003090000000000 | C72: 406 | D72: E0990 | E72: 'ROBINSON CREEK' | F72: 'E0990' | G72: 35344583 | H72: 096445515 | I72: 3 | J72: 02 | K72: 09 | L72: 1912 | M72: 2 | N72: 100 | O72: 2020 | P72: P | Q72: 0 | R72: 10 | S72: 160 | T72: 2040 | U72: 5 | V72: 20 | W72: 15 | X72: 5 | Y72: 22.7 | Z72: 5 | AA72: 19.1
A73: 406003100000000000 | B73: 003100000000000 | C73: 406 | D73: N3570 | E73: 'SALT CREEK' | F73: 'N3570' | G73: 35452911 | H73: 096384213 | I73: 3 | J73: 02 | K73: 09 | L73: 1912 | M73: 2 | N73: 100 | O73: 2020 | P73: P | Q73: 0 | R73: 10 | S73: 160 | T73: 2040 | U73: 0 | V73: 15 | W73: 5 | X73: 4 | Y73: 20.7 | Z73: 0 | AA73: 19.2
A74: 406003130000000000 | B74: 003130000000000 | C74: 406 | D74: E0820 | E74: 'RANCH CREEK' | F74: 'E0820' | G74: 35493276 | H74: 096465256 | I74: 3 | J74: 02 | K74: 09 | L74: 1912 | M74: 1 | N74: 100 | O74: 2020 | P74: K | Q74: 0 | R74: 10 | S74: 160 | T74: 2040 | U74: 0 | V74: 0 | W74: 0 | X74: 0 | Y74: 0 | Z74: 0 | AA74: 20.4
A75: 406003140000000000 | B75: 003140000000000 | C75: 406 | D75: E1020 | E75: 'ROBINSON CREEK' | F75: 'E1020' | G75: 35320783 | H75: 096445037 | I75: 3 | J75: 02 | K75: 09 | L75: 1912 | M75: 2 | N75: 100 | O75: 2020 | P75: P | Q75: 2010 | R75: 10 | S75: 160 | T75: 2040 | U75: 15 | V75: 20 | W75: 15 | X75: 5 | Y75: 15.4 | Z75: 5 | AA75: 18.3
A76: 406003190000000000 | B76: 003190000000000 | C76: 406 | D76: E0960 | E76: 'DEER CREEK' | F76: 'E0960' | G76: 35372159 | H76: 096401822 | I76: 3 | J76: 02 | K76: 09 | L76: 1912 | M76: 1 | N76: 100 | O76: 2020 | P76: K | Q76: 0 | R76: 10 | S76: 160 | T76: 2040 | U76: 0 | V76: 0 | W76: 0 | X76: 0 | Y76: 0 | Z76: 0 | AA76: 22.9
A77: 406003210000000000 | B77: 003210000000000 | C77: 406 | D77: 1834C | E77: 'BIG CREEK' | F77: '1834C' | G77: 36581036 | H77: 095211414 | I77: 26 | J77: 02 | K77: 07 | L77: 1912 | M77: 1 | N77: 50 | O77: 2020 | P77: P | Q77: 0 | R77: 15 | S77: 80 | T77: 2040 | U77: 5 | V77: 25 | W77: 25 | X77: 6 | Y77: 17 | Z77: 15 | AA77: 25.6
A78: 406003290000000000 | B78: 003290000000000 | C78: 406 | D78: N3740 | E78: 'BIRD CREEK' | F78: 'N3740 (LYNN AVE)' | G78: 36393429 | H78: 096195436 | I78: 2 | J78: 04 | K78: 09 | L78: 1912 | M78: 2 | N78: 1000 | O78: 2020 | P78: P | Q78: 0 | R78: 10 | S78: 1600 | T78: 2040 | U78: 10 | V78: 20 | W78: 10 | X78: 5 | Y78: 32.7 | Z78: 5 | AA78: 50.6
A79: 406003310000000000 | B79: 003310000000000 | C79: 406 | D79: 7220C | E79: 'BIRD CREEK' | F79: '7220C(106 ST. N)' | G79: 36182713 | H79: 095573583 | I79: 5 | J79: 02 | K79: 09 | L79: 1912 | M79: 1 | N79: 1331 | O79: 2020 | P79: P | Q79: 0 | R79: 10 | S79: 2130 | T79: 2040 | U79: 5 | V79: 10 | W79: 5 | X79: 4 | Y79: 18.4 | Z79: 0 | AA79: 80.2
A80: 406003350000000000 | B80: 003350000000000 | C80: 406 | D80: E0660 | E80: 'CREEK' | F80: '56TH ST (E0660)' | G80: 36032834 | H80: 097092651 | I80: 3 | J80: 02 | K80: 09 | L80: 1913 | M80: 1 | N80: 25 | O80: 2020 | P80: A | Q80: 1985 | R80: 10 | S80: 40 | T80: 2040 | U80: 5 | V80: 15 | W80: 15 | X80: 5 | Y80: 56.5 | Z80: 5 | AA80: 10.4
A81: 406003550000000000 | B81: 003550000000000 | C81: 406 | D81: E0266 | E81: 'LITTLE CABIN CREEK' | F81: 'E0266' | G81: 36380320 | H81: 095062155 | I81: 6 | J81: 02 | K81: 09 | L81: 1913 | M81: 1 | N81: 30 | O81: 2020 | P81: P | Q81: 0 | R81: 10 | S81: 48 | T81: 2040 | U81: 5 | V81: 15 | W81: 5 | X81: 4 | Y81: 13.7 | Z81: 0 | AA81: 39
A82: 406003610000000000 | B82: 003610000000000 | C82: 406 | D82: E0560 | E82: 'CROWS NEST CREEK' | F82: 'E0560' | G82: 36121020 | H82: 097343653 | I82: 3 | J82: 02 | K82: 09 | L82: 1914 | M82: 1 | N82: 100 | O82: 2020 | P82: K | Q82: 1964 | R82: 10 | S82: 160 | T82: 2040 | U82: 0 | V82: 0 | W82: 0 | X82: 0 | Y82: 0 | Z82: 0 | AA82: 11
A83: 406003650000000000 | B83: 003650000000000 | C83: 406 | D83: 03824 | E83: 'LITTLE ELK CREEK' | F83: 'FAS 3824' | G83: 35060793 | H83: 099042870 | I83: 6 | J83: 02 | K83: 07 | L83: 1990 | M83: 2 | N83: 100 | O83: 2020 | P83: P | Q83: 0 | R83: 15 | S83: 160 | T83: 2040 | U83: 20 | V83: 30 | W83: 35 | X83: 6 | Y83: 9.1 | Z83: 20 | AA83: 15.2
A84: 406003680000000000 | B84: 003680000000000 | C84: 406 | D84: E0880 | E84: 'WEST FORK SANDY CREEK' | F84: 'E0880' | G84: 35442700 | H84: 096232100 | I84: 3 | J84: 02 | K84: 09 | L84: 1940 | M84: 1 | N84: 100 | O84: 2020 | P84: P | Q84: 0 | R84: 10 | S84: 160 | T84: 2040 | U84: 10 | V84: 25 | W84: 15 | X84: 4 | Y84: 20.9 | Z84: 0 | AA84: 14
A85: 406003720000000000 | B85: 003720000000000 | C85: 406 | D85: E0820 | E85: 'WEST BEAVER CREEK' | F85: 'E0820' | G85: 35493251 | H85: 096511108 | I85: 3 | J85: 02 | K85: 09 | L85: 1914 | M85: 1 | N85: 100 | O85: 2020 | P85: P | Q85: 0 | R85: 10 | S85: 160 | T85: 2040 | U85: 10 | V85: 20 | W85: 10 | X85: 4 | Y85: 19.5 | Z85: 0 | AA85: 15.8
A86: 406003770000000000 | B86: 003770000000000 | C86: 406 | D86: E0650 | E86: 'CREEK' | F86: 'E0650' | G86: 36042100 | H86: 097224300 | I86: 3 | J86: 02 | K86: 09 | L86: 1914 | M86: 2 | N86: 24 | O86: 2020 | P86: P | Q86: 0 | R86: 10 | S86: 38 | T86: 2040 | U86: 5 | V86: 10 | W86: 15 | X86: 5 | Y86: 6.4 | Z86: 5 | AA86: 18.6
A87: 406003790000000000 | B87: 003790000000000 | C87: 406 | D87: E1050 | E87: 'ROBINSON CREEK' | F87: 'E1050' | G87: 35293109 | H87: 096454904 | I87: 3 | J87: 02 | K87: 09 | L87: 1914 | M87: 1 | N87: 100 | O87: 2020 | P87: K | Q87: 0 | R87: 10 | S87: 160 | T87: 2040 | U87: 0 | V87: 0 | W87: 0 | X87: 3 | Y87: 0 | Z87: 0 | AA87: 18.6
A88: 406003820000000000 | B88: 003820000000000 | C88: 406 | D88: N3450 | E88: 'QUAPAW CREEK' | F88: 'N3450' | G88: 35314696 | H88: 096513169 | I88: 159 | J88: 02 | K88: 09 | L88: 1914 | M88: 1 | N88: 100 | O88: 2020 | P88: P | Q88: 0 | R88: 10 | S88: 160 | T88: 2040 | U88: 10 | V88: 15 | W88: 10 | X88: 4 | Y88: 14 | Z88: 0 | AA88: 23.1
A89: 406003890000000000 | B89: 003890000000000 | C89: 406 | D89: N3410 | E89: 'KICKAPOO CREEK' | F89: 'N3410' | G89: 35373618 | H89: 096554253 | I89: 3 | J89: 02 | K89: 09 | L89: 1914 | M89: 2 | N89: 100 | O89: 2020 | P89: K | Q89: 0 | R89: 10 | S89: 160 | T89: 2040 | U89: 0 | V89: 0 | W89: 0 | X89: 2 | Y89: 0 | Z89: 0 | AA89: 27.4
A90: 406003900000000000 | B90: 003900000000000 | C90: 406 | D90: E0980 | E90: 'ROBINSON CREEK' | F90: 'E0980' | G90: 35353803 | H90: 096441399 | I90: 3 | J90: 02 | K90: 09 | L90: 1914 | M90: 2 | N90: 100 | O90: 2020 | P90: P | Q90: 0 | R90: 10 | S90: 160 | T90: 2040 | U90: 5 | V90: 10 | W90: 10 | X90: 4 | Y90: 8.2 | Z90: 0 | AA90: 24.7
A91: 406003940000000000 | B91: 003940000000000 | C91: 406 | D91: N3130 | E91: 'BLACK BEAR CREEK' | F91: 'N3130' | G91: 36205755 | H91: 097253348 | I91: 3 | J91: 02 | K91: 09 | L91: 1914 | M91: 1 | N91: 24 | O91: 2020 | P91: K | Q91: 0 | R91: 10 | S91: 38 | T91: 2040 | U91: 0 | V91: 0 | W91: 0 | X91: 0 | Y91: 0 | Z91: 0 | AA91: 32.3
A92: 406004010000000000 | B92: 004010000000000 | C92: 406 | D92: N2050 | E92: 'CREEK' | F92: 'N2050' | G92: 35530262 | H92: 099202691 | I92: 6 | J92: 02 | K92: 09 | L92: 1915 | M92: 2 | N92: 25 | O92: 2020 | P92: A | Q92: 0 | R92: 10 | S92: 40 | T92: 2040 | U92: 20 | V92: 35 | W92: 20 | X92: 5 | Y92: 32.7 | Z92: 10 | AA92: 6.7
A93: 406004020000000000 | B93: 004020000000000 | C93: 406 | D93: N1740 | E93: 'TURKEY CREEK' | F93: 'N1740' | G93: 35104762 | H93: 099521584 | I93: 6 | J93: 02 | K93: 09 | L93: 1915 | M93: 2 | N93: 50 | O93: 2020 | P93: A | Q93: 0 | R93: 10 | S93: 80 | T93: 2040 | U93: 20 | V93: 35 | W93: 20 | X93: 5 | Y93: 32.7 | Z93: 10 | AA93: 6.7
A94: =CONCATENATE(C94, B94) -> 406004040000000000 | B94: 004040000000000 | C94: 406 | D94: 1642C | E94: 'CREEK' | F94: '1642C' | G94: 34265787 | H94: 098383858 | I94: 5 | J94: 02 | K94: 07 | L94: 1915 | M94: 2 | N94: 24 | O94: 2020 | P94: P | Q94: 0 | R94: 15 | S94: 38 | T94: 2040 | U94: 35 | V94: 99 | W94: -1 | X94: N | Y94: 32.7 | Z94: -1 | AA94: 6.1
A95: 406004200000000000 | B95: 004200000000000 | C95: 406 | D95: 1524C | E95: 'CREEK' | F95: '1524C' | G95: 34302000 | H95: 096301451 | I95: 2 | J95: 02 | K95: 07 | L95: 1992 | M95: 2 | N95: 100 | O95: 2020 | P95: A | Q95: 0 | R95: 15 | S95: 160 | T95: 2040 | U95: 20 | V95: 30 | W95: 40 | X95: 7 | Y95: 82.6 | Z95: 25 | AA95: 32.6
A96: 406004350000000000 | B96: 004350000000000 | C96: 406 | D96: E0470 | E96: 'SPRING CREEK' | F96: 'E0470' | G96: 36195800 | H96: 097594300 | I96: 3 | J96: 02 | K96: 09 | L96: 1915 | M96: 2 | N96: 100 | O96: 2020 | P96: P | Q96: 1973 | R96: 10 | S96: 160 | T96: 2040 | U96: 15 | V96: 20 | W96: 20 | X96: 6 | Y96: 14.5 | Z96: 10 | AA96: 18.9
A97: 406004510000000000 | B97: 004510000000000 | C97: 406 | D97: 6732C | E97: 'SAND CREEK' | F97: '6732C' | G97: 34595946 | H97: 096334053 | I97: 6 | J97: 02 | K97: 07 | L97: 1991 | M97: 2 | N97: 100 | O97: 2020 | P97: A | Q97: 0 | R97: 15 | S97: 160 | T97: 2040 | U97: 0 | V97: 10 | W97: 35 | X97: 6 | Y97: 61.7 | Z97: 20 | AA97: 19.8
A98: 406004530000000000 | B98: 004530000000000 | C98: 406 | D98: E1690 | E98: 'OTTER CREEK' | F98: 'E1690' | G98: 34335496 | H98: 099092853 | I98: 10 | J98: 02 | K98: 09 | L98: 1915 | M98: 1 | N98: 24 | O98: 2020 | P98: P | Q98: 2007 | R98: 10 | S98: 38 | T98: 2040 | U98: 10 | V98: 20 | W98: 25 | X98: 6 | Y98: 8.2 | Z98: 15 | AA98: 28
A99: 406004600000000000 | B99: 004600000000000 | C99: 406 | D99: E0660 | E99: 'N. CANADIAN RIVER' | F99: 'E0660' | G99: 36032500 | H99: 098350200 | I99: 4 | J99: 02 | K99: 09 | L99: 1915 | M99: 1 | N99: 100 | O99: 2020 | P99: P | Q99: 0 | R99: 10 | S99: 160 | T99: 2040 | U99: 10 | V99: 25 | W99: 10 | X99: 4 | Y99: 19.1 | Z99: 0 | AA99: 92
A100: 406004640000000000 | B100: 004640000000000 | C100: 406 | D100: N4517 | E100: 'ROSS BRANCH CREEK' | F100: 'N4517 (PARK HILL )' | G100: 35534900 | H100: 094582779 | I100: 2 | J100: 04 | K100: 19 | L100: 1916 | M100: 2 | N100: 650 | O100: 2020 | P100: A | Q100: 1994 | R100: 5 | S100: 1040 | T100: 2040 | U100: 15 | V100: 25 | W100: 15 | X100: 5 | Y100: 32.7 | Z100: 5 | AA100: 16.2
A101: 406004660000000000 | B101: 004660000000000 | C101: 406 | D101: E0790 | E101: 'OTTER CREEK' | F101: 'E0790' | G101: 35521235 | H101: 098092909 | I101: 3 | J101: 02 | K101: 09 | L101: 1916 | M101: 1 | N101: 100 | O101: 2020 | P101: A | Q101: 0 | R101: 10 | S101: 160 | T101: 2040 | U101: 15 | V101: 35 | W101: 20 | X101: 6 | Y101: 32.7 | Z101: 10 | AA101: 9.4
A102: 406004690000000000 | B102: 004690000000000 | C102: 406 | D102: E1550 | E102: 'WEST OTTER CREEK' | F102: 'IRR E1550' | G102: 34460734 | H102: 098513562 | I102: 6 | J102: 02 | K102: 09 | L102: 1916 | M102: 1 | N102: 100 | O102: 2020 | P102: P | Q102: 0 | R102: 10 | S102: 160 | T102: 2040 | U102: 5 | V102: 20 | W102: 15 | X102: 5 | Y102: 38.1 | Z102: 5 | AA102: 14.3
A103: 406004750000000000 | B103: 004750000000000 | C103: 406 | D103: E0610 | E103: 'WEST BEAVER CREEK' | F103: 'E0610' | G103: 36074977 | H103: 097273344 | I103: 3 | J103: 02 | K103: 09 | L103: 1916 | M103: 1 | N103: 100 | O103: 2020 | P103: K | Q103: 0 | R103: 10 | S103: 160 | T103: 2040 | U103: 0 | V103: 5 | W103: 5 | X103: 4 | Y103: 0 | Z103: 0 | AA103: 22.6
A104: 406004930000000000 | B104: 004930000000000 | C104: 406 | D104: N3650 | E104: 'CREEK' | F104: 'N3650' | G104: 36122151 | H104: 096295897 | I104: 8 | J104: 02 | K104: 07 | L104: 1970 | M104: 2 | N104: 411 | O104: 2020 | P104: A | Q104: 0 | R104: 15 | S104: 658 | T104: 2040 | U104: 20 | V104: 30 | W104: 20 | X104: 5 | Y104: 48.8 | Z104: 5 | AA104: 9.4
A105: 406004940000000000 | B105: 004940000000000 | C105: 406 | D105: E1630 | E105: 'CREEK' | F105: 'IRR E1630' | G105: 34390874 | H105: 098493949 | I105: 6 | J105: 02 | K105: 09 | L105: 1917 | M105: 1 | N105: 100 | O105: 2020 | P105: A | Q105: 0 | R105: 10 | S105: 160 | T105: 2040 | U105: 15 | V105: 30 | W105: 20 | X105: 6 | Y105: 37.2 | Z105: 10 | AA105: 10.4
A106: 406004980000000000 | B106: 004980000000000 | C106: 406 | D106: 6024C | E106: 'BRUSH CREEK' | F106: '140TH ST.' | G106: 35572100 | H106: 096542400 | I106: 6 | J106: 02 | K106: 09 | L106: 1917 | M106: 2 | N106: 175 | O106: 2020 | P106: A | Q106: 1992 | R106: 10 | S106: 280 | T106: 2040 | U106: 15 | V106: 25 | W106: 15 | X106: 5 | Y106: 35.4 | Z106: 5 | AA106: 15.2
A107: 406005020000000000 | B107: 005020000000000 | C107: 406 | D107: E1030 | E107: 'CREEK' | F107: 'E1030 (ELM ST)' | G107: 35312080 | H107: 097543318 | I107: 5 | J107: 04 | K107: 19 | L107: 1917 | M107: 2 | N107: 200 | O107: 2020 | P107: P | Q107: 0 | R107: 7 | S107: 320 | T107: 2040 | U107: 5 | V107: 20 | W107: 15 | X107: 5 | Y107: 13.8 | Z107: 5 | AA107: 18.7
A108: 406005070000000000 | B108: 005070000000000 | C108: 406 | D108: N3070 | E108: 'BLACK BEAR CREEK' | F108: 'N3070' | G108: 36221088 | H108: 097315642 | I108: 3 | J108: 02 | K108: 09 | L108: 1917 | M108: 1 | N108: 50 | O108: 2020 | P108: A | Q108: 1957 | R108: 10 | S108: 80 | T108: 2040 | U108: 10 | V108: 15 | W108: 20 | X108: 6 | Y108: 26.3 | Z108: 10 | AA108: 46.9
A109: 406005100000000000 | B109: 005100000000000 | C109: 406 | D109: N2890 | E109: 'CREEK' | F109: 'N2890' | G109: 36182100 | H109: 097511700 | I109: 3 | J109: 02 | K109: 09 | L109: 1918 | M109: 1 | N109: 20 | O109: 2020 | P109: A | Q109: 0 | R109: 10 | S109: 32 | T109: 2040 | U109: 10 | V109: 25 | W109: 20 | X109: 6 | Y109: 32.7 | Z109: 10 | AA109: 7.3
A110: 406005110000000000 | B110: 005110000000000 | C110: 406 | D110: N2580 | E110: 'SNAKE CREEK' | F110: 'N2580' | G110: 34255232 | H110: 098225898 | I110: 5 | J110: 02 | K110: 09 | L110: 1918 | M110: 2 | N110: 100 | O110: 2020 | P110: A | Q110: 0 | R110: 10 | S110: 160 | T110: 2040 | U110: 10 | V110: 25 | W110: 15 | X110: 5 | Y110: 37.2 | Z110: 5 | AA110: 7.3
A111: 406005120000000000 | B111: 005120000000000 | C111: 406 | D111: N3630 | E111: 'CREEK' | F111: 'N3630' | G111: 34134893 | H111: 096325535 | I111: 1 | J111: 02 | K111: 09 | L111: 1918 | M111: 2 | N111: 100 | O111: 2020 | P111: A | Q111: 0 | R111: 10 | S111: 160 | T111: 2040 | U111: 15 | V111: 30 | W111: 15 | X111: 5 | Y111: 44.5 | Z111: 5 | AA111: 7.3
A112: 406005140000000000 | B112: 005140000000000 | C112: 406 | D112: E1430 | E112: 'DRY CREEK' | F112: 'E1430' | G112: 34563220 | H112: 097502877 | I112: 5 | J112: 02 | K112: 09 | L112: 1918 | M112: 2 | N112: 50 | O112: 2020 | P112: P | Q112: 0 | R112: 10 | S112: 80 | T112: 2040 | U112: 15 | V112: 25 | W112: 25 | X112: 6 | Y112: 16.3 | Z112: 15 | AA112: 6.7
A113: 406005170000000000 | B113: 005170000000000 | C113: 406 | D113: 00011 | E113: 'DEER CREEK' | F113: 'S.H. 11' | G113: 36483874 | H113: 097273659 | I113: 5 | J113: 01 | K113: 06 | L113: 1918 | M113: 2 | N113: 2000 | O113: 2020 | P113: A | Q113: 1931 | R113: 16 | S113: 3200 | T113: 2040 | U113: 15 | V113: 30 | W113: 25 | X113: 5 | Y113: 42.6 | Z113: 10 | AA113: 6.2
A114: 406005190000000000 | B114: 005190000000000 | C114: 406 | D114: 00074 | E114: 'CREEK' | F114: 'S.H. 74' | G114: 34310860 | H114: 097241869 | I114: 47 | J114: 01 | K114: 07 | L114: 1918 | M114: 2 | N114: 900 | O114: 2020 | P114: A | Q114: 0 | R114: 15 | S114: 1440 | T114: 2040 | U114: 35 | V114: 99 | W114: -1 | X114: N | Y114: 44.5 | Z114: -1 | AA114: 7
A115: 406005210000000000 | B115: 005210000000000 | C115: 406 | D115: 0053A | E115: 'BIG BRANCH CREEK OFLOW' | F115: 'S.H. 53A' | G115: 34172115 | H115: 097021812 | I115: 35 | J115: 01 | K115: 07 | L115: 1918 | M115: 2 | N115: 300 | O115: 2020 | P115: A | Q115: 0 | R115: 15 | S115: 480 | T115: 2040 | U115: 40 | V115: 99 | W115: -1 | X115: N | Y115: 54.4 | Z115: -1 | AA115: 6.7
A116: 406005230000000000 | B116: 005230000000000 | C116: 406 | D116: 00049 | E116: 'CREEK' | F116: 'S.H. 49' | G116: 34442285 | H116: 098502387 | I116: 43 | J116: 01 | K116: 07 | L116: 1918 | M116: 2 | N116: 80 | O116: 2020 | P116: A | Q116: 0 | R116: 15 | S116: 128 | T116: 2040 | U116: 20 | V116: 30 | W116: 40 | X116: 6 | Y116: 99.9 | Z116: 20 | AA116: 6.7
A117: 406005240000000000 | B117: 005240000000000 | C117: 406 | D117: 0009A | E117: 'CREEK' | F117: 'S.H. 9 A' | G117: 34584171 | H117: 096452814 | I117: 6 | J117: 01 | K117: 07 | L117: 1918 | M117: 2 | N117: 810 | O117: 2020 | P117: A | Q117: 0 | R117: 15 | S117: 1296 | T117: 2040 | U117: 45 | V117: 99 | W117: -1 | X117: N | Y117: 54.4 | Z117: -1 | AA117: 7
A118: 406005260000000000 | B118: 005260000000000 | C118: 406 | D118: 00033 | E118: 'CREEK' | F118: 'S.H. 33' | G118: 35591819 | H118: 096354934 | I118: 63 | J118: 01 | K118: 06 | L118: 1918 | M118: 2 | N118: 7800 | O118: 2020 | P118: A | Q118: 0 | R118: 16 | S118: 12480 | T118: 2040 | U118: 40 | V118: 99 | W118: -1 | X118: N | Y118: 32.7 | Z118: -1 | AA118: 7.6
A119: 406005290000000000 | B119: 005290000000000 | C119: 406 | D119: 00115 | E119: 'SADDLE MTN. CREEK TRIB.' | F119: 'S.H. 115' | G119: 34521187 | H119: 098421525 | I119: 14 | J119: 01 | K119: 07 | L119: 1935 | M119: 2 | N119: 120 | O119: 2020 | P119: A | Q119: 0 | R119: 15 | S119: 192 | T119: 2040 | U119: 15 | V119: 30 | W119: 25 | X119: 5 | Y119: 99.9 | Z119: 10 | AA119: 7.6
A120: 406005320000000000 | B120: 005320000000000 | C120: 406 | D120: 0077S | E120: 'CREEK' | F120: 'S.H. 77 SCENIC.' | G120: 34055895 | H120: 097065673 | I120: 24 | J120: 01 | K120: 07 | L120: 1918 | M120: 2 | N120: 700 | O120: 2020 | P120: A | Q120: 0 | R120: 10 | S120: 1120 | T120: 2040 | U120: 20 | V120: 30 | W120: 45 | X120: 8 | Y120: 39.9 | Z120: 30 | AA120: 8.5
A121: 406005350000000000 | B121: 005350000000000 | C121: 406 | D121: 00056 | E121: 'CREEK' | F121: 'S.H. 56' | G121: 35160848 | H121: 096273219 | I121: 45 | J121: 01 | K121: 07 | L121: 1918 | M121: 2 | N121: 1300 | O121: 2020 | P121: A | Q121: 1987 | R121: 15 | S121: 2080 | T121: 2040 | U121: 40 | V121: 99 | W121: -1 | X121: N | Y121: 54.4 | Z121: -1 | AA121: 7
A122: 406005360000000000 | B122: 005360000000000 | C122: 406 | D122: 00125 | E122: 'CREEK' | F122: 'S.H. 125' | G122: 36423407 | H122: 094511938 | I122: 32 | J122: 01 | K122: 07 | L122: 1918 | M122: 2 | N122: 3500 | O122: 2020 | P122: A | Q122: 0 | R122: 15 | S122: 5600 | T122: 2040 | U122: 30 | V122: 50 | W122: -1 | X122: N | Y122: 54.4 | Z122: -1 | AA122: 7
A123: 406005370000000000 | B123: 005370000000000 | C123: 406 | D123: 0077S | E123: 'CREEK' | F123: 'S.H. 77 SCENIC' | G123: 34040200 | H123: 097060400 | I123: 24 | J123: 01 | K123: 07 | L123: 1918 | M123: 2 | N123: 660 | O123: 2020 | P123: A | Q123: 0 | R123: 8 | S123: 1056 | T123: 2040 | U123: 20 | V123: 35 | W123: 20 | X123: 7 | Y123: 39 | Z123: 15 | AA123: 7.9
A124: 406005380000000000 | B124: 005380000000000 | C124: 406 | D124: 0028A | E124: 'CREEK' | F124: 'S.H. 28A' | G124: 36261576 | H124: 095280331 | I124: 21 | J124: 01 | K124: 07 | L124: 1918 | M124: 2 | N124: 1600 | O124: 2020 | P124: A | Q124: 0 | R124: 15 | S124: 2560 | T124: 2040 | U124: 25 | V124: 45 | W124: -1 | X124: N | Y124: 54.4 | Z124: -1 | AA124: 7
A125: 406005390000000000 | B125: 005390000000000 | C125: 406 | D125: 00125 | E125: 'CREEK' | F125: 'S.H. 125' | G125: 36425429 | H125: 094511933 | I125: 32 | J125: 01 | K125: 07 | L125: 1918 | M125: 2 | N125: 3500 | O125: 2020 | P125: A | Q125: 0 | R125: 15 | S125: 5600 | T125: 2040 | U125: 35 | V125: 50 | W125: -1 | X125: N | Y125: 54.4 | Z125: -1 | AA125: 7.9
A126: 406005430000000000 | B126: 005430000000000 | C126: 406 | D126: 00015 | E126: 'CREEK' | F126: 'S.H. 15' | G126: 36274873 | H126: 097132514 | I126: 39 | J126: 01 | K126: 07 | L126: 1918 | M126: 2 | N126: 400 | O126: 2020 | P126: A | Q126: 0 | R126: 15 | S126: 640 | T126: 2040 | U126: 30 | V126: 99 | W126: -1 | X126: N | Y126: 54.4 | Z126: -1 | AA126: 8.3
A127: 406005440000000000 | B127: 005440000000000 | C127: 406 | D127: 00015 | E127: 'CREEK' | F127: 'S.H. 15' | G127: 36274871 | H127: 097131477 | I127: 39 | J127: 01 | K127: 07 | L127: 1918 | M127: 2 | N127: 400 | O127: 2020 | P127: A | Q127: 0 | R127: 15 | S127: 640 | T127: 2040 | U127: 30 | V127: 99 | W127: -1 | X127: N | Y127: 54.4 | Z127: -1 | AA127: 7.9
A128: 406005460000000000 | B128: 005460000000000 | C128: 406 | D128: 00183 | E128: 'CREEK' | F128: 'U.S. 183' | G128: 34412935 | H128: 098565384 | I128: 50 | J128: 01 | K128: 02 | L128: 1918 | M128: 2 | N128: 3500 | O128: 2020 | P128: A | Q128: 2006 | R128: 25 | S128: 5600 | T128: 2040 | U128: 45 | V128: 99 | W128: -1 | X128: N | Y128: 33.7 | Z128: -1 | AA128: 7
A129: 406005470000000000 | B129: 005470000000000 | C129: 406 | D129: 00018 | E129: 'CREEK' | F129: 'S.H. 18' | G129: 36430794 | H129: 096391199 | I129: 5 | J129: 01 | K129: 07 | L129: 1918 | M129: 2 | N129: 660 | O129: 2020 | P129: A | Q129: 0 | R129: 15 | S129: 1056 | T129: 2040 | U129: 40 | V129: 99 | W129: -1 | X129: N | Y129: 54.4 | Z129: -1 | AA129: 7
A130: 406005480000000000 | B130: 005480000000000 | C130: 406 | D130: 00125 | E130: 'CREEK' | F130: 'S.H. 125' | G130: 36441516 | H130: 094511907 | I130: 32 | J130: 01 | K130: 07 | L130: 1918 | M130: 2 | N130: 3500 | O130: 2020 | P130: A | Q130: 0 | R130: 15 | S130: 5600 | T130: 2040 | U130: 30 | V130: 50 | W130: -1 | X130: N | Y130: 54.4 | Z130: -1 | AA130: 7.9
A131: 406005490000000000 | B131: 005490000000000 | C131: 406 | D131: 00028 | E131: 'CREEK' | F131: 'S.H. 28' | G131: 36331319 | H131: 095270573 | I131: 42 | J131: 01 | K131: 07 | L131: 1918 | M131: 2 | N131: 1100 | O131: 2020 | P131: A | Q131: 0 | R131: 15 | S131: 1760 | T131: 2040 | U131: 35 | V131: 99 | W131: -1 | X131: N | Y131: 54.4 | Z131: -1 | AA131: 7
A132: 406005520000000000 | B132: 005520000000000 | C132: 406 | D132: 00056 | E132: 'CREEK' | F132: 'S.H. 56' | G132: 35181985 | H132: 096273225 | I132: 39 | J132: 01 | K132: 07 | L132: 1918 | M132: 2 | N132: 1200 | O132: 2020 | P132: A | Q132: 1989 | R132: 15 | S132: 1920 | T132: 2040 | U132: 40 | V132: 99 | W132: -1 | X132: N | Y132: 90.7 | Z132: -1 | AA132: 7
A133: 406005530000000000 | B133: 005530000000000 | C133: 406 | D133: 00056 | E133: 'CREEK' | F133: 'S.H. 56' | G133: 35182594 | H133: 096273209 | I133: 39 | J133: 01 | K133: 07 | L133: 1918 | M133: 2 | N133: 1200 | O133: 2020 | P133: A | Q133: 1989 | R133: 15 | S133: 1920 | T133: 2040 | U133: 35 | V133: 99 | W133: -1 | X133: N | Y133: 90.7 | Z133: -1 | AA133: 7
A134: 406005540000000000 | B134: 005540000000000 | C134: 406 | D134: 00028 | E134: 'CREEK' | F134: 'S.H. 28' | G134: 36331314 | H134: 095261596 | I134: 42 | J134: 01 | K134: 07 | L134: 1918 | M134: 2 | N134: 1100 | O134: 2020 | P134: A | Q134: 0 | R134: 15 | S134: 1760 | T134: 2040 | U134: 20 | V134: 45 | W134: -1 | X134: N | Y134: 54.4 | Z134: -1 | AA134: 7
A135: 406005550000000000 | B135: 005550000000000 | C135: 406 | D135: 00003 | E135: 'CREEK' | F135: 'S.H. 3' | G135: 34120142 | H135: 095304267 | I135: 68 | J135: 01 | K135: 02 | L135: 1918 | M135: 2 | N135: 2800 | O135: 2020 | P135: A | Q135: 0 | R135: 15 | S135: 4480 | T135: 2040 | U135: 30 | V135: 45 | W135: -1 | X135: N | Y135: 54.4 | Z135: -1 | AA135: 7
A136: 406005560000000000 | B136: 005560000000000 | C136: 406 | D136: 00028 | E136: 'CREEK' | F136: 'S.H. 28' | G136: 36324075 | H136: 095255383 | I136: 42 | J136: 01 | K136: 07 | L136: 1918 | M136: 2 | N136: 1100 | O136: 2020 | P136: A | Q136: 0 | R136: 15 | S136: 1760 | T136: 2040 | U136: 35 | V136: 99 | W136: -1 | X136: N | Y136: 54.4 | Z136: -1 | AA136: 7
A137: 406005570000000000 | B137: 005570000000000 | C137: 406 | D137: 00003 | E137: 'CREEK' | F137: 'S.H. 3' | G137: 34120141 | H137: 095301523 | I137: 68 | J137: 01 | K137: 02 | L137: 1918 | M137: 2 | N137: 2800 | O137: 2020 | P137: A | Q137: 0 | R137: 15 | S137: 4480 | T137: 2040 | U137: 30 | V137: 50 | W137: -1 | X137: N | Y137: 54.4 | Z137: -1 | AA137: 7
A138: 406005580000000000 | B138: 005580000000000 | C138: 406 | D138: 00015 | E138: 'CREEK' | F138: 'S.H. 15' | G138: 36320819 | H138: 097201761 | I138: 31 | J138: 01 | K138: 07 | L138: 1927 | M138: 2 | N138: 410 | O138: 2020 | P138: A | Q138: 0 | R138: 15 | S138: 656 | T138: 2040 | U138: 35 | V138: 99 | W138: -1 | X138: N | Y138: 44.5 | Z138: -1 | AA138: 7.9
A139: 406005590000000000 | B139: 005590000000000 | C139: 406 | D139: 00031 | E139: 'BUCK CREEK' | F139: 'S.H. 31' | G139: 35105875 | H139: 094484065 | I139: 108 | J139: 01 | K139: 07 | L139: 1918 | M139: 2 | N139: 1600 | O139: 2020 | P139: A | Q139: 0 | R139: 15 | S139: 2560 | T139: 2040 | U139: 25 | V139: 45 | W139: -1 | X139: N | Y139: 54.4 | Z139: -1 | AA139: 7
A140: 406005600000000000 | B140: 005600000000000 | C140: 406 | D140: 00007 | E140: 'CREEK' | F140: 'S.H. 7' | G140: 34204854 | H140: 096413993 | I140: 51 | J140: 01 | K140: 07 | L140: 1918 | M140: 2 | N140: 360 | O140: 2020 | P140: A | Q140: 0 | R140: 15 | S140: 576 | T140: 2040 | U140: 40 | V140: 99 | W140: -1 | X140: N | Y140: 54.4 | Z140: -1 | AA140: 6.7
A141: 406005610000000000 | B141: 005610000000000 | C141: 406 | D141: 00007 | E141: 'CREEK' | F141: 'S.H. 7' | G141: 34204827 | H141: 096410753 | I141: 51 | J141: 01 | K141: 07 | L141: 1918 | M141: 2 | N141: 360 | O141: 2020 | P141: A | Q141: 0 | R141: 15 | S141: 576 | T141: 2040 | U141: 45 | V141: 99 | W141: -1 | X141: N | Y141: 54.4 | Z141: -1 | AA141: 6.7
A142: 406005620000000000 | B142: 005620000000000 | C142: 406 | D142: 00015 | E142: 'CREEK' | F142: 'S.H. 15' | G142: 36320842 | H142: 097185623 | I142: 31 | J142: 01 | K142: 07 | L142: 1927 | M142: 2 | N142: 410 | O142: 2020 | P142: A | Q142: 2013 | R142: 15 | S142: 656 | T142: 2040 | U142: 40 | V142: 99 | W142: -1 | X142: N | Y142: 54.4 | Z142: -1 | AA142: 6.4
A143: 406005660000000000 | B143: 005660000000000 | C143: 406 | D143: 00007 | E143: 'CREEK' | F143: 'S.H. 7' | G143: 34204821 | H143: 096400450 | I143: 51 | J143: 01 | K143: 07 | L143: 1918 | M143: 2 | N143: 360 | O143: 2020 | P143: A | Q143: 0 | R143: 15 | S143: 576 | T143: 2040 | U143: 30 | V143: 99 | W143: -1 | X143: N | Y143: 54.4 | Z143: -1 | AA143: 7.3
A144: 406005670000000000 | B144: 005670000000000 | C144: 406 | D144: 00056 | E144: 'CREEK' | F144: 'S.H. 56' | G144: 35213524 | H144: 096273220 | I144: 43 | J144: 01 | K144: 07 | L144: 1918 | M144: 2 | N144: 1400 | O144: 2020 | P144: A | Q144: 1989 | R144: 15 | S144: 2240 | T144: 2040 | U144: 30 | V144: 99 | W144: -1 | X144: N | Y144: 42.2 | Z144: -1 | AA144: 7
A145: 406005680000000000 | B145: 005680000000000 | C145: 406 | D145: 00031 | E145: 'CREEK' | F145: 'S.H. 31' | G145: 34394790 | H145: 096084120 | I145: 68 | J145: 01 | K145: 07 | L145: 1935 | M145: 2 | N145: 490 | O145: 2020 | P145: A | Q145: 0 | R145: 11 | S145: 784 | T145: 2040 | U145: 15 | V145: 25 | W145: 15 | X145: 6 | Y145: 72.6 | Z145: 10 | AA145: 7.6
A146: 406005690000000000 | B146: 005690000000000 | C146: 406 | D146: 00046 | E146: 'CREEK' | F146: 'S.H. 46' | G146: 36275215 | H146: 099445469 | I146: 71 | J146: 01 | K146: 07 | L146: 1918 | M146: 2 | N146: 170 | O146: 2020 | P146: A | Q146: 0 | R146: 15 | S146: 272 | T146: 2040 | U146: 20 | V146: 35 | W146: 50 | X146: 7 | Y146: 95.3 | Z146: 30 | AA146: 6.7
A147: 406005730000000000 | B147: 005730000000000 | C147: 406 | D147: 00109 | E147: 'CREEK' | F147: 'S.H. 109' | G147: 33544727 | H147: 095172045 | I147: 32 | J147: 01 | K147: 07 | L147: 1937 | M147: 2 | N147: 180 | O147: 2020 | P147: A | Q147: 0 | R147: 15 | S147: 288 | T147: 2040 | U147: 30 | V147: 50 | W147: -1 | X147: N | Y147: 44.5 | Z147: -1 | AA147: 7
A148: 406005740000000000 | B148: 005740000000000 | C148: 406 | D148: 00011 | E148: 'CREEK' | F148: 'S.H. 11' | G148: 36143574 | H148: 095583238 | I148: 16 | J148: 01 | K148: 16 | L148: 1918 | M148: 4 | N148: 7800 | O148: 2020 | P148: A | Q148: 1967 | R148: 5 | S148: 12480 | T148: 2040 | U148: 40 | V148: 99 | W148: -1 | X148: N | Y148: 42 | Z148: -1 | AA148: 7
A149: 406005750000000000 | B149: 005750000000000 | C149: 406 | D149: 00003 | E149: 'CREEK' | F149: 'S.H. 3' | G149: 34120124 | H149: 095230099 | I149: 68 | J149: 01 | K149: 02 | L149: 1918 | M149: 2 | N149: 2000 | O149: 2020 | P149: A | Q149: 0 | R149: 15 | S149: 3200 | T149: 2040 | U149: 30 | V149: 50 | W149: -1 | X149: N | Y149: 54.4 | Z149: -1 | AA149: 7
A150: 406005760000000000 | B150: 005760000000000 | C150: 406 | D150: 00003 | E150: 'CREEK' | F150: 'S.H. 3' | G150: 34115608 | H150: 095222456 | I150: 0 | J150: 01 | K150: 02 | L150: 1918 | M150: 2 | N150: 2000 | O150: 2020 | P150: A | Q150: 0 | R150: 15 | S150: 3200 | T150: 2040 | U150: 30 | V150: 50 | W150: -1 | X150: N | Y150: 54.4 | Z150: -1 | AA150: 7
A151: 406005780000000000 | B151: 005780000000000 | C151: 406 | D151: 00015 | E151: 'CREEK' | F151: 'S.H. 15' | G151: 36320541 | H151: 097291849 | I151: 60 | J151: 01 | K151: 07 | L151: 1918 | M151: 2 | N151: 570 | O151: 2020 | P151: A | Q151: 0 | R151: 15 | S151: 912 | T151: 2040 | U151: 45 | V151: 99 | W151: -1 | X151: N | Y151: 54.4 | Z151: -1 | AA151: 6.1
A152: 406005800000000000 | B152: 005800000000000 | C152: 406 | D152: 00325 | E152: 'CREEK' | F152: 'S.H. 325' | G152: 36495476 | H152: 102481857 | I152: 97 | J152: 01 | K152: 07 | L152: 1935 | M152: 2 | N152: 100 | O152: 2020 | P152: A | Q152: 0 | R152: 15 | S152: 160 | T152: 2040 | U152: 20 | V152: 35 | W152: 45 | X152: 6 | Y152: 69.9 | Z152: 25 | AA152: 6.4
A153: 406005810000000000 | B153: 005810000000000 | C153: 406 | D153: 00325 | E153: 'CREEK' | F153: 'S.H. 325' | G153: 36450597 | H153: 102481815 | I153: 97 | J153: 01 | K153: 07 | L153: 1935 | M153: 2 | N153: 100 | O153: 2020 | P153: A | Q153: 0 | R153: 15 | S153: 160 | T153: 2040 | U153: 20 | V153: 35 | W153: 40 | X153: 6 | Y153: 99.9 | Z153: 25 | AA153: 6.4
A154: 406005820000000000 | B154: 005820000000000 | C154: 406 | D154: 00325 | E154: 'CREEK' | F154: 'S.H. 325' | G154: 36442545 | H154: 102481803 | I154: 97 | J154: 01 | K154: 07 | L154: 1935 | M154: 2 | N154: 100 | O154: 2020 | P154: A | Q154: 0 | R154: 15 | S154: 160 | T154: 2040 | U154: 20 | V154: 35 | W154: 40 | X154: 6 | Y154: 72.6 | Z154: 25 | AA154: 6.4
A155: 406005860000000000 | B155: 005860000000000 | C155: 406 | D155: E0420 | E155: 'BLACK BEAR CREEK' | F155: 'E0420' | G155: 36241747 | H155: 097414733 | I155: 2 | J155: 02 | K155: 09 | L155: 1918 | M155: 2 | N155: 25 | O155: 2020 | P155: P | Q155: 0 | R155: 10 | S155: 40 | T155: 2040 | U155: 10 | V155: 25 | W155: 15 | X155: 5 | Y155: 20.9 | Z155: 5 | AA155: 9.1
A156: 406005950000000000 | B156: 005950000000000 | C156: 406 | D156: 00020 | E156: 'CREEK' | F156: 'S.H. 20' | G156: 36215594 | H156: 095580547 | I156: 51 | J156: 01 | K156: 06 | L156: 1918 | M156: 4 | N156: 11700 | O156: 2020 | P156: A | Q156: 1996 | R156: 16 | S156: 18720 | T156: 2040 | U156: 40 | V156: 99 | W156: -1 | X156: N | Y156: 54.4 | Z156: -1 | AA156: 10.4
A157: 406005970000000000 | B157: 005970000000000 | C157: 406 | D157: 00271 | E157: 'CREEK' | F157: 'U.S. 271' | G157: 34372959 | H157: 095175060 | I157: 6 | J157: 01 | K157: 07 | L157: 1918 | M157: 2 | N157: 870 | O157: 2020 | P157: A | Q157: 2010 | R157: 15 | S157: 1392 | T157: 2040 | U157: 30 | V157: 50 | W157: -1 | X157: N | Y157: 54.4 | Z157: -1 | AA157: 10.4
A158: =CONCATENATE(C158, B158) -> 406005990000000000 | B158: 005990000000000 | C158: 406 | D158: 00015 | E158: 'CREEK' | F158: 'S.H. 15' | G158: 36274860 | H158: 097145421 | I158: 39 | J158: 01 | K158: 07 | L158: 1918 | M158: 2 | N158: 400 | O158: 2020 | P158: A | Q158: 0 | R158: 15 | S158: 640 | T158: 2040 | U158: 20 | V158: 45 | W158: -1 | X158: N | Y158: 54.4 | Z158: -1 | AA158: 9.8
A159: 406006000000000000 | B159: 006000000000000 | C159: 406 | D159: 00015 | E159: 'CREEK' | F159: 'S.H. 15' | G159: 36274864 | H159: 097143813 | I159: 39 | J159: 01 | K159: 07 | L159: 1918 | M159: 2 | N159: 400 | O159: 2020 | P159: A | Q159: 0 | R159: 15 | S159: 640 | T159: 2040 | U159: 35 | V159: 99 | W159: -1 | X159: N | Y159: 54.4 | Z159: -1 | AA159: 9.8
A160: 406006040000000000 | B160: 006040000000000 | C160: 406 | D160: 0050B | E160: 'CREEK' | F160: 'S.H. 50B' | G160: 36265834 | H160: 099122425 | I160: 6 | J160: 01 | K160: 07 | L160: 1918 | M160: 2 | N160: 500 | O160: 2020 | P160: A | Q160: 0 | R160: 15 | S160: 800 | T160: 2040 | U160: 40 | V160: 99 | W160: -1 | X160: N | Y160: 54.4 | Z160: -1 | AA160: 10.1
A161: 406006050000000000 | B161: 006050000000000 | C161: 406 | D161: 0099A | E161: 'CREEK' | F161: 'S.H. 99A' | G161: 35205324 | H161: 096422236 | I161: 16 | J161: 01 | K161: 07 | L161: 1918 | M161: 2 | N161: 670 | O161: 2020 | P161: A | Q161: 0 | R161: 15 | S161: 1072 | T161: 2040 | U161: 30 | V161: 99 | W161: -1 | X161: N | Y161: 54.4 | Z161: -1 | AA161: 7
A162: 406006060000000000 | B162: 006060000000000 | C162: 406 | D162: 00011 | E162: 'THOMPSON CREEK' | F162: 'S.H. 11' | G162: 36484007 | H162: 097224890 | I162: 5 | J162: 01 | K162: 06 | L162: 1918 | M162: 2 | N162: 2000 | O162: 2020 | P162: A | Q162: 1931 | R162: 16 | S162: 3200 | T162: 2040 | U162: 20 | V162: 30 | W162: 25 | X162: 5 | Y162: 40.8 | Z162: 10 | AA162: 11
A163: 406006070000000000 | B163: 006070000000000 | C163: 406 | D163: 00058 | E163: 'CREEK' | F163: 'S.H. 58' | G163: 34464987 | H163: 098302476 | I163: 48 | J163: 01 | K163: 07 | L163: 1918 | M163: 2 | N163: 1200 | O163: 2020 | P163: A | Q163: 0 | R163: 15 | S163: 1920 | T163: 2040 | U163: 20 | V163: 30 | W163: 30 | X163: 6 | Y163: 65.3 | Z163: 15 | AA163: 7.6
A164: 406006080000000000 | B164: 006080000000000 | C164: 406 | D164: 00003 | E164: 'NEGRO CREEK' | F164: 'S.H. 3' | G164: 34120136 | H164: 095313891 | I164: 68 | J164: 01 | K164: 02 | L164: 1918 | M164: 2 | N164: 3500 | O164: 2020 | P164: A | Q164: 0 | R164: 15 | S164: 5600 | T164: 2040 | U164: 20 | V164: 40 | W164: -1 | X164: N | Y164: 54.4 | Z164: -1 | AA164: 10.4
A165: 406006100000000000 | B165: 006100000000000 | C165: 406 | D165: 00015 | E165: 'CREEK' | F165: 'S.H. 15' | G165: 36320794 | H165: 097214076 | I165: 31 | J165: 01 | K165: 07 | L165: 1927 | M165: 2 | N165: 660 | O165: 2020 | P165: A | Q165: 0 | R165: 15 | S165: 1056 | T165: 2040 | U165: 30 | V165: 99 | W165: -1 | X165: N | Y165: 44.5 | Z165: -1 | AA165: 9.8
A166: 406006110000000000 | B166: 006110000000000 | C166: 406 | D166: 00043 | E166: 'CREEK' | F166: 'S.H. 43' | G166: 34320593 | H166: 096071009 | I166: 37 | J166: 01 | K166: 07 | L166: 1918 | M166: 2 | N166: 1100 | O166: 2020 | P166: A | Q166: 1941 | R166: 15 | S166: 1760 | T166: 2040 | U166: 15 | V166: 25 | W166: 30 | X166: 6 | Y166: 99.9 | Z166: 15 | AA166: 7.3
A167: 406006120000000000 | B167: 006120000000000 | C167: 406 | D167: 00015 | E167: 'CREEK' | F167: 'S.H. 15' | G167: 36320797 | H167: 097213177 | I167: 31 | J167: 01 | K167: 07 | L167: 1927 | M167: 2 | N167: 660 | O167: 2020 | P167: A | Q167: 0 | R167: 15 | S167: 1056 | T167: 2040 | U167: 25 | V167: 50 | W167: -1 | X167: N | Y167: 44.5 | Z167: -1 | AA167: 9.8
A168: 406006130000000000 | B168: 006130000000000 | C168: 406 | D168: 00082 | E168: 'PIGEON CREEK' | F168: 'S.H. 82' | G168: 34530318 | H168: 095035765 | I168: 64 | J168: 01 | K168: 07 | L168: 1918 | M168: 2 | N168: 540 | O168: 2020 | P168: A | Q168: 0 | R168: 15 | S168: 864 | T168: 2040 | U168: 35 | V168: 99 | W168: -1 | X168: N | Y168: 54.4 | Z168: -1 | AA168: 10.4
A169: 406006160000000000 | B169: 006160000000000 | C169: 406 | D169: 00015 | E169: 'DOE CREEK' | F169: 'S.H. 15' | G169: 36320823 | H169: 097200102 | I169: 31 | J169: 01 | K169: 07 | L169: 1927 | M169: 2 | N169: 410 | O169: 2020 | P169: A | Q169: 0 | R169: 15 | S169: 656 | T169: 2040 | U169: 35 | V169: 99 | W169: -1 | X169: N | Y169: 44.5 | Z169: -1 | AA169: 9.8
A170: 406006180000000000 | B170: 006180000000000 | C170: 406 | D170: 00105 | E170: 'CREEK' | F170: 'S.H. 105' | G170: 35520958 | H170: 096523685 | I170: 43 | J170: 01 | K170: 07 | L170: 1918 | M170: 2 | N170: 850 | O170: 2020 | P170: A | Q170: 0 | R170: 15 | S170: 1360 | T170: 2040 | U170: 35 | V170: 99 | W170: -1 | X170: N | Y170: 39.5 | Z170: -1 | AA170: 10.4
A171: 406006190000000000 | B171: 006190000000000 | C171: 406 | D171: 00007 | E171: 'WOLF CREEK' | F171: 'S.H. 7' | G171: 34204818 | H171: 096394650 | I171: 51 | J171: 01 | K171: 07 | L171: 1918 | M171: 2 | N171: 360 | O171: 2020 | P171: A | Q171: 0 | R171: 15 | S171: 576 | T171: 2040 | U171: 40 | V171: 99 | W171: -1 | X171: N | Y171: 54.4 | Z171: -1 | AA171: 10.4
A172: 406006200000000000 | B172: 006200000000000 | C172: 406 | D172: 00077 | E172: 'CREEK' | F172: 'U.S. 77' | G172: 34584338 | H172: 097215117 | I172: 14 | J172: 01 | K172: 02 | L172: 1951 | M172: 2 | N172: 3300 | O172: 2020 | P172: A | Q172: 0 | R172: 15 | S172: 5280 | T172: 2040 | U172: 40 | V172: 99 | W172: -1 | X172: N | Y172: 44.5 | Z172: -1 | AA172: 9.4
A173: 406006210000000000 | B173: 006210000000000 | C173: 406 | D173: 00015 | E173: 'CREEK' | F173: 'S.H. 15' | G173: 36320495 | H173: 097333935 | I173: 60 | J173: 01 | K173: 07 | L173: 1930 | M173: 2 | N173: 570 | O173: 2020 | P173: A | Q173: 1950 | R173: 15 | S173: 912 | T173: 2040 | U173: 25 | V173: 45 | W173: -1 | X173: N | Y173: 44.5 | Z173: -1 | AA173: 10.1
A174: 406006220000000000 | B174: 006220000000000 | C174: 406 | D174: 00046 | E174: 'CREEK' | F174: 'S.H. 46' | G174: 36275800 | H174: 099445500 | I174: 71 | J174: 01 | K174: 07 | L174: 1918 | M174: 2 | N174: 170 | O174: 2020 | P174: A | Q174: 0 | R174: 15 | S174: 272 | T174: 2040 | U174: 20 | V174: 35 | W174: 40 | X174: 6 | Y174: 99.9 | Z174: 20 | AA174: 10.4
A175: 406006230000000000 | B175: 006230000000000 | C175: 406 | D175: 00031 | E175: 'CREEK' | F175: 'S.H. 31' | G175: 34400797 | H175: 096084124 | I175: 68 | J175: 01 | K175: 07 | L175: 1935 | M175: 2 | N175: 490 | O175: 2020 | P175: A | Q175: 0 | R175: 15 | S175: 784 | T175: 2040 | U175: 15 | V175: 30 | W175: 20 | X175: 7 | Y175: 99.9 | Z175: 15 | AA175: 9.8
A176: 406006240000000000 | B176: 006240000000000 | C176: 406 | D176: 00003 | E176: 'HOG CREEK' | F176: 'S.H. 3' | G176: 34120124 | H176: 095224933 | I176: 68 | J176: 01 | K176: 02 | L176: 1918 | M176: 2 | N176: 2000 | O176: 2020 | P176: A | Q176: 0 | R176: 15 | S176: 3200 | T176: 2040 | U176: 35 | V176: 99 | W176: -1 | X176: N | Y176: 54.4 | Z176: -1 | AA176: 10.4
A177: 406006250000000000 | B177: 006250000000000 | C177: 406 | D177: 00003 | E177: 'CREEK' | F177: 'S.H. 3' | G177: 34115402 | H177: 095212808 | I177: 68 | J177: 01 | K177: 02 | L177: 1918 | M177: 2 | N177: 2000 | O177: 2020 | P177: A | Q177: 0 | R177: 15 | S177: 3200 | T177: 2040 | U177: 35 | V177: 50 | W177: -1 | X177: N | Y177: 54.4 | Z177: -1 | AA177: 10.4
A178: 406006280000000000 | B178: 006280000000000 | C178: 406 | D178: N3888 | E178: 'TUCKER CREEK' | F178: 'N3888' | G178: 36301304 | H178: 096041357 | I178: 58 | J178: 02 | K178: 09 | L178: 1918 | M178: 2 | N178: 120 | O178: 2020 | P178: P | Q178: 0 | R178: 10 | S178: 192 | T178: 2040 | U178: 0 | V178: 10 | W178: 15 | X178: 5 | Y178: 32.7 | Z178: 5 | AA178: 10.1
A179: 406006290000000000 | B179: 006290000000000 | C179: 406 | D179: E0080 | E179: 'CREEK' | F179: 'E0080' | G179: 36535904 | H179: 099493896 | I179: 3 | J179: 02 | K179: 09 | L179: 1918 | M179: 2 | N179: 25 | O179: 2020 | P179: A | Q179: 0 | R179: 10 | S179: 40 | T179: 2040 | U179: 5 | V179: 20 | W179: 15 | X179: 5 | Y179: 32.7 | Z179: 5 | AA179: 13.4
A180: 406006300000000000 | B180: 006300000000000 | C180: 406 | D180: 3544C | E180: 'ROCK CREEK' | F180: '3544C' | G180: 34232498 | H180: 096481537 | I180: 3 | J180: 02 | K180: 09 | L180: 1918 | M180: 2 | N180: 120 | O180: 2020 | P180: P | Q180: 0 | R180: 10 | S180: 192 | T180: 2040 | U180: 5 | V180: 20 | W180: 5 | X180: 4 | Y180: 12.7 | Z180: 0 | AA180: 14
A181: 406006340000000000 | B181: 006340000000000 | C181: 406 | D181: 0050B | E181: 'BULL CREEK' | F181: 'S.H. 50B' | G181: 36265825 | H181: 099155142 | I181: 6 | J181: 01 | K181: 07 | L181: 1938 | M181: 2 | N181: 420 | O181: 2020 | P181: A | Q181: 0 | R181: 18 | S181: 672 | T181: 2040 | U181: 20 | V181: 35 | W181: 35 | X181: 6 | Y181: 43.3 | Z181: 20 | AA181: 14.3
A182: 406006370000000000 | B182: 006370000000000 | C182: 406 | D182: 00115 | E182: 'SADDLE MTN. CREEK TRIB.' | F182: 'S.H. 115' | G182: 34521515 | H182: 098422862 | I182: 14 | J182: 01 | K182: 07 | L182: 1935 | M182: 2 | N182: 120 | O182: 2020 | P182: A | Q182: 0 | R182: 15 | S182: 192 | T182: 2040 | U182: 10 | V182: 25 | W182: 20 | X182: 5 | Y182: 81.6 | Z182: 5 | AA182: 14.9
A183: 406006380000000000 | B183: 006380000000000 | C183: 406 | D183: 00115 | E183: 'SADDLE MOUNTAIN CREEK' | F183: 'S.H. 115' | G183: 34522513 | H183: 098422894 | I183: 14 | J183: 01 | K183: 07 | L183: 1935 | M183: 2 | N183: 120 | O183: 2020 | P183: A | Q183: 0 | R183: 15 | S183: 192 | T183: 2040 | U183: 10 | V183: 25 | W183: 20 | X183: 5 | Y183: 99.9 | Z183: 5 | AA183: 13.4
A184: 406006410000000000 | B184: 006410000000000 | C184: 406 | D184: 00031 | E184: 'CREEK' | F184: 'S.H. 31' | G184: 34310158 | H184: 096165794 | I184: 32 | J184: 01 | K184: 07 | L184: 1935 | M184: 2 | N184: 970 | O184: 2020 | P184: A | Q184: 0 | R184: 15 | S184: 1552 | T184: 2040 | U184: 15 | V184: 25 | W184: 15 | X184: 6 | Y184: 33.6 | Z184: 10 | AA184: 14.3
A185: 406006430000000000 | B185: 006430000000000 | C185: 406 | D185: 00000 | E185: 'FOUR MILE CREEK' | F185: 'CO. RD.(OLD US169)' | G185: 36304114 | H185: 095421660 | I185: 6 | J185: 02 | K185: 07 | L185: 1918 | M185: 2 | N185: 100 | O185: 2020 | P185: P | Q185: 0 | R185: 15 | S185: 160 | T185: 2040 | U185: 5 | V185: 15 | W185: 5 | X185: 4 | Y185: 32.7 | Z185: 0 | AA185: 13.4
A186: 406006440000000000 | B186: 006440000000000 | C186: 406 | D186: 00082 | E186: 'RED OAK CREEK' | F186: 'S.H. 82' | G186: 34564232 | H186: 095043775 | I186: 64 | J186: 01 | K186: 07 | L186: 1958 | M186: 2 | N186: 1600 | O186: 2020 | P186: A | Q186: 0 | R186: 15 | S186: 2560 | T186: 2040 | U186: 35 | V186: 99 | W186: -1 | X186: N | Y186: 44.5 | Z186: -1 | AA186: 13.7
A187: 406006450000000000 | B187: 006450000000000 | C187: 406 | D187: 00177 | E187: 'TRAVERTINE CREEK' | F187: 'U.S. 177' | G187: 34301608 | H187: 096580916 | I187: 77 | J187: 01 | K187: 06 | L187: 1940 | M187: 2 | N187: 3000 | O187: 2020 | P187: A | Q187: 0 | R187: 16 | S187: 4800 | T187: 2040 | U187: 15 | V187: 30 | W187: 40 | X187: 7 | Y187: 32.7 | Z187: 25 | AA187: 14.3
A188: 406006470000000000 | B188: 006470000000000 | C188: 406 | D188: 00325 | E188: 'CREEK' | F188: 'S.H. 325' | G188: 36461968 | H188: 102481830 | I188: 97 | J188: 01 | K188: 07 | L188: 1935 | M188: 2 | N188: 100 | O188: 2020 | P188: A | Q188: 0 | R188: 15 | S188: 160 | T188: 2040 | U188: 20 | V188: 35 | W188: 45 | X188: 6 | Y188: 79.8 | Z188: 25 | AA188: 11.6
A189: 406006490000000000 | B189: 006490000000000 | C189: 406 | D189: N3830 | E189: 'BROWNS CREEK' | F189: 'N3830' | G189: 35460863 | H189: 096113296 | I189: 199 | J189: 02 | K189: 09 | L189: 1918 | M189: 1 | N189: 100 | O189: 2020 | P189: P | Q189: 0 | R189: 10 | S189: 160 | T189: 2040 | U189: 0 | V189: 5 | W189: 0 | X189: 3 | Y189: 6.1 | Z189: 0 | AA189: 18.9
A190: 406006550000000000 | B190: 006550000000000 | C190: 406 | D190: E0330 | E190: 'CREEK' | F190: 'E0330' | G190: 36320840 | H190: 096593741 | I190: 159 | J190: 02 | K190: 09 | L190: 1918 | M190: 2 | N190: 24 | O190: 2020 | P190: A | Q190: 2011 | R190: 10 | S190: 38 | T190: 2040 | U190: 15 | V190: 30 | W190: 20 | X190: 6 | Y190: 44.5 | Z190: 10 | AA190: 19.9
A191: 406006590000000000 | B191: 006590000000000 | C191: 406 | D191: 0009B | E191: 'CREEK' | F191: 'S.H. 9 BUS.' | G191: 35014555 | H191: 099051043 | I191: 5 | J191: 01 | K191: 07 | L191: 1918 | M191: 2 | N191: 3500 | O191: 2020 | P191: A | Q191: 0 | R191: 15 | S191: 5600 | T191: 2040 | U191: 30 | V191: 99 | W191: -1 | X191: N | Y191: 54.4 | Z191: -1 | AA191: 20.4
A192: 406006900000000000 | B192: 006900000000000 | C192: 406 | D192: E1630 | E192: 'CREEK' | F192: 'IRR E1630' | G192: 34390891 | H192: 098524469 | I192: 6 | J192: 02 | K192: 09 | L192: 1919 | M192: 2 | N192: 100 | O192: 2020 | P192: A | Q192: 0 | R192: 10 | S192: 160 | T192: 2040 | U192: 20 | V192: 35 | W192: 20 | X192: 5 | Y192: 37.2 | Z192: 5 | AA192: 6.7
A193: 406006930000000000 | B193: 006930000000000 | C193: 406 | D193: E0370 | E193: 'MONKEY CREEK' | F193: 'E0370' | G193: 36283809 | H193: 097250234 | I193: 3 | J193: 02 | K193: 07 | L193: 1919 | M193: 2 | N193: 24 | O193: 2020 | P193: P | Q193: 0 | R193: 15 | S193: 38 | T193: 2040 | U193: 15 | V193: 25 | W193: 15 | X193: 4 | Y193: 19.1 | Z193: 0 | AA193: 9.4
A194: 406006950000000000 | B194: 006950000000000 | C194: 406 | D194: E0270 | E194: 'CREEK' | F194: 'E0270' | G194: 36372323 | H194: 097092511 | I194: 3 | J194: 02 | K194: 09 | L194: 1919 | M194: 2 | N194: 118 | O194: 2020 | P194: P | Q194: 0 | R194: 10 | S194: 189 | T194: 2040 | U194: 15 | V194: 30 | W194: 20 | X194: 6 | Y194: 20.9 | Z194: 10 | AA194: 7.9
A195: 406006990000000000 | B195: 006990000000000 | C195: 406 | D195: E0120 | E195: 'CREEK' | F195: 'IRR E0120' | G195: 36503200 | H195: 094476000 | I195: 6 | J195: 02 | K195: 09 | L195: 1919 | M195: 2 | N195: 100 | O195: 2020 | P195: P | Q195: 0 | R195: 10 | S195: 160 | T195: 2040 | U195: 0 | V195: 0 | W195: -1 | X195: N | Y195: 14.7 | Z195: -1 | AA195: 8.5
A196: 406007050000000000 | B196: 007050000000000 | C196: 406 | D196: N4570 | E196: 'LITTLE ELM CREEK' | F196: 'IRR N4570' | G196: 36520213 | H196: 094503103 | I196: 6 | J196: 02 | K196: 09 | L196: 1919 | M196: 2 | N196: 24 | O196: 2020 | P196: P | Q196: 0 | R196: 10 | S196: 38 | T196: 2040 | U196: 0 | V196: 5 | W196: 0 | X196: 3 | Y196: 13.1 | Z196: 0 | AA196: 13.1
A197: 406007110000000000 | B197: 007110000000000 | C197: 406 | D197: E0667 | E197: 'TSU R.R. UNDER' | F197: 'E0667' | G197: 36025721 | H197: 096043032 | I197: 99 | J197: 02 | K197: 07 | L197: 1919 | M197: 1 | N197: 175 | O197: 2020 | P197: P | Q197: 0 | R197: 15 | S197: 280 | T197: 2040 | U197: 15 | V197: 25 | W197: 20 | X197: 5 | Y197: 16.9 | Z197: 5 | AA197: 17.2
A198: 406007250000000000 | B198: 007250000000000 | C198: 406 | D198: N3804 | E198: 'S. CANADIAN RIVER' | F198: 'N3804' | G198: 34583531 | H198: 096142598 | I198: 6 | J198: 02 | K198: 09 | L198: 1919 | M198: 2 | N198: 50 | O198: 2020 | P198: K | Q198: 0 | R198: 10 | S198: 80 | T198: 2040 | U198: 0 | V198: 5 | W198: 0 | X198: 3 | Y198: 0 | Z198: 0 | AA198: 233.8
A199: 406007280000000000 | B199: 007280000000000 | C199: 406 | D199: N3314 | E199: 'CREEK' | F199: 'N3314 (ASH ST.)' | G199: 36424848 | H199: 097053899 | I199: 2 | J199: 04 | K199: 09 | L199: 1920 | M199: 2 | N199: 2000 | O199: 2020 | P199: A | Q199: 0 | R199: 7 | S199: 3200 | T199: 2040 | U199: 30 | V199: 99 | W199: -1 | X199: N | Y199: 37.2 | Z199: -1 | AA199: 6.4
A200: 406007300000000000 | B200: 007300000000000 | C200: 406 | D200: N4310 | E200: 'CREEK' | F200: 'N4310' | G200: 36161888 | H200: 095194061 | I200: 6 | J200: 02 | K200: 09 | L200: 1920 | M200: 1 | N200: 25 | O200: 2020 | P200: K | Q200: 0 | R200: 10 | S200: 40 | T200: 2040 | U200: 5 | V200: 20 | W200: 5 | X200: 4 | Y200: 0 | Z200: 0 | AA200: 7.3
... 2050 more rows

Sheet NBI_Dropdown (hidden)
A1: 1 | B1: Alabama | C1: 1 | D1: 014 | F1: Alabama | G1: Autauga | M1: State | N1: County | O1: STRUCTURE_NUMBER_008
A2: 2 | B2: Alaska | C2: 2 | D2: 020 | F2: Alabama | G2: Baldwin | L2: =M2&N2 -> AlabamaAutauga | M2: Alabama | N2: Autauga | O2: 000328
A3: 4 | B3: Arizona | C3: 4 | D3: 049 | F3: Alabama | G3: Barbour | L3: AlabamaAutauga | M3: Alabama | N3: Autauga | O3: 001539
A4: 5 | B4: Arkansas | C4: 5 | D4: 056 | F4: Alabama | G4: Bibb | L4: AlabamaAutauga | M4: Alabama | N4: Autauga | O4: 001907
A5: 6 | B5: California | C5: 6 | D5: 069 | F5: Alabama | G5: Blount | L5: AlabamaAutauga | M5: Alabama | N5: Autauga | O5: 001908
A6: 8 | B6: Colorado | C6: 8 | D6: 088 | F6: Alabama | G6: Bullock | L6: AlabamaAutauga | M6: Alabama | N6: Autauga | O6: 001909
A7: 9 | B7: Connecticut | C7: 9 | D7: 091 | F7: Alabama | G7: Butler | L7: AlabamaAutauga | M7: Alabama | N7: Autauga | O7: 001910
A8: 10 | B8: Delaware | C8: 10 | D8: 103 | F8: Alabama | G8: Calhoun | L8: AlabamaAutauga | M8: Alabama | N8: Autauga | O8: 001911
A9: 11 | B9: District of Columbia | C9: 11 | D9: 113 | F9: Alabama | G9: Chambers | L9: AlabamaAutauga | M9: Alabama | N9: Autauga | O9: 002632
A10: 12 | B10: Florida | C10: 12 | D10: 124 | F10: Alabama | G10: Cherokee | L10: AlabamaAutauga | M10: Alabama | N10: Autauga | O10: 002737
A11: 13 | B11: Georgia | C11: 13 | D11: 134 | F11: Alabama | G11: Chilton | L11: AlabamaAutauga | M11: Alabama | N11: Autauga | O11: 003529
A12: 15 | B12: Hawaii | C12: 15 | D12: 159 | F12: Alabama | G12: Choctaw | L12: AlabamaAutauga | M12: Alabama | N12: Autauga | O12: 003779
A13: 16 | B13: Idaho | C13: 16 | D13: 160 | F13: Alabama | G13: Clarke | L13: AlabamaAutauga | M13: Alabama | N13: Autauga | O13: 004008
A14: 17 | B14: Illinois | C14: 17 | D14: 175 | F14: Alabama | G14: Clay | L14: AlabamaAutauga | M14: Alabama | N14: Autauga | O14: 004760
A15: 18 | B15: Indiana | C15: 18 | D15: 185 | F15: Alabama | G15: Cleburne | L15: AlabamaAutauga | M15: Alabama | N15: Autauga | O15: 004761
A16: 19 | B16: Iowa | C16: 19 | D16: 197 | F16: Alabama | G16: Coffee | L16: AlabamaAutauga | M16: Alabama | N16: Autauga | O16: 005074
A17: 20 | B17: Kansas | C17: 20 | D17: 207 | F17: Alabama | G17: Colbert | L17: AlabamaAutauga | M17: Alabama | N17: Autauga | O17: 005428
A18: 21 | B18: Kentucky | C18: 21 | D18: 214 | F18: Alabama | G18: Conecuh | L18: AlabamaAutauga | M18: Alabama | N18: Autauga | O18: 005475
A19: 22 | B19: Louisiana | C19: 22 | D19: 226 | F19: Alabama | G19: Coosa | L19: AlabamaAutauga | M19: Alabama | N19: Autauga | O19: 005503
A20: 23 | B20: Maine | C20: 23 | D20: 231 | F20: Alabama | G20: Covington | L20: AlabamaAutauga | M20: Alabama | N20: Autauga | O20: 005504
A21: 24 | B21: Maryland | C21: 24 | D21: 243 | F21: Alabama | G21: Crenshaw | L21: AlabamaAutauga | M21: Alabama | N21: Autauga | O21: 005803
A22: 25 | B22: Massachusetts | C22: 25 | D22: 251 | F22: Alabama | G22: Cullman | L22: AlabamaAutauga | M22: Alabama | N22: Autauga | O22: 005804
A23: 26 | B23: Michigan | C23: 26 | D23: 265 | F23: Alabama | G23: Dale | L23: AlabamaAutauga | M23: Alabama | N23: Autauga | O23: 006248
A24: 27 | B24: Minnesota | C24: 27 | D24: 275 | F24: Alabama | G24: Dallas | L24: AlabamaAutauga | M24: Alabama | N24: Autauga | O24: 006249
A25: 28 | B25: Mississippi | C25: 28 | D25: 284 | F25: Alabama | G25: DeKalb | L25: AlabamaAutauga | M25: Alabama | N25: Autauga | O25: 006277
A26: 29 | B26: Missouri | C26: 29 | D26: 297 | F26: Alabama | G26: Elmore | L26: AlabamaAutauga | M26: Alabama | N26: Autauga | O26: 006649
A27: 30 | B27: Montana | C27: 30 | D27: 308 | F27: Alabama | G27: Escambia | L27: AlabamaAutauga | M27: Alabama | N27: Autauga | O27: 006650
A28: 31 | B28: Nebraska | C28: 31 | D28: 317 | F28: Alabama | G28: Etowah | L28: AlabamaAutauga | M28: Alabama | N28: Autauga | O28: 006776
A29: 32 | B29: Nevada | C29: 32 | D29: 329 | F29: Alabama | G29: Fayette | L29: AlabamaAutauga | M29: Alabama | N29: Autauga | O29: 006777
A30: 33 | B30: New Hampshire | C30: 33 | D30: 331 | F30: Alabama | G30: Franklin | L30: AlabamaAutauga | M30: Alabama | N30: Autauga | O30: 006778
A31: 34 | B31: New Jersey | C31: 34 | D31: 342 | F31: Alabama | G31: Geneva | L31: AlabamaAutauga | M31: Alabama | N31: Autauga | O31: 006779
A32: 35 | B32: New Mexico | C32: 35 | D32: 356 | F32: Alabama | G32: Greene | L32: AlabamaAutauga | M32: Alabama | N32: Autauga | O32: 006969
A33: 36 | B33: New York | C33: 36 | D33: 362 | F33: Alabama | G33: Hale | L33: AlabamaAutauga | M33: Alabama | N33: Autauga | O33: 006970
A34: 37 | B34: North Carolina | C34: 37 | D34: 374 | F34: Alabama | G34: Henry | L34: AlabamaAutauga | M34: Alabama | N34: Autauga | O34: 006971
A35: 38 | B35: North Dakota | C35: 38 | D35: 388 | F35: Alabama | G35: Houston | L35: AlabamaAutauga | M35: Alabama | N35: Autauga | O35: 006972
A36: 39 | B36: Ohio | C36: 39 | D36: 395 | F36: Alabama | G36: Jackson | L36: AlabamaAutauga | M36: Alabama | N36: Autauga | O36: 007026
A37: 40 | B37: Oklahoma | C37: 40 | D37: 406 | F37: Alabama | G37: Jefferson | L37: AlabamaAutauga | M37: Alabama | N37: Autauga | O37: 007027
A38: 41 | B38: Oregon | C38: 41 | D38: 410 | F38: Alabama | G38: Lamar | L38: AlabamaAutauga | M38: Alabama | N38: Autauga | O38: 007066
A39: 42 | B39: Pennsylvania | C39: 42 | D39: 423 | F39: Alabama | G39: Lauderdale | L39: AlabamaAutauga | M39: Alabama | N39: Autauga | O39: 007361
A40: 44 | B40: Rhode Island | C40: 44 | D40: 441 | F40: Alabama | G40: Lawrence | L40: AlabamaAutauga | M40: Alabama | N40: Autauga | O40: 007898
A41: 45 | B41: South Carolina | C41: 45 | D41: 454 | F41: Alabama | G41: Lee | L41: AlabamaAutauga | M41: Alabama | N41: Autauga | O41: 007938
A42: 46 | B42: South Dakota | C42: 46 | D42: 468 | F42: Alabama | G42: Limestone | L42: AlabamaAutauga | M42: Alabama | N42: Autauga | O42: 007990
A43: 47 | B43: Tennessee | C43: 47 | D43: 474 | F43: Alabama | G43: Lowndes | L43: AlabamaAutauga | M43: Alabama | N43: Autauga | O43: 008262
A44: 48 | B44: Texas | C44: 48 | D44: 486 | F44: Alabama | G44: Macon | L44: AlabamaAutauga | M44: Alabama | N44: Autauga | O44: 008557
A45: 49 | B45: Utah | C45: 49 | D45: 498 | F45: Alabama | G45: Madison | L45: AlabamaAutauga | M45: Alabama | N45: Autauga | O45: 008558
A46: 50 | B46: Vermont | C46: 50 | D46: 501 | F46: Alabama | G46: Marengo | L46: AlabamaAutauga | M46: Alabama | N46: Autauga | O46: 008559
A47: 51 | B47: Virginia | C47: 51 | D47: 513 | F47: Alabama | G47: Marion | L47: AlabamaAutauga | M47: Alabama | N47: Autauga | O47: 008660
A48: 53 | B48: Washington | C48: 53 | D48: 530 | F48: Alabama | G48: Marshall | L48: AlabamaAutauga | M48: Alabama | N48: Autauga | O48: 010062
A49: 54 | B49: West Virginia | C49: 54 | D49: 543 | F49: Alabama | G49: Mobile | L49: AlabamaAutauga | M49: Alabama | N49: Autauga | O49: 010330
A50: 55 | B50: Wisconsin | C50: 55 | D50: 555 | F50: Alabama | G50: Monroe | L50: AlabamaAutauga | M50: Alabama | N50: Autauga | O50: 010331
A51: 56 | B51: Wyoming | C51: 56 | D51: 568 | F51: Alabama | G51: Montgomery | L51: AlabamaAutauga | M51: Alabama | N51: Autauga | O51: 010674
A52: 66 | B52: Guam | C52: 66 | D52: 66 | F52: Alabama | G52: Morgan | L52: AlabamaAutauga | M52: Alabama | N52: Autauga | O52: 010675
A53: 72 | B53: Puerto Rico | C53: 72 | D53: 721 | F53: Alabama | G53: Perry | L53: AlabamaAutauga | M53: Alabama | N53: Autauga | O53: 010676
A54: 78 | B54: U.S. Virgin Islands | C54: 78 | D54: 78 | F54: Alabama | G54: Pickens | L54: AlabamaAutauga | M54: Alabama | N54: Autauga | O54: 011577
A55: - | B55: - | C55: - | D55: - | F55: Alabama | G55: Pike | L55: AlabamaAutauga | M55: Alabama | N55: Autauga | O55: 011837
A56: mystate | B56: mystate | C56: mystate | D56: mystate | F56: Alabama | G56: Randolph | L56: AlabamaAutauga | M56: Alabama | N56: Autauga | O56: 011910
A57: Required | B57: Required | C57: Required | D57: Required | F57: Alabama | G57: Russell | L57: AlabamaAutauga | M57: Alabama | N57: Autauga | O57: 011993
F58: Alabama | G58: Shelby | L58: AlabamaAutauga | M58: Alabama | N58: Autauga | O58: 012154
F59: Alabama | G59: St. Clair | L59: AlabamaAutauga | M59: Alabama | N59: Autauga | O59: 012155
F60: Alabama | G60: Sumter | L60: AlabamaAutauga | M60: Alabama | N60: Autauga | O60: 012263
F61: Alabama | G61: Talladega | L61: AlabamaAutauga | M61: Alabama | N61: Autauga | O61: 012579
F62: Alabama | G62: Tallapoosa | L62: AlabamaAutauga | M62: Alabama | N62: Autauga | O62: 012810
F63: Alabama | G63: Tuscaloosa | L63: AlabamaAutauga | M63: Alabama | N63: Autauga | O63: 012977
F64: Alabama | G64: Walker | L64: AlabamaAutauga | M64: Alabama | N64: Autauga | O64: 013242
F65: Alabama | G65: Washington | L65: AlabamaAutauga | M65: Alabama | N65: Autauga | O65: 013294
F66: Alabama | G66: Wilcox | L66: =M66&N66 -> AlabamaAutauga | M66: Alabama | N66: Autauga | O66: 013299
F67: Alabama | G67: Winston | L67: AlabamaAutauga | M67: Alabama | N67: Autauga | O67: 013604
F68: Alaska | G68: Aleutians East Borough | L68: AlabamaAutauga | M68: Alabama | N68: Autauga | O68: 013765
F69: Alaska | G69: Aleutians West Census Area | L69: AlabamaAutauga | M69: Alabama | N69: Autauga | O69: 013907
F70: Alaska | G70: Anchorage Municipality | L70: AlabamaAutauga | M70: Alabama | N70: Autauga | O70: 013908
F71: Alaska | G71: Bethel Census Area | L71: AlabamaAutauga | M71: Alabama | N71: Autauga | O71: 014198
F72: Alaska | G72: Bristol Bay Borough | L72: AlabamaAutauga | M72: Alabama | N72: Autauga | O72: 014199
F73: Alaska | G73: Chugach Census Area | L73: AlabamaAutauga | M73: Alabama | N73: Autauga | O73: 014200
F74: Alaska | G74: Copper River Census Area | L74: AlabamaAutauga | M74: Alabama | N74: Autauga | O74: 014610
F75: Alaska | G75: Denali Borough | L75: AlabamaAutauga | M75: Alabama | N75: Autauga | O75: 015166
F76: Alaska | G76: Dillingham Census Area | L76: AlabamaAutauga | M76: Alabama | N76: Autauga | O76: 015296
F77: Alaska | G77: Fairbanks North Star Borough | L77: AlabamaAutauga | M77: Alabama | N77: Autauga | O77: 015553
F78: Alaska | G78: Haines Borough | L78: AlabamaAutauga | M78: Alabama | N78: Autauga | O78: 015612
F79: Alaska | G79: Hoonah-Angoon Census Area | L79: AlabamaAutauga | M79: Alabama | N79: Autauga | O79: 015749
F80: Alaska | G80: Juneau City and Borough | L80: AlabamaAutauga | M80: Alabama | N80: Autauga | O80: 016099
F81: Alaska | G81: Kenai Peninsula Borough | L81: AlabamaAutauga | M81: Alabama | N81: Autauga | O81: 016100
F82: Alaska | G82: Ketchikan Gateway Borough | L82: AlabamaAutauga | M82: Alabama | N82: Autauga | O82: 016122
F83: Alaska | G83: Kodiak Island Borough | L83: AlabamaAutauga | M83: Alabama | N83: Autauga | O83: 016124
F84: Alaska | G84: Kusilvak Census Area | L84: AlabamaAutauga | M84: Alabama | N84: Autauga | O84: 016127
F85: Alaska | G85: Lake and Peninsula Borough | L85: AlabamaAutauga | M85: Alabama | N85: Autauga | O85: 016135
F86: Alaska | G86: Matanuska-Susitna Borough | L86: AlabamaAutauga | M86: Alabama | N86: Autauga | O86: 016614
F87: Alaska | G87: Nome Census Area | L87: AlabamaAutauga | M87: Alabama | N87: Autauga | O87: 016615
F88: Alaska | G88: North Slope Borough | L88: AlabamaAutauga | M88: Alabama | N88: Autauga | O88: 016616
F89: Alaska | G89: Northwest Arctic Borough | L89: AlabamaAutauga | M89: Alabama | N89: Autauga | O89: 016660
F90: Alaska | G90: Petersburg Census Area | L90: AlabamaAutauga | M90: Alabama | N90: Autauga | O90: 016661
F91: Alaska | G91: Prince of Wales Outer Ketchikan Census Area | L91: AlabamaAutauga | M91: Alabama | N91: Autauga | O91: 016744
F92: Alaska | G92: Prince of Wales-Hyder Census Area | L92: AlabamaAutauga | M92: Alabama | N92: Autauga | O92: 017065
F93: Alaska | G93: Sitka City and Borough | L93: AlabamaAutauga | M93: Alabama | N93: Autauga | O93: 017066
F94: Alaska | G94: Skagway Municipality | L94: AlabamaAutauga | M94: Alabama | N94: Autauga | O94: 017302
F95: Alaska | G95: Southeast Fairbanks Census Area | L95: AlabamaAutauga | M95: Alabama | N95: Autauga | O95: 017731
F96: Alaska | G96: Wrangell City and Borough | L96: AlabamaAutauga | M96: Alabama | N96: Autauga | O96: 017762
F97: Alaska | G97: Yakutat City and Borough | L97: AlabamaAutauga | M97: Alabama | N97: Autauga | O97: 017953
F98: Alaska | G98: Yukon-Koyukuk Census Area | L98: AlabamaAutauga | M98: Alabama | N98: Autauga | O98: 018248
F99: Arizona | G99: Apache | L99: AlabamaAutauga | M99: Alabama | N99: Autauga | O99: 018249
F100: Arizona | G100: Cochise | L100: AlabamaAutauga | M100: Alabama | N100: Autauga | O100: 018341
F101: Arizona | G101: Coconino | L101: AlabamaAutauga | M101: Alabama | N101: Autauga | O101: 018439
F102: Arizona | G102: Gila | L102: AlabamaAutauga | M102: Alabama | N102: Autauga | O102: 018706
F103: Arizona | G103: Graham | L103: AlabamaAutauga | M103: Alabama | N103: Autauga | O103: 018707
F104: Arizona | G104: Greenlee | L104: AlabamaAutauga | M104: Alabama | N104: Autauga | O104: 018997
F105: Arizona | G105: La Paz | L105: AlabamaAutauga | M105: Alabama | N105: Autauga | O105: 019220
F106: Arizona | G106: Maricopa | L106: AlabamaAutauga | M106: Alabama | N106: Autauga | O106: 019276
F107: Arizona | G107: Mohave | L107: AlabamaAutauga | M107: Alabama | N107: Autauga | O107: 019508
F108: Arizona | G108: Navajo | L108: AlabamaAutauga | M108: Alabama | N108: Autauga | O108: 020070
F109: Arizona | G109: Pima | L109: AlabamaAutauga | M109: Alabama | N109: Autauga | O109: 020071
F110: Arizona | G110: Pinal | L110: AlabamaAutauga | M110: Alabama | N110: Autauga | O110: 020080
F111: Arizona | G111: Santa Cruz | L111: AlabamaAutauga | M111: Alabama | N111: Autauga | O111: 020186
F112: Arizona | G112: Yavapai | L112: AlabamaAutauga | M112: Alabama | N112: Autauga | O112: 021053
F113: Arizona | G113: Yuma | L113: AlabamaAutauga | M113: Alabama | N113: Autauga | O113: 021054
F114: Arizona | L114: AlabamaAutauga | M114: Alabama | N114: Autauga | O114: 021055
F115: Arkansas | G115: Arkansas | L115: AlabamaAutauga | M115: Alabama | N115: Autauga | O115: 021547
F116: Arkansas | G116: Ashley | L116: AlabamaAutauga | M116: Alabama | N116: Autauga | O116: CEPSAMAL0000003
F117: Arkansas | G117: Baxter | L117: AlabamaBaldwin | M117: Alabama | N117: Baldwin | O117: 000360
F118: Arkansas | G118: Benton | L118: AlabamaBaldwin | M118: Alabama | N118: Baldwin | O118: 000361
F119: Arkansas | G119: Boone | L119: AlabamaBaldwin | M119: Alabama | N119: Baldwin | O119: 000571
F120: Arkansas | G120: Bradley | L120: AlabamaBaldwin | M120: Alabama | N120: Baldwin | O120: 000618
F121: Arkansas | G121: Calhoun | L121: AlabamaBaldwin | M121: Alabama | N121: Baldwin | O121: 000662
F122: Arkansas | G122: Carroll | L122: AlabamaBaldwin | M122: Alabama | N122: Baldwin | O122: 000663
F123: Arkansas | G123: Chicot | L123: AlabamaBaldwin | M123: Alabama | N123: Baldwin | O123: 000664
F124: Arkansas | G124: Clark | L124: AlabamaBaldwin | M124: Alabama | N124: Baldwin | O124: 002954
F125: Arkansas | G125: Clay | L125: AlabamaBaldwin | M125: Alabama | N125: Baldwin | O125: 003420
F126: Arkansas | G126: Cleburne | L126: AlabamaBaldwin | M126: Alabama | N126: Baldwin | O126: 003421
F127: Arkansas | G127: Cleveland | L127: AlabamaBaldwin | M127: Alabama | N127: Baldwin | O127: 004001
F128: Arkansas | G128: Columbia | L128: AlabamaBaldwin | M128: Alabama | N128: Baldwin | O128: 004002
F129: Arkansas | G129: Conway | L129: AlabamaBaldwin | M129: Alabama | N129: Baldwin | O129: 004171
F130: Arkansas | G130: Craighead | L130: =M130&N130 -> AlabamaBaldwin | M130: Alabama | N130: Baldwin | O130: 004610
F131: Arkansas | G131: Crawford | L131: AlabamaBaldwin | M131: Alabama | N131: Baldwin | O131: 004735
F132: Arkansas | G132: Crittenden | L132: AlabamaBaldwin | M132: Alabama | N132: Baldwin | O132: 004804
F133: Arkansas | G133: Cross | L133: AlabamaBaldwin | M133: Alabama | N133: Baldwin | O133: 005013
F134: Arkansas | G134: Dallas | L134: AlabamaBaldwin | M134: Alabama | N134: Baldwin | O134: 005324
F135: Arkansas | G135: Desha | L135: AlabamaBaldwin | M135: Alabama | N135: Baldwin | O135: 005726
F136: Arkansas | G136: Drew | L136: AlabamaBaldwin | M136: Alabama | N136: Baldwin | O136: 005729
F137: Arkansas | G137: Faulkner | L137: AlabamaBaldwin | M137: Alabama | N137: Baldwin | O137: 005963
F138: Arkansas | G138: Franklin | L138: AlabamaBaldwin | M138: Alabama | N138: Baldwin | O138: 005964
F139: Arkansas | G139: Fulton | L139: AlabamaBaldwin | M139: Alabama | N139: Baldwin | O139: 007012
F140: Arkansas | G140: Garland | L140: AlabamaBaldwin | M140: Alabama | N140: Baldwin | O140: 007013
F141: Arkansas | G141: Grant | L141: AlabamaBaldwin | M141: Alabama | N141: Baldwin | O141: 007488
F142: Arkansas | G142: Greene | L142: AlabamaBaldwin | M142: Alabama | N142: Baldwin | O142: 007773
F143: Arkansas | G143: Hempstead | L143: AlabamaBaldwin | M143: Alabama | N143: Baldwin | O143: 007804
F144: Arkansas | G144: Hot Spring | L144: AlabamaBaldwin | M144: Alabama | N144: Baldwin | O144: 008165
F145: Arkansas | G145: Howard | L145: AlabamaBaldwin | M145: Alabama | N145: Baldwin | O145: 008315
F146: Arkansas | G146: Independence | L146: AlabamaBaldwin | M146: Alabama | N146: Baldwin | O146: 008518
F147: Arkansas | G147: Izard | L147: AlabamaBaldwin | M147: Alabama | N147: Baldwin | O147: 008519
F148: Arkansas | G148: Jackson | L148: AlabamaBaldwin | M148: Alabama | N148: Baldwin | O148: 008520
F149: Arkansas | G149: Jefferson | L149: AlabamaBaldwin | M149: Alabama | N149: Baldwin | O149: 008521
F150: Arkansas | G150: Johnson | L150: AlabamaBaldwin | M150: Alabama | N150: Baldwin | O150: 008522
F151: Arkansas | G151: Lafayette | L151: AlabamaBaldwin | M151: Alabama | N151: Baldwin | O151: 008523
F152: Arkansas | G152: Lawrence | L152: AlabamaBaldwin | M152: Alabama | N152: Baldwin | O152: 008524
F153: Arkansas | G153: Lee | L153: AlabamaBaldwin | M153: Alabama | N153: Baldwin | O153: 008525
F154: Arkansas | G154: Lincoln | L154: AlabamaBaldwin | M154: Alabama | N154: Baldwin | O154: 008526
F155: Arkansas | G155: Little River | L155: AlabamaBaldwin | M155: Alabama | N155: Baldwin | O155: 008527
F156: Arkansas | G156: Logan | L156: AlabamaBaldwin | M156: Alabama | N156: Baldwin | O156: 008528
F157: Arkansas | G157: Lonoke | L157: AlabamaBaldwin | M157: Alabama | N157: Baldwin | O157: 008529
F158: Arkansas | G158: Madison | L158: AlabamaBaldwin | M158: Alabama | N158: Baldwin | O158: 008530
F159: Arkansas | G159: Marion | L159: AlabamaBaldwin | M159: Alabama | N159: Baldwin | O159: 008531
F160: Arkansas | G160: Miller | L160: AlabamaBaldwin | M160: Alabama | N160: Baldwin | O160: 008532
F161: Arkansas | G161: Mississippi | L161: AlabamaBaldwin | M161: Alabama | N161: Baldwin | O161: 008533
F162: Arkansas | G162: Monroe | L162: AlabamaBaldwin | M162: Alabama | N162: Baldwin | O162: 008534
F163: Arkansas | G163: Montgomery | L163: AlabamaBaldwin | M163: Alabama | N163: Baldwin | O163: 008535
F164: Arkansas | G164: Nevada | L164: AlabamaBaldwin | M164: Alabama | N164: Baldwin | O164: 008536
F165: Arkansas | G165: Newton | L165: AlabamaBaldwin | M165: Alabama | N165: Baldwin | O165: 008537
F166: Arkansas | G166: Ouachita | L166: AlabamaBaldwin | M166: Alabama | N166: Baldwin | O166: 008538
F167: Arkansas | G167: Perry | L167: AlabamaBaldwin | M167: Alabama | N167: Baldwin | O167: 008539
